Workbook

Sheet 2019 scenario - input
B1: Unit cost - historical | C1: Calibration period:
B2: Replacement lives - calibrated
D3: Unit cost | E3: Replacement life | G3: Method | H3: Volume | CV3: Replacement Cost (NOT depreciated)
H4: Installation date | CV4: Installation date
A5: ID | B5: Asset group | C5: Asset category | D5: $ ('000) | E5: μ | F5: σ | G5: # | H5: 2020 | I5: =IFERROR(IF($H5="","",H5-1),"") -> 2019 | J5: =IFERROR(IF($H5="","",I5-1),"") -> 2018 | K5: 2017 | L5: 2016 | M5: 2015 | N5: 2014 | O5: 2013 | P5: 2012 | Q5: 2011 | R5: 2010 | S5: 2009 | T5: 2008 | U5: 2007 | V5: 2006 | W5: 2005 | X5: 2004 | Y5: 2003 | Z5: 2002 | AA5: 2001 | AB5: 2000 | AC5: 1999 | AD5: 1998 | AE5: 1997 | AF5: 1996 | AG5: 1995 | AH5: 1994 | AI5: 1993 | AJ5: 1992 | AK5: 1991 | AL5: 1990 | AM5: 1989 | AN5: 1988 | AO5: 1987 | AP5: 1986 | AQ5: 1985 | AR5: 1984 | AS5: 1983 | AT5: 1982 | AU5: 1981 | AV5: 1980 | AW5: 1979 | AX5: 1978 | AY5: 1977 | AZ5: 1976 | BA5: 1975 | BB5: 1974 | BC5: 1973 | BD5: 1972 | BE5: 1971 | BF5: 1970 | BG5: 1969 | BH5: 1968 | BI5: 1967 | BJ5: 1966 | BK5: 1965 | BL5: 1964 | BM5: 1963 | BN5: 1962 | BO5: 1961 | BP5: 1960 | BQ5: 1959 | BR5: 1958 | BS5: 1957 | BT5: 1956 | BU5: 1955 | BV5: =IFERROR(IF($H5="","",BU5-1),"") -> 1954 | BW5: 1953 | BX5: 1952 | BY5: 1951 | BZ5: 1950 | CA5: 1949 | CB5: 1948 | CC5: 1947 | CD5: 1946 | CE5: 1945 | CF5: 1944 | CG5: 1943 | CH5: 1942 | CI5: 1941 | CJ5: 1940 | CK5: 1939 | CL5: 1938 | CM5: 1937 | CN5: 1936 | CO5: 1935 | CP5: 1934 | CQ5: 1933 | CR5: 1932 | CS5: 1931 | CT5: 1930 | CV5: =H5 -> 2020 | CW5: =I5 -> 2019 | CX5: 2018 | CY5: 2017 | CZ5: 2016 | DA5: 2015 | DB5: 2014 | DC5: 2013 | DD5: 2012 | DE5: 2011 | DF5: 2010 | DG5: 2009 | DH5: 2008 | DI5: 2007 | DJ5: 2006 | DK5: 2005 | DL5: 2004 | DM5: 2003 | DN5: 2002 | DO5: 2001 | DP5: 2000 | DQ5: 1999 | DR5: 1998 | DS5: 1997 | DT5: 1996 | DU5: 1995 | DV5: 1994 | DW5: 1993 | DX5: 1992 | DY5: 1991 | DZ5: 1990 | EA5: 1989 | EB5: 1988 | EC5: 1987 | ED5: 1986 | EE5: 1985 | EF5: 1984 | EG5: 1983 | EH5: 1982 | EI5: 1981 | EJ5: 1980 | EK5: 1979 | EL5: 1978 | EM5: 1977 | EN5: 1976 | EO5: 1975 | EP5: 1974 | EQ5: 1973 | ER5: 1972 | ES5: 1971 | ET5: 1970 | EU5: 1969 | EV5: 1968 | EW5: 1967 | EX5: 1966 | EY5: 1965 | EZ5: 1964 | FA5: 1963 | FB5: 1962 | FC5: 1961 | FD5: 1960 | FE5: 1959 | FF5: 1958 | FG5: 1957 | FH5: 1956 | FI5: =BU5 -> 1955 | FJ5: 1954 | FK5: 1953 | FL5: 1952 | FM5: 1951 | FN5: 1950 | FO5: 1949 | FP5: 1948 | FQ5: 1947 | FR5: 1946 | FS5: 1945 | FT5: 1944 | FU5: 1943 | FV5: 1942 | FW5: 1941 | FX5: 1940 | FY5: 1939 | FZ5: 1938 | GA5: 1937 | GB5: 1936 | GC5: 1935 | GD5: 1934 | GE5: 1933 | GF5: 1932 | GG5: 1931 | GH5: 1930
A6: 2 | B6: POLES | C6: ˂ = 1 kv ; wood | D6: 1 | E6: 71.32777285 | F6: 8.445577117 | G6: 2 | H6: 192 | I6: 234 | J6: 210 | K6: 189 | L6: 359 | M6: 383 | N6: 425 | O6: 431 | P6: 229 | Q6: 401 | R6: 617 | S6: 396 | T6: 452 | U6: 436 | V6: 618 | W6: 582 | X6: 562 | Y6: 490 | Z6: 746 | AA6: 647 | AB6: 414 | AC6: 56 | AD6: 38 | AE6: 28 | AF6: 22 | AG6: 17 | AH6: 28 | AI6: 38 | AJ6: 44 | AK6: 376 | AL6: 1204 | AM6: 1219 | AN6: 1054 | AO6: 3088 | AP6: 2085 | AQ6: 2400 | AR6: 1871 | AS6: 1782 | AT6: 1952 | AU6: 3567 | AV6: 1917 | AW6: 2234 | AX6: 1823 | AY6: 3406 | AZ6: 3080 | BA6: 2502 | BB6: 3085 | BC6: 2669 | BD6: 2134 | BE6: 2255 | BF6: 3089 | BG6: 3055 | BH6: 3042 | BI6: 2116 | BJ6: 2402 | BK6: 2416 | BL6: 1467 | BM6: 1699 | BN6: 1459 | BO6: 1363 | BP6: 1140 | BQ6: 1038 | BR6: 1087 | BS6: 271 | BT6: 412 | BU6: 387 | BV6: 410 | BW6: 521 | BX6: 387 | BY6: 692 | BZ6: 270 | CA6: 184 | CB6: 131 | CC6: 118 | CD6: 89 | CE6: 32 | CF6: 26 | CG6: 116 | CH6: 345 | CI6: 842 | CJ6: 437 | CK6: 752 | CL6: 209 | CM6: 165 | CN6: 64 | CO6: 127 | CP6: 59 | CQ6: 25 | CR6: 12 | CS6: 25 | CT6: 0 | CV6: 192 | CW6: 234 | CX6: 210 | CY6: 189 | CZ6: 359 | DA6: 383 | DB6: 425 | DC6: 431 | DD6: 229 | DE6: 401 | DF6: 617 | DG6: 396 | DH6: 452 | DI6: 436 | DJ6: 618 | DK6: 582 | DL6: 562 | DM6: 490 | DN6: 746 | DO6: 647 | DP6: 414 | DQ6: 56 | DR6: 38 | DS6: 28 | DT6: 22 | DU6: 17 | DV6: 28 | DW6: 38 | DX6: 44 | DY6: 376 | DZ6: 1204 | EA6: 1219 | EB6: 1054 | EC6: 3088 | ED6: 2085 | EE6: 2400 | EF6: 1871 | EG6: 1782 | EH6: 1952 | EI6: 3567 | EJ6: 1917 | EK6: 2234 | EL6: 1823 | EM6: 3406 | EN6: 3080 | EO6: 2502 | EP6: 3085 | EQ6: 2669 | ER6: 2134 | ES6: 2255 | ET6: 3089 | EU6: 3055 | EV6: 3042 | EW6: 2116 | EX6: 2402 | EY6: 2416 | EZ6: 1467 | FA6: 1699 | FB6: 1459 | FC6: 1363 | FD6: 1140 | FE6: 1038 | FF6: 1087 | FG6: 271 | FH6: 412 | FI6: 387 | FJ6: 410 | FK6: 521 | FL6: 387 | FM6: 692 | FN6: 270 | FO6: 184 | FP6: 131 | FQ6: 118 | FR6: 89 | FS6: 32 | FT6: 26 | FU6: 116 | FV6: 345 | FW6: 842 | FX6: 437 | FY6: 752 | FZ6: 209 | GA6: 165 | GB6: 64 | GC6: 127 | GD6: 59 | GE6: 25 | GF6: 12 | GG6: 25 | GH6: 0
A7: 2 | B7: POLES | C7: ˃ 11 kv & < = 22 kv ; wood | D7: 1 | E7: 70.89462745 | F7: 8.419894741 | G7: 2 | H7: 854 | I7: 1148 | J7: 1142 | K7: 1553 | L7: 1668 | M7: 1486 | N7: 1316 | O7: 1614 | P7: 1204 | Q7: 1187 | R7: 1615 | S7: 1580 | T7: 1620 | U7: 1784 | V7: 2643 | W7: 3097 | X7: 2706 | Y7: 2168 | Z7: 3554 | AA7: 3163 | AB7: 1828 | AC7: 354 | AD7: 179 | AE7: 132 | AF7: 195 | AG7: 197 | AH7: 562 | AI7: 154 | AJ7: 566 | AK7: 1535 | AL7: 1473 | AM7: 2691 | AN7: 1509 | AO7: 4458 | AP7: 4248 | AQ7: 5376 | AR7: 4962 | AS7: 5065 | AT7: 6790 | AU7: 6752 | AV7: 2722 | AW7: 4642 | AX7: 6910 | AY7: 6861 | AZ7: 5278 | BA7: 3970 | BB7: 3584 | BC7: 3457 | BD7: 3066 | BE7: 4724 | BF7: 7430 | BG7: 7705 | BH7: 7882 | BI7: 9261 | BJ7: 10970 | BK7: 10776 | BL7: 4776 | BM7: 4390 | BN7: 4390 | BO7: 3736 | BP7: 3460 | BQ7: 3346 | BR7: 3331 | BS7: 736 | BT7: 1610 | BU7: 1269 | BV7: 900 | BW7: 1075 | BX7: 1041 | BY7: 1100 | BZ7: 613 | CA7: 216 | CB7: 162 | CC7: 206 | CD7: 239 | CE7: 196 | CF7: 63 | CG7: 308 | CH7: 552 | CI7: 1501 | CJ7: 1190 | CK7: 2320 | CL7: 569 | CM7: 297 | CN7: 130 | CO7: 76 | CP7: 55 | CQ7: 29 | CR7: 6 | CS7: 8 | CT7: 0 | CV7: 854 | CW7: 1148 | CX7: 1142 | CY7: 1553 | CZ7: 1668 | DA7: 1486 | DB7: 1316 | DC7: 1614 | DD7: 1204 | DE7: 1187 | DF7: 1615 | DG7: 1580 | DH7: 1620 | DI7: 1784 | DJ7: 2643 | DK7: 3097 | DL7: 2706 | DM7: 2168 | DN7: 3554 | DO7: 3163 | DP7: 1828 | DQ7: 354 | DR7: 179 | DS7: 132 | DT7: 195 | DU7: 197 | DV7: 562 | DW7: 154 | DX7: 566 | DY7: 1535 | DZ7: 1473 | EA7: 2691 | EB7: 1509 | EC7: 4458 | ED7: 4248 | EE7: 5376 | EF7: 4962 | EG7: 5065 | EH7: 6790 | EI7: 6752 | EJ7: 2722 | EK7: 4642 | EL7: 6910 | EM7: 6861 | EN7: 5278 | EO7: 3970 | EP7: 3584 | EQ7: 3457 | ER7: 3066 | ES7: 4724 | ET7: 7430 | EU7: 7705 | EV7: 7882 | EW7: 9261 | EX7: 10970 | EY7: 10776 | EZ7: 4776 | FA7: 4390 | FB7: 4390 | FC7: 3736 | FD7: 3460 | FE7: 3346 | FF7: 3331 | FG7: 736 | FH7: 1610 | FI7: 1269 | FJ7: 900 | FK7: 1075 | FL7: 1041 | FM7: 1100 | FN7: 613 | FO7: 216 | FP7: 162 | FQ7: 206 | FR7: 239 | FS7: 196 | FT7: 63 | FU7: 308 | FV7: 552 | FW7: 1501 | FX7: 1190 | FY7: 2320 | FZ7: 569 | GA7: 297 | GB7: 130 | GC7: 76 | GD7: 55 | GE7: 29 | GF7: 6 | GG7: 8 | GH7: 0
A8: 2 | B8: POLES | C8: > 1 kv & < = 11 kv ; wood | D8: 1 | E8: 64.83804819 | F8: 8.05220766 | G8: 2 | H8: 3 | I8: 9 | J8: 4 | K8: 3 | L8: 33 | M8: 3 | N8: 7 | O8: 7 | P8: 4 | Q8: 2 | R8: 5 | S8: 12 | T8: 6 | U8: 10 | V8: 3 | W8: 13 | X8: 5 | Y8: 8 | Z8: 5 | AA8: 9 | AB8: 1 | AC8: 2 | AD8: 2 | AE8: 8 | AF8: 3 | AG8: 0 | AH8: 9 | AI8: 0 | AJ8: 5 | AK8: 30 | AL8: 13 | AM8: 7 | AN8: 7 | AO8: 4 | AP8: 20 | AQ8: 23 | AR8: 21 | AS8: 3 | AT8: 4 | AU8: 15 | AV8: 7 | AW8: 30 | AX8: 10 | AY8: 3 | AZ8: 9 | BA8: 12 | BB8: 7 | BC8: 20 | BD8: 9 | BE8: 23 | BF8: 10 | BG8: 20 | BH8: 14 | BI8: 31 | BJ8: 22 | BK8: 2 | BL8: 10 | BM8: 16 | BN8: 19 | BO8: 10 | BP8: 21 | BQ8: 8 | BR8: 3 | BS8: 0 | BT8: 0 | BU8: 5 | BV8: 1 | BW8: 0 | BX8: 0 | BY8: 3 | BZ8: 0 | CA8: 0 | CB8: 0 | CC8: 0 | CD8: 0 | CE8: 0 | CF8: 0 | CG8: 0 | CH8: 6 | CI8: 1 | CJ8: 2 | CK8: 2 | CL8: 0 | CM8: 0 | CN8: 0 | CO8: 0 | CP8: 0 | CQ8: 0 | CR8: 0 | CS8: 0 | CT8: 0 | CV8: 3 | CW8: 9 | CX8: 4 | CY8: 3 | CZ8: 33 | DA8: 3 | DB8: 7 | DC8: 7 | DD8: 4 | DE8: 2 | DF8: 5 | DG8: 12 | DH8: 6 | DI8: 10 | DJ8: 3 | DK8: 13 | DL8: 5 | DM8: 8 | DN8: 5 | DO8: 9 | DP8: 1 | DQ8: 2 | DR8: 2 | DS8: 8 | DT8: 3 | DU8: 0 | DV8: 9 | DW8: 0 | DX8: 5 | DY8: 30 | DZ8: 13 | EA8: 7 | EB8: 7 | EC8: 4 | ED8: 20 | EE8: 23 | EF8: 21 | EG8: 3 | EH8: 4 | EI8: 15 | EJ8: 7 | EK8: 30 | EL8: 10 | EM8: 3 | EN8: 9 | EO8: 12 | EP8: 7 | EQ8: 20 | ER8: 9 | ES8: 23 | ET8: 10 | EU8: 20 | EV8: 14 | EW8: 31 | EX8: 22 | EY8: 2 | EZ8: 10 | FA8: 16 | FB8: 19 | FC8: 10 | FD8: 21 | FE8: 8 | FF8: 3 | FG8: 0 | FH8: 0 | FI8: 5 | FJ8: 1 | FK8: 0 | FL8: 0 | FM8: 3 | FN8: 0 | FO8: 0 | FP8: 0 | FQ8: 0 | FR8: 0 | FS8: 0 | FT8: 0 | FU8: 0 | FV8: 6 | FW8: 1 | FX8: 2 | FY8: 2 | FZ8: 0 | GA8: 0 | GB8: 0 | GC8: 0 | GD8: 0 | GE8: 0 | GF8: 0 | GG8: 0 | GH8: 0
A9: 2 | B9: POLES | C9: > 22 kv & < = 66 kv ; wood | D9: 1 | E9: 74.50993007 | F9: 8.631913465 | G9: 2 | H9: 77 | I9: 243 | J9: 356 | K9: 444 | L9: 610 | M9: 154 | N9: 282 | O9: 502 | P9: 316 | Q9: 325 | R9: 83 | S9: 319 | T9: 176 | U9: 354 | V9: 147 | W9: 621 | X9: 266 | Y9: 252 | Z9: 327 | AA9: 270 | AB9: 280 | AC9: 29 | AD9: 12 | AE9: 15 | AF9: 24 | AG9: 11 | AH9: 40 | AI9: 7 | AJ9: 34 | AK9: 258 | AL9: 175 | AM9: 52 | AN9: 41 | AO9: 45 | AP9: 88 | AQ9: 267 | AR9: 124 | AS9: 120 | AT9: 315 | AU9: 191 | AV9: 118 | AW9: 50 | AX9: 370 | AY9: 676 | AZ9: 792 | BA9: 378 | BB9: 203 | BC9: 318 | BD9: 210 | BE9: 714 | BF9: 524 | BG9: 156 | BH9: 412 | BI9: 367 | BJ9: 286 | BK9: 455 | BL9: 240 | BM9: 172 | BN9: 268 | BO9: 120 | BP9: 143 | BQ9: 31 | BR9: 401 | BS9: 288 | BT9: 57 | BU9: 22 | BV9: 57 | BW9: 26 | BX9: 44 | BY9: 30 | BZ9: 19 | CA9: 20 | CB9: 6 | CC9: 5 | CD9: 4 | CE9: 1 | CF9: 198 | CG9: 32 | CH9: 167 | CI9: 57 | CJ9: 18 | CK9: 17 | CL9: 0 | CM9: 1 | CN9: 46 | CO9: 24 | CP9: 1 | CQ9: 0 | CR9: 0 | CS9: 2 | CT9: 0 | CV9: 77 | CW9: 243 | CX9: 356 | CY9: 444 | CZ9: 610 | DA9: 154 | DB9: 282 | DC9: 502 | DD9: 316 | DE9: 325 | DF9: 83 | DG9: 319 | DH9: 176 | DI9: 354 | DJ9: 147 | DK9: 621 | DL9: 266 | DM9: 252 | DN9: 327 | DO9: 270 | DP9: 280 | DQ9: 29 | DR9: 12 | DS9: 15 | DT9: 24 | DU9: 11 | DV9: 40 | DW9: 7 | DX9: 34 | DY9: 258 | DZ9: 175 | EA9: 52 | EB9: 41 | EC9: 45 | ED9: 88 | EE9: 267 | EF9: 124 | EG9: 120 | EH9: 315 | EI9: 191 | EJ9: 118 | EK9: 50 | EL9: 370 | EM9: 676 | EN9: 792 | EO9: 378 | EP9: 203 | EQ9: 318 | ER9: 210 | ES9: 714 | ET9: 524 | EU9: 156 | EV9: 412 | EW9: 367 | EX9: 286 | EY9: 455 | EZ9: 240 | FA9: 172 | FB9: 268 | FC9: 120 | FD9: 143 | FE9: 31 | FF9: 401 | FG9: 288 | FH9: 57 | FI9: 22 | FJ9: 57 | FK9: 26 | FL9: 44 | FM9: 30 | FN9: 19 | FO9: 20 | FP9: 6 | FQ9: 5 | FR9: 4 | FS9: 1 | FT9: 198 | FU9: 32 | FV9: 167 | FW9: 57 | FX9: 18 | FY9: 17 | FZ9: 0 | GA9: 1 | GB9: 46 | GC9: 24 | GD9: 1 | GE9: 0 | GF9: 0 | GG9: 2 | GH9: 0
A10: 2 | B10: POLES | C10: staking of a wooden pole | D10: 1 | E10: 33.89005343 | F10: 5.82151642 | G10: 2 | H10: 53 | I10: 344 | J10: 626 | K10: 666 | L10: 852 | M10: 1245 | N10: 1246 | O10: 1071 | P10: 784 | Q10: 749 | R10: 486 | S10: 656 | T10: 985 | U10: 814 | V10: 897 | W10: 613 | X10: 553 | Y10: 510 | Z10: 335 | AA10: 192 | AB10: 210 | AC10: 152 | AD10: 1568 | AE10: 1395 | AF10: 731 | AG10: 632 | AH10: 446 | AI10: 530 | AJ10: 885 | AK10: 992 | AL10: 0 | AM10: 0 | AN10: 0 | AO10: 0 | AP10: 0 | AQ10: 0 | AR10: 0 | AS10: 0 | AT10: 0 | AU10: 0 | AV10: 0 | AW10: 0 | AX10: 0 | AY10: 0 | AZ10: 0 | BA10: 0 | BB10: 0 | BC10: 0 | BD10: 0 | BE10: 0 | BF10: 0 | BG10: 0 | BH10: 0 | BI10: 0 | BJ10: 0 | BK10: 0 | BL10: 0 | BM10: 0 | BN10: 0 | BO10: 0 | BP10: 0 | BQ10: 0 | BR10: 0 | BS10: 0 | BT10: 0 | BU10: 0 | BV10: 0 | BW10: 0 | BX10: 0 | BY10: 0 | BZ10: 0 | CA10: 0 | CB10: 0 | CC10: 0 | CD10: 0 | CE10: 0 | CF10: 0 | CG10: 0 | CH10: 0 | CI10: 0 | CJ10: 0 | CK10: 0 | CL10: 0 | CM10: 0 | CN10: 0 | CO10: 0 | CP10: 0 | CQ10: 0 | CR10: 0 | CS10: 0 | CT10: 0 | CV10: 53 | CW10: 344 | CX10: 626 | CY10: 666 | CZ10: 852 | DA10: 1245 | DB10: 1246 | DC10: 1071 | DD10: 784 | DE10: 749 | DF10: 486 | DG10: 656 | DH10: 985 | DI10: 814 | DJ10: 897 | DK10: 613 | DL10: 553 | DM10: 510 | DN10: 335 | DO10: 192 | DP10: 210 | DQ10: 152 | DR10: 1568 | DS10: 1395 | DT10: 731 | DU10: 632 | DV10: 446 | DW10: 530 | DX10: 885 | DY10: 992 | DZ10: 0 | EA10: 0 | EB10: 0 | EC10: 0 | ED10: 0 | EE10: 0 | EF10: 0 | EG10: 0 | EH10: 0 | EI10: 0 | EJ10: 0 | EK10: 0 | EL10: 0 | EM10: 0 | EN10: 0 | EO10: 0 | EP10: 0 | EQ10: 0 | ER10: 0 | ES10: 0 | ET10: 0 | EU10: 0 | EV10: 0 | EW10: 0 | EX10: 0 | EY10: 0 | EZ10: 0 | FA10: 0 | FB10: 0 | FC10: 0 | FD10: 0 | FE10: 0 | FF10: 0 | FG10: 0 | FH10: 0 | FI10: 0 | FJ10: 0 | FK10: 0 | FL10: 0 | FM10: 0 | FN10: 0 | FO10: 0 | FP10: 0 | FQ10: 0 | FR10: 0 | FS10: 0 | FT10: 0 | FU10: 0 | FV10: 0 | FW10: 0 | FX10: 0 | FY10: 0 | FZ10: 0 | GA10: 0 | GB10: 0 | GC10: 0 | GD10: 0 | GE10: 0 | GF10: 0 | GG10: 0 | GH10: 0
A11: =IFERROR(IF($B11="","",INDEX('2019 scenario - output'!$A$6:$A$12,MATCH('2019 scenario - input'!$B11,'2019 scenario - output'!$B$6:$B$12,0))),"") ->  | CV11: =IFERROR($D11*H11,"") -> 0 | CW11: =IFERROR($D11*I11,"") -> 0 | CX11: =IFERROR($D11*J11,"") -> 0 | CY11: =IFERROR($D11*K11,"") -> 0 | CZ11: =IFERROR($D11*L11,"") -> 0 | DA11: =IFERROR($D11*M11,"") -> 0 | DB11: =IFERROR($D11*N11,"") -> 0 | DC11: =IFERROR($D11*O11,"") -> 0 | DD11: =IFERROR($D11*P11,"") -> 0 | DE11: =IFERROR($D11*Q11,"") -> 0 | DF11: =IFERROR($D11*R11,"") -> 0 | DG11: =IFERROR($D11*S11,"") -> 0 | DH11: =IFERROR($D11*T11,"") -> 0 | DI11: =IFERROR($D11*U11,"") -> 0 | DJ11: =IFERROR($D11*V11,"") -> 0 | DK11: =IFERROR($D11*W11,"") -> 0 | DL11: =IFERROR($D11*X11,"") -> 0 | DM11: =IFERROR($D11*Y11,"") -> 0 | DN11: =IFERROR($D11*Z11,"") -> 0 | DO11: =IFERROR($D11*AA11,"") -> 0 | DP11: =IFERROR($D11*AB11,"") -> 0 | DQ11: =IFERROR($D11*AC11,"") -> 0 | DR11: =IFERROR($D11*AD11,"") -> 0 | DS11: =IFERROR($D11*AE11,"") -> 0 | DT11: =IFERROR($D11*AF11,"") -> 0 | DU11: =IFERROR($D11*AG11,"") -> 0 | DV11: =IFERROR($D11*AH11,"") -> 0 | DW11: =IFERROR($D11*AI11,"") -> 0 | DX11: =IFERROR($D11*AJ11,"") -> 0 | DY11: =IFERROR($D11*AK11,"") -> 0 | DZ11: =IFERROR($D11*AL11,"") -> 0 | EA11: =IFERROR($D11*AM11,"") -> 0 | EB11: =IFERROR($D11*AN11,"") -> 0 | EC11: =IFERROR($D11*AO11,"") -> 0 | ED11: =IFERROR($D11*AP11,"") -> 0 | EE11: =IFERROR($D11*AQ11,"") -> 0 | EF11: =IFERROR($D11*AR11,"") -> 0 | EG11: =IFERROR($D11*AS11,"") -> 0 | EH11: =IFERROR($D11*AT11,"") -> 0 | EI11: =IFERROR($D11*AU11,"") -> 0 | EJ11: =IFERROR($D11*AV11,"") -> 0 | EK11: =IFERROR($D11*AW11,"") -> 0 | EL11: =IFERROR($D11*AX11,"") -> 0 | EM11: =IFERROR($D11*AY11,"") -> 0 | EN11: =IFERROR($D11*AZ11,"") -> 0 | EO11: =IFERROR($D11*BA11,"") -> 0 | EP11: =IFERROR($D11*BB11,"") -> 0 | EQ11: =IFERROR($D11*BC11,"") -> 0 | ER11: =IFERROR($D11*BD11,"") -> 0 | ES11: =IFERROR($D11*BE11,"") -> 0 | ET11: =IFERROR($D11*BF11,"") -> 0 | EU11: =IFERROR($D11*BG11,"") -> 0 | EV11: =IFERROR($D11*BH11,"") -> 0 | EW11: =IFERROR($D11*BI11,"") -> 0 | EX11: =IFERROR($D11*BJ11,"") -> 0 | EY11: =IFERROR($D11*BK11,"") -> 0 | EZ11: =IFERROR($D11*BL11,"") -> 0 | FA11: =IFERROR($D11*BM11,"") -> 0 | FB11: =IFERROR($D11*BN11,"") -> 0 | FC11: =IFERROR($D11*BO11,"") -> 0 | FD11: =IFERROR($D11*BP11,"") -> 0 | FE11: =IFERROR($D11*BQ11,"") -> 0 | FF11: =IFERROR($D11*BR11,"") -> 0 | FG11: =IFERROR($D11*BS11,"") -> 0 | FH11: =IFERROR($D11*BT11,"") -> 0 | FI11: =IFERROR($D11*BU11,"") -> 0 | FJ11: =IFERROR($D11*BV11,"") -> 0 | FK11: =IFERROR($D11*BW11,"") -> 0 | FL11: =IFERROR($D11*BX11,"") -> 0 | FM11: =IFERROR($D11*BY11,"") -> 0 | FN11: =IFERROR($D11*BZ11,"") -> 0 | FO11: =IFERROR($D11*CA11,"") -> 0 | FP11: =IFERROR($D11*CB11,"") -> 0 | FQ11: =IFERROR($D11*CC11,"") -> 0 | FR11: =IFERROR($D11*CD11,"") -> 0 | FS11: =IFERROR($D11*CE11,"") -> 0 | FT11: =IFERROR($D11*CF11,"") -> 0 | FU11: =IFERROR($D11*CG11,"") -> 0 | FV11: =IFERROR($D11*CH11,"") -> 0 | FW11: =IFERROR($D11*CI11,"") -> 0 | FX11: =IFERROR($D11*CJ11,"") -> 0 | FY11: =IFERROR($D11*CK11,"") -> 0 | FZ11: =IFERROR($D11*CL11,"") -> 0 | GA11: =IFERROR($D11*CM11,"") -> 0 | GB11: =IFERROR($D11*CN11,"") -> 0 | GC11: =IFERROR($D11*CO11,"") -> 0 | GD11: =IFERROR($D11*CP11,"") -> 0 | GE11: =IFERROR($D11*CQ11,"") -> 0 | GF11: =IFERROR($D11*CR11,"") -> 0 | GG11: =IFERROR($D11*CS11,"") -> 0 | GH11: =IFERROR($D11*CT11,"") -> 0
A12: =IFERROR(IF($B12="","",INDEX('2019 scenario - output'!$A$6:$A$12,MATCH('2019 scenario - input'!$B12,'2019 scenario - output'!$B$6:$B$12,0))),"") ->  | CV12: 0 | CW12: 0 | CX12: 0 | CY12: 0 | CZ12: 0 | DA12: 0 | DB12: 0 | DC12: 0 | DD12: 0 | DE12: 0 | DF12: 0 | DG12: 0 | DH12: 0 | DI12: 0 | DJ12: 0 | DK12: 0 | DL12: 0 | DM12: 0 | DN12: 0 | DO12: 0 | DP12: 0 | DQ12: 0 | DR12: 0 | DS12: 0 | DT12: 0 | DU12: 0 | DV12: 0 | DW12: 0 | DX12: 0 | DY12: 0 | DZ12: 0 | EA12: 0 | EB12: 0 | EC12: 0 | ED12: 0 | EE12: 0 | EF12: 0 | EG12: 0 | EH12: 0 | EI12: 0 | EJ12: 0 | EK12: 0 | EL12: 0 | EM12: 0 | EN12: 0 | EO12: 0 | EP12: 0 | EQ12: 0 | ER12: 0 | ES12: 0 | ET12: 0 | EU12: 0 | EV12: 0 | EW12: 0 | EX12: 0 | EY12: 0 | EZ12: 0 | FA12: 0 | FB12: 0 | FC12: 0 | FD12: 0 | FE12: 0 | FF12: 0 | FG12: 0 | FH12: 0 | FI12: 0 | FJ12: 0 | FK12: 0 | FL12: 0 | FM12: 0 | FN12: 0 | FO12: 0 | FP12: 0 | FQ12: 0 | FR12: 0 | FS12: 0 | FT12: 0 | FU12: 0 | FV12: 0 | FW12: 0 | FX12: 0 | FY12: 0 | FZ12: 0 | GA12: 0 | GB12: 0 | GC12: 0 | GD12: 0 | GE12: 0 | GF12: 0 | GG12: 0 | GH12: 0
A13: =IFERROR(IF($B13="","",INDEX('2019 scenario - output'!$A$6:$A$12,MATCH('2019 scenario - input'!$B13,'2019 scenario - output'!$B$6:$B$12,0))),"") ->  | CV13: 0 | CW13: 0 | CX13: 0 | CY13: 0 | CZ13: 0 | DA13: 0 | DB13: 0 | DC13: 0 | DD13: 0 | DE13: 0 | DF13: 0 | DG13: 0 | DH13: 0 | DI13: 0 | DJ13: 0 | DK13: 0 | DL13: 0 | DM13: 0 | DN13: 0 | DO13: 0 | DP13: 0 | DQ13: 0 | DR13: 0 | DS13: 0 | DT13: 0 | DU13: 0 | DV13: 0 | DW13: 0 | DX13: 0 | DY13: 0 | DZ13: 0 | EA13: 0 | EB13: 0 | EC13: 0 | ED13: 0 | EE13: 0 | EF13: 0 | EG13: 0 | EH13: 0 | EI13: 0 | EJ13: 0 | EK13: 0 | EL13: 0 | EM13: 0 | EN13: 0 | EO13: 0 | EP13: 0 | EQ13: 0 | ER13: 0 | ES13: 0 | ET13: 0 | EU13: 0 | EV13: 0 | EW13: 0 | EX13: 0 | EY13: 0 | EZ13: 0 | FA13: 0 | FB13: 0 | FC13: 0 | FD13: 0 | FE13: 0 | FF13: 0 | FG13: 0 | FH13: 0 | FI13: 0 | FJ13: 0 | FK13: 0 | FL13: 0 | FM13: 0 | FN13: 0 | FO13: 0 | FP13: 0 | FQ13: 0 | FR13: 0 | FS13: 0 | FT13: 0 | FU13: 0 | FV13: 0 | FW13: 0 | FX13: 0 | FY13: 0 | FZ13: 0 | GA13: 0 | GB13: 0 | GC13: 0 | GD13: 0 | GE13: 0 | GF13: 0 | GG13: 0 | GH13: 0
A14: =IFERROR(IF($B14="","",INDEX('2019 scenario - output'!$A$6:$A$12,MATCH('2019 scenario - input'!$B14,'2019 scenario - output'!$B$6:$B$12,0))),"") ->  | CV14: 0 | CW14: 0 | CX14: 0 | CY14: 0 | CZ14: 0 | DA14: 0 | DB14: 0 | DC14: 0 | DD14: 0 | DE14: 0 | DF14: 0 | DG14: 0 | DH14: 0 | DI14: 0 | DJ14: 0 | DK14: 0 | DL14: 0 | DM14: 0 | DN14: 0 | DO14: 0 | DP14: 0 | DQ14: 0 | DR14: 0 | DS14: 0 | DT14: 0 | DU14: 0 | DV14: 0 | DW14: 0 | DX14: 0 | DY14: 0 | DZ14: 0 | EA14: 0 | EB14: 0 | EC14: 0 | ED14: 0 | EE14: 0 | EF14: 0 | EG14: 0 | EH14: 0 | EI14: 0 | EJ14: 0 | EK14: 0 | EL14: 0 | EM14: 0 | EN14: 0 | EO14: 0 | EP14: 0 | EQ14: 0 | ER14: 0 | ES14: 0 | ET14: 0 | EU14: 0 | EV14: 0 | EW14: 0 | EX14: 0 | EY14: 0 | EZ14: 0 | FA14: 0 | FB14: 0 | FC14: 0 | FD14: 0 | FE14: 0 | FF14: 0 | FG14: 0 | FH14: 0 | FI14: 0 | FJ14: 0 | FK14: 0 | FL14: 0 | FM14: 0 | FN14: 0 | FO14: 0 | FP14: 0 | FQ14: 0 | FR14: 0 | FS14: 0 | FT14: 0 | FU14: 0 | FV14: 0 | FW14: 0 | FX14: 0 | FY14: 0 | FZ14: 0 | GA14: 0 | GB14: 0 | GC14: 0 | GD14: 0 | GE14: 0 | GF14: 0 | GG14: 0 | GH14: 0
A15: =IFERROR(IF($B15="","",INDEX('2019 scenario - output'!$A$6:$A$12,MATCH('2019 scenario - input'!$B15,'2019 scenario - output'!$B$6:$B$12,0))),"") ->  | CV15: 0 | CW15: 0 | CX15: 0 | CY15: 0 | CZ15: 0 | DA15: 0 | DB15: 0 | DC15: 0 | DD15: 0 | DE15: 0 | DF15: 0 | DG15: 0 | DH15: 0 | DI15: 0 | DJ15: 0 | DK15: 0 | DL15: 0 | DM15: 0 | DN15: 0 | DO15: 0 | DP15: 0 | DQ15: 0 | DR15: 0 | DS15: 0 | DT15: 0 | DU15: 0 | DV15: 0 | DW15: 0 | DX15: 0 | DY15: 0 | DZ15: 0 | EA15: 0 | EB15: 0 | EC15: 0 | ED15: 0 | EE15: 0 | EF15: 0 | EG15: 0 | EH15: 0 | EI15: 0 | EJ15: 0 | EK15: 0 | EL15: 0 | EM15: 0 | EN15: 0 | EO15: 0 | EP15: 0 | EQ15: 0 | ER15: 0 | ES15: 0 | ET15: 0 | EU15: 0 | EV15: 0 | EW15: 0 | EX15: 0 | EY15: 0 | EZ15: 0 | FA15: 0 | FB15: 0 | FC15: 0 | FD15: 0 | FE15: 0 | FF15: 0 | FG15: 0 | FH15: 0 | FI15: 0 | FJ15: 0 | FK15: 0 | FL15: 0 | FM15: 0 | FN15: 0 | FO15: 0 | FP15: 0 | FQ15: 0 | FR15: 0 | FS15: 0 | FT15: 0 | FU15: 0 | FV15: 0 | FW15: 0 | FX15: 0 | FY15: 0 | FZ15: 0 | GA15: 0 | GB15: 0 | GC15: 0 | GD15: 0 | GE15: 0 | GF15: 0 | GG15: 0 | GH15: 0
A16: =IFERROR(IF($B16="","",INDEX('2019 scenario - output'!$A$6:$A$12,MATCH('2019 scenario - input'!$B16,'2019 scenario - output'!$B$6:$B$12,0))),"") ->  | F16: =IFERROR(IF(E16="","",SQRT(E16)),"") ->  | G16: =IFERROR(IF($B16="","",2),"") ->  | CV16: 0 | CW16: 0 | CX16: 0 | CY16: 0 | CZ16: 0 | DA16: 0 | DB16: 0 | DC16: 0 | DD16: 0 | DE16: 0 | DF16: 0 | DG16: 0 | DH16: 0 | DI16: 0 | DJ16: 0 | DK16: 0 | DL16: 0 | DM16: 0 | DN16: 0 | DO16: 0 | DP16: 0 | DQ16: 0 | DR16: 0 | DS16: 0 | DT16: 0 | DU16: 0 | DV16: 0 | DW16: 0 | DX16: 0 | DY16: 0 | DZ16: 0 | EA16: 0 | EB16: 0 | EC16: 0 | ED16: 0 | EE16: 0 | EF16: 0 | EG16: 0 | EH16: 0 | EI16: 0 | EJ16: 0 | EK16: 0 | EL16: 0 | EM16: 0 | EN16: 0 | EO16: 0 | EP16: 0 | EQ16: 0 | ER16: 0 | ES16: 0 | ET16: 0 | EU16: 0 | EV16: 0 | EW16: 0 | EX16: 0 | EY16: 0 | EZ16: 0 | FA16: 0 | FB16: 0 | FC16: 0 | FD16: 0 | FE16: 0 | FF16: 0 | FG16: 0 | FH16: 0 | FI16: 0 | FJ16: 0 | FK16: 0 | FL16: 0 | FM16: 0 | FN16: 0 | FO16: 0 | FP16: 0 | FQ16: 0 | FR16: 0 | FS16: 0 | FT16: 0 | FU16: 0 | FV16: 0 | FW16: 0 | FX16: 0 | FY16: 0 | FZ16: 0 | GA16: 0 | GB16: 0 | GC16: 0 | GD16: 0 | GE16: 0 | GF16: 0 | GG16: 0 | GH16: 0
A17: =IFERROR(IF($B17="","",INDEX('2019 scenario - output'!$A$6:$A$12,MATCH('2019 scenario - input'!$B17,'2019 scenario - output'!$B$6:$B$12,0))),"") ->  | CV17: 0 | CW17: 0 | CX17: 0 | CY17: 0 | CZ17: 0 | DA17: 0 | DB17: 0 | DC17: 0 | DD17: 0 | DE17: 0 | DF17: 0 | DG17: 0 | DH17: 0 | DI17: 0 | DJ17: 0 | DK17: 0 | DL17: 0 | DM17: 0 | DN17: 0 | DO17: 0 | DP17: 0 | DQ17: 0 | DR17: 0 | DS17: 0 | DT17: 0 | DU17: 0 | DV17: 0 | DW17: 0 | DX17: 0 | DY17: 0 | DZ17: 0 | EA17: 0 | EB17: 0 | EC17: 0 | ED17: 0 | EE17: 0 | EF17: 0 | EG17: 0 | EH17: 0 | EI17: 0 | EJ17: 0 | EK17: 0 | EL17: 0 | EM17: 0 | EN17: 0 | EO17: 0 | EP17: 0 | EQ17: 0 | ER17: 0 | ES17: 0 | ET17: 0 | EU17: 0 | EV17: 0 | EW17: 0 | EX17: 0 | EY17: 0 | EZ17: 0 | FA17: 0 | FB17: 0 | FC17: 0 | FD17: 0 | FE17: 0 | FF17: 0 | FG17: 0 | FH17: 0 | FI17: 0 | FJ17: 0 | FK17: 0 | FL17: 0 | FM17: 0 | FN17: 0 | FO17: 0 | FP17: 0 | FQ17: 0 | FR17: 0 | FS17: 0 | FT17: 0 | FU17: 0 | FV17: 0 | FW17: 0 | FX17: 0 | FY17: 0 | FZ17: 0 | GA17: 0 | GB17: 0 | GC17: 0 | GD17: 0 | GE17: 0 | GF17: 0 | GG17: 0 | GH17: 0
A18: =IFERROR(IF($B18="","",INDEX('2019 scenario - output'!$A$6:$A$12,MATCH('2019 scenario - input'!$B18,'2019 scenario - output'!$B$6:$B$12,0))),"") ->  | CV18: 0 | CW18: 0 | CX18: 0 | CY18: 0 | CZ18: 0 | DA18: 0 | DB18: 0 | DC18: 0 | DD18: 0 | DE18: 0 | DF18: 0 | DG18: 0 | DH18: 0 | DI18: 0 | DJ18: 0 | DK18: 0 | DL18: 0 | DM18: 0 | DN18: 0 | DO18: 0 | DP18: 0 | DQ18: 0 | DR18: 0 | DS18: 0 | DT18: 0 | DU18: 0 | DV18: 0 | DW18: 0 | DX18: 0 | DY18: 0 | DZ18: 0 | EA18: 0 | EB18: 0 | EC18: 0 | ED18: 0 | EE18: 0 | EF18: 0 | EG18: 0 | EH18: 0 | EI18: 0 | EJ18: 0 | EK18: 0 | EL18: 0 | EM18: 0 | EN18: 0 | EO18: 0 | EP18: 0 | EQ18: 0 | ER18: 0 | ES18: 0 | ET18: 0 | EU18: 0 | EV18: 0 | EW18: 0 | EX18: 0 | EY18: 0 | EZ18: 0 | FA18: 0 | FB18: 0 | FC18: 0 | FD18: 0 | FE18: 0 | FF18: 0 | FG18: 0 | FH18: 0 | FI18: 0 | FJ18: 0 | FK18: 0 | FL18: 0 | FM18: 0 | FN18: 0 | FO18: 0 | FP18: 0 | FQ18: 0 | FR18: 0 | FS18: 0 | FT18: 0 | FU18: 0 | FV18: 0 | FW18: 0 | FX18: 0 | FY18: 0 | FZ18: 0 | GA18: 0 | GB18: 0 | GC18: 0 | GD18: 0 | GE18: 0 | GF18: 0 | GG18: 0 | GH18: 0
A19: =IFERROR(IF($B19="","",INDEX('2019 scenario - output'!$A$6:$A$12,MATCH('2019 scenario - input'!$B19,'2019 scenario - output'!$B$6:$B$12,0))),"") ->  | CV19: 0 | CW19: 0 | CX19: 0 | CY19: 0 | CZ19: 0 | DA19: 0 | DB19: 0 | DC19: 0 | DD19: 0 | DE19: 0 | DF19: 0 | DG19: 0 | DH19: 0 | DI19: 0 | DJ19: 0 | DK19: 0 | DL19: 0 | DM19: 0 | DN19: 0 | DO19: 0 | DP19: 0 | DQ19: 0 | DR19: 0 | DS19: 0 | DT19: 0 | DU19: 0 | DV19: 0 | DW19: 0 | DX19: 0 | DY19: 0 | DZ19: 0 | EA19: 0 | EB19: 0 | EC19: 0 | ED19: 0 | EE19: 0 | EF19: 0 | EG19: 0 | EH19: 0 | EI19: 0 | EJ19: 0 | EK19: 0 | EL19: 0 | EM19: 0 | EN19: 0 | EO19: 0 | EP19: 0 | EQ19: 0 | ER19: 0 | ES19: 0 | ET19: 0 | EU19: 0 | EV19: 0 | EW19: 0 | EX19: 0 | EY19: 0 | EZ19: 0 | FA19: 0 | FB19: 0 | FC19: 0 | FD19: 0 | FE19: 0 | FF19: 0 | FG19: 0 | FH19: 0 | FI19: 0 | FJ19: 0 | FK19: 0 | FL19: 0 | FM19: 0 | FN19: 0 | FO19: 0 | FP19: 0 | FQ19: 0 | FR19: 0 | FS19: 0 | FT19: 0 | FU19: 0 | FV19: 0 | FW19: 0 | FX19: 0 | FY19: 0 | FZ19: 0 | GA19: 0 | GB19: 0 | GC19: 0 | GD19: 0 | GE19: 0 | GF19: 0 | GG19: 0 | GH19: 0
A20: =IFERROR(IF($B20="","",INDEX('2019 scenario - output'!$A$6:$A$12,MATCH('2019 scenario - input'!$B20,'2019 scenario - output'!$B$6:$B$12,0))),"") ->  | CV20: 0 | CW20: 0 | CX20: 0 | CY20: 0 | CZ20: 0 | DA20: 0 | DB20: 0 | DC20: 0 | DD20: 0 | DE20: 0 | DF20: 0 | DG20: 0 | DH20: 0 | DI20: 0 | DJ20: 0 | DK20: 0 | DL20: 0 | DM20: 0 | DN20: 0 | DO20: 0 | DP20: 0 | DQ20: 0 | DR20: 0 | DS20: 0 | DT20: 0 | DU20: 0 | DV20: 0 | DW20: 0 | DX20: 0 | DY20: 0 | DZ20: 0 | EA20: 0 | EB20: 0 | EC20: 0 | ED20: 0 | EE20: 0 | EF20: 0 | EG20: 0 | EH20: 0 | EI20: 0 | EJ20: 0 | EK20: 0 | EL20: 0 | EM20: 0 | EN20: 0 | EO20: 0 | EP20: 0 | EQ20: 0 | ER20: 0 | ES20: 0 | ET20: 0 | EU20: 0 | EV20: 0 | EW20: 0 | EX20: 0 | EY20: 0 | EZ20: 0 | FA20: 0 | FB20: 0 | FC20: 0 | FD20: 0 | FE20: 0 | FF20: 0 | FG20: 0 | FH20: 0 | FI20: 0 | FJ20: 0 | FK20: 0 | FL20: 0 | FM20: 0 | FN20: 0 | FO20: 0 | FP20: 0 | FQ20: 0 | FR20: 0 | FS20: 0 | FT20: 0 | FU20: 0 | FV20: 0 | FW20: 0 | FX20: 0 | FY20: 0 | FZ20: 0 | GA20: 0 | GB20: 0 | GC20: 0 | GD20: 0 | GE20: 0 | GF20: 0 | GG20: 0 | GH20: 0
A21: =IFERROR(IF($B21="","",INDEX('2019 scenario - output'!$A$6:$A$12,MATCH('2019 scenario - input'!$B21,'2019 scenario - output'!$B$6:$B$12,0))),"") ->  | CV21: 0 | CW21: 0 | CX21: 0 | CY21: 0 | CZ21: 0 | DA21: 0 | DB21: 0 | DC21: 0 | DD21: 0 | DE21: 0 | DF21: 0 | DG21: 0 | DH21: 0 | DI21: 0 | DJ21: 0 | DK21: 0 | DL21: 0 | DM21: 0 | DN21: 0 | DO21: 0 | DP21: 0 | DQ21: 0 | DR21: 0 | DS21: 0 | DT21: 0 | DU21: 0 | DV21: 0 | DW21: 0 | DX21: 0 | DY21: 0 | DZ21: 0 | EA21: 0 | EB21: 0 | EC21: 0 | ED21: 0 | EE21: 0 | EF21: 0 | EG21: 0 | EH21: 0 | EI21: 0 | EJ21: 0 | EK21: 0 | EL21: 0 | EM21: 0 | EN21: 0 | EO21: 0 | EP21: 0 | EQ21: 0 | ER21: 0 | ES21: 0 | ET21: 0 | EU21: 0 | EV21: 0 | EW21: 0 | EX21: 0 | EY21: 0 | EZ21: 0 | FA21: 0 | FB21: 0 | FC21: 0 | FD21: 0 | FE21: 0 | FF21: 0 | FG21: 0 | FH21: 0 | FI21: 0 | FJ21: 0 | FK21: 0 | FL21: 0 | FM21: 0 | FN21: 0 | FO21: 0 | FP21: 0 | FQ21: 0 | FR21: 0 | FS21: 0 | FT21: 0 | FU21: 0 | FV21: 0 | FW21: 0 | FX21: 0 | FY21: 0 | FZ21: 0 | GA21: 0 | GB21: 0 | GC21: 0 | GD21: 0 | GE21: 0 | GF21: 0 | GG21: 0 | GH21: 0
A22: =IFERROR(IF($B22="","",INDEX('2019 scenario - output'!$A$6:$A$12,MATCH('2019 scenario - input'!$B22,'2019 scenario - output'!$B$6:$B$12,0))),"") ->  | CV22: 0 | CW22: 0 | CX22: 0 | CY22: 0 | CZ22: 0 | DA22: 0 | DB22: 0 | DC22: 0 | DD22: 0 | DE22: 0 | DF22: 0 | DG22: 0 | DH22: 0 | DI22: 0 | DJ22: 0 | DK22: 0 | DL22: 0 | DM22: 0 | DN22: 0 | DO22: 0 | DP22: 0 | DQ22: 0 | DR22: 0 | DS22: 0 | DT22: 0 | DU22: 0 | DV22: 0 | DW22: 0 | DX22: 0 | DY22: 0 | DZ22: 0 | EA22: 0 | EB22: 0 | EC22: 0 | ED22: 0 | EE22: 0 | EF22: 0 | EG22: 0 | EH22: 0 | EI22: 0 | EJ22: 0 | EK22: 0 | EL22: 0 | EM22: 0 | EN22: 0 | EO22: 0 | EP22: 0 | EQ22: 0 | ER22: 0 | ES22: 0 | ET22: 0 | EU22: 0 | EV22: 0 | EW22: 0 | EX22: 0 | EY22: 0 | EZ22: 0 | FA22: 0 | FB22: 0 | FC22: 0 | FD22: 0 | FE22: 0 | FF22: 0 | FG22: 0 | FH22: 0 | FI22: 0 | FJ22: 0 | FK22: 0 | FL22: 0 | FM22: 0 | FN22: 0 | FO22: 0 | FP22: 0 | FQ22: 0 | FR22: 0 | FS22: 0 | FT22: 0 | FU22: 0 | FV22: 0 | FW22: 0 | FX22: 0 | FY22: 0 | FZ22: 0 | GA22: 0 | GB22: 0 | GC22: 0 | GD22: 0 | GE22: 0 | GF22: 0 | GG22: 0 | GH22: 0
A23: =IFERROR(IF($B23="","",INDEX('2019 scenario - output'!$A$6:$A$12,MATCH('2019 scenario - input'!$B23,'2019 scenario - output'!$B$6:$B$12,0))),"") ->  | CV23: 0 | CW23: 0 | CX23: 0 | CY23: 0 | CZ23: 0 | DA23: 0 | DB23: 0 | DC23: 0 | DD23: 0 | DE23: 0 | DF23: 0 | DG23: 0 | DH23: 0 | DI23: 0 | DJ23: 0 | DK23: 0 | DL23: 0 | DM23: 0 | DN23: 0 | DO23: 0 | DP23: 0 | DQ23: 0 | DR23: 0 | DS23: 0 | DT23: 0 | DU23: 0 | DV23: 0 | DW23: 0 | DX23: 0 | DY23: 0 | DZ23: 0 | EA23: 0 | EB23: 0 | EC23: 0 | ED23: 0 | EE23: 0 | EF23: 0 | EG23: 0 | EH23: 0 | EI23: 0 | EJ23: 0 | EK23: 0 | EL23: 0 | EM23: 0 | EN23: 0 | EO23: 0 | EP23: 0 | EQ23: 0 | ER23: 0 | ES23: 0 | ET23: 0 | EU23: 0 | EV23: 0 | EW23: 0 | EX23: 0 | EY23: 0 | EZ23: 0 | FA23: 0 | FB23: 0 | FC23: 0 | FD23: 0 | FE23: 0 | FF23: 0 | FG23: 0 | FH23: 0 | FI23: 0 | FJ23: 0 | FK23: 0 | FL23: 0 | FM23: 0 | FN23: 0 | FO23: 0 | FP23: 0 | FQ23: 0 | FR23: 0 | FS23: 0 | FT23: 0 | FU23: 0 | FV23: 0 | FW23: 0 | FX23: 0 | FY23: 0 | FZ23: 0 | GA23: 0 | GB23: 0 | GC23: 0 | GD23: 0 | GE23: 0 | GF23: 0 | GG23: 0 | GH23: 0
A24: =IFERROR(IF($B24="","",INDEX('2019 scenario - output'!$A$6:$A$12,MATCH('2019 scenario - input'!$B24,'2019 scenario - output'!$B$6:$B$12,0))),"") ->  | CV24: 0 | CW24: 0 | CX24: 0 | CY24: 0 | CZ24: 0 | DA24: 0 | DB24: 0 | DC24: 0 | DD24: 0 | DE24: 0 | DF24: 0 | DG24: 0 | DH24: 0 | DI24: 0 | DJ24: 0 | DK24: 0 | DL24: 0 | DM24: 0 | DN24: 0 | DO24: 0 | DP24: 0 | DQ24: 0 | DR24: 0 | DS24: 0 | DT24: 0 | DU24: 0 | DV24: 0 | DW24: 0 | DX24: 0 | DY24: 0 | DZ24: 0 | EA24: 0 | EB24: 0 | EC24: 0 | ED24: 0 | EE24: 0 | EF24: 0 | EG24: 0 | EH24: 0 | EI24: 0 | EJ24: 0 | EK24: 0 | EL24: 0 | EM24: 0 | EN24: 0 | EO24: 0 | EP24: 0 | EQ24: 0 | ER24: 0 | ES24: 0 | ET24: 0 | EU24: 0 | EV24: 0 | EW24: 0 | EX24: 0 | EY24: 0 | EZ24: 0 | FA24: 0 | FB24: 0 | FC24: 0 | FD24: 0 | FE24: 0 | FF24: 0 | FG24: 0 | FH24: 0 | FI24: 0 | FJ24: 0 | FK24: 0 | FL24: 0 | FM24: 0 | FN24: 0 | FO24: 0 | FP24: 0 | FQ24: 0 | FR24: 0 | FS24: 0 | FT24: 0 | FU24: 0 | FV24: 0 | FW24: 0 | FX24: 0 | FY24: 0 | FZ24: 0 | GA24: 0 | GB24: 0 | GC24: 0 | GD24: 0 | GE24: 0 | GF24: 0 | GG24: 0 | GH24: 0
A25: =IFERROR(IF($B25="","",INDEX('2019 scenario - output'!$A$6:$A$12,MATCH('2019 scenario - input'!$B25,'2019 scenario - output'!$B$6:$B$12,0))),"") ->  | CV25: =IFERROR($D25*H25,"") -> 0 | CW25: =IFERROR($D25*I25,"") -> 0 | CX25: =IFERROR($D25*J25,"") -> 0 | CY25: =IFERROR($D25*K25,"") -> 0 | CZ25: =IFERROR($D25*L25,"") -> 0 | DA25: =IFERROR($D25*M25,"") -> 0 | DB25: =IFERROR($D25*N25,"") -> 0 | DC25: =IFERROR($D25*O25,"") -> 0 | DD25: =IFERROR($D25*P25,"") -> 0 | DE25: =IFERROR($D25*Q25,"") -> 0 | DF25: =IFERROR($D25*R25,"") -> 0 | DG25: =IFERROR($D25*S25,"") -> 0 | DH25: =IFERROR($D25*T25,"") -> 0 | DI25: =IFERROR($D25*U25,"") -> 0 | DJ25: =IFERROR($D25*V25,"") -> 0 | DK25: =IFERROR($D25*W25,"") -> 0 | DL25: =IFERROR($D25*X25,"") -> 0 | DM25: =IFERROR($D25*Y25,"") -> 0 | DN25: =IFERROR($D25*Z25,"") -> 0 | DO25: =IFERROR($D25*AA25,"") -> 0 | DP25: =IFERROR($D25*AB25,"") -> 0 | DQ25: =IFERROR($D25*AC25,"") -> 0 | DR25: =IFERROR($D25*AD25,"") -> 0 | DS25: =IFERROR($D25*AE25,"") -> 0 | DT25: =IFERROR($D25*AF25,"") -> 0 | DU25: =IFERROR($D25*AG25,"") -> 0 | DV25: =IFERROR($D25*AH25,"") -> 0 | DW25: =IFERROR($D25*AI25,"") -> 0 | DX25: =IFERROR($D25*AJ25,"") -> 0 | DY25: =IFERROR($D25*AK25,"") -> 0 | DZ25: =IFERROR($D25*AL25,"") -> 0 | EA25: =IFERROR($D25*AM25,"") -> 0 | EB25: =IFERROR($D25*AN25,"") -> 0 | EC25: =IFERROR($D25*AO25,"") -> 0 | ED25: =IFERROR($D25*AP25,"") -> 0 | EE25: =IFERROR($D25*AQ25,"") -> 0 | EF25: =IFERROR($D25*AR25,"") -> 0 | EG25: =IFERROR($D25*AS25,"") -> 0 | EH25: =IFERROR($D25*AT25,"") -> 0 | EI25: =IFERROR($D25*AU25,"") -> 0 | EJ25: =IFERROR($D25*AV25,"") -> 0 | EK25: =IFERROR($D25*AW25,"") -> 0 | EL25: =IFERROR($D25*AX25,"") -> 0 | EM25: =IFERROR($D25*AY25,"") -> 0 | EN25: =IFERROR($D25*AZ25,"") -> 0 | EO25: =IFERROR($D25*BA25,"") -> 0 | EP25: =IFERROR($D25*BB25,"") -> 0 | EQ25: =IFERROR($D25*BC25,"") -> 0 | ER25: =IFERROR($D25*BD25,"") -> 0 | ES25: =IFERROR($D25*BE25,"") -> 0 | ET25: =IFERROR($D25*BF25,"") -> 0 | EU25: =IFERROR($D25*BG25,"") -> 0 | EV25: =IFERROR($D25*BH25,"") -> 0 | EW25: =IFERROR($D25*BI25,"") -> 0 | EX25: =IFERROR($D25*BJ25,"") -> 0 | EY25: =IFERROR($D25*BK25,"") -> 0 | EZ25: =IFERROR($D25*BL25,"") -> 0 | FA25: =IFERROR($D25*BM25,"") -> 0 | FB25: =IFERROR($D25*BN25,"") -> 0 | FC25: =IFERROR($D25*BO25,"") -> 0 | FD25: =IFERROR($D25*BP25,"") -> 0 | FE25: =IFERROR($D25*BQ25,"") -> 0 | FF25: =IFERROR($D25*BR25,"") -> 0 | FG25: =IFERROR($D25*BS25,"") -> 0 | FH25: =IFERROR($D25*BT25,"") -> 0 | FI25: =IFERROR($D25*BU25,"") -> 0 | FJ25: =IFERROR($D25*BV25,"") -> 0 | FK25: =IFERROR($D25*BW25,"") -> 0 | FL25: =IFERROR($D25*BX25,"") -> 0 | FM25: =IFERROR($D25*BY25,"") -> 0 | FN25: =IFERROR($D25*BZ25,"") -> 0 | FO25: =IFERROR($D25*CA25,"") -> 0 | FP25: =IFERROR($D25*CB25,"") -> 0 | FQ25: =IFERROR($D25*CC25,"") -> 0 | FR25: =IFERROR($D25*CD25,"") -> 0 | FS25: =IFERROR($D25*CE25,"") -> 0 | FT25: =IFERROR($D25*CF25,"") -> 0 | FU25: =IFERROR($D25*CG25,"") -> 0 | FV25: =IFERROR($D25*CH25,"") -> 0 | FW25: =IFERROR($D25*CI25,"") -> 0 | FX25: =IFERROR($D25*CJ25,"") -> 0 | FY25: =IFERROR($D25*CK25,"") -> 0 | FZ25: =IFERROR($D25*CL25,"") -> 0 | GA25: =IFERROR($D25*CM25,"") -> 0 | GB25: =IFERROR($D25*CN25,"") -> 0 | GC25: =IFERROR($D25*CO25,"") -> 0 | GD25: =IFERROR($D25*CP25,"") -> 0 | GE25: =IFERROR($D25*CQ25,"") -> 0 | GF25: =IFERROR($D25*CR25,"") -> 0 | GG25: =IFERROR($D25*CS25,"") -> 0 | GH25: =IFERROR($D25*CT25,"") -> 0
A26: =IFERROR(IF($B26="","",INDEX('2019 scenario - output'!$A$6:$A$12,MATCH('2019 scenario - input'!$B26,'2019 scenario - output'!$B$6:$B$12,0))),"") ->  | CV26: 0 | CW26: 0 | CX26: 0 | CY26: 0 | CZ26: 0 | DA26: 0 | DB26: 0 | DC26: 0 | DD26: 0 | DE26: 0 | DF26: 0 | DG26: 0 | DH26: 0 | DI26: 0 | DJ26: 0 | DK26: 0 | DL26: 0 | DM26: 0 | DN26: 0 | DO26: 0 | DP26: 0 | DQ26: 0 | DR26: 0 | DS26: 0 | DT26: 0 | DU26: 0 | DV26: 0 | DW26: 0 | DX26: 0 | DY26: 0 | DZ26: 0 | EA26: 0 | EB26: 0 | EC26: 0 | ED26: 0 | EE26: 0 | EF26: 0 | EG26: 0 | EH26: 0 | EI26: 0 | EJ26: 0 | EK26: 0 | EL26: 0 | EM26: 0 | EN26: 0 | EO26: 0 | EP26: 0 | EQ26: 0 | ER26: 0 | ES26: 0 | ET26: 0 | EU26: 0 | EV26: 0 | EW26: 0 | EX26: 0 | EY26: 0 | EZ26: 0 | FA26: 0 | FB26: 0 | FC26: 0 | FD26: 0 | FE26: 0 | FF26: 0 | FG26: 0 | FH26: 0 | FI26: 0 | FJ26: 0 | FK26: 0 | FL26: 0 | FM26: 0 | FN26: 0 | FO26: 0 | FP26: 0 | FQ26: 0 | FR26: 0 | FS26: 0 | FT26: 0 | FU26: 0 | FV26: 0 | FW26: 0 | FX26: 0 | FY26: 0 | FZ26: 0 | GA26: 0 | GB26: 0 | GC26: 0 | GD26: 0 | GE26: 0 | GF26: 0 | GG26: 0 | GH26: 0
A27: =IFERROR(IF($B27="","",INDEX('2019 scenario - output'!$A$6:$A$12,MATCH('2019 scenario - input'!$B27,'2019 scenario - output'!$B$6:$B$12,0))),"") ->  | CV27: 0 | CW27: 0 | CX27: 0 | CY27: 0 | CZ27: 0 | DA27: 0 | DB27: 0 | DC27: 0 | DD27: 0 | DE27: 0 | DF27: 0 | DG27: 0 | DH27: 0 | DI27: 0 | DJ27: 0 | DK27: 0 | DL27: 0 | DM27: 0 | DN27: 0 | DO27: 0 | DP27: 0 | DQ27: 0 | DR27: 0 | DS27: 0 | DT27: 0 | DU27: 0 | DV27: 0 | DW27: 0 | DX27: 0 | DY27: 0 | DZ27: 0 | EA27: 0 | EB27: 0 | EC27: 0 | ED27: 0 | EE27: 0 | EF27: 0 | EG27: 0 | EH27: 0 | EI27: 0 | EJ27: 0 | EK27: 0 | EL27: 0 | EM27: 0 | EN27: 0 | EO27: 0 | EP27: 0 | EQ27: 0 | ER27: 0 | ES27: 0 | ET27: 0 | EU27: 0 | EV27: 0 | EW27: 0 | EX27: 0 | EY27: 0 | EZ27: 0 | FA27: 0 | FB27: 0 | FC27: 0 | FD27: 0 | FE27: 0 | FF27: 0 | FG27: 0 | FH27: 0 | FI27: 0 | FJ27: 0 | FK27: 0 | FL27: 0 | FM27: 0 | FN27: 0 | FO27: 0 | FP27: 0 | FQ27: 0 | FR27: 0 | FS27: 0 | FT27: 0 | FU27: 0 | FV27: 0 | FW27: 0 | FX27: 0 | FY27: 0 | FZ27: 0 | GA27: 0 | GB27: 0 | GC27: 0 | GD27: 0 | GE27: 0 | GF27: 0 | GG27: 0 | GH27: 0
A28: =IFERROR(IF($B28="","",INDEX('2019 scenario - output'!$A$6:$A$12,MATCH('2019 scenario - input'!$B28,'2019 scenario - output'!$B$6:$B$12,0))),"") ->  | CV28: 0 | CW28: 0 | CX28: 0 | CY28: 0 | CZ28: 0 | DA28: 0 | DB28: 0 | DC28: 0 | DD28: 0 | DE28: 0 | DF28: 0 | DG28: 0 | DH28: 0 | DI28: 0 | DJ28: 0 | DK28: 0 | DL28: 0 | DM28: 0 | DN28: 0 | DO28: 0 | DP28: 0 | DQ28: 0 | DR28: 0 | DS28: 0 | DT28: 0 | DU28: 0 | DV28: 0 | DW28: 0 | DX28: 0 | DY28: 0 | DZ28: 0 | EA28: 0 | EB28: 0 | EC28: 0 | ED28: 0 | EE28: 0 | EF28: 0 | EG28: 0 | EH28: 0 | EI28: 0 | EJ28: 0 | EK28: 0 | EL28: 0 | EM28: 0 | EN28: 0 | EO28: 0 | EP28: 0 | EQ28: 0 | ER28: 0 | ES28: 0 | ET28: 0 | EU28: 0 | EV28: 0 | EW28: 0 | EX28: 0 | EY28: 0 | EZ28: 0 | FA28: 0 | FB28: 0 | FC28: 0 | FD28: 0 | FE28: 0 | FF28: 0 | FG28: 0 | FH28: 0 | FI28: 0 | FJ28: 0 | FK28: 0 | FL28: 0 | FM28: 0 | FN28: 0 | FO28: 0 | FP28: 0 | FQ28: 0 | FR28: 0 | FS28: 0 | FT28: 0 | FU28: 0 | FV28: 0 | FW28: 0 | FX28: 0 | FY28: 0 | FZ28: 0 | GA28: 0 | GB28: 0 | GC28: 0 | GD28: 0 | GE28: 0 | GF28: 0 | GG28: 0 | GH28: 0
A29: =IFERROR(IF($B29="","",INDEX('2019 scenario - output'!$A$6:$A$12,MATCH('2019 scenario - input'!$B29,'2019 scenario - output'!$B$6:$B$12,0))),"") ->  | CV29: 0 | CW29: 0 | CX29: 0 | CY29: 0 | CZ29: 0 | DA29: 0 | DB29: 0 | DC29: 0 | DD29: 0 | DE29: 0 | DF29: 0 | DG29: 0 | DH29: 0 | DI29: 0 | DJ29: 0 | DK29: 0 | DL29: 0 | DM29: 0 | DN29: 0 | DO29: 0 | DP29: 0 | DQ29: 0 | DR29: 0 | DS29: 0 | DT29: 0 | DU29: 0 | DV29: 0 | DW29: 0 | DX29: 0 | DY29: 0 | DZ29: 0 | EA29: 0 | EB29: 0 | EC29: 0 | ED29: 0 | EE29: 0 | EF29: 0 | EG29: 0 | EH29: 0 | EI29: 0 | EJ29: 0 | EK29: 0 | EL29: 0 | EM29: 0 | EN29: 0 | EO29: 0 | EP29: 0 | EQ29: 0 | ER29: 0 | ES29: 0 | ET29: 0 | EU29: 0 | EV29: 0 | EW29: 0 | EX29: 0 | EY29: 0 | EZ29: 0 | FA29: 0 | FB29: 0 | FC29: 0 | FD29: 0 | FE29: 0 | FF29: 0 | FG29: 0 | FH29: 0 | FI29: 0 | FJ29: 0 | FK29: 0 | FL29: 0 | FM29: 0 | FN29: 0 | FO29: 0 | FP29: 0 | FQ29: 0 | FR29: 0 | FS29: 0 | FT29: 0 | FU29: 0 | FV29: 0 | FW29: 0 | FX29: 0 | FY29: 0 | FZ29: 0 | GA29: 0 | GB29: 0 | GC29: 0 | GD29: 0 | GE29: 0 | GF29: 0 | GG29: 0 | GH29: 0
A30: =IFERROR(IF($B30="","",INDEX('2019 scenario - output'!$A$6:$A$12,MATCH('2019 scenario - input'!$B30,'2019 scenario - output'!$B$6:$B$12,0))),"") ->  | F30: =IFERROR(IF(E30="","",SQRT(E30)),"") ->  | G30: =IFERROR(IF($B30="","",2),"") ->  | CV30: 0 | CW30: 0 | CX30: 0 | CY30: 0 | CZ30: 0 | DA30: 0 | DB30: 0 | DC30: 0 | DD30: 0 | DE30: 0 | DF30: 0 | DG30: 0 | DH30: 0 | DI30: 0 | DJ30: 0 | DK30: 0 | DL30: 0 | DM30: 0 | DN30: 0 | DO30: 0 | DP30: 0 | DQ30: 0 | DR30: 0 | DS30: 0 | DT30: 0 | DU30: 0 | DV30: 0 | DW30: 0 | DX30: 0 | DY30: 0 | DZ30: 0 | EA30: 0 | EB30: 0 | EC30: 0 | ED30: 0 | EE30: 0 | EF30: 0 | EG30: 0 | EH30: 0 | EI30: 0 | EJ30: 0 | EK30: 0 | EL30: 0 | EM30: 0 | EN30: 0 | EO30: 0 | EP30: 0 | EQ30: 0 | ER30: 0 | ES30: 0 | ET30: 0 | EU30: 0 | EV30: 0 | EW30: 0 | EX30: 0 | EY30: 0 | EZ30: 0 | FA30: 0 | FB30: 0 | FC30: 0 | FD30: 0 | FE30: 0 | FF30: 0 | FG30: 0 | FH30: 0 | FI30: 0 | FJ30: 0 | FK30: 0 | FL30: 0 | FM30: 0 | FN30: 0 | FO30: 0 | FP30: 0 | FQ30: 0 | FR30: 0 | FS30: 0 | FT30: 0 | FU30: 0 | FV30: 0 | FW30: 0 | FX30: 0 | FY30: 0 | FZ30: 0 | GA30: 0 | GB30: 0 | GC30: 0 | GD30: 0 | GE30: 0 | GF30: 0 | GG30: 0 | GH30: 0
A31: =IFERROR(IF($B31="","",INDEX('2019 scenario - output'!$A$6:$A$12,MATCH('2019 scenario - input'!$B31,'2019 scenario - output'!$B$6:$B$12,0))),"") ->  | CV31: 0 | CW31: 0 | CX31: 0 | CY31: 0 | CZ31: 0 | DA31: 0 | DB31: 0 | DC31: 0 | DD31: 0 | DE31: 0 | DF31: 0 | DG31: 0 | DH31: 0 | DI31: 0 | DJ31: 0 | DK31: 0 | DL31: 0 | DM31: 0 | DN31: 0 | DO31: 0 | DP31: 0 | DQ31: 0 | DR31: 0 | DS31: 0 | DT31: 0 | DU31: 0 | DV31: 0 | DW31: 0 | DX31: 0 | DY31: 0 | DZ31: 0 | EA31: 0 | EB31: 0 | EC31: 0 | ED31: 0 | EE31: 0 | EF31: 0 | EG31: 0 | EH31: 0 | EI31: 0 | EJ31: 0 | EK31: 0 | EL31: 0 | EM31: 0 | EN31: 0 | EO31: 0 | EP31: 0 | EQ31: 0 | ER31: 0 | ES31: 0 | ET31: 0 | EU31: 0 | EV31: 0 | EW31: 0 | EX31: 0 | EY31: 0 | EZ31: 0 | FA31: 0 | FB31: 0 | FC31: 0 | FD31: 0 | FE31: 0 | FF31: 0 | FG31: 0 | FH31: 0 | FI31: 0 | FJ31: 0 | FK31: 0 | FL31: 0 | FM31: 0 | FN31: 0 | FO31: 0 | FP31: 0 | FQ31: 0 | FR31: 0 | FS31: 0 | FT31: 0 | FU31: 0 | FV31: 0 | FW31: 0 | FX31: 0 | FY31: 0 | FZ31: 0 | GA31: 0 | GB31: 0 | GC31: 0 | GD31: 0 | GE31: 0 | GF31: 0 | GG31: 0 | GH31: 0
A32: =IFERROR(IF($B32="","",INDEX('2019 scenario - output'!$A$6:$A$12,MATCH('2019 scenario - input'!$B32,'2019 scenario - output'!$B$6:$B$12,0))),"") ->  | CV32: 0 | CW32: 0 | CX32: 0 | CY32: 0 | CZ32: 0 | DA32: 0 | DB32: 0 | DC32: 0 | DD32: 0 | DE32: 0 | DF32: 0 | DG32: 0 | DH32: 0 | DI32: 0 | DJ32: 0 | DK32: 0 | DL32: 0 | DM32: 0 | DN32: 0 | DO32: 0 | DP32: 0 | DQ32: 0 | DR32: 0 | DS32: 0 | DT32: 0 | DU32: 0 | DV32: 0 | DW32: 0 | DX32: 0 | DY32: 0 | DZ32: 0 | EA32: 0 | EB32: 0 | EC32: 0 | ED32: 0 | EE32: 0 | EF32: 0 | EG32: 0 | EH32: 0 | EI32: 0 | EJ32: 0 | EK32: 0 | EL32: 0 | EM32: 0 | EN32: 0 | EO32: 0 | EP32: 0 | EQ32: 0 | ER32: 0 | ES32: 0 | ET32: 0 | EU32: 0 | EV32: 0 | EW32: 0 | EX32: 0 | EY32: 0 | EZ32: 0 | FA32: 0 | FB32: 0 | FC32: 0 | FD32: 0 | FE32: 0 | FF32: 0 | FG32: 0 | FH32: 0 | FI32: 0 | FJ32: 0 | FK32: 0 | FL32: 0 | FM32: 0 | FN32: 0 | FO32: 0 | FP32: 0 | FQ32: 0 | FR32: 0 | FS32: 0 | FT32: 0 | FU32: 0 | FV32: 0 | FW32: 0 | FX32: 0 | FY32: 0 | FZ32: 0 | GA32: 0 | GB32: 0 | GC32: 0 | GD32: 0 | GE32: 0 | GF32: 0 | GG32: 0 | GH32: 0
A33: =IFERROR(IF($B33="","",INDEX('2019 scenario - output'!$A$6:$A$12,MATCH('2019 scenario - input'!$B33,'2019 scenario - output'!$B$6:$B$12,0))),"") ->  | CV33: 0 | CW33: 0 | CX33: 0 | CY33: 0 | CZ33: 0 | DA33: 0 | DB33: 0 | DC33: 0 | DD33: 0 | DE33: 0 | DF33: 0 | DG33: 0 | DH33: 0 | DI33: 0 | DJ33: 0 | DK33: 0 | DL33: 0 | DM33: 0 | DN33: 0 | DO33: 0 | DP33: 0 | DQ33: 0 | DR33: 0 | DS33: 0 | DT33: 0 | DU33: 0 | DV33: 0 | DW33: 0 | DX33: 0 | DY33: 0 | DZ33: 0 | EA33: 0 | EB33: 0 | EC33: 0 | ED33: 0 | EE33: 0 | EF33: 0 | EG33: 0 | EH33: 0 | EI33: 0 | EJ33: 0 | EK33: 0 | EL33: 0 | EM33: 0 | EN33: 0 | EO33: 0 | EP33: 0 | EQ33: 0 | ER33: 0 | ES33: 0 | ET33: 0 | EU33: 0 | EV33: 0 | EW33: 0 | EX33: 0 | EY33: 0 | EZ33: 0 | FA33: 0 | FB33: 0 | FC33: 0 | FD33: 0 | FE33: 0 | FF33: 0 | FG33: 0 | FH33: 0 | FI33: 0 | FJ33: 0 | FK33: 0 | FL33: 0 | FM33: 0 | FN33: 0 | FO33: 0 | FP33: 0 | FQ33: 0 | FR33: 0 | FS33: 0 | FT33: 0 | FU33: 0 | FV33: 0 | FW33: 0 | FX33: 0 | FY33: 0 | FZ33: 0 | GA33: 0 | GB33: 0 | GC33: 0 | GD33: 0 | GE33: 0 | GF33: 0 | GG33: 0 | GH33: 0
A34: =IFERROR(IF($B34="","",INDEX('2019 scenario - output'!$A$6:$A$12,MATCH('2019 scenario - input'!$B34,'2019 scenario - output'!$B$6:$B$12,0))),"") ->  | CV34: 0 | CW34: 0 | CX34: 0 | CY34: 0 | CZ34: 0 | DA34: 0 | DB34: 0 | DC34: 0 | DD34: 0 | DE34: 0 | DF34: 0 | DG34: 0 | DH34: 0 | DI34: 0 | DJ34: 0 | DK34: 0 | DL34: 0 | DM34: 0 | DN34: 0 | DO34: 0 | DP34: 0 | DQ34: 0 | DR34: 0 | DS34: 0 | DT34: 0 | DU34: 0 | DV34: 0 | DW34: 0 | DX34: 0 | DY34: 0 | DZ34: 0 | EA34: 0 | EB34: 0 | EC34: 0 | ED34: 0 | EE34: 0 | EF34: 0 | EG34: 0 | EH34: 0 | EI34: 0 | EJ34: 0 | EK34: 0 | EL34: 0 | EM34: 0 | EN34: 0 | EO34: 0 | EP34: 0 | EQ34: 0 | ER34: 0 | ES34: 0 | ET34: 0 | EU34: 0 | EV34: 0 | EW34: 0 | EX34: 0 | EY34: 0 | EZ34: 0 | FA34: 0 | FB34: 0 | FC34: 0 | FD34: 0 | FE34: 0 | FF34: 0 | FG34: 0 | FH34: 0 | FI34: 0 | FJ34: 0 | FK34: 0 | FL34: 0 | FM34: 0 | FN34: 0 | FO34: 0 | FP34: 0 | FQ34: 0 | FR34: 0 | FS34: 0 | FT34: 0 | FU34: 0 | FV34: 0 | FW34: 0 | FX34: 0 | FY34: 0 | FZ34: 0 | GA34: 0 | GB34: 0 | GC34: 0 | GD34: 0 | GE34: 0 | GF34: 0 | GG34: 0 | GH34: 0
A35: =IFERROR(IF($B35="","",INDEX('2019 scenario - output'!$A$6:$A$12,MATCH('2019 scenario - input'!$B35,'2019 scenario - output'!$B$6:$B$12,0))),"") ->  | CV35: 0 | CW35: 0 | CX35: 0 | CY35: 0 | CZ35: 0 | DA35: 0 | DB35: 0 | DC35: 0 | DD35: 0 | DE35: 0 | DF35: 0 | DG35: 0 | DH35: 0 | DI35: 0 | DJ35: 0 | DK35: 0 | DL35: 0 | DM35: 0 | DN35: 0 | DO35: 0 | DP35: 0 | DQ35: 0 | DR35: 0 | DS35: 0 | DT35: 0 | DU35: 0 | DV35: 0 | DW35: 0 | DX35: 0 | DY35: 0 | DZ35: 0 | EA35: 0 | EB35: 0 | EC35: 0 | ED35: 0 | EE35: 0 | EF35: 0 | EG35: 0 | EH35: 0 | EI35: 0 | EJ35: 0 | EK35: 0 | EL35: 0 | EM35: 0 | EN35: 0 | EO35: 0 | EP35: 0 | EQ35: 0 | ER35: 0 | ES35: 0 | ET35: 0 | EU35: 0 | EV35: 0 | EW35: 0 | EX35: 0 | EY35: 0 | EZ35: 0 | FA35: 0 | FB35: 0 | FC35: 0 | FD35: 0 | FE35: 0 | FF35: 0 | FG35: 0 | FH35: 0 | FI35: 0 | FJ35: 0 | FK35: 0 | FL35: 0 | FM35: 0 | FN35: 0 | FO35: 0 | FP35: 0 | FQ35: 0 | FR35: 0 | FS35: 0 | FT35: 0 | FU35: 0 | FV35: 0 | FW35: 0 | FX35: 0 | FY35: 0 | FZ35: 0 | GA35: 0 | GB35: 0 | GC35: 0 | GD35: 0 | GE35: 0 | GF35: 0 | GG35: 0 | GH35: 0
A36: =IFERROR(IF($B36="","",INDEX('2019 scenario - output'!$A$6:$A$12,MATCH('2019 scenario - input'!$B36,'2019 scenario - output'!$B$6:$B$12,0))),"") ->  | CV36: 0 | CW36: 0 | CX36: 0 | CY36: 0 | CZ36: 0 | DA36: 0 | DB36: 0 | DC36: 0 | DD36: 0 | DE36: 0 | DF36: 0 | DG36: 0 | DH36: 0 | DI36: 0 | DJ36: 0 | DK36: 0 | DL36: 0 | DM36: 0 | DN36: 0 | DO36: 0 | DP36: 0 | DQ36: 0 | DR36: 0 | DS36: 0 | DT36: 0 | DU36: 0 | DV36: 0 | DW36: 0 | DX36: 0 | DY36: 0 | DZ36: 0 | EA36: 0 | EB36: 0 | EC36: 0 | ED36: 0 | EE36: 0 | EF36: 0 | EG36: 0 | EH36: 0 | EI36: 0 | EJ36: 0 | EK36: 0 | EL36: 0 | EM36: 0 | EN36: 0 | EO36: 0 | EP36: 0 | EQ36: 0 | ER36: 0 | ES36: 0 | ET36: 0 | EU36: 0 | EV36: 0 | EW36: 0 | EX36: 0 | EY36: 0 | EZ36: 0 | FA36: 0 | FB36: 0 | FC36: 0 | FD36: 0 | FE36: 0 | FF36: 0 | FG36: 0 | FH36: 0 | FI36: 0 | FJ36: 0 | FK36: 0 | FL36: 0 | FM36: 0 | FN36: 0 | FO36: 0 | FP36: 0 | FQ36: 0 | FR36: 0 | FS36: 0 | FT36: 0 | FU36: 0 | FV36: 0 | FW36: 0 | FX36: 0 | FY36: 0 | FZ36: 0 | GA36: 0 | GB36: 0 | GC36: 0 | GD36: 0 | GE36: 0 | GF36: 0 | GG36: 0 | GH36: 0
A37: =IFERROR(IF($B37="","",INDEX('2019 scenario - output'!$A$6:$A$12,MATCH('2019 scenario - input'!$B37,'2019 scenario - output'!$B$6:$B$12,0))),"") ->  | CV37: 0 | CW37: 0 | CX37: 0 | CY37: 0 | CZ37: 0 | DA37: 0 | DB37: 0 | DC37: 0 | DD37: 0 | DE37: 0 | DF37: 0 | DG37: 0 | DH37: 0 | DI37: 0 | DJ37: 0 | DK37: 0 | DL37: 0 | DM37: 0 | DN37: 0 | DO37: 0 | DP37: 0 | DQ37: 0 | DR37: 0 | DS37: 0 | DT37: 0 | DU37: 0 | DV37: 0 | DW37: 0 | DX37: 0 | DY37: 0 | DZ37: 0 | EA37: 0 | EB37: 0 | EC37: 0 | ED37: 0 | EE37: 0 | EF37: 0 | EG37: 0 | EH37: 0 | EI37: 0 | EJ37: 0 | EK37: 0 | EL37: 0 | EM37: 0 | EN37: 0 | EO37: 0 | EP37: 0 | EQ37: 0 | ER37: 0 | ES37: 0 | ET37: 0 | EU37: 0 | EV37: 0 | EW37: 0 | EX37: 0 | EY37: 0 | EZ37: 0 | FA37: 0 | FB37: 0 | FC37: 0 | FD37: 0 | FE37: 0 | FF37: 0 | FG37: 0 | FH37: 0 | FI37: 0 | FJ37: 0 | FK37: 0 | FL37: 0 | FM37: 0 | FN37: 0 | FO37: 0 | FP37: 0 | FQ37: 0 | FR37: 0 | FS37: 0 | FT37: 0 | FU37: 0 | FV37: 0 | FW37: 0 | FX37: 0 | FY37: 0 | FZ37: 0 | GA37: 0 | GB37: 0 | GC37: 0 | GD37: 0 | GE37: 0 | GF37: 0 | GG37: 0 | GH37: 0
A38: =IFERROR(IF($B38="","",INDEX('2019 scenario - output'!$A$6:$A$12,MATCH('2019 scenario - input'!$B38,'2019 scenario - output'!$B$6:$B$12,0))),"") ->  | CV38: 0 | CW38: 0 | CX38: 0 | CY38: 0 | CZ38: 0 | DA38: 0 | DB38: 0 | DC38: 0 | DD38: 0 | DE38: 0 | DF38: 0 | DG38: 0 | DH38: 0 | DI38: 0 | DJ38: 0 | DK38: 0 | DL38: 0 | DM38: 0 | DN38: 0 | DO38: 0 | DP38: 0 | DQ38: 0 | DR38: 0 | DS38: 0 | DT38: 0 | DU38: 0 | DV38: 0 | DW38: 0 | DX38: 0 | DY38: 0 | DZ38: 0 | EA38: 0 | EB38: 0 | EC38: 0 | ED38: 0 | EE38: 0 | EF38: 0 | EG38: 0 | EH38: 0 | EI38: 0 | EJ38: 0 | EK38: 0 | EL38: 0 | EM38: 0 | EN38: 0 | EO38: 0 | EP38: 0 | EQ38: 0 | ER38: 0 | ES38: 0 | ET38: 0 | EU38: 0 | EV38: 0 | EW38: 0 | EX38: 0 | EY38: 0 | EZ38: 0 | FA38: 0 | FB38: 0 | FC38: 0 | FD38: 0 | FE38: 0 | FF38: 0 | FG38: 0 | FH38: 0 | FI38: 0 | FJ38: 0 | FK38: 0 | FL38: 0 | FM38: 0 | FN38: 0 | FO38: 0 | FP38: 0 | FQ38: 0 | FR38: 0 | FS38: 0 | FT38: 0 | FU38: 0 | FV38: 0 | FW38: 0 | FX38: 0 | FY38: 0 | FZ38: 0 | GA38: 0 | GB38: 0 | GC38: 0 | GD38: 0 | GE38: 0 | GF38: 0 | GG38: 0 | GH38: 0
A39: =IFERROR(IF($B39="","",INDEX('2019 scenario - output'!$A$6:$A$12,MATCH('2019 scenario - input'!$B39,'2019 scenario - output'!$B$6:$B$12,0))),"") ->  | CV39: 0 | CW39: 0 | CX39: 0 | CY39: 0 | CZ39: 0 | DA39: 0 | DB39: 0 | DC39: 0 | DD39: 0 | DE39: 0 | DF39: 0 | DG39: 0 | DH39: 0 | DI39: 0 | DJ39: 0 | DK39: 0 | DL39: 0 | DM39: 0 | DN39: 0 | DO39: 0 | DP39: 0 | DQ39: 0 | DR39: 0 | DS39: 0 | DT39: 0 | DU39: 0 | DV39: 0 | DW39: 0 | DX39: 0 | DY39: 0 | DZ39: 0 | EA39: 0 | EB39: 0 | EC39: 0 | ED39: 0 | EE39: 0 | EF39: 0 | EG39: 0 | EH39: 0 | EI39: 0 | EJ39: 0 | EK39: 0 | EL39: 0 | EM39: 0 | EN39: 0 | EO39: 0 | EP39: 0 | EQ39: 0 | ER39: 0 | ES39: 0 | ET39: 0 | EU39: 0 | EV39: 0 | EW39: 0 | EX39: 0 | EY39: 0 | EZ39: 0 | FA39: 0 | FB39: 0 | FC39: 0 | FD39: 0 | FE39: 0 | FF39: 0 | FG39: 0 | FH39: 0 | FI39: 0 | FJ39: 0 | FK39: 0 | FL39: 0 | FM39: 0 | FN39: 0 | FO39: 0 | FP39: 0 | FQ39: 0 | FR39: 0 | FS39: 0 | FT39: 0 | FU39: 0 | FV39: 0 | FW39: 0 | FX39: 0 | FY39: 0 | FZ39: 0 | GA39: 0 | GB39: 0 | GC39: 0 | GD39: 0 | GE39: 0 | GF39: 0 | GG39: 0 | GH39: 0
A40: =IFERROR(IF($B40="","",INDEX('2019 scenario - output'!$A$6:$A$12,MATCH('2019 scenario - input'!$B40,'2019 scenario - output'!$B$6:$B$12,0))),"") ->  | CV40: 0 | CW40: 0 | CX40: 0 | CY40: 0 | CZ40: 0 | DA40: 0 | DB40: 0 | DC40: 0 | DD40: 0 | DE40: 0 | DF40: 0 | DG40: 0 | DH40: 0 | DI40: 0 | DJ40: 0 | DK40: 0 | DL40: 0 | DM40: 0 | DN40: 0 | DO40: 0 | DP40: 0 | DQ40: 0 | DR40: 0 | DS40: 0 | DT40: 0 | DU40: 0 | DV40: 0 | DW40: 0 | DX40: 0 | DY40: 0 | DZ40: 0 | EA40: 0 | EB40: 0 | EC40: 0 | ED40: 0 | EE40: 0 | EF40: 0 | EG40: 0 | EH40: 0 | EI40: 0 | EJ40: 0 | EK40: 0 | EL40: 0 | EM40: 0 | EN40: 0 | EO40: 0 | EP40: 0 | EQ40: 0 | ER40: 0 | ES40: 0 | ET40: 0 | EU40: 0 | EV40: 0 | EW40: 0 | EX40: 0 | EY40: 0 | EZ40: 0 | FA40: 0 | FB40: 0 | FC40: 0 | FD40: 0 | FE40: 0 | FF40: 0 | FG40: 0 | FH40: 0 | FI40: 0 | FJ40: 0 | FK40: 0 | FL40: 0 | FM40: 0 | FN40: 0 | FO40: 0 | FP40: 0 | FQ40: 0 | FR40: 0 | FS40: 0 | FT40: 0 | FU40: 0 | FV40: 0 | FW40: 0 | FX40: 0 | FY40: 0 | FZ40: 0 | GA40: 0 | GB40: 0 | GC40: 0 | GD40: 0 | GE40: 0 | GF40: 0 | GG40: 0 | GH40: 0
A41: =IFERROR(IF($B41="","",INDEX('2019 scenario - output'!$A$6:$A$12,MATCH('2019 scenario - input'!$B41,'2019 scenario - output'!$B$6:$B$12,0))),"") ->  | CV41: 0 | CW41: 0 | CX41: 0 | CY41: 0 | CZ41: 0 | DA41: 0 | DB41: 0 | DC41: 0 | DD41: 0 | DE41: 0 | DF41: 0 | DG41: 0 | DH41: 0 | DI41: 0 | DJ41: 0 | DK41: 0 | DL41: 0 | DM41: 0 | DN41: 0 | DO41: 0 | DP41: 0 | DQ41: 0 | DR41: 0 | DS41: 0 | DT41: 0 | DU41: 0 | DV41: 0 | DW41: 0 | DX41: 0 | DY41: 0 | DZ41: 0 | EA41: 0 | EB41: 0 | EC41: 0 | ED41: 0 | EE41: 0 | EF41: 0 | EG41: 0 | EH41: 0 | EI41: 0 | EJ41: 0 | EK41: 0 | EL41: 0 | EM41: 0 | EN41: 0 | EO41: 0 | EP41: 0 | EQ41: 0 | ER41: 0 | ES41: 0 | ET41: 0 | EU41: 0 | EV41: 0 | EW41: 0 | EX41: 0 | EY41: 0 | EZ41: 0 | FA41: 0 | FB41: 0 | FC41: 0 | FD41: 0 | FE41: 0 | FF41: 0 | FG41: 0 | FH41: 0 | FI41: 0 | FJ41: 0 | FK41: 0 | FL41: 0 | FM41: 0 | FN41: 0 | FO41: 0 | FP41: 0 | FQ41: 0 | FR41: 0 | FS41: 0 | FT41: 0 | FU41: 0 | FV41: 0 | FW41: 0 | FX41: 0 | FY41: 0 | FZ41: 0 | GA41: 0 | GB41: 0 | GC41: 0 | GD41: 0 | GE41: 0 | GF41: 0 | GG41: 0 | GH41: 0
A42: =IFERROR(IF($B42="","",INDEX('2019 scenario - output'!$A$6:$A$12,MATCH('2019 scenario - input'!$B42,'2019 scenario - output'!$B$6:$B$12,0))),"") ->  | CV42: 0 | CW42: 0 | CX42: 0 | CY42: 0 | CZ42: 0 | DA42: 0 | DB42: 0 | DC42: 0 | DD42: 0 | DE42: 0 | DF42: 0 | DG42: 0 | DH42: 0 | DI42: 0 | DJ42: 0 | DK42: 0 | DL42: 0 | DM42: 0 | DN42: 0 | DO42: 0 | DP42: 0 | DQ42: 0 | DR42: 0 | DS42: 0 | DT42: 0 | DU42: 0 | DV42: 0 | DW42: 0 | DX42: 0 | DY42: 0 | DZ42: 0 | EA42: 0 | EB42: 0 | EC42: 0 | ED42: 0 | EE42: 0 | EF42: 0 | EG42: 0 | EH42: 0 | EI42: 0 | EJ42: 0 | EK42: 0 | EL42: 0 | EM42: 0 | EN42: 0 | EO42: 0 | EP42: 0 | EQ42: 0 | ER42: 0 | ES42: 0 | ET42: 0 | EU42: 0 | EV42: 0 | EW42: 0 | EX42: 0 | EY42: 0 | EZ42: 0 | FA42: 0 | FB42: 0 | FC42: 0 | FD42: 0 | FE42: 0 | FF42: 0 | FG42: 0 | FH42: 0 | FI42: 0 | FJ42: 0 | FK42: 0 | FL42: 0 | FM42: 0 | FN42: 0 | FO42: 0 | FP42: 0 | FQ42: 0 | FR42: 0 | FS42: 0 | FT42: 0 | FU42: 0 | FV42: 0 | FW42: 0 | FX42: 0 | FY42: 0 | FZ42: 0 | GA42: 0 | GB42: 0 | GC42: 0 | GD42: 0 | GE42: 0 | GF42: 0 | GG42: 0 | GH42: 0
A43: =IFERROR(IF($B43="","",INDEX('2019 scenario - output'!$A$6:$A$12,MATCH('2019 scenario - input'!$B43,'2019 scenario - output'!$B$6:$B$12,0))),"") ->  | CV43: 0 | CW43: 0 | CX43: 0 | CY43: 0 | CZ43: 0 | DA43: 0 | DB43: 0 | DC43: 0 | DD43: 0 | DE43: 0 | DF43: 0 | DG43: 0 | DH43: 0 | DI43: 0 | DJ43: 0 | DK43: 0 | DL43: 0 | DM43: 0 | DN43: 0 | DO43: 0 | DP43: 0 | DQ43: 0 | DR43: 0 | DS43: 0 | DT43: 0 | DU43: 0 | DV43: 0 | DW43: 0 | DX43: 0 | DY43: 0 | DZ43: 0 | EA43: 0 | EB43: 0 | EC43: 0 | ED43: 0 | EE43: 0 | EF43: 0 | EG43: 0 | EH43: 0 | EI43: 0 | EJ43: 0 | EK43: 0 | EL43: 0 | EM43: 0 | EN43: 0 | EO43: 0 | EP43: 0 | EQ43: 0 | ER43: 0 | ES43: 0 | ET43: 0 | EU43: 0 | EV43: 0 | EW43: 0 | EX43: 0 | EY43: 0 | EZ43: 0 | FA43: 0 | FB43: 0 | FC43: 0 | FD43: 0 | FE43: 0 | FF43: 0 | FG43: 0 | FH43: 0 | FI43: 0 | FJ43: 0 | FK43: 0 | FL43: 0 | FM43: 0 | FN43: 0 | FO43: 0 | FP43: 0 | FQ43: 0 | FR43: 0 | FS43: 0 | FT43: 0 | FU43: 0 | FV43: 0 | FW43: 0 | FX43: 0 | FY43: 0 | FZ43: 0 | GA43: 0 | GB43: 0 | GC43: 0 | GD43: 0 | GE43: 0 | GF43: 0 | GG43: 0 | GH43: 0
A44: =IFERROR(IF($B44="","",INDEX('2019 scenario - output'!$A$6:$A$12,MATCH('2019 scenario - input'!$B44,'2019 scenario - output'!$B$6:$B$12,0))),"") ->  | CV44: 0 | CW44: 0 | CX44: 0 | CY44: 0 | CZ44: 0 | DA44: 0 | DB44: 0 | DC44: 0 | DD44: 0 | DE44: 0 | DF44: 0 | DG44: 0 | DH44: 0 | DI44: 0 | DJ44: 0 | DK44: 0 | DL44: 0 | DM44: 0 | DN44: 0 | DO44: 0 | DP44: 0 | DQ44: 0 | DR44: 0 | DS44: 0 | DT44: 0 | DU44: 0 | DV44: 0 | DW44: 0 | DX44: 0 | DY44: 0 | DZ44: 0 | EA44: 0 | EB44: 0 | EC44: 0 | ED44: 0 | EE44: 0 | EF44: 0 | EG44: 0 | EH44: 0 | EI44: 0 | EJ44: 0 | EK44: 0 | EL44: 0 | EM44: 0 | EN44: 0 | EO44: 0 | EP44: 0 | EQ44: 0 | ER44: 0 | ES44: 0 | ET44: 0 | EU44: 0 | EV44: 0 | EW44: 0 | EX44: 0 | EY44: 0 | EZ44: 0 | FA44: 0 | FB44: 0 | FC44: 0 | FD44: 0 | FE44: 0 | FF44: 0 | FG44: 0 | FH44: 0 | FI44: 0 | FJ44: 0 | FK44: 0 | FL44: 0 | FM44: 0 | FN44: 0 | FO44: 0 | FP44: 0 | FQ44: 0 | FR44: 0 | FS44: 0 | FT44: 0 | FU44: 0 | FV44: 0 | FW44: 0 | FX44: 0 | FY44: 0 | FZ44: 0 | GA44: 0 | GB44: 0 | GC44: 0 | GD44: 0 | GE44: 0 | GF44: 0 | GG44: 0 | GH44: 0
A45: =IFERROR(IF($B45="","",INDEX('2019 scenario - output'!$A$6:$A$12,MATCH('2019 scenario - input'!$B45,'2019 scenario - output'!$B$6:$B$12,0))),"") ->  | CV45: =IFERROR($D45*H45,"") -> 0 | CW45: =IFERROR($D45*I45,"") -> 0 | CX45: =IFERROR($D45*J45,"") -> 0 | CY45: =IFERROR($D45*K45,"") -> 0 | CZ45: =IFERROR($D45*L45,"") -> 0 | DA45: =IFERROR($D45*M45,"") -> 0 | DB45: =IFERROR($D45*N45,"") -> 0 | DC45: =IFERROR($D45*O45,"") -> 0 | DD45: =IFERROR($D45*P45,"") -> 0 | DE45: =IFERROR($D45*Q45,"") -> 0 | DF45: =IFERROR($D45*R45,"") -> 0 | DG45: =IFERROR($D45*S45,"") -> 0 | DH45: =IFERROR($D45*T45,"") -> 0 | DI45: =IFERROR($D45*U45,"") -> 0 | DJ45: =IFERROR($D45*V45,"") -> 0 | DK45: =IFERROR($D45*W45,"") -> 0 | DL45: =IFERROR($D45*X45,"") -> 0 | DM45: =IFERROR($D45*Y45,"") -> 0 | DN45: =IFERROR($D45*Z45,"") -> 0 | DO45: =IFERROR($D45*AA45,"") -> 0 | DP45: =IFERROR($D45*AB45,"") -> 0 | DQ45: =IFERROR($D45*AC45,"") -> 0 | DR45: =IFERROR($D45*AD45,"") -> 0 | DS45: =IFERROR($D45*AE45,"") -> 0 | DT45: =IFERROR($D45*AF45,"") -> 0 | DU45: =IFERROR($D45*AG45,"") -> 0 | DV45: =IFERROR($D45*AH45,"") -> 0 | DW45: =IFERROR($D45*AI45,"") -> 0 | DX45: =IFERROR($D45*AJ45,"") -> 0 | DY45: =IFERROR($D45*AK45,"") -> 0 | DZ45: =IFERROR($D45*AL45,"") -> 0 | EA45: =IFERROR($D45*AM45,"") -> 0 | EB45: =IFERROR($D45*AN45,"") -> 0 | EC45: =IFERROR($D45*AO45,"") -> 0 | ED45: =IFERROR($D45*AP45,"") -> 0 | EE45: =IFERROR($D45*AQ45,"") -> 0 | EF45: =IFERROR($D45*AR45,"") -> 0 | EG45: =IFERROR($D45*AS45,"") -> 0 | EH45: =IFERROR($D45*AT45,"") -> 0 | EI45: =IFERROR($D45*AU45,"") -> 0 | EJ45: =IFERROR($D45*AV45,"") -> 0 | EK45: =IFERROR($D45*AW45,"") -> 0 | EL45: =IFERROR($D45*AX45,"") -> 0 | EM45: =IFERROR($D45*AY45,"") -> 0 | EN45: =IFERROR($D45*AZ45,"") -> 0 | EO45: =IFERROR($D45*BA45,"") -> 0 | EP45: =IFERROR($D45*BB45,"") -> 0 | EQ45: =IFERROR($D45*BC45,"") -> 0 | ER45: =IFERROR($D45*BD45,"") -> 0 | ES45: =IFERROR($D45*BE45,"") -> 0 | ET45: =IFERROR($D45*BF45,"") -> 0 | EU45: =IFERROR($D45*BG45,"") -> 0 | EV45: =IFERROR($D45*BH45,"") -> 0 | EW45: =IFERROR($D45*BI45,"") -> 0 | EX45: =IFERROR($D45*BJ45,"") -> 0 | EY45: =IFERROR($D45*BK45,"") -> 0 | EZ45: =IFERROR($D45*BL45,"") -> 0 | FA45: =IFERROR($D45*BM45,"") -> 0 | FB45: =IFERROR($D45*BN45,"") -> 0 | FC45: =IFERROR($D45*BO45,"") -> 0 | FD45: =IFERROR($D45*BP45,"") -> 0 | FE45: =IFERROR($D45*BQ45,"") -> 0 | FF45: =IFERROR($D45*BR45,"") -> 0 | FG45: =IFERROR($D45*BS45,"") -> 0 | FH45: =IFERROR($D45*BT45,"") -> 0 | FI45: =IFERROR($D45*BU45,"") -> 0 | FJ45: =IFERROR($D45*BV45,"") -> 0 | FK45: =IFERROR($D45*BW45,"") -> 0 | FL45: =IFERROR($D45*BX45,"") -> 0 | FM45: =IFERROR($D45*BY45,"") -> 0 | FN45: =IFERROR($D45*BZ45,"") -> 0 | FO45: =IFERROR($D45*CA45,"") -> 0 | FP45: =IFERROR($D45*CB45,"") -> 0 | FQ45: =IFERROR($D45*CC45,"") -> 0 | FR45: =IFERROR($D45*CD45,"") -> 0 | FS45: =IFERROR($D45*CE45,"") -> 0 | FT45: =IFERROR($D45*CF45,"") -> 0 | FU45: =IFERROR($D45*CG45,"") -> 0 | FV45: =IFERROR($D45*CH45,"") -> 0 | FW45: =IFERROR($D45*CI45,"") -> 0 | FX45: =IFERROR($D45*CJ45,"") -> 0 | FY45: =IFERROR($D45*CK45,"") -> 0 | FZ45: =IFERROR($D45*CL45,"") -> 0 | GA45: =IFERROR($D45*CM45,"") -> 0 | GB45: =IFERROR($D45*CN45,"") -> 0 | GC45: =IFERROR($D45*CO45,"") -> 0 | GD45: =IFERROR($D45*CP45,"") -> 0 | GE45: =IFERROR($D45*CQ45,"") -> 0 | GF45: =IFERROR($D45*CR45,"") -> 0 | GG45: =IFERROR($D45*CS45,"") -> 0 | GH45: =IFERROR($D45*CT45,"") -> 0
A46: =IFERROR(IF($B46="","",INDEX('2019 scenario - output'!$A$6:$A$12,MATCH('2019 scenario - input'!$B46,'2019 scenario - output'!$B$6:$B$12,0))),"") ->  | CV46: 0 | CW46: 0 | CX46: 0 | CY46: 0 | CZ46: 0 | DA46: 0 | DB46: 0 | DC46: 0 | DD46: 0 | DE46: 0 | DF46: 0 | DG46: 0 | DH46: 0 | DI46: 0 | DJ46: 0 | DK46: 0 | DL46: 0 | DM46: 0 | DN46: 0 | DO46: 0 | DP46: 0 | DQ46: 0 | DR46: 0 | DS46: 0 | DT46: 0 | DU46: 0 | DV46: 0 | DW46: 0 | DX46: 0 | DY46: 0 | DZ46: 0 | EA46: 0 | EB46: 0 | EC46: 0 | ED46: 0 | EE46: 0 | EF46: 0 | EG46: 0 | EH46: 0 | EI46: 0 | EJ46: 0 | EK46: 0 | EL46: 0 | EM46: 0 | EN46: 0 | EO46: 0 | EP46: 0 | EQ46: 0 | ER46: 0 | ES46: 0 | ET46: 0 | EU46: 0 | EV46: 0 | EW46: 0 | EX46: 0 | EY46: 0 | EZ46: 0 | FA46: 0 | FB46: 0 | FC46: 0 | FD46: 0 | FE46: 0 | FF46: 0 | FG46: 0 | FH46: 0 | FI46: 0 | FJ46: 0 | FK46: 0 | FL46: 0 | FM46: 0 | FN46: 0 | FO46: 0 | FP46: 0 | FQ46: 0 | FR46: 0 | FS46: 0 | FT46: 0 | FU46: 0 | FV46: 0 | FW46: 0 | FX46: 0 | FY46: 0 | FZ46: 0 | GA46: 0 | GB46: 0 | GC46: 0 | GD46: 0 | GE46: 0 | GF46: 0 | GG46: 0 | GH46: 0
A47: =IFERROR(IF($B47="","",INDEX('2019 scenario - output'!$A$6:$A$12,MATCH('2019 scenario - input'!$B47,'2019 scenario - output'!$B$6:$B$12,0))),"") ->  | CV47: 0 | CW47: 0 | CX47: 0 | CY47: 0 | CZ47: 0 | DA47: 0 | DB47: 0 | DC47: 0 | DD47: 0 | DE47: 0 | DF47: 0 | DG47: 0 | DH47: 0 | DI47: 0 | DJ47: 0 | DK47: 0 | DL47: 0 | DM47: 0 | DN47: 0 | DO47: 0 | DP47: 0 | DQ47: 0 | DR47: 0 | DS47: 0 | DT47: 0 | DU47: 0 | DV47: 0 | DW47: 0 | DX47: 0 | DY47: 0 | DZ47: 0 | EA47: 0 | EB47: 0 | EC47: 0 | ED47: 0 | EE47: 0 | EF47: 0 | EG47: 0 | EH47: 0 | EI47: 0 | EJ47: 0 | EK47: 0 | EL47: 0 | EM47: 0 | EN47: 0 | EO47: 0 | EP47: 0 | EQ47: 0 | ER47: 0 | ES47: 0 | ET47: 0 | EU47: 0 | EV47: 0 | EW47: 0 | EX47: 0 | EY47: 0 | EZ47: 0 | FA47: 0 | FB47: 0 | FC47: 0 | FD47: 0 | FE47: 0 | FF47: 0 | FG47: 0 | FH47: 0 | FI47: 0 | FJ47: 0 | FK47: 0 | FL47: 0 | FM47: 0 | FN47: 0 | FO47: 0 | FP47: 0 | FQ47: 0 | FR47: 0 | FS47: 0 | FT47: 0 | FU47: 0 | FV47: 0 | FW47: 0 | FX47: 0 | FY47: 0 | FZ47: 0 | GA47: 0 | GB47: 0 | GC47: 0 | GD47: 0 | GE47: 0 | GF47: 0 | GG47: 0 | GH47: 0
A48: =IFERROR(IF($B48="","",INDEX('2019 scenario - output'!$A$6:$A$12,MATCH('2019 scenario - input'!$B48,'2019 scenario - output'!$B$6:$B$12,0))),"") ->  | CV48: 0 | CW48: 0 | CX48: 0 | CY48: 0 | CZ48: 0 | DA48: 0 | DB48: 0 | DC48: 0 | DD48: 0 | DE48: 0 | DF48: 0 | DG48: 0 | DH48: 0 | DI48: 0 | DJ48: 0 | DK48: 0 | DL48: 0 | DM48: 0 | DN48: 0 | DO48: 0 | DP48: 0 | DQ48: 0 | DR48: 0 | DS48: 0 | DT48: 0 | DU48: 0 | DV48: 0 | DW48: 0 | DX48: 0 | DY48: 0 | DZ48: 0 | EA48: 0 | EB48: 0 | EC48: 0 | ED48: 0 | EE48: 0 | EF48: 0 | EG48: 0 | EH48: 0 | EI48: 0 | EJ48: 0 | EK48: 0 | EL48: 0 | EM48: 0 | EN48: 0 | EO48: 0 | EP48: 0 | EQ48: 0 | ER48: 0 | ES48: 0 | ET48: 0 | EU48: 0 | EV48: 0 | EW48: 0 | EX48: 0 | EY48: 0 | EZ48: 0 | FA48: 0 | FB48: 0 | FC48: 0 | FD48: 0 | FE48: 0 | FF48: 0 | FG48: 0 | FH48: 0 | FI48: 0 | FJ48: 0 | FK48: 0 | FL48: 0 | FM48: 0 | FN48: 0 | FO48: 0 | FP48: 0 | FQ48: 0 | FR48: 0 | FS48: 0 | FT48: 0 | FU48: 0 | FV48: 0 | FW48: 0 | FX48: 0 | FY48: 0 | FZ48: 0 | GA48: 0 | GB48: 0 | GC48: 0 | GD48: 0 | GE48: 0 | GF48: 0 | GG48: 0 | GH48: 0
A49: =IFERROR(IF($B49="","",INDEX('2019 scenario - output'!$A$6:$A$12,MATCH('2019 scenario - input'!$B49,'2019 scenario - output'!$B$6:$B$12,0))),"") ->  | CV49: 0 | CW49: 0 | CX49: 0 | CY49: 0 | CZ49: 0 | DA49: 0 | DB49: 0 | DC49: 0 | DD49: 0 | DE49: 0 | DF49: 0 | DG49: 0 | DH49: 0 | DI49: 0 | DJ49: 0 | DK49: 0 | DL49: 0 | DM49: 0 | DN49: 0 | DO49: 0 | DP49: 0 | DQ49: 0 | DR49: 0 | DS49: 0 | DT49: 0 | DU49: 0 | DV49: 0 | DW49: 0 | DX49: 0 | DY49: 0 | DZ49: 0 | EA49: 0 | EB49: 0 | EC49: 0 | ED49: 0 | EE49: 0 | EF49: 0 | EG49: 0 | EH49: 0 | EI49: 0 | EJ49: 0 | EK49: 0 | EL49: 0 | EM49: 0 | EN49: 0 | EO49: 0 | EP49: 0 | EQ49: 0 | ER49: 0 | ES49: 0 | ET49: 0 | EU49: 0 | EV49: 0 | EW49: 0 | EX49: 0 | EY49: 0 | EZ49: 0 | FA49: 0 | FB49: 0 | FC49: 0 | FD49: 0 | FE49: 0 | FF49: 0 | FG49: 0 | FH49: 0 | FI49: 0 | FJ49: 0 | FK49: 0 | FL49: 0 | FM49: 0 | FN49: 0 | FO49: 0 | FP49: 0 | FQ49: 0 | FR49: 0 | FS49: 0 | FT49: 0 | FU49: 0 | FV49: 0 | FW49: 0 | FX49: 0 | FY49: 0 | FZ49: 0 | GA49: 0 | GB49: 0 | GC49: 0 | GD49: 0 | GE49: 0 | GF49: 0 | GG49: 0 | GH49: 0
A50: =IFERROR(IF($B50="","",INDEX('2019 scenario - output'!$A$6:$A$12,MATCH('2019 scenario - input'!$B50,'2019 scenario - output'!$B$6:$B$12,0))),"") ->  | CV50: 0 | CW50: 0 | CX50: 0 | CY50: 0 | CZ50: 0 | DA50: 0 | DB50: 0 | DC50: 0 | DD50: 0 | DE50: 0 | DF50: 0 | DG50: 0 | DH50: 0 | DI50: 0 | DJ50: 0 | DK50: 0 | DL50: 0 | DM50: 0 | DN50: 0 | DO50: 0 | DP50: 0 | DQ50: 0 | DR50: 0 | DS50: 0 | DT50: 0 | DU50: 0 | DV50: 0 | DW50: 0 | DX50: 0 | DY50: 0 | DZ50: 0 | EA50: 0 | EB50: 0 | EC50: 0 | ED50: 0 | EE50: 0 | EF50: 0 | EG50: 0 | EH50: 0 | EI50: 0 | EJ50: 0 | EK50: 0 | EL50: 0 | EM50: 0 | EN50: 0 | EO50: 0 | EP50: 0 | EQ50: 0 | ER50: 0 | ES50: 0 | ET50: 0 | EU50: 0 | EV50: 0 | EW50: 0 | EX50: 0 | EY50: 0 | EZ50: 0 | FA50: 0 | FB50: 0 | FC50: 0 | FD50: 0 | FE50: 0 | FF50: 0 | FG50: 0 | FH50: 0 | FI50: 0 | FJ50: 0 | FK50: 0 | FL50: 0 | FM50: 0 | FN50: 0 | FO50: 0 | FP50: 0 | FQ50: 0 | FR50: 0 | FS50: 0 | FT50: 0 | FU50: 0 | FV50: 0 | FW50: 0 | FX50: 0 | FY50: 0 | FZ50: 0 | GA50: 0 | GB50: 0 | GC50: 0 | GD50: 0 | GE50: 0 | GF50: 0 | GG50: 0 | GH50: 0
A51: =IFERROR(IF($B51="","",INDEX('2019 scenario - output'!$A$6:$A$12,MATCH('2019 scenario - input'!$B51,'2019 scenario - output'!$B$6:$B$12,0))),"") ->  | CV51: 0 | CW51: 0 | CX51: 0 | CY51: 0 | CZ51: 0 | DA51: 0 | DB51: 0 | DC51: 0 | DD51: 0 | DE51: 0 | DF51: 0 | DG51: 0 | DH51: 0 | DI51: 0 | DJ51: 0 | DK51: 0 | DL51: 0 | DM51: 0 | DN51: 0 | DO51: 0 | DP51: 0 | DQ51: 0 | DR51: 0 | DS51: 0 | DT51: 0 | DU51: 0 | DV51: 0 | DW51: 0 | DX51: 0 | DY51: 0 | DZ51: 0 | EA51: 0 | EB51: 0 | EC51: 0 | ED51: 0 | EE51: 0 | EF51: 0 | EG51: 0 | EH51: 0 | EI51: 0 | EJ51: 0 | EK51: 0 | EL51: 0 | EM51: 0 | EN51: 0 | EO51: 0 | EP51: 0 | EQ51: 0 | ER51: 0 | ES51: 0 | ET51: 0 | EU51: 0 | EV51: 0 | EW51: 0 | EX51: 0 | EY51: 0 | EZ51: 0 | FA51: 0 | FB51: 0 | FC51: 0 | FD51: 0 | FE51: 0 | FF51: 0 | FG51: 0 | FH51: 0 | FI51: 0 | FJ51: 0 | FK51: 0 | FL51: 0 | FM51: 0 | FN51: 0 | FO51: 0 | FP51: 0 | FQ51: 0 | FR51: 0 | FS51: 0 | FT51: 0 | FU51: 0 | FV51: 0 | FW51: 0 | FX51: 0 | FY51: 0 | FZ51: 0 | GA51: 0 | GB51: 0 | GC51: 0 | GD51: 0 | GE51: 0 | GF51: 0 | GG51: 0 | GH51: 0
A52: =IFERROR(IF($B52="","",INDEX('2019 scenario - output'!$A$6:$A$12,MATCH('2019 scenario - input'!$B52,'2019 scenario - output'!$B$6:$B$12,0))),"") ->  | CV52: 0 | CW52: 0 | CX52: 0 | CY52: 0 | CZ52: 0 | DA52: 0 | DB52: 0 | DC52: 0 | DD52: 0 | DE52: 0 | DF52: 0 | DG52: 0 | DH52: 0 | DI52: 0 | DJ52: 0 | DK52: 0 | DL52: 0 | DM52: 0 | DN52: 0 | DO52: 0 | DP52: 0 | DQ52: 0 | DR52: 0 | DS52: 0 | DT52: 0 | DU52: 0 | DV52: 0 | DW52: 0 | DX52: 0 | DY52: 0 | DZ52: 0 | EA52: 0 | EB52: 0 | EC52: 0 | ED52: 0 | EE52: 0 | EF52: 0 | EG52: 0 | EH52: 0 | EI52: 0 | EJ52: 0 | EK52: 0 | EL52: 0 | EM52: 0 | EN52: 0 | EO52: 0 | EP52: 0 | EQ52: 0 | ER52: 0 | ES52: 0 | ET52: 0 | EU52: 0 | EV52: 0 | EW52: 0 | EX52: 0 | EY52: 0 | EZ52: 0 | FA52: 0 | FB52: 0 | FC52: 0 | FD52: 0 | FE52: 0 | FF52: 0 | FG52: 0 | FH52: 0 | FI52: 0 | FJ52: 0 | FK52: 0 | FL52: 0 | FM52: 0 | FN52: 0 | FO52: 0 | FP52: 0 | FQ52: 0 | FR52: 0 | FS52: 0 | FT52: 0 | FU52: 0 | FV52: 0 | FW52: 0 | FX52: 0 | FY52: 0 | FZ52: 0 | GA52: 0 | GB52: 0 | GC52: 0 | GD52: 0 | GE52: 0 | GF52: 0 | GG52: 0 | GH52: 0
A53: =IFERROR(IF($B53="","",INDEX('2019 scenario - output'!$A$6:$A$12,MATCH('2019 scenario - input'!$B53,'2019 scenario - output'!$B$6:$B$12,0))),"") ->  | CV53: 0 | CW53: 0 | CX53: 0 | CY53: 0 | CZ53: 0 | DA53: 0 | DB53: 0 | DC53: 0 | DD53: 0 | DE53: 0 | DF53: 0 | DG53: 0 | DH53: 0 | DI53: 0 | DJ53: 0 | DK53: 0 | DL53: 0 | DM53: 0 | DN53: 0 | DO53: 0 | DP53: 0 | DQ53: 0 | DR53: 0 | DS53: 0 | DT53: 0 | DU53: 0 | DV53: 0 | DW53: 0 | DX53: 0 | DY53: 0 | DZ53: 0 | EA53: 0 | EB53: 0 | EC53: 0 | ED53: 0 | EE53: 0 | EF53: 0 | EG53: 0 | EH53: 0 | EI53: 0 | EJ53: 0 | EK53: 0 | EL53: 0 | EM53: 0 | EN53: 0 | EO53: 0 | EP53: 0 | EQ53: 0 | ER53: 0 | ES53: 0 | ET53: 0 | EU53: 0 | EV53: 0 | EW53: 0 | EX53: 0 | EY53: 0 | EZ53: 0 | FA53: 0 | FB53: 0 | FC53: 0 | FD53: 0 | FE53: 0 | FF53: 0 | FG53: 0 | FH53: 0 | FI53: 0 | FJ53: 0 | FK53: 0 | FL53: 0 | FM53: 0 | FN53: 0 | FO53: 0 | FP53: 0 | FQ53: 0 | FR53: 0 | FS53: 0 | FT53: 0 | FU53: 0 | FV53: 0 | FW53: 0 | FX53: 0 | FY53: 0 | FZ53: 0 | GA53: 0 | GB53: 0 | GC53: 0 | GD53: 0 | GE53: 0 | GF53: 0 | GG53: 0 | GH53: 0
A54: =IFERROR(IF($B54="","",INDEX('2019 scenario - output'!$A$6:$A$12,MATCH('2019 scenario - input'!$B54,'2019 scenario - output'!$B$6:$B$12,0))),"") ->  | CV54: 0 | CW54: 0 | CX54: 0 | CY54: 0 | CZ54: 0 | DA54: 0 | DB54: 0 | DC54: 0 | DD54: 0 | DE54: 0 | DF54: 0 | DG54: 0 | DH54: 0 | DI54: 0 | DJ54: 0 | DK54: 0 | DL54: 0 | DM54: 0 | DN54: 0 | DO54: 0 | DP54: 0 | DQ54: 0 | DR54: 0 | DS54: 0 | DT54: 0 | DU54: 0 | DV54: 0 | DW54: 0 | DX54: 0 | DY54: 0 | DZ54: 0 | EA54: 0 | EB54: 0 | EC54: 0 | ED54: 0 | EE54: 0 | EF54: 0 | EG54: 0 | EH54: 0 | EI54: 0 | EJ54: 0 | EK54: 0 | EL54: 0 | EM54: 0 | EN54: 0 | EO54: 0 | EP54: 0 | EQ54: 0 | ER54: 0 | ES54: 0 | ET54: 0 | EU54: 0 | EV54: 0 | EW54: 0 | EX54: 0 | EY54: 0 | EZ54: 0 | FA54: 0 | FB54: 0 | FC54: 0 | FD54: 0 | FE54: 0 | FF54: 0 | FG54: 0 | FH54: 0 | FI54: 0 | FJ54: 0 | FK54: 0 | FL54: 0 | FM54: 0 | FN54: 0 | FO54: 0 | FP54: 0 | FQ54: 0 | FR54: 0 | FS54: 0 | FT54: 0 | FU54: 0 | FV54: 0 | FW54: 0 | FX54: 0 | FY54: 0 | FZ54: 0 | GA54: 0 | GB54: 0 | GC54: 0 | GD54: 0 | GE54: 0 | GF54: 0 | GG54: 0 | GH54: 0
A55: =IFERROR(IF($B55="","",INDEX('2019 scenario - output'!$A$6:$A$12,MATCH('2019 scenario - input'!$B55,'2019 scenario - output'!$B$6:$B$12,0))),"") ->  | CV55: 0 | CW55: 0 | CX55: 0 | CY55: 0 | CZ55: 0 | DA55: 0 | DB55: 0 | DC55: 0 | DD55: 0 | DE55: 0 | DF55: 0 | DG55: 0 | DH55: 0 | DI55: 0 | DJ55: 0 | DK55: 0 | DL55: 0 | DM55: 0 | DN55: 0 | DO55: 0 | DP55: 0 | DQ55: 0 | DR55: 0 | DS55: 0 | DT55: 0 | DU55: 0 | DV55: 0 | DW55: 0 | DX55: 0 | DY55: 0 | DZ55: 0 | EA55: 0 | EB55: 0 | EC55: 0 | ED55: 0 | EE55: 0 | EF55: 0 | EG55: 0 | EH55: 0 | EI55: 0 | EJ55: 0 | EK55: 0 | EL55: 0 | EM55: 0 | EN55: 0 | EO55: 0 | EP55: 0 | EQ55: 0 | ER55: 0 | ES55: 0 | ET55: 0 | EU55: 0 | EV55: 0 | EW55: 0 | EX55: 0 | EY55: 0 | EZ55: 0 | FA55: 0 | FB55: 0 | FC55: 0 | FD55: 0 | FE55: 0 | FF55: 0 | FG55: 0 | FH55: 0 | FI55: 0 | FJ55: 0 | FK55: 0 | FL55: 0 | FM55: 0 | FN55: 0 | FO55: 0 | FP55: 0 | FQ55: 0 | FR55: 0 | FS55: 0 | FT55: 0 | FU55: 0 | FV55: 0 | FW55: 0 | FX55: 0 | FY55: 0 | FZ55: 0 | GA55: 0 | GB55: 0 | GC55: 0 | GD55: 0 | GE55: 0 | GF55: 0 | GG55: 0 | GH55: 0
A56: =IFERROR(IF($B56="","",INDEX('2019 scenario - output'!$A$6:$A$12,MATCH('2019 scenario - input'!$B56,'2019 scenario - output'!$B$6:$B$12,0))),"") ->  | CV56: 0 | CW56: 0 | CX56: 0 | CY56: 0 | CZ56: 0 | DA56: 0 | DB56: 0 | DC56: 0 | DD56: 0 | DE56: 0 | DF56: 0 | DG56: 0 | DH56: 0 | DI56: 0 | DJ56: 0 | DK56: 0 | DL56: 0 | DM56: 0 | DN56: 0 | DO56: 0 | DP56: 0 | DQ56: 0 | DR56: 0 | DS56: 0 | DT56: 0 | DU56: 0 | DV56: 0 | DW56: 0 | DX56: 0 | DY56: 0 | DZ56: 0 | EA56: 0 | EB56: 0 | EC56: 0 | ED56: 0 | EE56: 0 | EF56: 0 | EG56: 0 | EH56: 0 | EI56: 0 | EJ56: 0 | EK56: 0 | EL56: 0 | EM56: 0 | EN56: 0 | EO56: 0 | EP56: 0 | EQ56: 0 | ER56: 0 | ES56: 0 | ET56: 0 | EU56: 0 | EV56: 0 | EW56: 0 | EX56: 0 | EY56: 0 | EZ56: 0 | FA56: 0 | FB56: 0 | FC56: 0 | FD56: 0 | FE56: 0 | FF56: 0 | FG56: 0 | FH56: 0 | FI56: 0 | FJ56: 0 | FK56: 0 | FL56: 0 | FM56: 0 | FN56: 0 | FO56: 0 | FP56: 0 | FQ56: 0 | FR56: 0 | FS56: 0 | FT56: 0 | FU56: 0 | FV56: 0 | FW56: 0 | FX56: 0 | FY56: 0 | FZ56: 0 | GA56: 0 | GB56: 0 | GC56: 0 | GD56: 0 | GE56: 0 | GF56: 0 | GG56: 0 | GH56: 0
A57: =IFERROR(IF($B57="","",INDEX('2019 scenario - output'!$A$6:$A$12,MATCH('2019 scenario - input'!$B57,'2019 scenario - output'!$B$6:$B$12,0))),"") ->  | CV57: 0 | CW57: 0 | CX57: 0 | CY57: 0 | CZ57: 0 | DA57: 0 | DB57: 0 | DC57: 0 | DD57: 0 | DE57: 0 | DF57: 0 | DG57: 0 | DH57: 0 | DI57: 0 | DJ57: 0 | DK57: 0 | DL57: 0 | DM57: 0 | DN57: 0 | DO57: 0 | DP57: 0 | DQ57: 0 | DR57: 0 | DS57: 0 | DT57: 0 | DU57: 0 | DV57: 0 | DW57: 0 | DX57: 0 | DY57: 0 | DZ57: 0 | EA57: 0 | EB57: 0 | EC57: 0 | ED57: 0 | EE57: 0 | EF57: 0 | EG57: 0 | EH57: 0 | EI57: 0 | EJ57: 0 | EK57: 0 | EL57: 0 | EM57: 0 | EN57: 0 | EO57: 0 | EP57: 0 | EQ57: 0 | ER57: 0 | ES57: 0 | ET57: 0 | EU57: 0 | EV57: 0 | EW57: 0 | EX57: 0 | EY57: 0 | EZ57: 0 | FA57: 0 | FB57: 0 | FC57: 0 | FD57: 0 | FE57: 0 | FF57: 0 | FG57: 0 | FH57: 0 | FI57: 0 | FJ57: 0 | FK57: 0 | FL57: 0 | FM57: 0 | FN57: 0 | FO57: 0 | FP57: 0 | FQ57: 0 | FR57: 0 | FS57: 0 | FT57: 0 | FU57: 0 | FV57: 0 | FW57: 0 | FX57: 0 | FY57: 0 | FZ57: 0 | GA57: 0 | GB57: 0 | GC57: 0 | GD57: 0 | GE57: 0 | GF57: 0 | GG57: 0 | GH57: 0
A58: =IFERROR(IF($B58="","",INDEX('2019 scenario - output'!$A$6:$A$12,MATCH('2019 scenario - input'!$B58,'2019 scenario - output'!$B$6:$B$12,0))),"") ->  | CV58: 0 | CW58: 0 | CX58: 0 | CY58: 0 | CZ58: 0 | DA58: 0 | DB58: 0 | DC58: 0 | DD58: 0 | DE58: 0 | DF58: 0 | DG58: 0 | DH58: 0 | DI58: 0 | DJ58: 0 | DK58: 0 | DL58: 0 | DM58: 0 | DN58: 0 | DO58: 0 | DP58: 0 | DQ58: 0 | DR58: 0 | DS58: 0 | DT58: 0 | DU58: 0 | DV58: 0 | DW58: 0 | DX58: 0 | DY58: 0 | DZ58: 0 | EA58: 0 | EB58: 0 | EC58: 0 | ED58: 0 | EE58: 0 | EF58: 0 | EG58: 0 | EH58: 0 | EI58: 0 | EJ58: 0 | EK58: 0 | EL58: 0 | EM58: 0 | EN58: 0 | EO58: 0 | EP58: 0 | EQ58: 0 | ER58: 0 | ES58: 0 | ET58: 0 | EU58: 0 | EV58: 0 | EW58: 0 | EX58: 0 | EY58: 0 | EZ58: 0 | FA58: 0 | FB58: 0 | FC58: 0 | FD58: 0 | FE58: 0 | FF58: 0 | FG58: 0 | FH58: 0 | FI58: 0 | FJ58: 0 | FK58: 0 | FL58: 0 | FM58: 0 | FN58: 0 | FO58: 0 | FP58: 0 | FQ58: 0 | FR58: 0 | FS58: 0 | FT58: 0 | FU58: 0 | FV58: 0 | FW58: 0 | FX58: 0 | FY58: 0 | FZ58: 0 | GA58: 0 | GB58: 0 | GC58: 0 | GD58: 0 | GE58: 0 | GF58: 0 | GG58: 0 | GH58: 0
A59: =IFERROR(IF($B59="","",INDEX('2019 scenario - output'!$A$6:$A$12,MATCH('2019 scenario - input'!$B59,'2019 scenario - output'!$B$6:$B$12,0))),"") ->  | CV59: 0 | CW59: 0 | CX59: 0 | CY59: 0 | CZ59: 0 | DA59: 0 | DB59: 0 | DC59: 0 | DD59: 0 | DE59: 0 | DF59: 0 | DG59: 0 | DH59: 0 | DI59: 0 | DJ59: 0 | DK59: 0 | DL59: 0 | DM59: 0 | DN59: 0 | DO59: 0 | DP59: 0 | DQ59: 0 | DR59: 0 | DS59: 0 | DT59: 0 | DU59: 0 | DV59: 0 | DW59: 0 | DX59: 0 | DY59: 0 | DZ59: 0 | EA59: 0 | EB59: 0 | EC59: 0 | ED59: 0 | EE59: 0 | EF59: 0 | EG59: 0 | EH59: 0 | EI59: 0 | EJ59: 0 | EK59: 0 | EL59: 0 | EM59: 0 | EN59: 0 | EO59: 0 | EP59: 0 | EQ59: 0 | ER59: 0 | ES59: 0 | ET59: 0 | EU59: 0 | EV59: 0 | EW59: 0 | EX59: 0 | EY59: 0 | EZ59: 0 | FA59: 0 | FB59: 0 | FC59: 0 | FD59: 0 | FE59: 0 | FF59: 0 | FG59: 0 | FH59: 0 | FI59: 0 | FJ59: 0 | FK59: 0 | FL59: 0 | FM59: 0 | FN59: 0 | FO59: 0 | FP59: 0 | FQ59: 0 | FR59: 0 | FS59: 0 | FT59: 0 | FU59: 0 | FV59: 0 | FW59: 0 | FX59: 0 | FY59: 0 | FZ59: 0 | GA59: 0 | GB59: 0 | GC59: 0 | GD59: 0 | GE59: 0 | GF59: 0 | GG59: 0 | GH59: 0
A60: =IFERROR(IF($B60="","",INDEX('2019 scenario - output'!$A$6:$A$12,MATCH('2019 scenario - input'!$B60,'2019 scenario - output'!$B$6:$B$12,0))),"") ->  | CV60: 0 | CW60: 0 | CX60: 0 | CY60: 0 | CZ60: 0 | DA60: 0 | DB60: 0 | DC60: 0 | DD60: 0 | DE60: 0 | DF60: 0 | DG60: 0 | DH60: 0 | DI60: 0 | DJ60: 0 | DK60: 0 | DL60: 0 | DM60: 0 | DN60: 0 | DO60: 0 | DP60: 0 | DQ60: 0 | DR60: 0 | DS60: 0 | DT60: 0 | DU60: 0 | DV60: 0 | DW60: 0 | DX60: 0 | DY60: 0 | DZ60: 0 | EA60: 0 | EB60: 0 | EC60: 0 | ED60: 0 | EE60: 0 | EF60: 0 | EG60: 0 | EH60: 0 | EI60: 0 | EJ60: 0 | EK60: 0 | EL60: 0 | EM60: 0 | EN60: 0 | EO60: 0 | EP60: 0 | EQ60: 0 | ER60: 0 | ES60: 0 | ET60: 0 | EU60: 0 | EV60: 0 | EW60: 0 | EX60: 0 | EY60: 0 | EZ60: 0 | FA60: 0 | FB60: 0 | FC60: 0 | FD60: 0 | FE60: 0 | FF60: 0 | FG60: 0 | FH60: 0 | FI60: 0 | FJ60: 0 | FK60: 0 | FL60: 0 | FM60: 0 | FN60: 0 | FO60: 0 | FP60: 0 | FQ60: 0 | FR60: 0 | FS60: 0 | FT60: 0 | FU60: 0 | FV60: 0 | FW60: 0 | FX60: 0 | FY60: 0 | FZ60: 0 | GA60: 0 | GB60: 0 | GC60: 0 | GD60: 0 | GE60: 0 | GF60: 0 | GG60: 0 | GH60: 0
A61: =IFERROR(IF($B61="","",INDEX('2019 scenario - output'!$A$6:$A$12,MATCH('2019 scenario - input'!$B61,'2019 scenario - output'!$B$6:$B$12,0))),"") ->  | CV61: 0 | CW61: 0 | CX61: 0 | CY61: 0 | CZ61: 0 | DA61: 0 | DB61: 0 | DC61: 0 | DD61: 0 | DE61: 0 | DF61: 0 | DG61: 0 | DH61: 0 | DI61: 0 | DJ61: 0 | DK61: 0 | DL61: 0 | DM61: 0 | DN61: 0 | DO61: 0 | DP61: 0 | DQ61: 0 | DR61: 0 | DS61: 0 | DT61: 0 | DU61: 0 | DV61: 0 | DW61: 0 | DX61: 0 | DY61: 0 | DZ61: 0 | EA61: 0 | EB61: 0 | EC61: 0 | ED61: 0 | EE61: 0 | EF61: 0 | EG61: 0 | EH61: 0 | EI61: 0 | EJ61: 0 | EK61: 0 | EL61: 0 | EM61: 0 | EN61: 0 | EO61: 0 | EP61: 0 | EQ61: 0 | ER61: 0 | ES61: 0 | ET61: 0 | EU61: 0 | EV61: 0 | EW61: 0 | EX61: 0 | EY61: 0 | EZ61: 0 | FA61: 0 | FB61: 0 | FC61: 0 | FD61: 0 | FE61: 0 | FF61: 0 | FG61: 0 | FH61: 0 | FI61: 0 | FJ61: 0 | FK61: 0 | FL61: 0 | FM61: 0 | FN61: 0 | FO61: 0 | FP61: 0 | FQ61: 0 | FR61: 0 | FS61: 0 | FT61: 0 | FU61: 0 | FV61: 0 | FW61: 0 | FX61: 0 | FY61: 0 | FZ61: 0 | GA61: 0 | GB61: 0 | GC61: 0 | GD61: 0 | GE61: 0 | GF61: 0 | GG61: 0 | GH61: 0
A62: =IFERROR(IF($B62="","",INDEX('2019 scenario - output'!$A$6:$A$12,MATCH('2019 scenario - input'!$B62,'2019 scenario - output'!$B$6:$B$12,0))),"") ->  | CV62: 0 | CW62: 0 | CX62: 0 | CY62: 0 | CZ62: 0 | DA62: 0 | DB62: 0 | DC62: 0 | DD62: 0 | DE62: 0 | DF62: 0 | DG62: 0 | DH62: 0 | DI62: 0 | DJ62: 0 | DK62: 0 | DL62: 0 | DM62: 0 | DN62: 0 | DO62: 0 | DP62: 0 | DQ62: 0 | DR62: 0 | DS62: 0 | DT62: 0 | DU62: 0 | DV62: 0 | DW62: 0 | DX62: 0 | DY62: 0 | DZ62: 0 | EA62: 0 | EB62: 0 | EC62: 0 | ED62: 0 | EE62: 0 | EF62: 0 | EG62: 0 | EH62: 0 | EI62: 0 | EJ62: 0 | EK62: 0 | EL62: 0 | EM62: 0 | EN62: 0 | EO62: 0 | EP62: 0 | EQ62: 0 | ER62: 0 | ES62: 0 | ET62: 0 | EU62: 0 | EV62: 0 | EW62: 0 | EX62: 0 | EY62: 0 | EZ62: 0 | FA62: 0 | FB62: 0 | FC62: 0 | FD62: 0 | FE62: 0 | FF62: 0 | FG62: 0 | FH62: 0 | FI62: 0 | FJ62: 0 | FK62: 0 | FL62: 0 | FM62: 0 | FN62: 0 | FO62: 0 | FP62: 0 | FQ62: 0 | FR62: 0 | FS62: 0 | FT62: 0 | FU62: 0 | FV62: 0 | FW62: 0 | FX62: 0 | FY62: 0 | FZ62: 0 | GA62: 0 | GB62: 0 | GC62: 0 | GD62: 0 | GE62: 0 | GF62: 0 | GG62: 0 | GH62: 0
A63: =IFERROR(IF($B63="","",INDEX('2019 scenario - output'!$A$6:$A$12,MATCH('2019 scenario - input'!$B63,'2019 scenario - output'!$B$6:$B$12,0))),"") ->  | CV63: 0 | CW63: 0 | CX63: 0 | CY63: 0 | CZ63: 0 | DA63: 0 | DB63: 0 | DC63: 0 | DD63: 0 | DE63: 0 | DF63: 0 | DG63: 0 | DH63: 0 | DI63: 0 | DJ63: 0 | DK63: 0 | DL63: 0 | DM63: 0 | DN63: 0 | DO63: 0 | DP63: 0 | DQ63: 0 | DR63: 0 | DS63: 0 | DT63: 0 | DU63: 0 | DV63: 0 | DW63: 0 | DX63: 0 | DY63: 0 | DZ63: 0 | EA63: 0 | EB63: 0 | EC63: 0 | ED63: 0 | EE63: 0 | EF63: 0 | EG63: 0 | EH63: 0 | EI63: 0 | EJ63: 0 | EK63: 0 | EL63: 0 | EM63: 0 | EN63: 0 | EO63: 0 | EP63: 0 | EQ63: 0 | ER63: 0 | ES63: 0 | ET63: 0 | EU63: 0 | EV63: 0 | EW63: 0 | EX63: 0 | EY63: 0 | EZ63: 0 | FA63: 0 | FB63: 0 | FC63: 0 | FD63: 0 | FE63: 0 | FF63: 0 | FG63: 0 | FH63: 0 | FI63: 0 | FJ63: 0 | FK63: 0 | FL63: 0 | FM63: 0 | FN63: 0 | FO63: 0 | FP63: 0 | FQ63: 0 | FR63: 0 | FS63: 0 | FT63: 0 | FU63: 0 | FV63: 0 | FW63: 0 | FX63: 0 | FY63: 0 | FZ63: 0 | GA63: 0 | GB63: 0 | GC63: 0 | GD63: 0 | GE63: 0 | GF63: 0 | GG63: 0 | GH63: 0
A64: =IFERROR(IF($B64="","",INDEX('2019 scenario - output'!$A$6:$A$12,MATCH('2019 scenario - input'!$B64,'2019 scenario - output'!$B$6:$B$12,0))),"") ->  | CV64: 0 | CW64: 0 | CX64: 0 | CY64: 0 | CZ64: 0 | DA64: 0 | DB64: 0 | DC64: 0 | DD64: 0 | DE64: 0 | DF64: 0 | DG64: 0 | DH64: 0 | DI64: 0 | DJ64: 0 | DK64: 0 | DL64: 0 | DM64: 0 | DN64: 0 | DO64: 0 | DP64: 0 | DQ64: 0 | DR64: 0 | DS64: 0 | DT64: 0 | DU64: 0 | DV64: 0 | DW64: 0 | DX64: 0 | DY64: 0 | DZ64: 0 | EA64: 0 | EB64: 0 | EC64: 0 | ED64: 0 | EE64: 0 | EF64: 0 | EG64: 0 | EH64: 0 | EI64: 0 | EJ64: 0 | EK64: 0 | EL64: 0 | EM64: 0 | EN64: 0 | EO64: 0 | EP64: 0 | EQ64: 0 | ER64: 0 | ES64: 0 | ET64: 0 | EU64: 0 | EV64: 0 | EW64: 0 | EX64: 0 | EY64: 0 | EZ64: 0 | FA64: 0 | FB64: 0 | FC64: 0 | FD64: 0 | FE64: 0 | FF64: 0 | FG64: 0 | FH64: 0 | FI64: 0 | FJ64: 0 | FK64: 0 | FL64: 0 | FM64: 0 | FN64: 0 | FO64: 0 | FP64: 0 | FQ64: 0 | FR64: 0 | FS64: 0 | FT64: 0 | FU64: 0 | FV64: 0 | FW64: 0 | FX64: 0 | FY64: 0 | FZ64: 0 | GA64: 0 | GB64: 0 | GC64: 0 | GD64: 0 | GE64: 0 | GF64: 0 | GG64: 0 | GH64: 0
A65: =IFERROR(IF($B65="","",INDEX('2019 scenario - output'!$A$6:$A$12,MATCH('2019 scenario - input'!$B65,'2019 scenario - output'!$B$6:$B$12,0))),"") ->  | CV65: 0 | CW65: 0 | CX65: 0 | CY65: 0 | CZ65: 0 | DA65: 0 | DB65: 0 | DC65: 0 | DD65: 0 | DE65: 0 | DF65: 0 | DG65: 0 | DH65: 0 | DI65: 0 | DJ65: 0 | DK65: 0 | DL65: 0 | DM65: 0 | DN65: 0 | DO65: 0 | DP65: 0 | DQ65: 0 | DR65: 0 | DS65: 0 | DT65: 0 | DU65: 0 | DV65: 0 | DW65: 0 | DX65: 0 | DY65: 0 | DZ65: 0 | EA65: 0 | EB65: 0 | EC65: 0 | ED65: 0 | EE65: 0 | EF65: 0 | EG65: 0 | EH65: 0 | EI65: 0 | EJ65: 0 | EK65: 0 | EL65: 0 | EM65: 0 | EN65: 0 | EO65: 0 | EP65: 0 | EQ65: 0 | ER65: 0 | ES65: 0 | ET65: 0 | EU65: 0 | EV65: 0 | EW65: 0 | EX65: 0 | EY65: 0 | EZ65: 0 | FA65: 0 | FB65: 0 | FC65: 0 | FD65: 0 | FE65: 0 | FF65: 0 | FG65: 0 | FH65: 0 | FI65: 0 | FJ65: 0 | FK65: 0 | FL65: 0 | FM65: 0 | FN65: 0 | FO65: 0 | FP65: 0 | FQ65: 0 | FR65: 0 | FS65: 0 | FT65: 0 | FU65: 0 | FV65: 0 | FW65: 0 | FX65: 0 | FY65: 0 | FZ65: 0 | GA65: 0 | GB65: 0 | GC65: 0 | GD65: 0 | GE65: 0 | GF65: 0 | GG65: 0 | GH65: 0
A66: =IFERROR(IF($B66="","",INDEX('2019 scenario - output'!$A$6:$A$12,MATCH('2019 scenario - input'!$B66,'2019 scenario - output'!$B$6:$B$12,0))),"") ->  | CV66: 0 | CW66: 0 | CX66: 0 | CY66: 0 | CZ66: 0 | DA66: 0 | DB66: 0 | DC66: 0 | DD66: 0 | DE66: 0 | DF66: 0 | DG66: 0 | DH66: 0 | DI66: 0 | DJ66: 0 | DK66: 0 | DL66: 0 | DM66: 0 | DN66: 0 | DO66: 0 | DP66: 0 | DQ66: 0 | DR66: 0 | DS66: 0 | DT66: 0 | DU66: 0 | DV66: 0 | DW66: 0 | DX66: 0 | DY66: 0 | DZ66: 0 | EA66: 0 | EB66: 0 | EC66: 0 | ED66: 0 | EE66: 0 | EF66: 0 | EG66: 0 | EH66: 0 | EI66: 0 | EJ66: 0 | EK66: 0 | EL66: 0 | EM66: 0 | EN66: 0 | EO66: 0 | EP66: 0 | EQ66: 0 | ER66: 0 | ES66: 0 | ET66: 0 | EU66: 0 | EV66: 0 | EW66: 0 | EX66: 0 | EY66: 0 | EZ66: 0 | FA66: 0 | FB66: 0 | FC66: 0 | FD66: 0 | FE66: 0 | FF66: 0 | FG66: 0 | FH66: 0 | FI66: 0 | FJ66: 0 | FK66: 0 | FL66: 0 | FM66: 0 | FN66: 0 | FO66: 0 | FP66: 0 | FQ66: 0 | FR66: 0 | FS66: 0 | FT66: 0 | FU66: 0 | FV66: 0 | FW66: 0 | FX66: 0 | FY66: 0 | FZ66: 0 | GA66: 0 | GB66: 0 | GC66: 0 | GD66: 0 | GE66: 0 | GF66: 0 | GG66: 0 | GH66: 0
A67: =IFERROR(IF($B67="","",INDEX('2019 scenario - output'!$A$6:$A$12,MATCH('2019 scenario - input'!$B67,'2019 scenario - output'!$B$6:$B$12,0))),"") ->  | CV67: 0 | CW67: 0 | CX67: 0 | CY67: 0 | CZ67: 0 | DA67: 0 | DB67: 0 | DC67: 0 | DD67: 0 | DE67: 0 | DF67: 0 | DG67: 0 | DH67: 0 | DI67: 0 | DJ67: 0 | DK67: 0 | DL67: 0 | DM67: 0 | DN67: 0 | DO67: 0 | DP67: 0 | DQ67: 0 | DR67: 0 | DS67: 0 | DT67: 0 | DU67: 0 | DV67: 0 | DW67: 0 | DX67: 0 | DY67: 0 | DZ67: 0 | EA67: 0 | EB67: 0 | EC67: 0 | ED67: 0 | EE67: 0 | EF67: 0 | EG67: 0 | EH67: 0 | EI67: 0 | EJ67: 0 | EK67: 0 | EL67: 0 | EM67: 0 | EN67: 0 | EO67: 0 | EP67: 0 | EQ67: 0 | ER67: 0 | ES67: 0 | ET67: 0 | EU67: 0 | EV67: 0 | EW67: 0 | EX67: 0 | EY67: 0 | EZ67: 0 | FA67: 0 | FB67: 0 | FC67: 0 | FD67: 0 | FE67: 0 | FF67: 0 | FG67: 0 | FH67: 0 | FI67: 0 | FJ67: 0 | FK67: 0 | FL67: 0 | FM67: 0 | FN67: 0 | FO67: 0 | FP67: 0 | FQ67: 0 | FR67: 0 | FS67: 0 | FT67: 0 | FU67: 0 | FV67: 0 | FW67: 0 | FX67: 0 | FY67: 0 | FZ67: 0 | GA67: 0 | GB67: 0 | GC67: 0 | GD67: 0 | GE67: 0 | GF67: 0 | GG67: 0 | GH67: 0
A68: =IFERROR(IF($B68="","",INDEX('2019 scenario - output'!$A$6:$A$12,MATCH('2019 scenario - input'!$B68,'2019 scenario - output'!$B$6:$B$12,0))),"") ->  | CV68: 0 | CW68: 0 | CX68: 0 | CY68: 0 | CZ68: 0 | DA68: 0 | DB68: 0 | DC68: 0 | DD68: 0 | DE68: 0 | DF68: 0 | DG68: 0 | DH68: 0 | DI68: 0 | DJ68: 0 | DK68: 0 | DL68: 0 | DM68: 0 | DN68: 0 | DO68: 0 | DP68: 0 | DQ68: 0 | DR68: 0 | DS68: 0 | DT68: 0 | DU68: 0 | DV68: 0 | DW68: 0 | DX68: 0 | DY68: 0 | DZ68: 0 | EA68: 0 | EB68: 0 | EC68: 0 | ED68: 0 | EE68: 0 | EF68: 0 | EG68: 0 | EH68: 0 | EI68: 0 | EJ68: 0 | EK68: 0 | EL68: 0 | EM68: 0 | EN68: 0 | EO68: 0 | EP68: 0 | EQ68: 0 | ER68: 0 | ES68: 0 | ET68: 0 | EU68: 0 | EV68: 0 | EW68: 0 | EX68: 0 | EY68: 0 | EZ68: 0 | FA68: 0 | FB68: 0 | FC68: 0 | FD68: 0 | FE68: 0 | FF68: 0 | FG68: 0 | FH68: 0 | FI68: 0 | FJ68: 0 | FK68: 0 | FL68: 0 | FM68: 0 | FN68: 0 | FO68: 0 | FP68: 0 | FQ68: 0 | FR68: 0 | FS68: 0 | FT68: 0 | FU68: 0 | FV68: 0 | FW68: 0 | FX68: 0 | FY68: 0 | FZ68: 0 | GA68: 0 | GB68: 0 | GC68: 0 | GD68: 0 | GE68: 0 | GF68: 0 | GG68: 0 | GH68: 0
A69: =IFERROR(IF($B69="","",INDEX('2019 scenario - output'!$A$6:$A$12,MATCH('2019 scenario - input'!$B69,'2019 scenario - output'!$B$6:$B$12,0))),"") ->  | CV69: 0 | CW69: 0 | CX69: 0 | CY69: 0 | CZ69: 0 | DA69: 0 | DB69: 0 | DC69: 0 | DD69: 0 | DE69: 0 | DF69: 0 | DG69: 0 | DH69: 0 | DI69: 0 | DJ69: 0 | DK69: 0 | DL69: 0 | DM69: 0 | DN69: 0 | DO69: 0 | DP69: 0 | DQ69: 0 | DR69: 0 | DS69: 0 | DT69: 0 | DU69: 0 | DV69: 0 | DW69: 0 | DX69: 0 | DY69: 0 | DZ69: 0 | EA69: 0 | EB69: 0 | EC69: 0 | ED69: 0 | EE69: 0 | EF69: 0 | EG69: 0 | EH69: 0 | EI69: 0 | EJ69: 0 | EK69: 0 | EL69: 0 | EM69: 0 | EN69: 0 | EO69: 0 | EP69: 0 | EQ69: 0 | ER69: 0 | ES69: 0 | ET69: 0 | EU69: 0 | EV69: 0 | EW69: 0 | EX69: 0 | EY69: 0 | EZ69: 0 | FA69: 0 | FB69: 0 | FC69: 0 | FD69: 0 | FE69: 0 | FF69: 0 | FG69: 0 | FH69: 0 | FI69: 0 | FJ69: 0 | FK69: 0 | FL69: 0 | FM69: 0 | FN69: 0 | FO69: 0 | FP69: 0 | FQ69: 0 | FR69: 0 | FS69: 0 | FT69: 0 | FU69: 0 | FV69: 0 | FW69: 0 | FX69: 0 | FY69: 0 | FZ69: 0 | GA69: 0 | GB69: 0 | GC69: 0 | GD69: 0 | GE69: 0 | GF69: 0 | GG69: 0 | GH69: 0
A70: =IFERROR(IF($B70="","",INDEX('2019 scenario - output'!$A$6:$A$12,MATCH('2019 scenario - input'!$B70,'2019 scenario - output'!$B$6:$B$12,0))),"") ->  | CV70: 0 | CW70: 0 | CX70: 0 | CY70: 0 | CZ70: 0 | DA70: 0 | DB70: 0 | DC70: 0 | DD70: 0 | DE70: 0 | DF70: 0 | DG70: 0 | DH70: 0 | DI70: 0 | DJ70: 0 | DK70: 0 | DL70: 0 | DM70: 0 | DN70: 0 | DO70: 0 | DP70: 0 | DQ70: 0 | DR70: 0 | DS70: 0 | DT70: 0 | DU70: 0 | DV70: 0 | DW70: 0 | DX70: 0 | DY70: 0 | DZ70: 0 | EA70: 0 | EB70: 0 | EC70: 0 | ED70: 0 | EE70: 0 | EF70: 0 | EG70: 0 | EH70: 0 | EI70: 0 | EJ70: 0 | EK70: 0 | EL70: 0 | EM70: 0 | EN70: 0 | EO70: 0 | EP70: 0 | EQ70: 0 | ER70: 0 | ES70: 0 | ET70: 0 | EU70: 0 | EV70: 0 | EW70: 0 | EX70: 0 | EY70: 0 | EZ70: 0 | FA70: 0 | FB70: 0 | FC70: 0 | FD70: 0 | FE70: 0 | FF70: 0 | FG70: 0 | FH70: 0 | FI70: 0 | FJ70: 0 | FK70: 0 | FL70: 0 | FM70: 0 | FN70: 0 | FO70: 0 | FP70: 0 | FQ70: 0 | FR70: 0 | FS70: 0 | FT70: 0 | FU70: 0 | FV70: 0 | FW70: 0 | FX70: 0 | FY70: 0 | FZ70: 0 | GA70: 0 | GB70: 0 | GC70: 0 | GD70: 0 | GE70: 0 | GF70: 0 | GG70: 0 | GH70: 0
A71: =IFERROR(IF($B71="","",INDEX('2019 scenario - output'!$A$6:$A$12,MATCH('2019 scenario - input'!$B71,'2019 scenario - output'!$B$6:$B$12,0))),"") ->  | CV71: 0 | CW71: 0 | CX71: 0 | CY71: 0 | CZ71: 0 | DA71: 0 | DB71: 0 | DC71: 0 | DD71: 0 | DE71: 0 | DF71: 0 | DG71: 0 | DH71: 0 | DI71: 0 | DJ71: 0 | DK71: 0 | DL71: 0 | DM71: 0 | DN71: 0 | DO71: 0 | DP71: 0 | DQ71: 0 | DR71: 0 | DS71: 0 | DT71: 0 | DU71: 0 | DV71: 0 | DW71: 0 | DX71: 0 | DY71: 0 | DZ71: 0 | EA71: 0 | EB71: 0 | EC71: 0 | ED71: 0 | EE71: 0 | EF71: 0 | EG71: 0 | EH71: 0 | EI71: 0 | EJ71: 0 | EK71: 0 | EL71: 0 | EM71: 0 | EN71: 0 | EO71: 0 | EP71: 0 | EQ71: 0 | ER71: 0 | ES71: 0 | ET71: 0 | EU71: 0 | EV71: 0 | EW71: 0 | EX71: 0 | EY71: 0 | EZ71: 0 | FA71: 0 | FB71: 0 | FC71: 0 | FD71: 0 | FE71: 0 | FF71: 0 | FG71: 0 | FH71: 0 | FI71: 0 | FJ71: 0 | FK71: 0 | FL71: 0 | FM71: 0 | FN71: 0 | FO71: 0 | FP71: 0 | FQ71: 0 | FR71: 0 | FS71: 0 | FT71: 0 | FU71: 0 | FV71: 0 | FW71: 0 | FX71: 0 | FY71: 0 | FZ71: 0 | GA71: 0 | GB71: 0 | GC71: 0 | GD71: 0 | GE71: 0 | GF71: 0 | GG71: 0 | GH71: 0
A72: =IFERROR(IF($B72="","",INDEX('2019 scenario - output'!$A$6:$A$12,MATCH('2019 scenario - input'!$B72,'2019 scenario - output'!$B$6:$B$12,0))),"") ->  | CV72: 0 | CW72: 0 | CX72: 0 | CY72: 0 | CZ72: 0 | DA72: 0 | DB72: 0 | DC72: 0 | DD72: 0 | DE72: 0 | DF72: 0 | DG72: 0 | DH72: 0 | DI72: 0 | DJ72: 0 | DK72: 0 | DL72: 0 | DM72: 0 | DN72: 0 | DO72: 0 | DP72: 0 | DQ72: 0 | DR72: 0 | DS72: 0 | DT72: 0 | DU72: 0 | DV72: 0 | DW72: 0 | DX72: 0 | DY72: 0 | DZ72: 0 | EA72: 0 | EB72: 0 | EC72: 0 | ED72: 0 | EE72: 0 | EF72: 0 | EG72: 0 | EH72: 0 | EI72: 0 | EJ72: 0 | EK72: 0 | EL72: 0 | EM72: 0 | EN72: 0 | EO72: 0 | EP72: 0 | EQ72: 0 | ER72: 0 | ES72: 0 | ET72: 0 | EU72: 0 | EV72: 0 | EW72: 0 | EX72: 0 | EY72: 0 | EZ72: 0 | FA72: 0 | FB72: 0 | FC72: 0 | FD72: 0 | FE72: 0 | FF72: 0 | FG72: 0 | FH72: 0 | FI72: 0 | FJ72: 0 | FK72: 0 | FL72: 0 | FM72: 0 | FN72: 0 | FO72: 0 | FP72: 0 | FQ72: 0 | FR72: 0 | FS72: 0 | FT72: 0 | FU72: 0 | FV72: 0 | FW72: 0 | FX72: 0 | FY72: 0 | FZ72: 0 | GA72: 0 | GB72: 0 | GC72: 0 | GD72: 0 | GE72: 0 | GF72: 0 | GG72: 0 | GH72: 0
A73: =IFERROR(IF($B73="","",INDEX('2019 scenario - output'!$A$6:$A$12,MATCH('2019 scenario - input'!$B73,'2019 scenario - output'!$B$6:$B$12,0))),"") ->  | CV73: 0 | CW73: 0 | CX73: 0 | CY73: 0 | CZ73: 0 | DA73: 0 | DB73: 0 | DC73: 0 | DD73: 0 | DE73: 0 | DF73: 0 | DG73: 0 | DH73: 0 | DI73: 0 | DJ73: 0 | DK73: 0 | DL73: 0 | DM73: 0 | DN73: 0 | DO73: 0 | DP73: 0 | DQ73: 0 | DR73: 0 | DS73: 0 | DT73: 0 | DU73: 0 | DV73: 0 | DW73: 0 | DX73: 0 | DY73: 0 | DZ73: 0 | EA73: 0 | EB73: 0 | EC73: 0 | ED73: 0 | EE73: 0 | EF73: 0 | EG73: 0 | EH73: 0 | EI73: 0 | EJ73: 0 | EK73: 0 | EL73: 0 | EM73: 0 | EN73: 0 | EO73: 0 | EP73: 0 | EQ73: 0 | ER73: 0 | ES73: 0 | ET73: 0 | EU73: 0 | EV73: 0 | EW73: 0 | EX73: 0 | EY73: 0 | EZ73: 0 | FA73: 0 | FB73: 0 | FC73: 0 | FD73: 0 | FE73: 0 | FF73: 0 | FG73: 0 | FH73: 0 | FI73: 0 | FJ73: 0 | FK73: 0 | FL73: 0 | FM73: 0 | FN73: 0 | FO73: 0 | FP73: 0 | FQ73: 0 | FR73: 0 | FS73: 0 | FT73: 0 | FU73: 0 | FV73: 0 | FW73: 0 | FX73: 0 | FY73: 0 | FZ73: 0 | GA73: 0 | GB73: 0 | GC73: 0 | GD73: 0 | GE73: 0 | GF73: 0 | GG73: 0 | GH73: 0
A74: =IFERROR(IF($B74="","",INDEX('2019 scenario - output'!$A$6:$A$12,MATCH('2019 scenario - input'!$B74,'2019 scenario - output'!$B$6:$B$12,0))),"") ->  | CV74: 0 | CW74: 0 | CX74: 0 | CY74: 0 | CZ74: 0 | DA74: 0 | DB74: 0 | DC74: 0 | DD74: 0 | DE74: 0 | DF74: 0 | DG74: 0 | DH74: 0 | DI74: 0 | DJ74: 0 | DK74: 0 | DL74: 0 | DM74: 0 | DN74: 0 | DO74: 0 | DP74: 0 | DQ74: 0 | DR74: 0 | DS74: 0 | DT74: 0 | DU74: 0 | DV74: 0 | DW74: 0 | DX74: 0 | DY74: 0 | DZ74: 0 | EA74: 0 | EB74: 0 | EC74: 0 | ED74: 0 | EE74: 0 | EF74: 0 | EG74: 0 | EH74: 0 | EI74: 0 | EJ74: 0 | EK74: 0 | EL74: 0 | EM74: 0 | EN74: 0 | EO74: 0 | EP74: 0 | EQ74: 0 | ER74: 0 | ES74: 0 | ET74: 0 | EU74: 0 | EV74: 0 | EW74: 0 | EX74: 0 | EY74: 0 | EZ74: 0 | FA74: 0 | FB74: 0 | FC74: 0 | FD74: 0 | FE74: 0 | FF74: 0 | FG74: 0 | FH74: 0 | FI74: 0 | FJ74: 0 | FK74: 0 | FL74: 0 | FM74: 0 | FN74: 0 | FO74: 0 | FP74: 0 | FQ74: 0 | FR74: 0 | FS74: 0 | FT74: 0 | FU74: 0 | FV74: 0 | FW74: 0 | FX74: 0 | FY74: 0 | FZ74: 0 | GA74: 0 | GB74: 0 | GC74: 0 | GD74: 0 | GE74: 0 | GF74: 0 | GG74: 0 | GH74: 0
A75: =IFERROR(IF($B75="","",INDEX('2019 scenario - output'!$A$6:$A$12,MATCH('2019 scenario - input'!$B75,'2019 scenario - output'!$B$6:$B$12,0))),"") ->  | CV75: 0 | CW75: 0 | CX75: 0 | CY75: 0 | CZ75: 0 | DA75: 0 | DB75: 0 | DC75: 0 | DD75: 0 | DE75: 0 | DF75: 0 | DG75: 0 | DH75: 0 | DI75: 0 | DJ75: 0 | DK75: 0 | DL75: 0 | DM75: 0 | DN75: 0 | DO75: 0 | DP75: 0 | DQ75: 0 | DR75: 0 | DS75: 0 | DT75: 0 | DU75: 0 | DV75: 0 | DW75: 0 | DX75: 0 | DY75: 0 | DZ75: 0 | EA75: 0 | EB75: 0 | EC75: 0 | ED75: 0 | EE75: 0 | EF75: 0 | EG75: 0 | EH75: 0 | EI75: 0 | EJ75: 0 | EK75: 0 | EL75: 0 | EM75: 0 | EN75: 0 | EO75: 0 | EP75: 0 | EQ75: 0 | ER75: 0 | ES75: 0 | ET75: 0 | EU75: 0 | EV75: 0 | EW75: 0 | EX75: 0 | EY75: 0 | EZ75: 0 | FA75: 0 | FB75: 0 | FC75: 0 | FD75: 0 | FE75: 0 | FF75: 0 | FG75: 0 | FH75: 0 | FI75: 0 | FJ75: 0 | FK75: 0 | FL75: 0 | FM75: 0 | FN75: 0 | FO75: 0 | FP75: 0 | FQ75: 0 | FR75: 0 | FS75: 0 | FT75: 0 | FU75: 0 | FV75: 0 | FW75: 0 | FX75: 0 | FY75: 0 | FZ75: 0 | GA75: 0 | GB75: 0 | GC75: 0 | GD75: 0 | GE75: 0 | GF75: 0 | GG75: 0 | GH75: 0
A76: =IFERROR(IF($B76="","",INDEX('2019 scenario - output'!$A$6:$A$12,MATCH('2019 scenario - input'!$B76,'2019 scenario - output'!$B$6:$B$12,0))),"") ->  | CV76: 0 | CW76: 0 | CX76: 0 | CY76: 0 | CZ76: 0 | DA76: 0 | DB76: 0 | DC76: 0 | DD76: 0 | DE76: 0 | DF76: 0 | DG76: 0 | DH76: 0 | DI76: 0 | DJ76: 0 | DK76: 0 | DL76: 0 | DM76: 0 | DN76: 0 | DO76: 0 | DP76: 0 | DQ76: 0 | DR76: 0 | DS76: 0 | DT76: 0 | DU76: 0 | DV76: 0 | DW76: 0 | DX76: 0 | DY76: 0 | DZ76: 0 | EA76: 0 | EB76: 0 | EC76: 0 | ED76: 0 | EE76: 0 | EF76: 0 | EG76: 0 | EH76: 0 | EI76: 0 | EJ76: 0 | EK76: 0 | EL76: 0 | EM76: 0 | EN76: 0 | EO76: 0 | EP76: 0 | EQ76: 0 | ER76: 0 | ES76: 0 | ET76: 0 | EU76: 0 | EV76: 0 | EW76: 0 | EX76: 0 | EY76: 0 | EZ76: 0 | FA76: 0 | FB76: 0 | FC76: 0 | FD76: 0 | FE76: 0 | FF76: 0 | FG76: 0 | FH76: 0 | FI76: 0 | FJ76: 0 | FK76: 0 | FL76: 0 | FM76: 0 | FN76: 0 | FO76: 0 | FP76: 0 | FQ76: 0 | FR76: 0 | FS76: 0 | FT76: 0 | FU76: 0 | FV76: 0 | FW76: 0 | FX76: 0 | FY76: 0 | FZ76: 0 | GA76: 0 | GB76: 0 | GC76: 0 | GD76: 0 | GE76: 0 | GF76: 0 | GG76: 0 | GH76: 0
A77: =IFERROR(IF($B77="","",INDEX('2019 scenario - output'!$A$6:$A$12,MATCH('2019 scenario - input'!$B77,'2019 scenario - output'!$B$6:$B$12,0))),"") ->  | CV77: 0 | CW77: 0 | CX77: 0 | CY77: 0 | CZ77: 0 | DA77: 0 | DB77: 0 | DC77: 0 | DD77: 0 | DE77: 0 | DF77: 0 | DG77: 0 | DH77: 0 | DI77: 0 | DJ77: 0 | DK77: 0 | DL77: 0 | DM77: 0 | DN77: 0 | DO77: 0 | DP77: 0 | DQ77: 0 | DR77: 0 | DS77: 0 | DT77: 0 | DU77: 0 | DV77: 0 | DW77: 0 | DX77: 0 | DY77: 0 | DZ77: 0 | EA77: 0 | EB77: 0 | EC77: 0 | ED77: 0 | EE77: 0 | EF77: 0 | EG77: 0 | EH77: 0 | EI77: 0 | EJ77: 0 | EK77: 0 | EL77: 0 | EM77: 0 | EN77: 0 | EO77: 0 | EP77: 0 | EQ77: 0 | ER77: 0 | ES77: 0 | ET77: 0 | EU77: 0 | EV77: 0 | EW77: 0 | EX77: 0 | EY77: 0 | EZ77: 0 | FA77: 0 | FB77: 0 | FC77: 0 | FD77: 0 | FE77: 0 | FF77: 0 | FG77: 0 | FH77: 0 | FI77: 0 | FJ77: 0 | FK77: 0 | FL77: 0 | FM77: 0 | FN77: 0 | FO77: 0 | FP77: 0 | FQ77: 0 | FR77: 0 | FS77: 0 | FT77: 0 | FU77: 0 | FV77: 0 | FW77: 0 | FX77: 0 | FY77: 0 | FZ77: 0 | GA77: 0 | GB77: 0 | GC77: 0 | GD77: 0 | GE77: 0 | GF77: 0 | GG77: 0 | GH77: 0
A78: =IFERROR(IF($B78="","",INDEX('2019 scenario - output'!$A$6:$A$12,MATCH('2019 scenario - input'!$B78,'2019 scenario - output'!$B$6:$B$12,0))),"") ->  | CV78: 0 | CW78: 0 | CX78: 0 | CY78: 0 | CZ78: 0 | DA78: 0 | DB78: 0 | DC78: 0 | DD78: 0 | DE78: 0 | DF78: 0 | DG78: 0 | DH78: 0 | DI78: 0 | DJ78: 0 | DK78: 0 | DL78: 0 | DM78: 0 | DN78: 0 | DO78: 0 | DP78: 0 | DQ78: 0 | DR78: 0 | DS78: 0 | DT78: 0 | DU78: 0 | DV78: 0 | DW78: 0 | DX78: 0 | DY78: 0 | DZ78: 0 | EA78: 0 | EB78: 0 | EC78: 0 | ED78: 0 | EE78: 0 | EF78: 0 | EG78: 0 | EH78: 0 | EI78: 0 | EJ78: 0 | EK78: 0 | EL78: 0 | EM78: 0 | EN78: 0 | EO78: 0 | EP78: 0 | EQ78: 0 | ER78: 0 | ES78: 0 | ET78: 0 | EU78: 0 | EV78: 0 | EW78: 0 | EX78: 0 | EY78: 0 | EZ78: 0 | FA78: 0 | FB78: 0 | FC78: 0 | FD78: 0 | FE78: 0 | FF78: 0 | FG78: 0 | FH78: 0 | FI78: 0 | FJ78: 0 | FK78: 0 | FL78: 0 | FM78: 0 | FN78: 0 | FO78: 0 | FP78: 0 | FQ78: 0 | FR78: 0 | FS78: 0 | FT78: 0 | FU78: 0 | FV78: 0 | FW78: 0 | FX78: 0 | FY78: 0 | FZ78: 0 | GA78: 0 | GB78: 0 | GC78: 0 | GD78: 0 | GE78: 0 | GF78: 0 | GG78: 0 | GH78: 0
A79: =IFERROR(IF($B79="","",INDEX('2019 scenario - output'!$A$6:$A$12,MATCH('2019 scenario - input'!$B79,'2019 scenario - output'!$B$6:$B$12,0))),"") ->  | CV79: 0 | CW79: 0 | CX79: 0 | CY79: 0 | CZ79: 0 | DA79: 0 | DB79: 0 | DC79: 0 | DD79: 0 | DE79: 0 | DF79: 0 | DG79: 0 | DH79: 0 | DI79: 0 | DJ79: 0 | DK79: 0 | DL79: 0 | DM79: 0 | DN79: 0 | DO79: 0 | DP79: 0 | DQ79: 0 | DR79: 0 | DS79: 0 | DT79: 0 | DU79: 0 | DV79: 0 | DW79: 0 | DX79: 0 | DY79: 0 | DZ79: 0 | EA79: 0 | EB79: 0 | EC79: 0 | ED79: 0 | EE79: 0 | EF79: 0 | EG79: 0 | EH79: 0 | EI79: 0 | EJ79: 0 | EK79: 0 | EL79: 0 | EM79: 0 | EN79: 0 | EO79: 0 | EP79: 0 | EQ79: 0 | ER79: 0 | ES79: 0 | ET79: 0 | EU79: 0 | EV79: 0 | EW79: 0 | EX79: 0 | EY79: 0 | EZ79: 0 | FA79: 0 | FB79: 0 | FC79: 0 | FD79: 0 | FE79: 0 | FF79: 0 | FG79: 0 | FH79: 0 | FI79: 0 | FJ79: 0 | FK79: 0 | FL79: 0 | FM79: 0 | FN79: 0 | FO79: 0 | FP79: 0 | FQ79: 0 | FR79: 0 | FS79: 0 | FT79: 0 | FU79: 0 | FV79: 0 | FW79: 0 | FX79: 0 | FY79: 0 | FZ79: 0 | GA79: 0 | GB79: 0 | GC79: 0 | GD79: 0 | GE79: 0 | GF79: 0 | GG79: 0 | GH79: 0
A80: =IFERROR(IF($B80="","",INDEX('2019 scenario - output'!$A$6:$A$12,MATCH('2019 scenario - input'!$B80,'2019 scenario - output'!$B$6:$B$12,0))),"") ->  | CV80: 0 | CW80: 0 | CX80: 0 | CY80: 0 | CZ80: 0 | DA80: 0 | DB80: 0 | DC80: 0 | DD80: 0 | DE80: 0 | DF80: 0 | DG80: 0 | DH80: 0 | DI80: 0 | DJ80: 0 | DK80: 0 | DL80: 0 | DM80: 0 | DN80: 0 | DO80: 0 | DP80: 0 | DQ80: 0 | DR80: 0 | DS80: 0 | DT80: 0 | DU80: 0 | DV80: 0 | DW80: 0 | DX80: 0 | DY80: 0 | DZ80: 0 | EA80: 0 | EB80: 0 | EC80: 0 | ED80: 0 | EE80: 0 | EF80: 0 | EG80: 0 | EH80: 0 | EI80: 0 | EJ80: 0 | EK80: 0 | EL80: 0 | EM80: 0 | EN80: 0 | EO80: 0 | EP80: 0 | EQ80: 0 | ER80: 0 | ES80: 0 | ET80: 0 | EU80: 0 | EV80: 0 | EW80: 0 | EX80: 0 | EY80: 0 | EZ80: 0 | FA80: 0 | FB80: 0 | FC80: 0 | FD80: 0 | FE80: 0 | FF80: 0 | FG80: 0 | FH80: 0 | FI80: 0 | FJ80: 0 | FK80: 0 | FL80: 0 | FM80: 0 | FN80: 0 | FO80: 0 | FP80: 0 | FQ80: 0 | FR80: 0 | FS80: 0 | FT80: 0 | FU80: 0 | FV80: 0 | FW80: 0 | FX80: 0 | FY80: 0 | FZ80: 0 | GA80: 0 | GB80: 0 | GC80: 0 | GD80: 0 | GE80: 0 | GF80: 0 | GG80: 0 | GH80: 0
A81: =IFERROR(IF($B81="","",INDEX('2019 scenario - output'!$A$6:$A$12,MATCH('2019 scenario - input'!$B81,'2019 scenario - output'!$B$6:$B$12,0))),"") ->  | CV81: 0 | CW81: 0 | CX81: 0 | CY81: 0 | CZ81: 0 | DA81: 0 | DB81: 0 | DC81: 0 | DD81: 0 | DE81: 0 | DF81: 0 | DG81: 0 | DH81: 0 | DI81: 0 | DJ81: 0 | DK81: 0 | DL81: 0 | DM81: 0 | DN81: 0 | DO81: 0 | DP81: 0 | DQ81: 0 | DR81: 0 | DS81: 0 | DT81: 0 | DU81: 0 | DV81: 0 | DW81: 0 | DX81: 0 | DY81: 0 | DZ81: 0 | EA81: 0 | EB81: 0 | EC81: 0 | ED81: 0 | EE81: 0 | EF81: 0 | EG81: 0 | EH81: 0 | EI81: 0 | EJ81: 0 | EK81: 0 | EL81: 0 | EM81: 0 | EN81: 0 | EO81: 0 | EP81: 0 | EQ81: 0 | ER81: 0 | ES81: 0 | ET81: 0 | EU81: 0 | EV81: 0 | EW81: 0 | EX81: 0 | EY81: 0 | EZ81: 0 | FA81: 0 | FB81: 0 | FC81: 0 | FD81: 0 | FE81: 0 | FF81: 0 | FG81: 0 | FH81: 0 | FI81: 0 | FJ81: 0 | FK81: 0 | FL81: 0 | FM81: 0 | FN81: 0 | FO81: 0 | FP81: 0 | FQ81: 0 | FR81: 0 | FS81: 0 | FT81: 0 | FU81: 0 | FV81: 0 | FW81: 0 | FX81: 0 | FY81: 0 | FZ81: 0 | GA81: 0 | GB81: 0 | GC81: 0 | GD81: 0 | GE81: 0 | GF81: 0 | GG81: 0 | GH81: 0
A82: =IFERROR(IF($B82="","",INDEX('2019 scenario - output'!$A$6:$A$12,MATCH('2019 scenario - input'!$B82,'2019 scenario - output'!$B$6:$B$12,0))),"") ->  | CV82: 0 | CW82: 0 | CX82: 0 | CY82: 0 | CZ82: 0 | DA82: 0 | DB82: 0 | DC82: 0 | DD82: 0 | DE82: 0 | DF82: 0 | DG82: 0 | DH82: 0 | DI82: 0 | DJ82: 0 | DK82: 0 | DL82: 0 | DM82: 0 | DN82: 0 | DO82: 0 | DP82: 0 | DQ82: 0 | DR82: 0 | DS82: 0 | DT82: 0 | DU82: 0 | DV82: 0 | DW82: 0 | DX82: 0 | DY82: 0 | DZ82: 0 | EA82: 0 | EB82: 0 | EC82: 0 | ED82: 0 | EE82: 0 | EF82: 0 | EG82: 0 | EH82: 0 | EI82: 0 | EJ82: 0 | EK82: 0 | EL82: 0 | EM82: 0 | EN82: 0 | EO82: 0 | EP82: 0 | EQ82: 0 | ER82: 0 | ES82: 0 | ET82: 0 | EU82: 0 | EV82: 0 | EW82: 0 | EX82: 0 | EY82: 0 | EZ82: 0 | FA82: 0 | FB82: 0 | FC82: 0 | FD82: 0 | FE82: 0 | FF82: 0 | FG82: 0 | FH82: 0 | FI82: 0 | FJ82: 0 | FK82: 0 | FL82: 0 | FM82: 0 | FN82: 0 | FO82: 0 | FP82: 0 | FQ82: 0 | FR82: 0 | FS82: 0 | FT82: 0 | FU82: 0 | FV82: 0 | FW82: 0 | FX82: 0 | FY82: 0 | FZ82: 0 | GA82: 0 | GB82: 0 | GC82: 0 | GD82: 0 | GE82: 0 | GF82: 0 | GG82: 0 | GH82: 0
A83: =IFERROR(IF($B83="","",INDEX('2019 scenario - output'!$A$6:$A$12,MATCH('2019 scenario - input'!$B83,'2019 scenario - output'!$B$6:$B$12,0))),"") ->  | CV83: 0 | CW83: 0 | CX83: 0 | CY83: 0 | CZ83: 0 | DA83: 0 | DB83: 0 | DC83: 0 | DD83: 0 | DE83: 0 | DF83: 0 | DG83: 0 | DH83: 0 | DI83: 0 | DJ83: 0 | DK83: 0 | DL83: 0 | DM83: 0 | DN83: 0 | DO83: 0 | DP83: 0 | DQ83: 0 | DR83: 0 | DS83: 0 | DT83: 0 | DU83: 0 | DV83: 0 | DW83: 0 | DX83: 0 | DY83: 0 | DZ83: 0 | EA83: 0 | EB83: 0 | EC83: 0 | ED83: 0 | EE83: 0 | EF83: 0 | EG83: 0 | EH83: 0 | EI83: 0 | EJ83: 0 | EK83: 0 | EL83: 0 | EM83: 0 | EN83: 0 | EO83: 0 | EP83: 0 | EQ83: 0 | ER83: 0 | ES83: 0 | ET83: 0 | EU83: 0 | EV83: 0 | EW83: 0 | EX83: 0 | EY83: 0 | EZ83: 0 | FA83: 0 | FB83: 0 | FC83: 0 | FD83: 0 | FE83: 0 | FF83: 0 | FG83: 0 | FH83: 0 | FI83: 0 | FJ83: 0 | FK83: 0 | FL83: 0 | FM83: 0 | FN83: 0 | FO83: 0 | FP83: 0 | FQ83: 0 | FR83: 0 | FS83: 0 | FT83: 0 | FU83: 0 | FV83: 0 | FW83: 0 | FX83: 0 | FY83: 0 | FZ83: 0 | GA83: 0 | GB83: 0 | GC83: 0 | GD83: 0 | GE83: 0 | GF83: 0 | GG83: 0 | GH83: 0
A84: =IFERROR(IF($B84="","",INDEX('2019 scenario - output'!$A$6:$A$12,MATCH('2019 scenario - input'!$B84,'2019 scenario - output'!$B$6:$B$12,0))),"") ->  | CV84: 0 | CW84: 0 | CX84: 0 | CY84: 0 | CZ84: 0 | DA84: 0 | DB84: 0 | DC84: 0 | DD84: 0 | DE84: 0 | DF84: 0 | DG84: 0 | DH84: 0 | DI84: 0 | DJ84: 0 | DK84: 0 | DL84: 0 | DM84: 0 | DN84: 0 | DO84: 0 | DP84: 0 | DQ84: 0 | DR84: 0 | DS84: 0 | DT84: 0 | DU84: 0 | DV84: 0 | DW84: 0 | DX84: 0 | DY84: 0 | DZ84: 0 | EA84: 0 | EB84: 0 | EC84: 0 | ED84: 0 | EE84: 0 | EF84: 0 | EG84: 0 | EH84: 0 | EI84: 0 | EJ84: 0 | EK84: 0 | EL84: 0 | EM84: 0 | EN84: 0 | EO84: 0 | EP84: 0 | EQ84: 0 | ER84: 0 | ES84: 0 | ET84: 0 | EU84: 0 | EV84: 0 | EW84: 0 | EX84: 0 | EY84: 0 | EZ84: 0 | FA84: 0 | FB84: 0 | FC84: 0 | FD84: 0 | FE84: 0 | FF84: 0 | FG84: 0 | FH84: 0 | FI84: 0 | FJ84: 0 | FK84: 0 | FL84: 0 | FM84: 0 | FN84: 0 | FO84: 0 | FP84: 0 | FQ84: 0 | FR84: 0 | FS84: 0 | FT84: 0 | FU84: 0 | FV84: 0 | FW84: 0 | FX84: 0 | FY84: 0 | FZ84: 0 | GA84: 0 | GB84: 0 | GC84: 0 | GD84: 0 | GE84: 0 | GF84: 0 | GG84: 0 | GH84: 0
A85: =IFERROR(IF($B85="","",INDEX('2019 scenario - output'!$A$6:$A$12,MATCH('2019 scenario - input'!$B85,'2019 scenario - output'!$B$6:$B$12,0))),"") ->  | CV85: 0 | CW85: 0 | CX85: 0 | CY85: 0 | CZ85: 0 | DA85: 0 | DB85: 0 | DC85: 0 | DD85: 0 | DE85: 0 | DF85: 0 | DG85: 0 | DH85: 0 | DI85: 0 | DJ85: 0 | DK85: 0 | DL85: 0 | DM85: 0 | DN85: 0 | DO85: 0 | DP85: 0 | DQ85: 0 | DR85: 0 | DS85: 0 | DT85: 0 | DU85: 0 | DV85: 0 | DW85: 0 | DX85: 0 | DY85: 0 | DZ85: 0 | EA85: 0 | EB85: 0 | EC85: 0 | ED85: 0 | EE85: 0 | EF85: 0 | EG85: 0 | EH85: 0 | EI85: 0 | EJ85: 0 | EK85: 0 | EL85: 0 | EM85: 0 | EN85: 0 | EO85: 0 | EP85: 0 | EQ85: 0 | ER85: 0 | ES85: 0 | ET85: 0 | EU85: 0 | EV85: 0 | EW85: 0 | EX85: 0 | EY85: 0 | EZ85: 0 | FA85: 0 | FB85: 0 | FC85: 0 | FD85: 0 | FE85: 0 | FF85: 0 | FG85: 0 | FH85: 0 | FI85: 0 | FJ85: 0 | FK85: 0 | FL85: 0 | FM85: 0 | FN85: 0 | FO85: 0 | FP85: 0 | FQ85: 0 | FR85: 0 | FS85: 0 | FT85: 0 | FU85: 0 | FV85: 0 | FW85: 0 | FX85: 0 | FY85: 0 | FZ85: 0 | GA85: 0 | GB85: 0 | GC85: 0 | GD85: 0 | GE85: 0 | GF85: 0 | GG85: 0 | GH85: 0
A86: =IFERROR(IF($B86="","",INDEX('2019 scenario - output'!$A$6:$A$12,MATCH('2019 scenario - input'!$B86,'2019 scenario - output'!$B$6:$B$12,0))),"") ->  | CV86: 0 | CW86: 0 | CX86: 0 | CY86: 0 | CZ86: 0 | DA86: 0 | DB86: 0 | DC86: 0 | DD86: 0 | DE86: 0 | DF86: 0 | DG86: 0 | DH86: 0 | DI86: 0 | DJ86: 0 | DK86: 0 | DL86: 0 | DM86: 0 | DN86: 0 | DO86: 0 | DP86: 0 | DQ86: 0 | DR86: 0 | DS86: 0 | DT86: 0 | DU86: 0 | DV86: 0 | DW86: 0 | DX86: 0 | DY86: 0 | DZ86: 0 | EA86: 0 | EB86: 0 | EC86: 0 | ED86: 0 | EE86: 0 | EF86: 0 | EG86: 0 | EH86: 0 | EI86: 0 | EJ86: 0 | EK86: 0 | EL86: 0 | EM86: 0 | EN86: 0 | EO86: 0 | EP86: 0 | EQ86: 0 | ER86: 0 | ES86: 0 | ET86: 0 | EU86: 0 | EV86: 0 | EW86: 0 | EX86: 0 | EY86: 0 | EZ86: 0 | FA86: 0 | FB86: 0 | FC86: 0 | FD86: 0 | FE86: 0 | FF86: 0 | FG86: 0 | FH86: 0 | FI86: 0 | FJ86: 0 | FK86: 0 | FL86: 0 | FM86: 0 | FN86: 0 | FO86: 0 | FP86: 0 | FQ86: 0 | FR86: 0 | FS86: 0 | FT86: 0 | FU86: 0 | FV86: 0 | FW86: 0 | FX86: 0 | FY86: 0 | FZ86: 0 | GA86: 0 | GB86: 0 | GC86: 0 | GD86: 0 | GE86: 0 | GF86: 0 | GG86: 0 | GH86: 0
A87: =IFERROR(IF($B87="","",INDEX('2019 scenario - output'!$A$6:$A$12,MATCH('2019 scenario - input'!$B87,'2019 scenario - output'!$B$6:$B$12,0))),"") ->  | CV87: 0 | CW87: 0 | CX87: 0 | CY87: 0 | CZ87: 0 | DA87: 0 | DB87: 0 | DC87: 0 | DD87: 0 | DE87: 0 | DF87: 0 | DG87: 0 | DH87: 0 | DI87: 0 | DJ87: 0 | DK87: 0 | DL87: 0 | DM87: 0 | DN87: 0 | DO87: 0 | DP87: 0 | DQ87: 0 | DR87: 0 | DS87: 0 | DT87: 0 | DU87: 0 | DV87: 0 | DW87: 0 | DX87: 0 | DY87: 0 | DZ87: 0 | EA87: 0 | EB87: 0 | EC87: 0 | ED87: 0 | EE87: 0 | EF87: 0 | EG87: 0 | EH87: 0 | EI87: 0 | EJ87: 0 | EK87: 0 | EL87: 0 | EM87: 0 | EN87: 0 | EO87: 0 | EP87: 0 | EQ87: 0 | ER87: 0 | ES87: 0 | ET87: 0 | EU87: 0 | EV87: 0 | EW87: 0 | EX87: 0 | EY87: 0 | EZ87: 0 | FA87: 0 | FB87: 0 | FC87: 0 | FD87: 0 | FE87: 0 | FF87: 0 | FG87: 0 | FH87: 0 | FI87: 0 | FJ87: 0 | FK87: 0 | FL87: 0 | FM87: 0 | FN87: 0 | FO87: 0 | FP87: 0 | FQ87: 0 | FR87: 0 | FS87: 0 | FT87: 0 | FU87: 0 | FV87: 0 | FW87: 0 | FX87: 0 | FY87: 0 | FZ87: 0 | GA87: 0 | GB87: 0 | GC87: 0 | GD87: 0 | GE87: 0 | GF87: 0 | GG87: 0 | GH87: 0
A88: =IFERROR(IF($B88="","",INDEX('2019 scenario - output'!$A$6:$A$12,MATCH('2019 scenario - input'!$B88,'2019 scenario - output'!$B$6:$B$12,0))),"") ->  | CV88: 0 | CW88: 0 | CX88: 0 | CY88: 0 | CZ88: 0 | DA88: 0 | DB88: 0 | DC88: 0 | DD88: 0 | DE88: 0 | DF88: 0 | DG88: 0 | DH88: 0 | DI88: 0 | DJ88: 0 | DK88: 0 | DL88: 0 | DM88: 0 | DN88: 0 | DO88: 0 | DP88: 0 | DQ88: 0 | DR88: 0 | DS88: 0 | DT88: 0 | DU88: 0 | DV88: 0 | DW88: 0 | DX88: 0 | DY88: 0 | DZ88: 0 | EA88: 0 | EB88: 0 | EC88: 0 | ED88: 0 | EE88: 0 | EF88: 0 | EG88: 0 | EH88: 0 | EI88: 0 | EJ88: 0 | EK88: 0 | EL88: 0 | EM88: 0 | EN88: 0 | EO88: 0 | EP88: 0 | EQ88: 0 | ER88: 0 | ES88: 0 | ET88: 0 | EU88: 0 | EV88: 0 | EW88: 0 | EX88: 0 | EY88: 0 | EZ88: 0 | FA88: 0 | FB88: 0 | FC88: 0 | FD88: 0 | FE88: 0 | FF88: 0 | FG88: 0 | FH88: 0 | FI88: 0 | FJ88: 0 | FK88: 0 | FL88: 0 | FM88: 0 | FN88: 0 | FO88: 0 | FP88: 0 | FQ88: 0 | FR88: 0 | FS88: 0 | FT88: 0 | FU88: 0 | FV88: 0 | FW88: 0 | FX88: 0 | FY88: 0 | FZ88: 0 | GA88: 0 | GB88: 0 | GC88: 0 | GD88: 0 | GE88: 0 | GF88: 0 | GG88: 0 | GH88: 0
A89: =IFERROR(IF($B89="","",INDEX('2019 scenario - output'!$A$6:$A$12,MATCH('2019 scenario - input'!$B89,'2019 scenario - output'!$B$6:$B$12,0))),"") ->  | CV89: 0 | CW89: 0 | CX89: 0 | CY89: 0 | CZ89: 0 | DA89: 0 | DB89: 0 | DC89: 0 | DD89: 0 | DE89: 0 | DF89: 0 | DG89: 0 | DH89: 0 | DI89: 0 | DJ89: 0 | DK89: 0 | DL89: 0 | DM89: 0 | DN89: 0 | DO89: 0 | DP89: 0 | DQ89: 0 | DR89: 0 | DS89: 0 | DT89: 0 | DU89: 0 | DV89: 0 | DW89: 0 | DX89: 0 | DY89: 0 | DZ89: 0 | EA89: 0 | EB89: 0 | EC89: 0 | ED89: 0 | EE89: 0 | EF89: 0 | EG89: 0 | EH89: 0 | EI89: 0 | EJ89: 0 | EK89: 0 | EL89: 0 | EM89: 0 | EN89: 0 | EO89: 0 | EP89: 0 | EQ89: 0 | ER89: 0 | ES89: 0 | ET89: 0 | EU89: 0 | EV89: 0 | EW89: 0 | EX89: 0 | EY89: 0 | EZ89: 0 | FA89: 0 | FB89: 0 | FC89: 0 | FD89: 0 | FE89: 0 | FF89: 0 | FG89: 0 | FH89: 0 | FI89: 0 | FJ89: 0 | FK89: 0 | FL89: 0 | FM89: 0 | FN89: 0 | FO89: 0 | FP89: 0 | FQ89: 0 | FR89: 0 | FS89: 0 | FT89: 0 | FU89: 0 | FV89: 0 | FW89: 0 | FX89: 0 | FY89: 0 | FZ89: 0 | GA89: 0 | GB89: 0 | GC89: 0 | GD89: 0 | GE89: 0 | GF89: 0 | GG89: 0 | GH89: 0
A90: =IFERROR(IF($B90="","",INDEX('2019 scenario - output'!$A$6:$A$12,MATCH('2019 scenario - input'!$B90,'2019 scenario - output'!$B$6:$B$12,0))),"") ->  | CV90: 0 | CW90: 0 | CX90: 0 | CY90: 0 | CZ90: 0 | DA90: 0 | DB90: 0 | DC90: 0 | DD90: 0 | DE90: 0 | DF90: 0 | DG90: 0 | DH90: 0 | DI90: 0 | DJ90: 0 | DK90: 0 | DL90: 0 | DM90: 0 | DN90: 0 | DO90: 0 | DP90: 0 | DQ90: 0 | DR90: 0 | DS90: 0 | DT90: 0 | DU90: 0 | DV90: 0 | DW90: 0 | DX90: 0 | DY90: 0 | DZ90: 0 | EA90: 0 | EB90: 0 | EC90: 0 | ED90: 0 | EE90: 0 | EF90: 0 | EG90: 0 | EH90: 0 | EI90: 0 | EJ90: 0 | EK90: 0 | EL90: 0 | EM90: 0 | EN90: 0 | EO90: 0 | EP90: 0 | EQ90: 0 | ER90: 0 | ES90: 0 | ET90: 0 | EU90: 0 | EV90: 0 | EW90: 0 | EX90: 0 | EY90: 0 | EZ90: 0 | FA90: 0 | FB90: 0 | FC90: 0 | FD90: 0 | FE90: 0 | FF90: 0 | FG90: 0 | FH90: 0 | FI90: 0 | FJ90: 0 | FK90: 0 | FL90: 0 | FM90: 0 | FN90: 0 | FO90: 0 | FP90: 0 | FQ90: 0 | FR90: 0 | FS90: 0 | FT90: 0 | FU90: 0 | FV90: 0 | FW90: 0 | FX90: 0 | FY90: 0 | FZ90: 0 | GA90: 0 | GB90: 0 | GC90: 0 | GD90: 0 | GE90: 0 | GF90: 0 | GG90: 0 | GH90: 0
A91: =IFERROR(IF($B91="","",INDEX('2019 scenario - output'!$A$6:$A$12,MATCH('2019 scenario - input'!$B91,'2019 scenario - output'!$B$6:$B$12,0))),"") ->  | CV91: 0 | CW91: 0 | CX91: 0 | CY91: 0 | CZ91: 0 | DA91: 0 | DB91: 0 | DC91: 0 | DD91: 0 | DE91: 0 | DF91: 0 | DG91: 0 | DH91: 0 | DI91: 0 | DJ91: 0 | DK91: 0 | DL91: 0 | DM91: 0 | DN91: 0 | DO91: 0 | DP91: 0 | DQ91: 0 | DR91: 0 | DS91: 0 | DT91: 0 | DU91: 0 | DV91: 0 | DW91: 0 | DX91: 0 | DY91: 0 | DZ91: 0 | EA91: 0 | EB91: 0 | EC91: 0 | ED91: 0 | EE91: 0 | EF91: 0 | EG91: 0 | EH91: 0 | EI91: 0 | EJ91: 0 | EK91: 0 | EL91: 0 | EM91: 0 | EN91: 0 | EO91: 0 | EP91: 0 | EQ91: 0 | ER91: 0 | ES91: 0 | ET91: 0 | EU91: 0 | EV91: 0 | EW91: 0 | EX91: 0 | EY91: 0 | EZ91: 0 | FA91: 0 | FB91: 0 | FC91: 0 | FD91: 0 | FE91: 0 | FF91: 0 | FG91: 0 | FH91: 0 | FI91: 0 | FJ91: 0 | FK91: 0 | FL91: 0 | FM91: 0 | FN91: 0 | FO91: 0 | FP91: 0 | FQ91: 0 | FR91: 0 | FS91: 0 | FT91: 0 | FU91: 0 | FV91: 0 | FW91: 0 | FX91: 0 | FY91: 0 | FZ91: 0 | GA91: 0 | GB91: 0 | GC91: 0 | GD91: 0 | GE91: 0 | GF91: 0 | GG91: 0 | GH91: 0
A92: =IFERROR(IF($B92="","",INDEX('2019 scenario - output'!$A$6:$A$12,MATCH('2019 scenario - input'!$B92,'2019 scenario - output'!$B$6:$B$12,0))),"") ->  | CV92: 0 | CW92: 0 | CX92: 0 | CY92: 0 | CZ92: 0 | DA92: 0 | DB92: 0 | DC92: 0 | DD92: 0 | DE92: 0 | DF92: 0 | DG92: 0 | DH92: 0 | DI92: 0 | DJ92: 0 | DK92: 0 | DL92: 0 | DM92: 0 | DN92: 0 | DO92: 0 | DP92: 0 | DQ92: 0 | DR92: 0 | DS92: 0 | DT92: 0 | DU92: 0 | DV92: 0 | DW92: 0 | DX92: 0 | DY92: 0 | DZ92: 0 | EA92: 0 | EB92: 0 | EC92: 0 | ED92: 0 | EE92: 0 | EF92: 0 | EG92: 0 | EH92: 0 | EI92: 0 | EJ92: 0 | EK92: 0 | EL92: 0 | EM92: 0 | EN92: 0 | EO92: 0 | EP92: 0 | EQ92: 0 | ER92: 0 | ES92: 0 | ET92: 0 | EU92: 0 | EV92: 0 | EW92: 0 | EX92: 0 | EY92: 0 | EZ92: 0 | FA92: 0 | FB92: 0 | FC92: 0 | FD92: 0 | FE92: 0 | FF92: 0 | FG92: 0 | FH92: 0 | FI92: 0 | FJ92: 0 | FK92: 0 | FL92: 0 | FM92: 0 | FN92: 0 | FO92: 0 | FP92: 0 | FQ92: 0 | FR92: 0 | FS92: 0 | FT92: 0 | FU92: 0 | FV92: 0 | FW92: 0 | FX92: 0 | FY92: 0 | FZ92: 0 | GA92: 0 | GB92: 0 | GC92: 0 | GD92: 0 | GE92: 0 | GF92: 0 | GG92: 0 | GH92: 0
A93: =IFERROR(IF($B93="","",INDEX('2019 scenario - output'!$A$6:$A$12,MATCH('2019 scenario - input'!$B93,'2019 scenario - output'!$B$6:$B$12,0))),"") ->  | CV93: 0 | CW93: =IFERROR($D93*I93,"") -> 0 | CX93: =IFERROR($D93*J93,"") -> 0 | CY93: =IFERROR($D93*K93,"") -> 0 | CZ93: =IFERROR($D93*L93,"") -> 0 | DA93: =IFERROR($D93*M93,"") -> 0 | DB93: =IFERROR($D93*N93,"") -> 0 | DC93: =IFERROR($D93*O93,"") -> 0 | DD93: =IFERROR($D93*P93,"") -> 0 | DE93: =IFERROR($D93*Q93,"") -> 0 | DF93: =IFERROR($D93*R93,"") -> 0 | DG93: =IFERROR($D93*S93,"") -> 0 | DH93: =IFERROR($D93*T93,"") -> 0 | DI93: =IFERROR($D93*U93,"") -> 0 | DJ93: =IFERROR($D93*V93,"") -> 0 | DK93: =IFERROR($D93*W93,"") -> 0 | DL93: =IFERROR($D93*X93,"") -> 0 | DM93: =IFERROR($D93*Y93,"") -> 0 | DN93: =IFERROR($D93*Z93,"") -> 0 | DO93: =IFERROR($D93*AA93,"") -> 0 | DP93: =IFERROR($D93*AB93,"") -> 0 | DQ93: =IFERROR($D93*AC93,"") -> 0 | DR93: =IFERROR($D93*AD93,"") -> 0 | DS93: =IFERROR($D93*AE93,"") -> 0 | DT93: =IFERROR($D93*AF93,"") -> 0 | DU93: =IFERROR($D93*AG93,"") -> 0 | DV93: =IFERROR($D93*AH93,"") -> 0 | DW93: =IFERROR($D93*AI93,"") -> 0 | DX93: =IFERROR($D93*AJ93,"") -> 0 | DY93: =IFERROR($D93*AK93,"") -> 0 | DZ93: =IFERROR($D93*AL93,"") -> 0 | EA93: =IFERROR($D93*AM93,"") -> 0 | EB93: =IFERROR($D93*AN93,"") -> 0 | EC93: =IFERROR($D93*AO93,"") -> 0 | ED93: =IFERROR($D93*AP93,"") -> 0 | EE93: =IFERROR($D93*AQ93,"") -> 0 | EF93: =IFERROR($D93*AR93,"") -> 0 | EG93: =IFERROR($D93*AS93,"") -> 0 | EH93: =IFERROR($D93*AT93,"") -> 0 | EI93: =IFERROR($D93*AU93,"") -> 0 | EJ93: =IFERROR($D93*AV93,"") -> 0 | EK93: =IFERROR($D93*AW93,"") -> 0 | EL93: =IFERROR($D93*AX93,"") -> 0 | EM93: =IFERROR($D93*AY93,"") -> 0 | EN93: =IFERROR($D93*AZ93,"") -> 0 | EO93: =IFERROR($D93*BA93,"") -> 0 | EP93: =IFERROR($D93*BB93,"") -> 0 | EQ93: =IFERROR($D93*BC93,"") -> 0 | ER93: =IFERROR($D93*BD93,"") -> 0 | ES93: =IFERROR($D93*BE93,"") -> 0 | ET93: =IFERROR($D93*BF93,"") -> 0 | EU93: =IFERROR($D93*BG93,"") -> 0 | EV93: =IFERROR($D93*BH93,"") -> 0 | EW93: =IFERROR($D93*BI93,"") -> 0 | EX93: =IFERROR($D93*BJ93,"") -> 0 | EY93: =IFERROR($D93*BK93,"") -> 0 | EZ93: =IFERROR($D93*BL93,"") -> 0 | FA93: =IFERROR($D93*BM93,"") -> 0 | FB93: =IFERROR($D93*BN93,"") -> 0 | FC93: =IFERROR($D93*BO93,"") -> 0 | FD93: =IFERROR($D93*BP93,"") -> 0 | FE93: =IFERROR($D93*BQ93,"") -> 0 | FF93: =IFERROR($D93*BR93,"") -> 0 | FG93: =IFERROR($D93*BS93,"") -> 0 | FH93: =IFERROR($D93*BT93,"") -> 0 | FI93: =IFERROR($D93*BU93,"") -> 0 | FJ93: =IFERROR($D93*BV93,"") -> 0 | FK93: =IFERROR($D93*BW93,"") -> 0 | FL93: =IFERROR($D93*BX93,"") -> 0 | FM93: =IFERROR($D93*BY93,"") -> 0 | FN93: =IFERROR($D93*BZ93,"") -> 0 | FO93: =IFERROR($D93*CA93,"") -> 0 | FP93: =IFERROR($D93*CB93,"") -> 0 | FQ93: =IFERROR($D93*CC93,"") -> 0 | FR93: =IFERROR($D93*CD93,"") -> 0 | FS93: =IFERROR($D93*CE93,"") -> 0 | FT93: =IFERROR($D93*CF93,"") -> 0 | FU93: =IFERROR($D93*CG93,"") -> 0 | FV93: =IFERROR($D93*CH93,"") -> 0 | FW93: =IFERROR($D93*CI93,"") -> 0 | FX93: =IFERROR($D93*CJ93,"") -> 0 | FY93: =IFERROR($D93*CK93,"") -> 0 | FZ93: =IFERROR($D93*CL93,"") -> 0 | GA93: =IFERROR($D93*CM93,"") -> 0 | GB93: =IFERROR($D93*CN93,"") -> 0 | GC93: =IFERROR($D93*CO93,"") -> 0 | GD93: =IFERROR($D93*CP93,"") -> 0 | GE93: =IFERROR($D93*CQ93,"") -> 0 | GF93: =IFERROR($D93*CR93,"") -> 0 | GG93: =IFERROR($D93*CS93,"") -> 0 | GH93: =IFERROR($D93*CT93,"") -> 0
A94: =IFERROR(IF($B94="","",INDEX('2019 scenario - output'!$A$6:$A$12,MATCH('2019 scenario - input'!$B94,'2019 scenario - output'!$B$6:$B$12,0))),"") ->  | F94: =IFERROR(IF(E94="","",SQRT(E94)),"") ->  | G94: =IFERROR(IF($B94="","",2),"") ->  | CV94: =IFERROR($D94*H94,"") -> 0 | CW94: 0 | CX94: 0 | CY94: 0 | CZ94: 0 | DA94: 0 | DB94: 0 | DC94: 0 | DD94: 0 | DE94: 0 | DF94: 0 | DG94: 0 | DH94: 0 | DI94: 0 | DJ94: 0 | DK94: 0 | DL94: 0 | DM94: 0 | DN94: 0 | DO94: 0 | DP94: 0 | DQ94: 0 | DR94: 0 | DS94: 0 | DT94: 0 | DU94: 0 | DV94: 0 | DW94: 0 | DX94: 0 | DY94: 0 | DZ94: 0 | EA94: 0 | EB94: 0 | EC94: 0 | ED94: 0 | EE94: 0 | EF94: 0 | EG94: 0 | EH94: 0 | EI94: 0 | EJ94: 0 | EK94: 0 | EL94: 0 | EM94: 0 | EN94: 0 | EO94: 0 | EP94: 0 | EQ94: 0 | ER94: 0 | ES94: 0 | ET94: 0 | EU94: 0 | EV94: 0 | EW94: 0 | EX94: 0 | EY94: 0 | EZ94: 0 | FA94: 0 | FB94: 0 | FC94: 0 | FD94: 0 | FE94: 0 | FF94: 0 | FG94: 0 | FH94: 0 | FI94: 0 | FJ94: 0 | FK94: 0 | FL94: 0 | FM94: 0 | FN94: 0 | FO94: 0 | FP94: 0 | FQ94: 0 | FR94: 0 | FS94: 0 | FT94: 0 | FU94: 0 | FV94: 0 | FW94: 0 | FX94: 0 | FY94: 0 | FZ94: 0 | GA94: 0 | GB94: 0 | GC94: 0 | GD94: 0 | GE94: 0 | GF94: 0 | GG94: 0 | GH94: 0
A95: =IFERROR(IF($B95="","",INDEX('2019 scenario - output'!$A$6:$A$12,MATCH('2019 scenario - input'!$B95,'2019 scenario - output'!$B$6:$B$12,0))),"") ->  | CV95: 0 | CW95: 0 | CX95: 0 | CY95: 0 | CZ95: 0 | DA95: 0 | DB95: 0 | DC95: 0 | DD95: 0 | DE95: 0 | DF95: 0 | DG95: 0 | DH95: 0 | DI95: 0 | DJ95: 0 | DK95: 0 | DL95: 0 | DM95: 0 | DN95: 0 | DO95: 0 | DP95: 0 | DQ95: 0 | DR95: 0 | DS95: 0 | DT95: 0 | DU95: 0 | DV95: 0 | DW95: 0 | DX95: 0 | DY95: 0 | DZ95: 0 | EA95: 0 | EB95: 0 | EC95: 0 | ED95: 0 | EE95: 0 | EF95: 0 | EG95: 0 | EH95: 0 | EI95: 0 | EJ95: 0 | EK95: 0 | EL95: 0 | EM95: 0 | EN95: 0 | EO95: 0 | EP95: 0 | EQ95: 0 | ER95: 0 | ES95: 0 | ET95: 0 | EU95: 0 | EV95: 0 | EW95: 0 | EX95: 0 | EY95: 0 | EZ95: 0 | FA95: 0 | FB95: 0 | FC95: 0 | FD95: 0 | FE95: 0 | FF95: 0 | FG95: 0 | FH95: 0 | FI95: 0 | FJ95: 0 | FK95: 0 | FL95: 0 | FM95: 0 | FN95: 0 | FO95: 0 | FP95: 0 | FQ95: 0 | FR95: 0 | FS95: 0 | FT95: 0 | FU95: 0 | FV95: 0 | FW95: 0 | FX95: 0 | FY95: 0 | FZ95: 0 | GA95: 0 | GB95: 0 | GC95: 0 | GD95: 0 | GE95: 0 | GF95: 0 | GG95: 0 | GH95: 0
A96: =IFERROR(IF($B96="","",INDEX('2019 scenario - output'!$A$6:$A$12,MATCH('2019 scenario - input'!$B96,'2019 scenario - output'!$B$6:$B$12,0))),"") ->  | CV96: 0 | CW96: 0 | CX96: 0 | CY96: 0 | CZ96: 0 | DA96: 0 | DB96: 0 | DC96: 0 | DD96: 0 | DE96: 0 | DF96: 0 | DG96: 0 | DH96: 0 | DI96: 0 | DJ96: 0 | DK96: 0 | DL96: 0 | DM96: 0 | DN96: 0 | DO96: 0 | DP96: 0 | DQ96: 0 | DR96: 0 | DS96: 0 | DT96: 0 | DU96: 0 | DV96: 0 | DW96: 0 | DX96: 0 | DY96: 0 | DZ96: 0 | EA96: 0 | EB96: 0 | EC96: 0 | ED96: 0 | EE96: 0 | EF96: 0 | EG96: 0 | EH96: 0 | EI96: 0 | EJ96: 0 | EK96: 0 | EL96: 0 | EM96: 0 | EN96: 0 | EO96: 0 | EP96: 0 | EQ96: 0 | ER96: 0 | ES96: 0 | ET96: 0 | EU96: 0 | EV96: 0 | EW96: 0 | EX96: 0 | EY96: 0 | EZ96: 0 | FA96: 0 | FB96: 0 | FC96: 0 | FD96: 0 | FE96: 0 | FF96: 0 | FG96: 0 | FH96: 0 | FI96: 0 | FJ96: 0 | FK96: 0 | FL96: 0 | FM96: 0 | FN96: 0 | FO96: 0 | FP96: 0 | FQ96: 0 | FR96: 0 | FS96: 0 | FT96: 0 | FU96: 0 | FV96: 0 | FW96: 0 | FX96: 0 | FY96: 0 | FZ96: 0 | GA96: 0 | GB96: 0 | GC96: 0 | GD96: 0 | GE96: 0 | GF96: 0 | GG96: 0 | GH96: 0
A97: =IFERROR(IF($B97="","",INDEX('2019 scenario - output'!$A$6:$A$12,MATCH('2019 scenario - input'!$B97,'2019 scenario - output'!$B$6:$B$12,0))),"") ->  | CV97: 0 | CW97: 0 | CX97: 0 | CY97: 0 | CZ97: 0 | DA97: 0 | DB97: 0 | DC97: 0 | DD97: 0 | DE97: 0 | DF97: 0 | DG97: 0 | DH97: 0 | DI97: 0 | DJ97: 0 | DK97: 0 | DL97: 0 | DM97: 0 | DN97: 0 | DO97: 0 | DP97: 0 | DQ97: 0 | DR97: 0 | DS97: 0 | DT97: 0 | DU97: 0 | DV97: 0 | DW97: 0 | DX97: 0 | DY97: 0 | DZ97: 0 | EA97: 0 | EB97: 0 | EC97: 0 | ED97: 0 | EE97: 0 | EF97: 0 | EG97: 0 | EH97: 0 | EI97: 0 | EJ97: 0 | EK97: 0 | EL97: 0 | EM97: 0 | EN97: 0 | EO97: 0 | EP97: 0 | EQ97: 0 | ER97: 0 | ES97: 0 | ET97: 0 | EU97: 0 | EV97: 0 | EW97: 0 | EX97: 0 | EY97: 0 | EZ97: 0 | FA97: 0 | FB97: 0 | FC97: 0 | FD97: 0 | FE97: 0 | FF97: 0 | FG97: 0 | FH97: 0 | FI97: 0 | FJ97: 0 | FK97: 0 | FL97: 0 | FM97: 0 | FN97: 0 | FO97: 0 | FP97: 0 | FQ97: 0 | FR97: 0 | FS97: 0 | FT97: 0 | FU97: 0 | FV97: 0 | FW97: 0 | FX97: 0 | FY97: 0 | FZ97: 0 | GA97: 0 | GB97: 0 | GC97: 0 | GD97: 0 | GE97: 0 | GF97: 0 | GG97: 0 | GH97: 0
A98: =IFERROR(IF($B98="","",INDEX('2019 scenario - output'!$A$6:$A$12,MATCH('2019 scenario - input'!$B98,'2019 scenario - output'!$B$6:$B$12,0))),"") ->  | CV98: 0 | CW98: 0 | CX98: 0 | CY98: 0 | CZ98: 0 | DA98: 0 | DB98: 0 | DC98: 0 | DD98: 0 | DE98: 0 | DF98: 0 | DG98: 0 | DH98: 0 | DI98: 0 | DJ98: 0 | DK98: 0 | DL98: 0 | DM98: 0 | DN98: 0 | DO98: 0 | DP98: 0 | DQ98: 0 | DR98: 0 | DS98: 0 | DT98: 0 | DU98: 0 | DV98: 0 | DW98: 0 | DX98: 0 | DY98: 0 | DZ98: 0 | EA98: 0 | EB98: 0 | EC98: 0 | ED98: 0 | EE98: 0 | EF98: 0 | EG98: 0 | EH98: 0 | EI98: 0 | EJ98: 0 | EK98: 0 | EL98: 0 | EM98: 0 | EN98: 0 | EO98: 0 | EP98: 0 | EQ98: 0 | ER98: 0 | ES98: 0 | ET98: 0 | EU98: 0 | EV98: 0 | EW98: 0 | EX98: 0 | EY98: 0 | EZ98: 0 | FA98: 0 | FB98: 0 | FC98: 0 | FD98: 0 | FE98: 0 | FF98: 0 | FG98: 0 | FH98: 0 | FI98: 0 | FJ98: 0 | FK98: 0 | FL98: 0 | FM98: 0 | FN98: 0 | FO98: 0 | FP98: 0 | FQ98: 0 | FR98: 0 | FS98: 0 | FT98: 0 | FU98: 0 | FV98: 0 | FW98: 0 | FX98: 0 | FY98: 0 | FZ98: 0 | GA98: 0 | GB98: 0 | GC98: 0 | GD98: 0 | GE98: 0 | GF98: 0 | GG98: 0 | GH98: 0
A99: =IFERROR(IF($B99="","",INDEX('2019 scenario - output'!$A$6:$A$12,MATCH('2019 scenario - input'!$B99,'2019 scenario - output'!$B$6:$B$12,0))),"") ->  | CV99: 0 | CW99: 0 | CX99: 0 | CY99: 0 | CZ99: 0 | DA99: 0 | DB99: 0 | DC99: 0 | DD99: 0 | DE99: 0 | DF99: 0 | DG99: 0 | DH99: 0 | DI99: 0 | DJ99: 0 | DK99: 0 | DL99: 0 | DM99: 0 | DN99: 0 | DO99: 0 | DP99: 0 | DQ99: 0 | DR99: 0 | DS99: 0 | DT99: 0 | DU99: 0 | DV99: 0 | DW99: 0 | DX99: 0 | DY99: 0 | DZ99: 0 | EA99: 0 | EB99: 0 | EC99: 0 | ED99: 0 | EE99: 0 | EF99: 0 | EG99: 0 | EH99: 0 | EI99: 0 | EJ99: 0 | EK99: 0 | EL99: 0 | EM99: 0 | EN99: 0 | EO99: 0 | EP99: 0 | EQ99: 0 | ER99: 0 | ES99: 0 | ET99: 0 | EU99: 0 | EV99: 0 | EW99: 0 | EX99: 0 | EY99: 0 | EZ99: 0 | FA99: 0 | FB99: 0 | FC99: 0 | FD99: 0 | FE99: 0 | FF99: 0 | FG99: 0 | FH99: 0 | FI99: 0 | FJ99: 0 | FK99: 0 | FL99: 0 | FM99: 0 | FN99: 0 | FO99: 0 | FP99: 0 | FQ99: 0 | FR99: 0 | FS99: 0 | FT99: 0 | FU99: 0 | FV99: 0 | FW99: 0 | FX99: 0 | FY99: 0 | FZ99: 0 | GA99: 0 | GB99: 0 | GC99: 0 | GD99: 0 | GE99: 0 | GF99: 0 | GG99: 0 | GH99: 0
A100: =IFERROR(IF($B100="","",INDEX('2019 scenario - output'!$A$6:$A$12,MATCH('2019 scenario - input'!$B100,'2019 scenario - output'!$B$6:$B$12,0))),"") ->  | CV100: 0 | CW100: 0 | CX100: 0 | CY100: 0 | CZ100: 0 | DA100: 0 | DB100: 0 | DC100: 0 | DD100: 0 | DE100: 0 | DF100: 0 | DG100: 0 | DH100: 0 | DI100: 0 | DJ100: 0 | DK100: 0 | DL100: 0 | DM100: 0 | DN100: 0 | DO100: 0 | DP100: 0 | DQ100: 0 | DR100: 0 | DS100: 0 | DT100: 0 | DU100: 0 | DV100: 0 | DW100: 0 | DX100: 0 | DY100: 0 | DZ100: 0 | EA100: 0 | EB100: 0 | EC100: 0 | ED100: 0 | EE100: 0 | EF100: 0 | EG100: 0 | EH100: 0 | EI100: 0 | EJ100: 0 | EK100: 0 | EL100: 0 | EM100: 0 | EN100: 0 | EO100: 0 | EP100: 0 | EQ100: 0 | ER100: 0 | ES100: 0 | ET100: 0 | EU100: 0 | EV100: 0 | EW100: 0 | EX100: 0 | EY100: 0 | EZ100: 0 | FA100: 0 | FB100: 0 | FC100: 0 | FD100: 0 | FE100: 0 | FF100: 0 | FG100: 0 | FH100: 0 | FI100: 0 | FJ100: 0 | FK100: 0 | FL100: 0 | FM100: 0 | FN100: 0 | FO100: 0 | FP100: 0 | FQ100: 0 | FR100: 0 | FS100: 0 | FT100: 0 | FU100: 0 | FV100: 0 | FW100: 0 | FX100: 0 | FY100: 0 | FZ100: 0 | GA100: 0 | GB100: 0 | GC100: 0 | GD100: 0 | GE100: 0 | GF100: 0 | GG100: 0 | GH100: 0
A101: =IFERROR(IF($B101="","",INDEX('2019 scenario - output'!$A$6:$A$12,MATCH('2019 scenario - input'!$B101,'2019 scenario - output'!$B$6:$B$12,0))),"") ->  | CV101: 0 | CW101: 0 | CX101: 0 | CY101: 0 | CZ101: 0 | DA101: 0 | DB101: 0 | DC101: 0 | DD101: 0 | DE101: 0 | DF101: 0 | DG101: 0 | DH101: 0 | DI101: 0 | DJ101: 0 | DK101: 0 | DL101: 0 | DM101: 0 | DN101: 0 | DO101: 0 | DP101: 0 | DQ101: 0 | DR101: 0 | DS101: 0 | DT101: 0 | DU101: 0 | DV101: 0 | DW101: 0 | DX101: 0 | DY101: 0 | DZ101: 0 | EA101: 0 | EB101: 0 | EC101: 0 | ED101: 0 | EE101: 0 | EF101: 0 | EG101: 0 | EH101: 0 | EI101: 0 | EJ101: 0 | EK101: 0 | EL101: 0 | EM101: 0 | EN101: 0 | EO101: 0 | EP101: 0 | EQ101: 0 | ER101: 0 | ES101: 0 | ET101: 0 | EU101: 0 | EV101: 0 | EW101: 0 | EX101: 0 | EY101: 0 | EZ101: 0 | FA101: 0 | FB101: 0 | FC101: 0 | FD101: 0 | FE101: 0 | FF101: 0 | FG101: 0 | FH101: 0 | FI101: 0 | FJ101: 0 | FK101: 0 | FL101: 0 | FM101: 0 | FN101: 0 | FO101: 0 | FP101: 0 | FQ101: 0 | FR101: 0 | FS101: 0 | FT101: 0 | FU101: 0 | FV101: 0 | FW101: 0 | FX101: 0 | FY101: 0 | FZ101: 0 | GA101: 0 | GB101: 0 | GC101: 0 | GD101: 0 | GE101: 0 | GF101: 0 | GG101: 0 | GH101: 0
A102: =IFERROR(IF($B102="","",INDEX('2019 scenario - output'!$A$6:$A$12,MATCH('2019 scenario - input'!$B102,'2019 scenario - output'!$B$6:$B$12,0))),"") ->  | CV102: 0 | CW102: 0 | CX102: 0 | CY102: 0 | CZ102: 0 | DA102: 0 | DB102: 0 | DC102: 0 | DD102: 0 | DE102: 0 | DF102: 0 | DG102: 0 | DH102: 0 | DI102: 0 | DJ102: 0 | DK102: 0 | DL102: 0 | DM102: 0 | DN102: 0 | DO102: 0 | DP102: 0 | DQ102: 0 | DR102: 0 | DS102: 0 | DT102: 0 | DU102: 0 | DV102: 0 | DW102: 0 | DX102: 0 | DY102: 0 | DZ102: 0 | EA102: 0 | EB102: 0 | EC102: 0 | ED102: 0 | EE102: 0 | EF102: 0 | EG102: 0 | EH102: 0 | EI102: 0 | EJ102: 0 | EK102: 0 | EL102: 0 | EM102: 0 | EN102: 0 | EO102: 0 | EP102: 0 | EQ102: 0 | ER102: 0 | ES102: 0 | ET102: 0 | EU102: 0 | EV102: 0 | EW102: 0 | EX102: 0 | EY102: 0 | EZ102: 0 | FA102: 0 | FB102: 0 | FC102: 0 | FD102: 0 | FE102: 0 | FF102: 0 | FG102: 0 | FH102: 0 | FI102: 0 | FJ102: 0 | FK102: 0 | FL102: 0 | FM102: 0 | FN102: 0 | FO102: 0 | FP102: 0 | FQ102: 0 | FR102: 0 | FS102: 0 | FT102: 0 | FU102: 0 | FV102: 0 | FW102: 0 | FX102: 0 | FY102: 0 | FZ102: 0 | GA102: 0 | GB102: 0 | GC102: 0 | GD102: 0 | GE102: 0 | GF102: 0 | GG102: 0 | GH102: 0
A103: =IFERROR(IF($B103="","",INDEX('2019 scenario - output'!$A$6:$A$12,MATCH('2019 scenario - input'!$B103,'2019 scenario - output'!$B$6:$B$12,0))),"") ->  | CV103: 0 | CW103: 0 | CX103: 0 | CY103: 0 | CZ103: 0 | DA103: 0 | DB103: 0 | DC103: 0 | DD103: 0 | DE103: 0 | DF103: 0 | DG103: 0 | DH103: 0 | DI103: 0 | DJ103: 0 | DK103: 0 | DL103: 0 | DM103: 0 | DN103: 0 | DO103: 0 | DP103: 0 | DQ103: 0 | DR103: 0 | DS103: 0 | DT103: 0 | DU103: 0 | DV103: 0 | DW103: 0 | DX103: 0 | DY103: 0 | DZ103: 0 | EA103: 0 | EB103: 0 | EC103: 0 | ED103: 0 | EE103: 0 | EF103: 0 | EG103: 0 | EH103: 0 | EI103: 0 | EJ103: 0 | EK103: 0 | EL103: 0 | EM103: 0 | EN103: 0 | EO103: 0 | EP103: 0 | EQ103: 0 | ER103: 0 | ES103: 0 | ET103: 0 | EU103: 0 | EV103: 0 | EW103: 0 | EX103: 0 | EY103: 0 | EZ103: 0 | FA103: 0 | FB103: 0 | FC103: 0 | FD103: 0 | FE103: 0 | FF103: 0 | FG103: 0 | FH103: 0 | FI103: 0 | FJ103: 0 | FK103: 0 | FL103: 0 | FM103: 0 | FN103: 0 | FO103: 0 | FP103: 0 | FQ103: 0 | FR103: 0 | FS103: 0 | FT103: 0 | FU103: 0 | FV103: 0 | FW103: 0 | FX103: 0 | FY103: 0 | FZ103: 0 | GA103: 0 | GB103: 0 | GC103: 0 | GD103: 0 | GE103: 0 | GF103: 0 | GG103: 0 | GH103: 0
A104: =IFERROR(IF($B104="","",INDEX('2019 scenario - output'!$A$6:$A$12,MATCH('2019 scenario - input'!$B104,'2019 scenario - output'!$B$6:$B$12,0))),"") ->  | CV104: 0 | CW104: 0 | CX104: 0 | CY104: 0 | CZ104: 0 | DA104: 0 | DB104: 0 | DC104: 0 | DD104: 0 | DE104: 0 | DF104: 0 | DG104: 0 | DH104: 0 | DI104: 0 | DJ104: 0 | DK104: 0 | DL104: 0 | DM104: 0 | DN104: 0 | DO104: 0 | DP104: 0 | DQ104: 0 | DR104: 0 | DS104: 0 | DT104: 0 | DU104: 0 | DV104: 0 | DW104: 0 | DX104: 0 | DY104: 0 | DZ104: 0 | EA104: 0 | EB104: 0 | EC104: 0 | ED104: 0 | EE104: 0 | EF104: 0 | EG104: 0 | EH104: 0 | EI104: 0 | EJ104: 0 | EK104: 0 | EL104: 0 | EM104: 0 | EN104: 0 | EO104: 0 | EP104: 0 | EQ104: 0 | ER104: 0 | ES104: 0 | ET104: 0 | EU104: 0 | EV104: 0 | EW104: 0 | EX104: 0 | EY104: 0 | EZ104: 0 | FA104: 0 | FB104: 0 | FC104: 0 | FD104: 0 | FE104: 0 | FF104: 0 | FG104: 0 | FH104: 0 | FI104: 0 | FJ104: 0 | FK104: 0 | FL104: 0 | FM104: 0 | FN104: 0 | FO104: 0 | FP104: 0 | FQ104: 0 | FR104: 0 | FS104: 0 | FT104: 0 | FU104: 0 | FV104: 0 | FW104: 0 | FX104: 0 | FY104: 0 | FZ104: 0 | GA104: 0 | GB104: 0 | GC104: 0 | GD104: 0 | GE104: 0 | GF104: 0 | GG104: 0 | GH104: 0
A105: =IFERROR(IF($B105="","",INDEX('2019 scenario - output'!$A$6:$A$12,MATCH('2019 scenario - input'!$B105,'2019 scenario - output'!$B$6:$B$12,0))),"") ->  | CV105: 0 | CW105: 0 | CX105: 0 | CY105: 0 | CZ105: 0 | DA105: 0 | DB105: 0 | DC105: 0 | DD105: 0 | DE105: 0 | DF105: 0 | DG105: 0 | DH105: 0 | DI105: 0 | DJ105: 0 | DK105: 0 | DL105: 0 | DM105: 0 | DN105: 0 | DO105: 0 | DP105: 0 | DQ105: 0 | DR105: 0 | DS105: 0 | DT105: 0 | DU105: 0 | DV105: 0 | DW105: 0 | DX105: 0 | DY105: 0 | DZ105: 0 | EA105: 0 | EB105: 0 | EC105: 0 | ED105: 0 | EE105: 0 | EF105: 0 | EG105: 0 | EH105: 0 | EI105: 0 | EJ105: 0 | EK105: 0 | EL105: 0 | EM105: 0 | EN105: 0 | EO105: 0 | EP105: 0 | EQ105: 0 | ER105: 0 | ES105: 0 | ET105: 0 | EU105: 0 | EV105: 0 | EW105: 0 | EX105: 0 | EY105: 0 | EZ105: 0 | FA105: 0 | FB105: 0 | FC105: 0 | FD105: 0 | FE105: 0 | FF105: 0 | FG105: 0 | FH105: 0 | FI105: 0 | FJ105: 0 | FK105: 0 | FL105: 0 | FM105: 0 | FN105: 0 | FO105: 0 | FP105: 0 | FQ105: 0 | FR105: 0 | FS105: 0 | FT105: 0 | FU105: 0 | FV105: 0 | FW105: 0 | FX105: 0 | FY105: 0 | FZ105: 0 | GA105: 0 | GB105: 0 | GC105: 0 | GD105: 0 | GE105: 0 | GF105: 0 | GG105: 0 | GH105: 0
A106: =IFERROR(IF($B106="","",INDEX('2019 scenario - output'!$A$6:$A$12,MATCH('2019 scenario - input'!$B106,'2019 scenario - output'!$B$6:$B$12,0))),"") ->  | CV106: 0 | CW106: 0 | CX106: 0 | CY106: 0 | CZ106: 0 | DA106: 0 | DB106: 0 | DC106: 0 | DD106: 0 | DE106: 0 | DF106: 0 | DG106: 0 | DH106: 0 | DI106: 0 | DJ106: 0 | DK106: 0 | DL106: 0 | DM106: 0 | DN106: 0 | DO106: 0 | DP106: 0 | DQ106: 0 | DR106: 0 | DS106: 0 | DT106: 0 | DU106: 0 | DV106: 0 | DW106: 0 | DX106: 0 | DY106: 0 | DZ106: 0 | EA106: 0 | EB106: 0 | EC106: 0 | ED106: 0 | EE106: 0 | EF106: 0 | EG106: 0 | EH106: 0 | EI106: 0 | EJ106: 0 | EK106: 0 | EL106: 0 | EM106: 0 | EN106: 0 | EO106: 0 | EP106: 0 | EQ106: 0 | ER106: 0 | ES106: 0 | ET106: 0 | EU106: 0 | EV106: 0 | EW106: 0 | EX106: 0 | EY106: 0 | EZ106: 0 | FA106: 0 | FB106: 0 | FC106: 0 | FD106: 0 | FE106: 0 | FF106: 0 | FG106: 0 | FH106: 0 | FI106: 0 | FJ106: 0 | FK106: 0 | FL106: 0 | FM106: 0 | FN106: 0 | FO106: 0 | FP106: 0 | FQ106: 0 | FR106: 0 | FS106: 0 | FT106: 0 | FU106: 0 | FV106: 0 | FW106: 0 | FX106: 0 | FY106: 0 | FZ106: 0 | GA106: 0 | GB106: 0 | GC106: 0 | GD106: 0 | GE106: 0 | GF106: 0 | GG106: 0 | GH106: 0
A107: =IFERROR(IF($B107="","",INDEX('2019 scenario - output'!$A$6:$A$12,MATCH('2019 scenario - input'!$B107,'2019 scenario - output'!$B$6:$B$12,0))),"") ->  | CV107: 0 | CW107: 0 | CX107: 0 | CY107: 0 | CZ107: 0 | DA107: 0 | DB107: 0 | DC107: 0 | DD107: 0 | DE107: 0 | DF107: 0 | DG107: 0 | DH107: 0 | DI107: 0 | DJ107: 0 | DK107: 0 | DL107: 0 | DM107: 0 | DN107: 0 | DO107: 0 | DP107: 0 | DQ107: 0 | DR107: 0 | DS107: 0 | DT107: 0 | DU107: 0 | DV107: 0 | DW107: 0 | DX107: 0 | DY107: 0 | DZ107: 0 | EA107: 0 | EB107: 0 | EC107: 0 | ED107: 0 | EE107: 0 | EF107: 0 | EG107: 0 | EH107: 0 | EI107: 0 | EJ107: 0 | EK107: 0 | EL107: 0 | EM107: 0 | EN107: 0 | EO107: 0 | EP107: 0 | EQ107: 0 | ER107: 0 | ES107: 0 | ET107: 0 | EU107: 0 | EV107: 0 | EW107: 0 | EX107: 0 | EY107: 0 | EZ107: 0 | FA107: 0 | FB107: 0 | FC107: 0 | FD107: 0 | FE107: 0 | FF107: 0 | FG107: 0 | FH107: 0 | FI107: 0 | FJ107: 0 | FK107: 0 | FL107: 0 | FM107: 0 | FN107: 0 | FO107: 0 | FP107: 0 | FQ107: 0 | FR107: 0 | FS107: 0 | FT107: 0 | FU107: 0 | FV107: 0 | FW107: 0 | FX107: 0 | FY107: 0 | FZ107: 0 | GA107: 0 | GB107: 0 | GC107: 0 | GD107: 0 | GE107: 0 | GF107: 0 | GG107: 0 | GH107: 0
A108: =IFERROR(IF($B108="","",INDEX('2019 scenario - output'!$A$6:$A$12,MATCH('2019 scenario - input'!$B108,'2019 scenario - output'!$B$6:$B$12,0))),"") ->  | CV108: 0 | CW108: 0 | CX108: 0 | CY108: 0 | CZ108: 0 | DA108: 0 | DB108: 0 | DC108: 0 | DD108: 0 | DE108: 0 | DF108: 0 | DG108: 0 | DH108: 0 | DI108: 0 | DJ108: 0 | DK108: 0 | DL108: 0 | DM108: 0 | DN108: 0 | DO108: 0 | DP108: 0 | DQ108: 0 | DR108: 0 | DS108: 0 | DT108: 0 | DU108: 0 | DV108: 0 | DW108: 0 | DX108: 0 | DY108: 0 | DZ108: 0 | EA108: 0 | EB108: 0 | EC108: 0 | ED108: 0 | EE108: 0 | EF108: 0 | EG108: 0 | EH108: 0 | EI108: 0 | EJ108: 0 | EK108: 0 | EL108: 0 | EM108: 0 | EN108: 0 | EO108: 0 | EP108: 0 | EQ108: 0 | ER108: 0 | ES108: 0 | ET108: 0 | EU108: 0 | EV108: 0 | EW108: 0 | EX108: 0 | EY108: 0 | EZ108: 0 | FA108: 0 | FB108: 0 | FC108: 0 | FD108: 0 | FE108: 0 | FF108: 0 | FG108: 0 | FH108: 0 | FI108: 0 | FJ108: 0 | FK108: 0 | FL108: 0 | FM108: 0 | FN108: 0 | FO108: 0 | FP108: 0 | FQ108: 0 | FR108: 0 | FS108: 0 | FT108: 0 | FU108: 0 | FV108: 0 | FW108: 0 | FX108: 0 | FY108: 0 | FZ108: 0 | GA108: 0 | GB108: 0 | GC108: 0 | GD108: 0 | GE108: 0 | GF108: 0 | GG108: 0 | GH108: 0
A109: =IFERROR(IF($B109="","",INDEX('2019 scenario - output'!$A$6:$A$12,MATCH('2019 scenario - input'!$B109,'2019 scenario - output'!$B$6:$B$12,0))),"") ->  | CV109: 0 | CW109: 0 | CX109: 0 | CY109: 0 | CZ109: 0 | DA109: 0 | DB109: 0 | DC109: 0 | DD109: 0 | DE109: 0 | DF109: 0 | DG109: 0 | DH109: 0 | DI109: 0 | DJ109: 0 | DK109: 0 | DL109: 0 | DM109: 0 | DN109: 0 | DO109: 0 | DP109: 0 | DQ109: 0 | DR109: 0 | DS109: 0 | DT109: 0 | DU109: 0 | DV109: 0 | DW109: 0 | DX109: 0 | DY109: 0 | DZ109: 0 | EA109: 0 | EB109: 0 | EC109: 0 | ED109: 0 | EE109: 0 | EF109: 0 | EG109: 0 | EH109: 0 | EI109: 0 | EJ109: 0 | EK109: 0 | EL109: 0 | EM109: 0 | EN109: 0 | EO109: 0 | EP109: 0 | EQ109: 0 | ER109: 0 | ES109: 0 | ET109: 0 | EU109: 0 | EV109: 0 | EW109: 0 | EX109: 0 | EY109: 0 | EZ109: 0 | FA109: 0 | FB109: 0 | FC109: 0 | FD109: 0 | FE109: 0 | FF109: 0 | FG109: 0 | FH109: 0 | FI109: 0 | FJ109: 0 | FK109: 0 | FL109: 0 | FM109: 0 | FN109: 0 | FO109: 0 | FP109: 0 | FQ109: 0 | FR109: 0 | FS109: 0 | FT109: 0 | FU109: 0 | FV109: 0 | FW109: 0 | FX109: 0 | FY109: 0 | FZ109: 0 | GA109: 0 | GB109: 0 | GC109: 0 | GD109: 0 | GE109: 0 | GF109: 0 | GG109: 0 | GH109: 0
A110: =IFERROR(IF($B110="","",INDEX('2019 scenario - output'!$A$6:$A$12,MATCH('2019 scenario - input'!$B110,'2019 scenario - output'!$B$6:$B$12,0))),"") ->  | CV110: 0 | CW110: 0 | CX110: 0 | CY110: 0 | CZ110: 0 | DA110: 0 | DB110: 0 | DC110: 0 | DD110: 0 | DE110: 0 | DF110: 0 | DG110: 0 | DH110: 0 | DI110: 0 | DJ110: 0 | DK110: 0 | DL110: 0 | DM110: 0 | DN110: 0 | DO110: 0 | DP110: 0 | DQ110: 0 | DR110: 0 | DS110: 0 | DT110: 0 | DU110: 0 | DV110: 0 | DW110: 0 | DX110: 0 | DY110: 0 | DZ110: 0 | EA110: 0 | EB110: 0 | EC110: 0 | ED110: 0 | EE110: 0 | EF110: 0 | EG110: 0 | EH110: 0 | EI110: 0 | EJ110: 0 | EK110: 0 | EL110: 0 | EM110: 0 | EN110: 0 | EO110: 0 | EP110: 0 | EQ110: 0 | ER110: 0 | ES110: 0 | ET110: 0 | EU110: 0 | EV110: 0 | EW110: 0 | EX110: 0 | EY110: 0 | EZ110: 0 | FA110: 0 | FB110: 0 | FC110: 0 | FD110: 0 | FE110: 0 | FF110: 0 | FG110: 0 | FH110: 0 | FI110: 0 | FJ110: 0 | FK110: 0 | FL110: 0 | FM110: 0 | FN110: 0 | FO110: 0 | FP110: 0 | FQ110: 0 | FR110: 0 | FS110: 0 | FT110: 0 | FU110: 0 | FV110: 0 | FW110: 0 | FX110: 0 | FY110: 0 | FZ110: 0 | GA110: 0 | GB110: 0 | GC110: 0 | GD110: 0 | GE110: 0 | GF110: 0 | GG110: 0 | GH110: 0
A111: =IFERROR(IF($B111="","",INDEX('2019 scenario - output'!$A$6:$A$12,MATCH('2019 scenario - input'!$B111,'2019 scenario - output'!$B$6:$B$12,0))),"") ->  | CV111: 0 | CW111: 0 | CX111: 0 | CY111: 0 | CZ111: 0 | DA111: 0 | DB111: 0 | DC111: 0 | DD111: 0 | DE111: 0 | DF111: 0 | DG111: 0 | DH111: 0 | DI111: 0 | DJ111: 0 | DK111: 0 | DL111: 0 | DM111: 0 | DN111: 0 | DO111: 0 | DP111: 0 | DQ111: 0 | DR111: 0 | DS111: 0 | DT111: 0 | DU111: 0 | DV111: 0 | DW111: 0 | DX111: 0 | DY111: 0 | DZ111: 0 | EA111: 0 | EB111: 0 | EC111: 0 | ED111: 0 | EE111: 0 | EF111: 0 | EG111: 0 | EH111: 0 | EI111: 0 | EJ111: 0 | EK111: 0 | EL111: 0 | EM111: 0 | EN111: 0 | EO111: 0 | EP111: 0 | EQ111: 0 | ER111: 0 | ES111: 0 | ET111: 0 | EU111: 0 | EV111: 0 | EW111: 0 | EX111: 0 | EY111: 0 | EZ111: 0 | FA111: 0 | FB111: 0 | FC111: 0 | FD111: 0 | FE111: 0 | FF111: 0 | FG111: 0 | FH111: 0 | FI111: 0 | FJ111: 0 | FK111: 0 | FL111: 0 | FM111: 0 | FN111: 0 | FO111: 0 | FP111: 0 | FQ111: 0 | FR111: 0 | FS111: 0 | FT111: 0 | FU111: 0 | FV111: 0 | FW111: 0 | FX111: 0 | FY111: 0 | FZ111: 0 | GA111: 0 | GB111: 0 | GC111: 0 | GD111: 0 | GE111: 0 | GF111: 0 | GG111: 0 | GH111: 0
A112: =IFERROR(IF($B112="","",INDEX('2019 scenario - output'!$A$6:$A$12,MATCH('2019 scenario - input'!$B112,'2019 scenario - output'!$B$6:$B$12,0))),"") ->  | CV112: 0 | CW112: 0 | CX112: 0 | CY112: 0 | CZ112: 0 | DA112: 0 | DB112: 0 | DC112: 0 | DD112: 0 | DE112: 0 | DF112: 0 | DG112: 0 | DH112: 0 | DI112: 0 | DJ112: 0 | DK112: 0 | DL112: 0 | DM112: 0 | DN112: 0 | DO112: 0 | DP112: 0 | DQ112: 0 | DR112: 0 | DS112: 0 | DT112: 0 | DU112: 0 | DV112: 0 | DW112: 0 | DX112: 0 | DY112: 0 | DZ112: 0 | EA112: 0 | EB112: 0 | EC112: 0 | ED112: 0 | EE112: 0 | EF112: 0 | EG112: 0 | EH112: 0 | EI112: 0 | EJ112: 0 | EK112: 0 | EL112: 0 | EM112: 0 | EN112: 0 | EO112: 0 | EP112: 0 | EQ112: 0 | ER112: 0 | ES112: 0 | ET112: 0 | EU112: 0 | EV112: 0 | EW112: 0 | EX112: 0 | EY112: 0 | EZ112: 0 | FA112: 0 | FB112: 0 | FC112: 0 | FD112: 0 | FE112: 0 | FF112: 0 | FG112: 0 | FH112: 0 | FI112: 0 | FJ112: 0 | FK112: 0 | FL112: 0 | FM112: 0 | FN112: 0 | FO112: 0 | FP112: 0 | FQ112: 0 | FR112: 0 | FS112: 0 | FT112: 0 | FU112: 0 | FV112: 0 | FW112: 0 | FX112: 0 | FY112: 0 | FZ112: 0 | GA112: 0 | GB112: 0 | GC112: 0 | GD112: 0 | GE112: 0 | GF112: 0 | GG112: 0 | GH112: 0
A113: =IFERROR(IF($B113="","",INDEX('2019 scenario - output'!$A$6:$A$12,MATCH('2019 scenario - input'!$B113,'2019 scenario - output'!$B$6:$B$12,0))),"") ->  | CV113: 0 | CW113: 0 | CX113: 0 | CY113: 0 | CZ113: 0 | DA113: 0 | DB113: 0 | DC113: 0 | DD113: 0 | DE113: 0 | DF113: 0 | DG113: 0 | DH113: 0 | DI113: 0 | DJ113: 0 | DK113: 0 | DL113: 0 | DM113: 0 | DN113: 0 | DO113: 0 | DP113: 0 | DQ113: 0 | DR113: 0 | DS113: 0 | DT113: 0 | DU113: 0 | DV113: 0 | DW113: 0 | DX113: 0 | DY113: 0 | DZ113: 0 | EA113: 0 | EB113: 0 | EC113: 0 | ED113: 0 | EE113: 0 | EF113: 0 | EG113: 0 | EH113: 0 | EI113: 0 | EJ113: 0 | EK113: 0 | EL113: 0 | EM113: 0 | EN113: 0 | EO113: 0 | EP113: 0 | EQ113: 0 | ER113: 0 | ES113: 0 | ET113: 0 | EU113: 0 | EV113: 0 | EW113: 0 | EX113: 0 | EY113: 0 | EZ113: 0 | FA113: 0 | FB113: 0 | FC113: 0 | FD113: 0 | FE113: 0 | FF113: 0 | FG113: 0 | FH113: 0 | FI113: 0 | FJ113: 0 | FK113: 0 | FL113: 0 | FM113: 0 | FN113: 0 | FO113: 0 | FP113: 0 | FQ113: 0 | FR113: 0 | FS113: 0 | FT113: 0 | FU113: 0 | FV113: 0 | FW113: 0 | FX113: 0 | FY113: 0 | FZ113: 0 | GA113: 0 | GB113: 0 | GC113: 0 | GD113: 0 | GE113: 0 | GF113: 0 | GG113: 0 | GH113: 0
A114: =IFERROR(IF($B114="","",INDEX('2019 scenario - output'!$A$6:$A$12,MATCH('2019 scenario - input'!$B114,'2019 scenario - output'!$B$6:$B$12,0))),"") ->  | CV114: 0 | CW114: 0 | CX114: 0 | CY114: 0 | CZ114: 0 | DA114: 0 | DB114: 0 | DC114: 0 | DD114: 0 | DE114: 0 | DF114: 0 | DG114: 0 | DH114: 0 | DI114: 0 | DJ114: 0 | DK114: 0 | DL114: 0 | DM114: 0 | DN114: 0 | DO114: 0 | DP114: 0 | DQ114: 0 | DR114: 0 | DS114: 0 | DT114: 0 | DU114: 0 | DV114: 0 | DW114: 0 | DX114: 0 | DY114: 0 | DZ114: 0 | EA114: 0 | EB114: 0 | EC114: 0 | ED114: 0 | EE114: 0 | EF114: 0 | EG114: 0 | EH114: 0 | EI114: 0 | EJ114: 0 | EK114: 0 | EL114: 0 | EM114: 0 | EN114: 0 | EO114: 0 | EP114: 0 | EQ114: 0 | ER114: 0 | ES114: 0 | ET114: 0 | EU114: 0 | EV114: 0 | EW114: 0 | EX114: 0 | EY114: 0 | EZ114: 0 | FA114: 0 | FB114: 0 | FC114: 0 | FD114: 0 | FE114: 0 | FF114: 0 | FG114: 0 | FH114: 0 | FI114: 0 | FJ114: 0 | FK114: 0 | FL114: 0 | FM114: 0 | FN114: 0 | FO114: 0 | FP114: 0 | FQ114: 0 | FR114: 0 | FS114: 0 | FT114: 0 | FU114: 0 | FV114: 0 | FW114: 0 | FX114: 0 | FY114: 0 | FZ114: 0 | GA114: 0 | GB114: 0 | GC114: 0 | GD114: 0 | GE114: 0 | GF114: 0 | GG114: 0 | GH114: 0
A115: =IFERROR(IF($B115="","",INDEX('2019 scenario - output'!$A$6:$A$12,MATCH('2019 scenario - input'!$B115,'2019 scenario - output'!$B$6:$B$12,0))),"") ->  | CV115: 0 | CW115: 0 | CX115: 0 | CY115: 0 | CZ115: 0 | DA115: 0 | DB115: 0 | DC115: 0 | DD115: 0 | DE115: 0 | DF115: 0 | DG115: 0 | DH115: 0 | DI115: 0 | DJ115: 0 | DK115: 0 | DL115: 0 | DM115: 0 | DN115: 0 | DO115: 0 | DP115: 0 | DQ115: 0 | DR115: 0 | DS115: 0 | DT115: 0 | DU115: 0 | DV115: 0 | DW115: 0 | DX115: 0 | DY115: 0 | DZ115: 0 | EA115: 0 | EB115: 0 | EC115: 0 | ED115: 0 | EE115: 0 | EF115: 0 | EG115: 0 | EH115: 0 | EI115: 0 | EJ115: 0 | EK115: 0 | EL115: 0 | EM115: 0 | EN115: 0 | EO115: 0 | EP115: 0 | EQ115: 0 | ER115: 0 | ES115: 0 | ET115: 0 | EU115: 0 | EV115: 0 | EW115: 0 | EX115: 0 | EY115: 0 | EZ115: 0 | FA115: 0 | FB115: 0 | FC115: 0 | FD115: 0 | FE115: 0 | FF115: 0 | FG115: 0 | FH115: 0 | FI115: 0 | FJ115: 0 | FK115: 0 | FL115: 0 | FM115: 0 | FN115: 0 | FO115: 0 | FP115: 0 | FQ115: 0 | FR115: 0 | FS115: 0 | FT115: 0 | FU115: 0 | FV115: 0 | FW115: 0 | FX115: 0 | FY115: 0 | FZ115: 0 | GA115: 0 | GB115: 0 | GC115: 0 | GD115: 0 | GE115: 0 | GF115: 0 | GG115: 0 | GH115: 0
A116: =IFERROR(IF($B116="","",INDEX('2019 scenario - output'!$A$6:$A$12,MATCH('2019 scenario - input'!$B116,'2019 scenario - output'!$B$6:$B$12,0))),"") ->  | CV116: 0 | CW116: 0 | CX116: 0 | CY116: 0 | CZ116: 0 | DA116: 0 | DB116: 0 | DC116: 0 | DD116: 0 | DE116: 0 | DF116: 0 | DG116: 0 | DH116: 0 | DI116: 0 | DJ116: 0 | DK116: 0 | DL116: 0 | DM116: 0 | DN116: 0 | DO116: 0 | DP116: 0 | DQ116: 0 | DR116: 0 | DS116: 0 | DT116: 0 | DU116: 0 | DV116: 0 | DW116: 0 | DX116: 0 | DY116: 0 | DZ116: 0 | EA116: 0 | EB116: 0 | EC116: 0 | ED116: 0 | EE116: 0 | EF116: 0 | EG116: 0 | EH116: 0 | EI116: 0 | EJ116: 0 | EK116: 0 | EL116: 0 | EM116: 0 | EN116: 0 | EO116: 0 | EP116: 0 | EQ116: 0 | ER116: 0 | ES116: 0 | ET116: 0 | EU116: 0 | EV116: 0 | EW116: 0 | EX116: 0 | EY116: 0 | EZ116: 0 | FA116: 0 | FB116: 0 | FC116: 0 | FD116: 0 | FE116: 0 | FF116: 0 | FG116: 0 | FH116: 0 | FI116: 0 | FJ116: 0 | FK116: 0 | FL116: 0 | FM116: 0 | FN116: 0 | FO116: 0 | FP116: 0 | FQ116: 0 | FR116: 0 | FS116: 0 | FT116: 0 | FU116: 0 | FV116: 0 | FW116: 0 | FX116: 0 | FY116: 0 | FZ116: 0 | GA116: 0 | GB116: 0 | GC116: 0 | GD116: 0 | GE116: 0 | GF116: 0 | GG116: 0 | GH116: 0
A117: =IFERROR(IF($B117="","",INDEX('2019 scenario - output'!$A$6:$A$12,MATCH('2019 scenario - input'!$B117,'2019 scenario - output'!$B$6:$B$12,0))),"") ->  | CV117: 0 | CW117: 0 | CX117: 0 | CY117: 0 | CZ117: 0 | DA117: 0 | DB117: 0 | DC117: 0 | DD117: 0 | DE117: 0 | DF117: 0 | DG117: 0 | DH117: 0 | DI117: 0 | DJ117: 0 | DK117: 0 | DL117: 0 | DM117: 0 | DN117: 0 | DO117: 0 | DP117: 0 | DQ117: 0 | DR117: 0 | DS117: 0 | DT117: 0 | DU117: 0 | DV117: 0 | DW117: 0 | DX117: 0 | DY117: 0 | DZ117: 0 | EA117: 0 | EB117: 0 | EC117: 0 | ED117: 0 | EE117: 0 | EF117: 0 | EG117: 0 | EH117: 0 | EI117: 0 | EJ117: 0 | EK117: 0 | EL117: 0 | EM117: 0 | EN117: 0 | EO117: 0 | EP117: 0 | EQ117: 0 | ER117: 0 | ES117: 0 | ET117: 0 | EU117: 0 | EV117: 0 | EW117: 0 | EX117: 0 | EY117: 0 | EZ117: 0 | FA117: 0 | FB117: 0 | FC117: 0 | FD117: 0 | FE117: 0 | FF117: 0 | FG117: 0 | FH117: 0 | FI117: 0 | FJ117: 0 | FK117: 0 | FL117: 0 | FM117: 0 | FN117: 0 | FO117: 0 | FP117: 0 | FQ117: 0 | FR117: 0 | FS117: 0 | FT117: 0 | FU117: 0 | FV117: 0 | FW117: 0 | FX117: 0 | FY117: 0 | FZ117: 0 | GA117: 0 | GB117: 0 | GC117: 0 | GD117: 0 | GE117: 0 | GF117: 0 | GG117: 0 | GH117: 0
A118: =IFERROR(IF($B118="","",INDEX('2019 scenario - output'!$A$6:$A$12,MATCH('2019 scenario - input'!$B118,'2019 scenario - output'!$B$6:$B$12,0))),"") ->  | CV118: 0 | CW118: 0 | CX118: 0 | CY118: 0 | CZ118: 0 | DA118: 0 | DB118: 0 | DC118: 0 | DD118: 0 | DE118: 0 | DF118: 0 | DG118: 0 | DH118: 0 | DI118: 0 | DJ118: 0 | DK118: 0 | DL118: 0 | DM118: 0 | DN118: 0 | DO118: 0 | DP118: 0 | DQ118: 0 | DR118: 0 | DS118: 0 | DT118: 0 | DU118: 0 | DV118: 0 | DW118: 0 | DX118: 0 | DY118: 0 | DZ118: 0 | EA118: 0 | EB118: 0 | EC118: 0 | ED118: 0 | EE118: 0 | EF118: 0 | EG118: 0 | EH118: 0 | EI118: 0 | EJ118: 0 | EK118: 0 | EL118: 0 | EM118: 0 | EN118: 0 | EO118: 0 | EP118: 0 | EQ118: 0 | ER118: 0 | ES118: 0 | ET118: 0 | EU118: 0 | EV118: 0 | EW118: 0 | EX118: 0 | EY118: 0 | EZ118: 0 | FA118: 0 | FB118: 0 | FC118: 0 | FD118: 0 | FE118: 0 | FF118: 0 | FG118: 0 | FH118: 0 | FI118: 0 | FJ118: 0 | FK118: 0 | FL118: 0 | FM118: 0 | FN118: 0 | FO118: 0 | FP118: 0 | FQ118: 0 | FR118: 0 | FS118: 0 | FT118: 0 | FU118: 0 | FV118: 0 | FW118: 0 | FX118: 0 | FY118: 0 | FZ118: 0 | GA118: 0 | GB118: 0 | GC118: 0 | GD118: 0 | GE118: 0 | GF118: 0 | GG118: 0 | GH118: 0
A119: =IFERROR(IF($B119="","",INDEX('2019 scenario - output'!$A$6:$A$12,MATCH('2019 scenario - input'!$B119,'2019 scenario - output'!$B$6:$B$12,0))),"") ->  | CV119: 0 | CW119: 0 | CX119: 0 | CY119: 0 | CZ119: 0 | DA119: 0 | DB119: 0 | DC119: 0 | DD119: 0 | DE119: 0 | DF119: 0 | DG119: 0 | DH119: 0 | DI119: 0 | DJ119: 0 | DK119: 0 | DL119: 0 | DM119: 0 | DN119: 0 | DO119: 0 | DP119: 0 | DQ119: 0 | DR119: 0 | DS119: 0 | DT119: 0 | DU119: 0 | DV119: 0 | DW119: 0 | DX119: 0 | DY119: 0 | DZ119: 0 | EA119: 0 | EB119: 0 | EC119: 0 | ED119: 0 | EE119: 0 | EF119: 0 | EG119: 0 | EH119: 0 | EI119: 0 | EJ119: 0 | EK119: 0 | EL119: 0 | EM119: 0 | EN119: 0 | EO119: 0 | EP119: 0 | EQ119: 0 | ER119: 0 | ES119: 0 | ET119: 0 | EU119: 0 | EV119: 0 | EW119: 0 | EX119: 0 | EY119: 0 | EZ119: 0 | FA119: 0 | FB119: 0 | FC119: 0 | FD119: 0 | FE119: 0 | FF119: 0 | FG119: 0 | FH119: 0 | FI119: 0 | FJ119: 0 | FK119: 0 | FL119: 0 | FM119: 0 | FN119: 0 | FO119: 0 | FP119: 0 | FQ119: 0 | FR119: 0 | FS119: 0 | FT119: 0 | FU119: 0 | FV119: 0 | FW119: 0 | FX119: 0 | FY119: 0 | FZ119: 0 | GA119: 0 | GB119: 0 | GC119: 0 | GD119: 0 | GE119: 0 | GF119: 0 | GG119: 0 | GH119: 0
A120: =IFERROR(IF($B120="","",INDEX('2019 scenario - output'!$A$6:$A$12,MATCH('2019 scenario - input'!$B120,'2019 scenario - output'!$B$6:$B$12,0))),"") ->  | CV120: 0 | CW120: 0 | CX120: 0 | CY120: 0 | CZ120: 0 | DA120: 0 | DB120: 0 | DC120: 0 | DD120: 0 | DE120: 0 | DF120: 0 | DG120: 0 | DH120: 0 | DI120: 0 | DJ120: 0 | DK120: 0 | DL120: 0 | DM120: 0 | DN120: 0 | DO120: 0 | DP120: 0 | DQ120: 0 | DR120: 0 | DS120: 0 | DT120: 0 | DU120: 0 | DV120: 0 | DW120: 0 | DX120: 0 | DY120: 0 | DZ120: 0 | EA120: 0 | EB120: 0 | EC120: 0 | ED120: 0 | EE120: 0 | EF120: 0 | EG120: 0 | EH120: 0 | EI120: 0 | EJ120: 0 | EK120: 0 | EL120: 0 | EM120: 0 | EN120: 0 | EO120: 0 | EP120: 0 | EQ120: 0 | ER120: 0 | ES120: 0 | ET120: 0 | EU120: 0 | EV120: 0 | EW120: 0 | EX120: 0 | EY120: 0 | EZ120: 0 | FA120: 0 | FB120: 0 | FC120: 0 | FD120: 0 | FE120: 0 | FF120: 0 | FG120: 0 | FH120: 0 | FI120: 0 | FJ120: 0 | FK120: 0 | FL120: 0 | FM120: 0 | FN120: 0 | FO120: 0 | FP120: 0 | FQ120: 0 | FR120: 0 | FS120: 0 | FT120: 0 | FU120: 0 | FV120: 0 | FW120: 0 | FX120: 0 | FY120: 0 | FZ120: 0 | GA120: 0 | GB120: 0 | GC120: 0 | GD120: 0 | GE120: 0 | GF120: 0 | GG120: 0 | GH120: 0
A121: =IFERROR(IF($B121="","",INDEX('2019 scenario - output'!$A$6:$A$12,MATCH('2019 scenario - input'!$B121,'2019 scenario - output'!$B$6:$B$12,0))),"") ->  | CV121: 0 | CW121: 0 | CX121: 0 | CY121: 0 | CZ121: 0 | DA121: 0 | DB121: 0 | DC121: 0 | DD121: 0 | DE121: 0 | DF121: 0 | DG121: 0 | DH121: 0 | DI121: 0 | DJ121: 0 | DK121: 0 | DL121: 0 | DM121: 0 | DN121: 0 | DO121: 0 | DP121: 0 | DQ121: 0 | DR121: 0 | DS121: 0 | DT121: 0 | DU121: 0 | DV121: 0 | DW121: 0 | DX121: 0 | DY121: 0 | DZ121: 0 | EA121: 0 | EB121: 0 | EC121: 0 | ED121: 0 | EE121: 0 | EF121: 0 | EG121: 0 | EH121: 0 | EI121: 0 | EJ121: 0 | EK121: 0 | EL121: 0 | EM121: 0 | EN121: 0 | EO121: 0 | EP121: 0 | EQ121: 0 | ER121: 0 | ES121: 0 | ET121: 0 | EU121: 0 | EV121: 0 | EW121: 0 | EX121: 0 | EY121: 0 | EZ121: 0 | FA121: 0 | FB121: 0 | FC121: 0 | FD121: 0 | FE121: 0 | FF121: 0 | FG121: 0 | FH121: 0 | FI121: 0 | FJ121: 0 | FK121: 0 | FL121: 0 | FM121: 0 | FN121: 0 | FO121: 0 | FP121: 0 | FQ121: 0 | FR121: 0 | FS121: 0 | FT121: 0 | FU121: 0 | FV121: 0 | FW121: 0 | FX121: 0 | FY121: 0 | FZ121: 0 | GA121: 0 | GB121: 0 | GC121: 0 | GD121: 0 | GE121: 0 | GF121: 0 | GG121: 0 | GH121: 0
A122: =IFERROR(IF($B122="","",INDEX('2019 scenario - output'!$A$6:$A$12,MATCH('2019 scenario - input'!$B122,'2019 scenario - output'!$B$6:$B$12,0))),"") ->  | CV122: 0 | CW122: 0 | CX122: 0 | CY122: 0 | CZ122: 0 | DA122: 0 | DB122: 0 | DC122: 0 | DD122: 0 | DE122: 0 | DF122: 0 | DG122: 0 | DH122: 0 | DI122: 0 | DJ122: 0 | DK122: 0 | DL122: 0 | DM122: 0 | DN122: 0 | DO122: 0 | DP122: 0 | DQ122: 0 | DR122: 0 | DS122: 0 | DT122: 0 | DU122: 0 | DV122: 0 | DW122: 0 | DX122: 0 | DY122: 0 | DZ122: 0 | EA122: 0 | EB122: 0 | EC122: 0 | ED122: 0 | EE122: 0 | EF122: 0 | EG122: 0 | EH122: 0 | EI122: 0 | EJ122: 0 | EK122: 0 | EL122: 0 | EM122: 0 | EN122: 0 | EO122: 0 | EP122: 0 | EQ122: 0 | ER122: 0 | ES122: 0 | ET122: 0 | EU122: 0 | EV122: 0 | EW122: 0 | EX122: 0 | EY122: 0 | EZ122: 0 | FA122: 0 | FB122: 0 | FC122: 0 | FD122: 0 | FE122: 0 | FF122: 0 | FG122: 0 | FH122: 0 | FI122: 0 | FJ122: 0 | FK122: 0 | FL122: 0 | FM122: 0 | FN122: 0 | FO122: 0 | FP122: 0 | FQ122: 0 | FR122: 0 | FS122: 0 | FT122: 0 | FU122: 0 | FV122: 0 | FW122: 0 | FX122: 0 | FY122: 0 | FZ122: 0 | GA122: 0 | GB122: 0 | GC122: 0 | GD122: 0 | GE122: 0 | GF122: 0 | GG122: 0 | GH122: 0
A123: =IFERROR(IF($B123="","",INDEX('2019 scenario - output'!$A$6:$A$12,MATCH('2019 scenario - input'!$B123,'2019 scenario - output'!$B$6:$B$12,0))),"") ->  | CV123: 0 | CW123: 0 | CX123: 0 | CY123: 0 | CZ123: 0 | DA123: 0 | DB123: 0 | DC123: 0 | DD123: 0 | DE123: 0 | DF123: 0 | DG123: 0 | DH123: 0 | DI123: 0 | DJ123: 0 | DK123: 0 | DL123: 0 | DM123: 0 | DN123: 0 | DO123: 0 | DP123: 0 | DQ123: 0 | DR123: 0 | DS123: 0 | DT123: 0 | DU123: 0 | DV123: 0 | DW123: 0 | DX123: 0 | DY123: 0 | DZ123: 0 | EA123: 0 | EB123: 0 | EC123: 0 | ED123: 0 | EE123: 0 | EF123: 0 | EG123: 0 | EH123: 0 | EI123: 0 | EJ123: 0 | EK123: 0 | EL123: 0 | EM123: 0 | EN123: 0 | EO123: 0 | EP123: 0 | EQ123: 0 | ER123: 0 | ES123: 0 | ET123: 0 | EU123: 0 | EV123: 0 | EW123: 0 | EX123: 0 | EY123: 0 | EZ123: 0 | FA123: 0 | FB123: 0 | FC123: 0 | FD123: 0 | FE123: 0 | FF123: 0 | FG123: 0 | FH123: 0 | FI123: 0 | FJ123: 0 | FK123: 0 | FL123: 0 | FM123: 0 | FN123: 0 | FO123: 0 | FP123: 0 | FQ123: 0 | FR123: 0 | FS123: 0 | FT123: 0 | FU123: 0 | FV123: 0 | FW123: 0 | FX123: 0 | FY123: 0 | FZ123: 0 | GA123: 0 | GB123: 0 | GC123: 0 | GD123: 0 | GE123: 0 | GF123: 0 | GG123: 0 | GH123: 0
A124: =IFERROR(IF($B124="","",INDEX('2019 scenario - output'!$A$6:$A$12,MATCH('2019 scenario - input'!$B124,'2019 scenario - output'!$B$6:$B$12,0))),"") ->  | CV124: 0 | CW124: 0 | CX124: 0 | CY124: 0 | CZ124: 0 | DA124: 0 | DB124: 0 | DC124: 0 | DD124: 0 | DE124: 0 | DF124: 0 | DG124: 0 | DH124: 0 | DI124: 0 | DJ124: 0 | DK124: 0 | DL124: 0 | DM124: 0 | DN124: 0 | DO124: 0 | DP124: 0 | DQ124: 0 | DR124: 0 | DS124: 0 | DT124: 0 | DU124: 0 | DV124: 0 | DW124: 0 | DX124: 0 | DY124: 0 | DZ124: 0 | EA124: 0 | EB124: 0 | EC124: 0 | ED124: 0 | EE124: 0 | EF124: 0 | EG124: 0 | EH124: 0 | EI124: 0 | EJ124: 0 | EK124: 0 | EL124: 0 | EM124: 0 | EN124: 0 | EO124: 0 | EP124: 0 | EQ124: 0 | ER124: 0 | ES124: 0 | ET124: 0 | EU124: 0 | EV124: 0 | EW124: 0 | EX124: 0 | EY124: 0 | EZ124: 0 | FA124: 0 | FB124: 0 | FC124: 0 | FD124: 0 | FE124: 0 | FF124: 0 | FG124: 0 | FH124: 0 | FI124: 0 | FJ124: 0 | FK124: 0 | FL124: 0 | FM124: 0 | FN124: 0 | FO124: 0 | FP124: 0 | FQ124: 0 | FR124: 0 | FS124: 0 | FT124: 0 | FU124: 0 | FV124: 0 | FW124: 0 | FX124: 0 | FY124: 0 | FZ124: 0 | GA124: 0 | GB124: 0 | GC124: 0 | GD124: 0 | GE124: 0 | GF124: 0 | GG124: 0 | GH124: 0
A125: =IFERROR(IF($B125="","",INDEX('2019 scenario - output'!$A$6:$A$12,MATCH('2019 scenario - input'!$B125,'2019 scenario - output'!$B$6:$B$12,0))),"") ->  | CV125: 0 | CW125: 0 | CX125: 0 | CY125: 0 | CZ125: 0 | DA125: 0 | DB125: 0 | DC125: 0 | DD125: 0 | DE125: 0 | DF125: 0 | DG125: 0 | DH125: 0 | DI125: 0 | DJ125: 0 | DK125: 0 | DL125: 0 | DM125: 0 | DN125: 0 | DO125: 0 | DP125: 0 | DQ125: 0 | DR125: 0 | DS125: 0 | DT125: 0 | DU125: 0 | DV125: 0 | DW125: 0 | DX125: 0 | DY125: 0 | DZ125: 0 | EA125: 0 | EB125: 0 | EC125: 0 | ED125: 0 | EE125: 0 | EF125: 0 | EG125: 0 | EH125: 0 | EI125: 0 | EJ125: 0 | EK125: 0 | EL125: 0 | EM125: 0 | EN125: 0 | EO125: 0 | EP125: 0 | EQ125: 0 | ER125: 0 | ES125: 0 | ET125: 0 | EU125: 0 | EV125: 0 | EW125: 0 | EX125: 0 | EY125: 0 | EZ125: 0 | FA125: 0 | FB125: 0 | FC125: 0 | FD125: 0 | FE125: 0 | FF125: 0 | FG125: 0 | FH125: 0 | FI125: 0 | FJ125: 0 | FK125: 0 | FL125: 0 | FM125: 0 | FN125: 0 | FO125: 0 | FP125: 0 | FQ125: 0 | FR125: 0 | FS125: 0 | FT125: 0 | FU125: 0 | FV125: 0 | FW125: 0 | FX125: 0 | FY125: 0 | FZ125: 0 | GA125: 0 | GB125: 0 | GC125: 0 | GD125: 0 | GE125: 0 | GF125: 0 | GG125: 0 | GH125: 0
A126: =IFERROR(IF($B126="","",INDEX('2019 scenario - output'!$A$6:$A$12,MATCH('2019 scenario - input'!$B126,'2019 scenario - output'!$B$6:$B$12,0))),"") ->  | CV126: 0 | CW126: 0 | CX126: 0 | CY126: 0 | CZ126: 0 | DA126: 0 | DB126: 0 | DC126: 0 | DD126: 0 | DE126: 0 | DF126: 0 | DG126: 0 | DH126: 0 | DI126: 0 | DJ126: 0 | DK126: 0 | DL126: 0 | DM126: 0 | DN126: 0 | DO126: 0 | DP126: 0 | DQ126: 0 | DR126: 0 | DS126: 0 | DT126: 0 | DU126: 0 | DV126: 0 | DW126: 0 | DX126: 0 | DY126: 0 | DZ126: 0 | EA126: 0 | EB126: 0 | EC126: 0 | ED126: 0 | EE126: 0 | EF126: 0 | EG126: 0 | EH126: 0 | EI126: 0 | EJ126: 0 | EK126: 0 | EL126: 0 | EM126: 0 | EN126: 0 | EO126: 0 | EP126: 0 | EQ126: 0 | ER126: 0 | ES126: 0 | ET126: 0 | EU126: 0 | EV126: 0 | EW126: 0 | EX126: 0 | EY126: 0 | EZ126: 0 | FA126: 0 | FB126: 0 | FC126: 0 | FD126: 0 | FE126: 0 | FF126: 0 | FG126: 0 | FH126: 0 | FI126: 0 | FJ126: 0 | FK126: 0 | FL126: 0 | FM126: 0 | FN126: 0 | FO126: 0 | FP126: 0 | FQ126: 0 | FR126: 0 | FS126: 0 | FT126: 0 | FU126: 0 | FV126: 0 | FW126: 0 | FX126: 0 | FY126: 0 | FZ126: 0 | GA126: 0 | GB126: 0 | GC126: 0 | GD126: 0 | GE126: 0 | GF126: 0 | GG126: 0 | GH126: 0
A127: =IFERROR(IF($B127="","",INDEX('2019 scenario - output'!$A$6:$A$12,MATCH('2019 scenario - input'!$B127,'2019 scenario - output'!$B$6:$B$12,0))),"") ->  | CV127: 0 | CW127: 0 | CX127: 0 | CY127: 0 | CZ127: 0 | DA127: 0 | DB127: 0 | DC127: 0 | DD127: 0 | DE127: 0 | DF127: 0 | DG127: 0 | DH127: 0 | DI127: 0 | DJ127: 0 | DK127: 0 | DL127: 0 | DM127: 0 | DN127: 0 | DO127: 0 | DP127: 0 | DQ127: 0 | DR127: 0 | DS127: 0 | DT127: 0 | DU127: 0 | DV127: 0 | DW127: 0 | DX127: 0 | DY127: 0 | DZ127: 0 | EA127: 0 | EB127: 0 | EC127: 0 | ED127: 0 | EE127: 0 | EF127: 0 | EG127: 0 | EH127: 0 | EI127: 0 | EJ127: 0 | EK127: 0 | EL127: 0 | EM127: 0 | EN127: 0 | EO127: 0 | EP127: 0 | EQ127: 0 | ER127: 0 | ES127: 0 | ET127: 0 | EU127: 0 | EV127: 0 | EW127: 0 | EX127: 0 | EY127: 0 | EZ127: 0 | FA127: 0 | FB127: 0 | FC127: 0 | FD127: 0 | FE127: 0 | FF127: 0 | FG127: 0 | FH127: 0 | FI127: 0 | FJ127: 0 | FK127: 0 | FL127: 0 | FM127: 0 | FN127: 0 | FO127: 0 | FP127: 0 | FQ127: 0 | FR127: 0 | FS127: 0 | FT127: 0 | FU127: 0 | FV127: 0 | FW127: 0 | FX127: 0 | FY127: 0 | FZ127: 0 | GA127: 0 | GB127: 0 | GC127: 0 | GD127: 0 | GE127: 0 | GF127: 0 | GG127: 0 | GH127: 0
A128: =IFERROR(IF($B128="","",INDEX('2019 scenario - output'!$A$6:$A$12,MATCH('2019 scenario - input'!$B128,'2019 scenario - output'!$B$6:$B$12,0))),"") ->  | CV128: 0 | CW128: 0 | CX128: 0 | CY128: 0 | CZ128: 0 | DA128: 0 | DB128: 0 | DC128: 0 | DD128: 0 | DE128: 0 | DF128: 0 | DG128: 0 | DH128: 0 | DI128: 0 | DJ128: 0 | DK128: 0 | DL128: 0 | DM128: 0 | DN128: 0 | DO128: 0 | DP128: 0 | DQ128: 0 | DR128: 0 | DS128: 0 | DT128: 0 | DU128: 0 | DV128: 0 | DW128: 0 | DX128: 0 | DY128: 0 | DZ128: 0 | EA128: 0 | EB128: 0 | EC128: 0 | ED128: 0 | EE128: 0 | EF128: 0 | EG128: 0 | EH128: 0 | EI128: 0 | EJ128: 0 | EK128: 0 | EL128: 0 | EM128: 0 | EN128: 0 | EO128: 0 | EP128: 0 | EQ128: 0 | ER128: 0 | ES128: 0 | ET128: 0 | EU128: 0 | EV128: 0 | EW128: 0 | EX128: 0 | EY128: 0 | EZ128: 0 | FA128: 0 | FB128: 0 | FC128: 0 | FD128: 0 | FE128: 0 | FF128: 0 | FG128: 0 | FH128: 0 | FI128: 0 | FJ128: 0 | FK128: 0 | FL128: 0 | FM128: 0 | FN128: 0 | FO128: 0 | FP128: 0 | FQ128: 0 | FR128: 0 | FS128: 0 | FT128: 0 | FU128: 0 | FV128: 0 | FW128: 0 | FX128: 0 | FY128: 0 | FZ128: 0 | GA128: 0 | GB128: 0 | GC128: 0 | GD128: 0 | GE128: 0 | GF128: 0 | GG128: 0 | GH128: 0
A129: =IFERROR(IF($B129="","",INDEX('2019 scenario - output'!$A$6:$A$12,MATCH('2019 scenario - input'!$B129,'2019 scenario - output'!$B$6:$B$12,0))),"") ->  | CV129: 0 | CW129: 0 | CX129: 0 | CY129: 0 | CZ129: 0 | DA129: 0 | DB129: 0 | DC129: 0 | DD129: 0 | DE129: 0 | DF129: 0 | DG129: 0 | DH129: 0 | DI129: 0 | DJ129: 0 | DK129: 0 | DL129: 0 | DM129: 0 | DN129: 0 | DO129: 0 | DP129: 0 | DQ129: 0 | DR129: 0 | DS129: 0 | DT129: 0 | DU129: 0 | DV129: 0 | DW129: 0 | DX129: 0 | DY129: 0 | DZ129: 0 | EA129: 0 | EB129: 0 | EC129: 0 | ED129: 0 | EE129: 0 | EF129: 0 | EG129: 0 | EH129: 0 | EI129: 0 | EJ129: 0 | EK129: 0 | EL129: 0 | EM129: 0 | EN129: 0 | EO129: 0 | EP129: 0 | EQ129: 0 | ER129: 0 | ES129: 0 | ET129: 0 | EU129: 0 | EV129: 0 | EW129: 0 | EX129: 0 | EY129: 0 | EZ129: 0 | FA129: 0 | FB129: 0 | FC129: 0 | FD129: 0 | FE129: 0 | FF129: 0 | FG129: 0 | FH129: 0 | FI129: 0 | FJ129: 0 | FK129: 0 | FL129: 0 | FM129: 0 | FN129: 0 | FO129: 0 | FP129: 0 | FQ129: 0 | FR129: 0 | FS129: 0 | FT129: 0 | FU129: 0 | FV129: 0 | FW129: 0 | FX129: 0 | FY129: 0 | FZ129: 0 | GA129: 0 | GB129: 0 | GC129: 0 | GD129: 0 | GE129: 0 | GF129: 0 | GG129: 0 | GH129: 0
A130: =IFERROR(IF($B130="","",INDEX('2019 scenario - output'!$A$6:$A$12,MATCH('2019 scenario - input'!$B130,'2019 scenario - output'!$B$6:$B$12,0))),"") ->  | CV130: 0 | CW130: 0 | CX130: 0 | CY130: 0 | CZ130: 0 | DA130: 0 | DB130: 0 | DC130: 0 | DD130: 0 | DE130: 0 | DF130: 0 | DG130: 0 | DH130: 0 | DI130: 0 | DJ130: 0 | DK130: 0 | DL130: 0 | DM130: 0 | DN130: 0 | DO130: 0 | DP130: 0 | DQ130: 0 | DR130: 0 | DS130: 0 | DT130: 0 | DU130: 0 | DV130: 0 | DW130: 0 | DX130: 0 | DY130: 0 | DZ130: 0 | EA130: 0 | EB130: 0 | EC130: 0 | ED130: 0 | EE130: 0 | EF130: 0 | EG130: 0 | EH130: 0 | EI130: 0 | EJ130: 0 | EK130: 0 | EL130: 0 | EM130: 0 | EN130: 0 | EO130: 0 | EP130: 0 | EQ130: 0 | ER130: 0 | ES130: 0 | ET130: 0 | EU130: 0 | EV130: 0 | EW130: 0 | EX130: 0 | EY130: 0 | EZ130: 0 | FA130: 0 | FB130: 0 | FC130: 0 | FD130: 0 | FE130: 0 | FF130: 0 | FG130: 0 | FH130: 0 | FI130: 0 | FJ130: 0 | FK130: 0 | FL130: 0 | FM130: 0 | FN130: 0 | FO130: 0 | FP130: 0 | FQ130: 0 | FR130: 0 | FS130: 0 | FT130: 0 | FU130: 0 | FV130: 0 | FW130: 0 | FX130: 0 | FY130: 0 | FZ130: 0 | GA130: 0 | GB130: 0 | GC130: 0 | GD130: 0 | GE130: 0 | GF130: 0 | GG130: 0 | GH130: 0
A131: =IFERROR(IF($B131="","",INDEX('2019 scenario - output'!$A$6:$A$12,MATCH('2019 scenario - input'!$B131,'2019 scenario - output'!$B$6:$B$12,0))),"") ->  | CV131: 0 | CW131: 0 | CX131: 0 | CY131: 0 | CZ131: 0 | DA131: 0 | DB131: 0 | DC131: 0 | DD131: 0 | DE131: 0 | DF131: 0 | DG131: 0 | DH131: 0 | DI131: 0 | DJ131: 0 | DK131: 0 | DL131: 0 | DM131: 0 | DN131: 0 | DO131: 0 | DP131: 0 | DQ131: 0 | DR131: 0 | DS131: 0 | DT131: 0 | DU131: 0 | DV131: 0 | DW131: 0 | DX131: 0 | DY131: 0 | DZ131: 0 | EA131: 0 | EB131: 0 | EC131: 0 | ED131: 0 | EE131: 0 | EF131: 0 | EG131: 0 | EH131: 0 | EI131: 0 | EJ131: 0 | EK131: 0 | EL131: 0 | EM131: 0 | EN131: 0 | EO131: 0 | EP131: 0 | EQ131: 0 | ER131: 0 | ES131: 0 | ET131: 0 | EU131: 0 | EV131: 0 | EW131: 0 | EX131: 0 | EY131: 0 | EZ131: 0 | FA131: 0 | FB131: 0 | FC131: 0 | FD131: 0 | FE131: 0 | FF131: 0 | FG131: 0 | FH131: 0 | FI131: 0 | FJ131: 0 | FK131: 0 | FL131: 0 | FM131: 0 | FN131: 0 | FO131: 0 | FP131: 0 | FQ131: 0 | FR131: 0 | FS131: 0 | FT131: 0 | FU131: 0 | FV131: 0 | FW131: 0 | FX131: 0 | FY131: 0 | FZ131: 0 | GA131: 0 | GB131: 0 | GC131: 0 | GD131: 0 | GE131: 0 | GF131: 0 | GG131: 0 | GH131: 0
A132: =IFERROR(IF($B132="","",INDEX('2019 scenario - output'!$A$6:$A$12,MATCH('2019 scenario - input'!$B132,'2019 scenario - output'!$B$6:$B$12,0))),"") ->  | CV132: 0 | CW132: 0 | CX132: 0 | CY132: 0 | CZ132: 0 | DA132: 0 | DB132: 0 | DC132: 0 | DD132: 0 | DE132: 0 | DF132: 0 | DG132: 0 | DH132: 0 | DI132: 0 | DJ132: 0 | DK132: 0 | DL132: 0 | DM132: 0 | DN132: 0 | DO132: 0 | DP132: 0 | DQ132: 0 | DR132: 0 | DS132: 0 | DT132: 0 | DU132: 0 | DV132: 0 | DW132: 0 | DX132: 0 | DY132: 0 | DZ132: 0 | EA132: 0 | EB132: 0 | EC132: 0 | ED132: 0 | EE132: 0 | EF132: 0 | EG132: 0 | EH132: 0 | EI132: 0 | EJ132: 0 | EK132: 0 | EL132: 0 | EM132: 0 | EN132: 0 | EO132: 0 | EP132: 0 | EQ132: 0 | ER132: 0 | ES132: 0 | ET132: 0 | EU132: 0 | EV132: 0 | EW132: 0 | EX132: 0 | EY132: 0 | EZ132: 0 | FA132: 0 | FB132: 0 | FC132: 0 | FD132: 0 | FE132: 0 | FF132: 0 | FG132: 0 | FH132: 0 | FI132: 0 | FJ132: 0 | FK132: 0 | FL132: 0 | FM132: 0 | FN132: 0 | FO132: 0 | FP132: 0 | FQ132: 0 | FR132: 0 | FS132: 0 | FT132: 0 | FU132: 0 | FV132: 0 | FW132: 0 | FX132: 0 | FY132: 0 | FZ132: 0 | GA132: 0 | GB132: 0 | GC132: 0 | GD132: 0 | GE132: 0 | GF132: 0 | GG132: 0 | GH132: 0
A133: =IFERROR(IF($B133="","",INDEX('2019 scenario - output'!$A$6:$A$12,MATCH('2019 scenario - input'!$B133,'2019 scenario - output'!$B$6:$B$12,0))),"") ->  | CV133: 0 | CW133: 0 | CX133: 0 | CY133: 0 | CZ133: 0 | DA133: 0 | DB133: 0 | DC133: 0 | DD133: 0 | DE133: 0 | DF133: 0 | DG133: 0 | DH133: 0 | DI133: 0 | DJ133: 0 | DK133: 0 | DL133: 0 | DM133: 0 | DN133: 0 | DO133: 0 | DP133: 0 | DQ133: 0 | DR133: 0 | DS133: 0 | DT133: 0 | DU133: 0 | DV133: 0 | DW133: 0 | DX133: 0 | DY133: 0 | DZ133: 0 | EA133: 0 | EB133: 0 | EC133: 0 | ED133: 0 | EE133: 0 | EF133: 0 | EG133: 0 | EH133: 0 | EI133: 0 | EJ133: 0 | EK133: 0 | EL133: 0 | EM133: 0 | EN133: 0 | EO133: 0 | EP133: 0 | EQ133: 0 | ER133: 0 | ES133: 0 | ET133: 0 | EU133: 0 | EV133: 0 | EW133: 0 | EX133: 0 | EY133: 0 | EZ133: 0 | FA133: 0 | FB133: 0 | FC133: 0 | FD133: 0 | FE133: 0 | FF133: 0 | FG133: 0 | FH133: 0 | FI133: 0 | FJ133: 0 | FK133: 0 | FL133: 0 | FM133: 0 | FN133: 0 | FO133: 0 | FP133: 0 | FQ133: 0 | FR133: 0 | FS133: 0 | FT133: 0 | FU133: 0 | FV133: 0 | FW133: 0 | FX133: 0 | FY133: 0 | FZ133: 0 | GA133: 0 | GB133: 0 | GC133: 0 | GD133: 0 | GE133: 0 | GF133: 0 | GG133: 0 | GH133: 0
A134: =IFERROR(IF($B134="","",INDEX('2019 scenario - output'!$A$6:$A$12,MATCH('2019 scenario - input'!$B134,'2019 scenario - output'!$B$6:$B$12,0))),"") ->  | CV134: 0 | CW134: 0 | CX134: 0 | CY134: 0 | CZ134: 0 | DA134: 0 | DB134: 0 | DC134: 0 | DD134: 0 | DE134: 0 | DF134: 0 | DG134: 0 | DH134: 0 | DI134: 0 | DJ134: 0 | DK134: 0 | DL134: 0 | DM134: 0 | DN134: 0 | DO134: 0 | DP134: 0 | DQ134: 0 | DR134: 0 | DS134: 0 | DT134: 0 | DU134: 0 | DV134: 0 | DW134: 0 | DX134: 0 | DY134: 0 | DZ134: 0 | EA134: 0 | EB134: 0 | EC134: 0 | ED134: 0 | EE134: 0 | EF134: 0 | EG134: 0 | EH134: 0 | EI134: 0 | EJ134: 0 | EK134: 0 | EL134: 0 | EM134: 0 | EN134: 0 | EO134: 0 | EP134: 0 | EQ134: 0 | ER134: 0 | ES134: 0 | ET134: 0 | EU134: 0 | EV134: 0 | EW134: 0 | EX134: 0 | EY134: 0 | EZ134: 0 | FA134: 0 | FB134: 0 | FC134: 0 | FD134: 0 | FE134: 0 | FF134: 0 | FG134: 0 | FH134: 0 | FI134: 0 | FJ134: 0 | FK134: 0 | FL134: 0 | FM134: 0 | FN134: 0 | FO134: 0 | FP134: 0 | FQ134: 0 | FR134: 0 | FS134: 0 | FT134: 0 | FU134: 0 | FV134: 0 | FW134: 0 | FX134: 0 | FY134: 0 | FZ134: 0 | GA134: 0 | GB134: 0 | GC134: 0 | GD134: 0 | GE134: 0 | GF134: 0 | GG134: 0 | GH134: 0
A135: =IFERROR(IF($B135="","",INDEX('2019 scenario - output'!$A$6:$A$12,MATCH('2019 scenario - input'!$B135,'2019 scenario - output'!$B$6:$B$12,0))),"") ->  | CV135: 0 | CW135: 0 | CX135: 0 | CY135: 0 | CZ135: 0 | DA135: 0 | DB135: 0 | DC135: 0 | DD135: 0 | DE135: 0 | DF135: 0 | DG135: 0 | DH135: 0 | DI135: 0 | DJ135: 0 | DK135: 0 | DL135: 0 | DM135: 0 | DN135: 0 | DO135: 0 | DP135: 0 | DQ135: 0 | DR135: 0 | DS135: 0 | DT135: 0 | DU135: 0 | DV135: 0 | DW135: 0 | DX135: 0 | DY135: 0 | DZ135: 0 | EA135: 0 | EB135: 0 | EC135: 0 | ED135: 0 | EE135: 0 | EF135: 0 | EG135: 0 | EH135: 0 | EI135: 0 | EJ135: 0 | EK135: 0 | EL135: 0 | EM135: 0 | EN135: 0 | EO135: 0 | EP135: 0 | EQ135: 0 | ER135: 0 | ES135: 0 | ET135: 0 | EU135: 0 | EV135: 0 | EW135: 0 | EX135: 0 | EY135: 0 | EZ135: 0 | FA135: 0 | FB135: 0 | FC135: 0 | FD135: 0 | FE135: 0 | FF135: 0 | FG135: 0 | FH135: 0 | FI135: 0 | FJ135: 0 | FK135: 0 | FL135: 0 | FM135: 0 | FN135: 0 | FO135: 0 | FP135: 0 | FQ135: 0 | FR135: 0 | FS135: 0 | FT135: 0 | FU135: 0 | FV135: 0 | FW135: 0 | FX135: 0 | FY135: 0 | FZ135: 0 | GA135: 0 | GB135: 0 | GC135: 0 | GD135: 0 | GE135: 0 | GF135: 0 | GG135: 0 | GH135: 0
A136: =IFERROR(IF($B136="","",INDEX('2019 scenario - output'!$A$6:$A$12,MATCH('2019 scenario - input'!$B136,'2019 scenario - output'!$B$6:$B$12,0))),"") ->  | CV136: 0 | CW136: 0 | CX136: 0 | CY136: 0 | CZ136: 0 | DA136: 0 | DB136: 0 | DC136: 0 | DD136: 0 | DE136: 0 | DF136: 0 | DG136: 0 | DH136: 0 | DI136: 0 | DJ136: 0 | DK136: 0 | DL136: 0 | DM136: 0 | DN136: 0 | DO136: 0 | DP136: 0 | DQ136: 0 | DR136: 0 | DS136: 0 | DT136: 0 | DU136: 0 | DV136: 0 | DW136: 0 | DX136: 0 | DY136: 0 | DZ136: 0 | EA136: 0 | EB136: 0 | EC136: 0 | ED136: 0 | EE136: 0 | EF136: 0 | EG136: 0 | EH136: 0 | EI136: 0 | EJ136: 0 | EK136: 0 | EL136: 0 | EM136: 0 | EN136: 0 | EO136: 0 | EP136: 0 | EQ136: 0 | ER136: 0 | ES136: 0 | ET136: 0 | EU136: 0 | EV136: 0 | EW136: 0 | EX136: 0 | EY136: 0 | EZ136: 0 | FA136: 0 | FB136: 0 | FC136: 0 | FD136: 0 | FE136: 0 | FF136: 0 | FG136: 0 | FH136: 0 | FI136: 0 | FJ136: 0 | FK136: 0 | FL136: 0 | FM136: 0 | FN136: 0 | FO136: 0 | FP136: 0 | FQ136: 0 | FR136: 0 | FS136: 0 | FT136: 0 | FU136: 0 | FV136: 0 | FW136: 0 | FX136: 0 | FY136: 0 | FZ136: 0 | GA136: 0 | GB136: 0 | GC136: 0 | GD136: 0 | GE136: 0 | GF136: 0 | GG136: 0 | GH136: 0
A137: =IFERROR(IF($B137="","",INDEX('2019 scenario - output'!$A$6:$A$12,MATCH('2019 scenario - input'!$B137,'2019 scenario - output'!$B$6:$B$12,0))),"") ->  | CV137: 0 | CW137: 0 | CX137: 0 | CY137: 0 | CZ137: 0 | DA137: 0 | DB137: 0 | DC137: 0 | DD137: 0 | DE137: 0 | DF137: 0 | DG137: 0 | DH137: 0 | DI137: 0 | DJ137: 0 | DK137: 0 | DL137: 0 | DM137: 0 | DN137: 0 | DO137: 0 | DP137: 0 | DQ137: 0 | DR137: 0 | DS137: 0 | DT137: 0 | DU137: 0 | DV137: 0 | DW137: 0 | DX137: 0 | DY137: 0 | DZ137: 0 | EA137: 0 | EB137: 0 | EC137: 0 | ED137: 0 | EE137: 0 | EF137: 0 | EG137: 0 | EH137: 0 | EI137: 0 | EJ137: 0 | EK137: 0 | EL137: 0 | EM137: 0 | EN137: 0 | EO137: 0 | EP137: 0 | EQ137: 0 | ER137: 0 | ES137: 0 | ET137: 0 | EU137: 0 | EV137: 0 | EW137: 0 | EX137: 0 | EY137: 0 | EZ137: 0 | FA137: 0 | FB137: 0 | FC137: 0 | FD137: 0 | FE137: 0 | FF137: 0 | FG137: 0 | FH137: 0 | FI137: 0 | FJ137: 0 | FK137: 0 | FL137: 0 | FM137: 0 | FN137: 0 | FO137: 0 | FP137: 0 | FQ137: 0 | FR137: 0 | FS137: 0 | FT137: 0 | FU137: 0 | FV137: 0 | FW137: 0 | FX137: 0 | FY137: 0 | FZ137: 0 | GA137: 0 | GB137: 0 | GC137: 0 | GD137: 0 | GE137: 0 | GF137: 0 | GG137: 0 | GH137: 0
A138: =IFERROR(IF($B138="","",INDEX('2019 scenario - output'!$A$6:$A$12,MATCH('2019 scenario - input'!$B138,'2019 scenario - output'!$B$6:$B$12,0))),"") ->  | CV138: 0 | CW138: 0 | CX138: 0 | CY138: 0 | CZ138: 0 | DA138: 0 | DB138: 0 | DC138: 0 | DD138: 0 | DE138: 0 | DF138: 0 | DG138: 0 | DH138: 0 | DI138: 0 | DJ138: 0 | DK138: 0 | DL138: 0 | DM138: 0 | DN138: 0 | DO138: 0 | DP138: 0 | DQ138: 0 | DR138: 0 | DS138: 0 | DT138: 0 | DU138: 0 | DV138: 0 | DW138: 0 | DX138: 0 | DY138: 0 | DZ138: 0 | EA138: 0 | EB138: 0 | EC138: 0 | ED138: 0 | EE138: 0 | EF138: 0 | EG138: 0 | EH138: 0 | EI138: 0 | EJ138: 0 | EK138: 0 | EL138: 0 | EM138: 0 | EN138: 0 | EO138: 0 | EP138: 0 | EQ138: 0 | ER138: 0 | ES138: 0 | ET138: 0 | EU138: 0 | EV138: 0 | EW138: 0 | EX138: 0 | EY138: 0 | EZ138: 0 | FA138: 0 | FB138: 0 | FC138: 0 | FD138: 0 | FE138: 0 | FF138: 0 | FG138: 0 | FH138: 0 | FI138: 0 | FJ138: 0 | FK138: 0 | FL138: 0 | FM138: 0 | FN138: 0 | FO138: 0 | FP138: 0 | FQ138: 0 | FR138: 0 | FS138: 0 | FT138: 0 | FU138: 0 | FV138: 0 | FW138: 0 | FX138: 0 | FY138: 0 | FZ138: 0 | GA138: 0 | GB138: 0 | GC138: 0 | GD138: 0 | GE138: 0 | GF138: 0 | GG138: 0 | GH138: 0
A139: =IFERROR(IF($B139="","",INDEX('2019 scenario - output'!$A$6:$A$12,MATCH('2019 scenario - input'!$B139,'2019 scenario - output'!$B$6:$B$12,0))),"") ->  | CV139: 0 | CW139: 0 | CX139: 0 | CY139: 0 | CZ139: 0 | DA139: 0 | DB139: 0 | DC139: 0 | DD139: 0 | DE139: 0 | DF139: 0 | DG139: 0 | DH139: 0 | DI139: 0 | DJ139: 0 | DK139: 0 | DL139: 0 | DM139: 0 | DN139: 0 | DO139: 0 | DP139: 0 | DQ139: 0 | DR139: 0 | DS139: 0 | DT139: 0 | DU139: 0 | DV139: 0 | DW139: 0 | DX139: 0 | DY139: 0 | DZ139: 0 | EA139: 0 | EB139: 0 | EC139: 0 | ED139: 0 | EE139: 0 | EF139: 0 | EG139: 0 | EH139: 0 | EI139: 0 | EJ139: 0 | EK139: 0 | EL139: 0 | EM139: 0 | EN139: 0 | EO139: 0 | EP139: 0 | EQ139: 0 | ER139: 0 | ES139: 0 | ET139: 0 | EU139: 0 | EV139: 0 | EW139: 0 | EX139: 0 | EY139: 0 | EZ139: 0 | FA139: 0 | FB139: 0 | FC139: 0 | FD139: 0 | FE139: 0 | FF139: 0 | FG139: 0 | FH139: 0 | FI139: 0 | FJ139: 0 | FK139: 0 | FL139: 0 | FM139: 0 | FN139: 0 | FO139: 0 | FP139: 0 | FQ139: 0 | FR139: 0 | FS139: 0 | FT139: 0 | FU139: 0 | FV139: 0 | FW139: 0 | FX139: 0 | FY139: 0 | FZ139: 0 | GA139: 0 | GB139: 0 | GC139: 0 | GD139: 0 | GE139: 0 | GF139: 0 | GG139: 0 | GH139: 0
A140: =IFERROR(IF($B140="","",INDEX('2019 scenario - output'!$A$6:$A$12,MATCH('2019 scenario - input'!$B140,'2019 scenario - output'!$B$6:$B$12,0))),"") ->  | CV140: 0 | CW140: 0 | CX140: 0 | CY140: 0 | CZ140: 0 | DA140: 0 | DB140: 0 | DC140: 0 | DD140: 0 | DE140: 0 | DF140: 0 | DG140: 0 | DH140: 0 | DI140: 0 | DJ140: 0 | DK140: 0 | DL140: 0 | DM140: 0 | DN140: 0 | DO140: 0 | DP140: 0 | DQ140: 0 | DR140: 0 | DS140: 0 | DT140: 0 | DU140: 0 | DV140: 0 | DW140: 0 | DX140: 0 | DY140: 0 | DZ140: 0 | EA140: 0 | EB140: 0 | EC140: 0 | ED140: 0 | EE140: 0 | EF140: 0 | EG140: 0 | EH140: 0 | EI140: 0 | EJ140: 0 | EK140: 0 | EL140: 0 | EM140: 0 | EN140: 0 | EO140: 0 | EP140: 0 | EQ140: 0 | ER140: 0 | ES140: 0 | ET140: 0 | EU140: 0 | EV140: 0 | EW140: 0 | EX140: 0 | EY140: 0 | EZ140: 0 | FA140: 0 | FB140: 0 | FC140: 0 | FD140: 0 | FE140: 0 | FF140: 0 | FG140: 0 | FH140: 0 | FI140: 0 | FJ140: 0 | FK140: 0 | FL140: 0 | FM140: 0 | FN140: 0 | FO140: 0 | FP140: 0 | FQ140: 0 | FR140: 0 | FS140: 0 | FT140: 0 | FU140: 0 | FV140: 0 | FW140: 0 | FX140: 0 | FY140: 0 | FZ140: 0 | GA140: 0 | GB140: 0 | GC140: 0 | GD140: 0 | GE140: 0 | GF140: 0 | GG140: 0 | GH140: 0
A141: =IFERROR(IF($B141="","",INDEX('2019 scenario - output'!$A$6:$A$12,MATCH('2019 scenario - input'!$B141,'2019 scenario - output'!$B$6:$B$12,0))),"") ->  | CV141: 0 | CW141: 0 | CX141: 0 | CY141: 0 | CZ141: 0 | DA141: 0 | DB141: 0 | DC141: 0 | DD141: 0 | DE141: 0 | DF141: 0 | DG141: 0 | DH141: 0 | DI141: 0 | DJ141: 0 | DK141: 0 | DL141: 0 | DM141: 0 | DN141: 0 | DO141: 0 | DP141: 0 | DQ141: 0 | DR141: 0 | DS141: 0 | DT141: 0 | DU141: 0 | DV141: 0 | DW141: 0 | DX141: 0 | DY141: 0 | DZ141: 0 | EA141: 0 | EB141: 0 | EC141: 0 | ED141: 0 | EE141: 0 | EF141: 0 | EG141: 0 | EH141: 0 | EI141: 0 | EJ141: 0 | EK141: 0 | EL141: 0 | EM141: 0 | EN141: 0 | EO141: 0 | EP141: 0 | EQ141: 0 | ER141: 0 | ES141: 0 | ET141: 0 | EU141: 0 | EV141: 0 | EW141: 0 | EX141: 0 | EY141: 0 | EZ141: 0 | FA141: 0 | FB141: 0 | FC141: 0 | FD141: 0 | FE141: 0 | FF141: 0 | FG141: 0 | FH141: 0 | FI141: 0 | FJ141: 0 | FK141: 0 | FL141: 0 | FM141: 0 | FN141: 0 | FO141: 0 | FP141: 0 | FQ141: 0 | FR141: 0 | FS141: 0 | FT141: 0 | FU141: 0 | FV141: 0 | FW141: 0 | FX141: 0 | FY141: 0 | FZ141: 0 | GA141: 0 | GB141: 0 | GC141: 0 | GD141: 0 | GE141: 0 | GF141: 0 | GG141: 0 | GH141: 0
A142: =IFERROR(IF($B142="","",INDEX('2019 scenario - output'!$A$6:$A$12,MATCH('2019 scenario - input'!$B142,'2019 scenario - output'!$B$6:$B$12,0))),"") ->  | CV142: 0 | CW142: 0 | CX142: 0 | CY142: 0 | CZ142: 0 | DA142: 0 | DB142: 0 | DC142: 0 | DD142: 0 | DE142: 0 | DF142: 0 | DG142: 0 | DH142: 0 | DI142: 0 | DJ142: 0 | DK142: 0 | DL142: 0 | DM142: 0 | DN142: 0 | DO142: 0 | DP142: 0 | DQ142: 0 | DR142: 0 | DS142: 0 | DT142: 0 | DU142: 0 | DV142: 0 | DW142: 0 | DX142: 0 | DY142: 0 | DZ142: 0 | EA142: 0 | EB142: 0 | EC142: 0 | ED142: 0 | EE142: 0 | EF142: 0 | EG142: 0 | EH142: 0 | EI142: 0 | EJ142: 0 | EK142: 0 | EL142: 0 | EM142: 0 | EN142: 0 | EO142: 0 | EP142: 0 | EQ142: 0 | ER142: 0 | ES142: 0 | ET142: 0 | EU142: 0 | EV142: 0 | EW142: 0 | EX142: 0 | EY142: 0 | EZ142: 0 | FA142: 0 | FB142: 0 | FC142: 0 | FD142: 0 | FE142: 0 | FF142: 0 | FG142: 0 | FH142: 0 | FI142: 0 | FJ142: 0 | FK142: 0 | FL142: 0 | FM142: 0 | FN142: 0 | FO142: 0 | FP142: 0 | FQ142: 0 | FR142: 0 | FS142: 0 | FT142: 0 | FU142: 0 | FV142: 0 | FW142: 0 | FX142: 0 | FY142: 0 | FZ142: 0 | GA142: 0 | GB142: 0 | GC142: 0 | GD142: 0 | GE142: 0 | GF142: 0 | GG142: 0 | GH142: 0
A143: =IFERROR(IF($B143="","",INDEX('2019 scenario - output'!$A$6:$A$12,MATCH('2019 scenario - input'!$B143,'2019 scenario - output'!$B$6:$B$12,0))),"") ->  | CV143: 0 | CW143: 0 | CX143: 0 | CY143: 0 | CZ143: 0 | DA143: 0 | DB143: 0 | DC143: 0 | DD143: 0 | DE143: 0 | DF143: 0 | DG143: 0 | DH143: 0 | DI143: 0 | DJ143: 0 | DK143: 0 | DL143: 0 | DM143: 0 | DN143: 0 | DO143: 0 | DP143: 0 | DQ143: 0 | DR143: 0 | DS143: 0 | DT143: 0 | DU143: 0 | DV143: 0 | DW143: 0 | DX143: 0 | DY143: 0 | DZ143: 0 | EA143: 0 | EB143: 0 | EC143: 0 | ED143: 0 | EE143: 0 | EF143: 0 | EG143: 0 | EH143: 0 | EI143: 0 | EJ143: 0 | EK143: 0 | EL143: 0 | EM143: 0 | EN143: 0 | EO143: 0 | EP143: 0 | EQ143: 0 | ER143: 0 | ES143: 0 | ET143: 0 | EU143: 0 | EV143: 0 | EW143: 0 | EX143: 0 | EY143: 0 | EZ143: 0 | FA143: 0 | FB143: 0 | FC143: 0 | FD143: 0 | FE143: 0 | FF143: 0 | FG143: 0 | FH143: 0 | FI143: 0 | FJ143: 0 | FK143: 0 | FL143: 0 | FM143: 0 | FN143: 0 | FO143: 0 | FP143: 0 | FQ143: 0 | FR143: 0 | FS143: 0 | FT143: 0 | FU143: 0 | FV143: 0 | FW143: 0 | FX143: 0 | FY143: 0 | FZ143: 0 | GA143: 0 | GB143: 0 | GC143: 0 | GD143: 0 | GE143: 0 | GF143: 0 | GG143: 0 | GH143: 0
A144: =IFERROR(IF($B144="","",INDEX('2019 scenario - output'!$A$6:$A$12,MATCH('2019 scenario - input'!$B144,'2019 scenario - output'!$B$6:$B$12,0))),"") ->  | CV144: 0 | CW144: 0 | CX144: 0 | CY144: 0 | CZ144: 0 | DA144: 0 | DB144: 0 | DC144: 0 | DD144: 0 | DE144: 0 | DF144: 0 | DG144: 0 | DH144: 0 | DI144: 0 | DJ144: 0 | DK144: 0 | DL144: 0 | DM144: 0 | DN144: 0 | DO144: 0 | DP144: 0 | DQ144: 0 | DR144: 0 | DS144: 0 | DT144: 0 | DU144: 0 | DV144: 0 | DW144: 0 | DX144: 0 | DY144: 0 | DZ144: 0 | EA144: 0 | EB144: 0 | EC144: 0 | ED144: 0 | EE144: 0 | EF144: 0 | EG144: 0 | EH144: 0 | EI144: 0 | EJ144: 0 | EK144: 0 | EL144: 0 | EM144: 0 | EN144: 0 | EO144: 0 | EP144: 0 | EQ144: 0 | ER144: 0 | ES144: 0 | ET144: 0 | EU144: 0 | EV144: 0 | EW144: 0 | EX144: 0 | EY144: 0 | EZ144: 0 | FA144: 0 | FB144: 0 | FC144: 0 | FD144: 0 | FE144: 0 | FF144: 0 | FG144: 0 | FH144: 0 | FI144: 0 | FJ144: 0 | FK144: 0 | FL144: 0 | FM144: 0 | FN144: 0 | FO144: 0 | FP144: 0 | FQ144: 0 | FR144: 0 | FS144: 0 | FT144: 0 | FU144: 0 | FV144: 0 | FW144: 0 | FX144: 0 | FY144: 0 | FZ144: 0 | GA144: 0 | GB144: 0 | GC144: 0 | GD144: 0 | GE144: 0 | GF144: 0 | GG144: 0 | GH144: 0
A145: =IFERROR(IF($B145="","",INDEX('2019 scenario - output'!$A$6:$A$12,MATCH('2019 scenario - input'!$B145,'2019 scenario - output'!$B$6:$B$12,0))),"") ->  | CV145: 0 | CW145: 0 | CX145: 0 | CY145: 0 | CZ145: 0 | DA145: 0 | DB145: 0 | DC145: 0 | DD145: 0 | DE145: 0 | DF145: 0 | DG145: 0 | DH145: 0 | DI145: 0 | DJ145: 0 | DK145: 0 | DL145: 0 | DM145: 0 | DN145: 0 | DO145: 0 | DP145: 0 | DQ145: 0 | DR145: 0 | DS145: 0 | DT145: 0 | DU145: 0 | DV145: 0 | DW145: 0 | DX145: 0 | DY145: 0 | DZ145: 0 | EA145: 0 | EB145: 0 | EC145: 0 | ED145: 0 | EE145: 0 | EF145: 0 | EG145: 0 | EH145: 0 | EI145: 0 | EJ145: 0 | EK145: 0 | EL145: 0 | EM145: 0 | EN145: 0 | EO145: 0 | EP145: 0 | EQ145: 0 | ER145: 0 | ES145: 0 | ET145: 0 | EU145: 0 | EV145: 0 | EW145: 0 | EX145: 0 | EY145: 0 | EZ145: 0 | FA145: 0 | FB145: 0 | FC145: 0 | FD145: 0 | FE145: 0 | FF145: 0 | FG145: 0 | FH145: 0 | FI145: 0 | FJ145: 0 | FK145: 0 | FL145: 0 | FM145: 0 | FN145: 0 | FO145: 0 | FP145: 0 | FQ145: 0 | FR145: 0 | FS145: 0 | FT145: 0 | FU145: 0 | FV145: 0 | FW145: 0 | FX145: 0 | FY145: 0 | FZ145: 0 | GA145: 0 | GB145: 0 | GC145: 0 | GD145: 0 | GE145: 0 | GF145: 0 | GG145: 0 | GH145: 0
A146: =IFERROR(IF($B146="","",INDEX('2019 scenario - output'!$A$6:$A$12,MATCH('2019 scenario - input'!$B146,'2019 scenario - output'!$B$6:$B$12,0))),"") ->  | CV146: 0 | CW146: 0 | CX146: 0 | CY146: 0 | CZ146: 0 | DA146: 0 | DB146: 0 | DC146: 0 | DD146: 0 | DE146: 0 | DF146: 0 | DG146: 0 | DH146: 0 | DI146: 0 | DJ146: 0 | DK146: 0 | DL146: 0 | DM146: 0 | DN146: 0 | DO146: 0 | DP146: 0 | DQ146: 0 | DR146: 0 | DS146: 0 | DT146: 0 | DU146: 0 | DV146: 0 | DW146: 0 | DX146: 0 | DY146: 0 | DZ146: 0 | EA146: 0 | EB146: 0 | EC146: 0 | ED146: 0 | EE146: 0 | EF146: 0 | EG146: 0 | EH146: 0 | EI146: 0 | EJ146: 0 | EK146: 0 | EL146: 0 | EM146: 0 | EN146: 0 | EO146: 0 | EP146: 0 | EQ146: 0 | ER146: 0 | ES146: 0 | ET146: 0 | EU146: 0 | EV146: 0 | EW146: 0 | EX146: 0 | EY146: 0 | EZ146: 0 | FA146: 0 | FB146: 0 | FC146: 0 | FD146: 0 | FE146: 0 | FF146: 0 | FG146: 0 | FH146: 0 | FI146: 0 | FJ146: 0 | FK146: 0 | FL146: 0 | FM146: 0 | FN146: 0 | FO146: 0 | FP146: 0 | FQ146: 0 | FR146: 0 | FS146: 0 | FT146: 0 | FU146: 0 | FV146: 0 | FW146: 0 | FX146: 0 | FY146: 0 | FZ146: 0 | GA146: 0 | GB146: 0 | GC146: 0 | GD146: 0 | GE146: 0 | GF146: 0 | GG146: 0 | GH146: 0
A147: =IFERROR(IF($B147="","",INDEX('2019 scenario - output'!$A$6:$A$12,MATCH('2019 scenario - input'!$B147,'2019 scenario - output'!$B$6:$B$12,0))),"") ->  | CV147: 0 | CW147: 0 | CX147: 0 | CY147: 0 | CZ147: 0 | DA147: 0 | DB147: 0 | DC147: 0 | DD147: 0 | DE147: 0 | DF147: 0 | DG147: 0 | DH147: 0 | DI147: 0 | DJ147: 0 | DK147: 0 | DL147: 0 | DM147: 0 | DN147: 0 | DO147: 0 | DP147: 0 | DQ147: 0 | DR147: 0 | DS147: 0 | DT147: 0 | DU147: 0 | DV147: 0 | DW147: 0 | DX147: 0 | DY147: 0 | DZ147: 0 | EA147: 0 | EB147: 0 | EC147: 0 | ED147: 0 | EE147: 0 | EF147: 0 | EG147: 0 | EH147: 0 | EI147: 0 | EJ147: 0 | EK147: 0 | EL147: 0 | EM147: 0 | EN147: 0 | EO147: 0 | EP147: 0 | EQ147: 0 | ER147: 0 | ES147: 0 | ET147: 0 | EU147: 0 | EV147: 0 | EW147: 0 | EX147: 0 | EY147: 0 | EZ147: 0 | FA147: 0 | FB147: 0 | FC147: 0 | FD147: 0 | FE147: 0 | FF147: 0 | FG147: 0 | FH147: 0 | FI147: 0 | FJ147: 0 | FK147: 0 | FL147: 0 | FM147: 0 | FN147: 0 | FO147: 0 | FP147: 0 | FQ147: 0 | FR147: 0 | FS147: 0 | FT147: 0 | FU147: 0 | FV147: 0 | FW147: 0 | FX147: 0 | FY147: 0 | FZ147: 0 | GA147: 0 | GB147: 0 | GC147: 0 | GD147: 0 | GE147: 0 | GF147: 0 | GG147: 0 | GH147: 0
A148: =IFERROR(IF($B148="","",INDEX('2019 scenario - output'!$A$6:$A$12,MATCH('2019 scenario - input'!$B148,'2019 scenario - output'!$B$6:$B$12,0))),"") ->  | CV148: 0 | CW148: 0 | CX148: 0 | CY148: 0 | CZ148: 0 | DA148: 0 | DB148: 0 | DC148: 0 | DD148: 0 | DE148: 0 | DF148: 0 | DG148: 0 | DH148: 0 | DI148: 0 | DJ148: 0 | DK148: 0 | DL148: 0 | DM148: 0 | DN148: 0 | DO148: 0 | DP148: 0 | DQ148: 0 | DR148: 0 | DS148: 0 | DT148: 0 | DU148: 0 | DV148: 0 | DW148: 0 | DX148: 0 | DY148: 0 | DZ148: 0 | EA148: 0 | EB148: 0 | EC148: 0 | ED148: 0 | EE148: 0 | EF148: 0 | EG148: 0 | EH148: 0 | EI148: 0 | EJ148: 0 | EK148: 0 | EL148: 0 | EM148: 0 | EN148: 0 | EO148: 0 | EP148: 0 | EQ148: 0 | ER148: 0 | ES148: 0 | ET148: 0 | EU148: 0 | EV148: 0 | EW148: 0 | EX148: 0 | EY148: 0 | EZ148: 0 | FA148: 0 | FB148: 0 | FC148: 0 | FD148: 0 | FE148: 0 | FF148: 0 | FG148: 0 | FH148: 0 | FI148: 0 | FJ148: 0 | FK148: 0 | FL148: 0 | FM148: 0 | FN148: 0 | FO148: 0 | FP148: 0 | FQ148: 0 | FR148: 0 | FS148: 0 | FT148: 0 | FU148: 0 | FV148: 0 | FW148: 0 | FX148: 0 | FY148: 0 | FZ148: 0 | GA148: 0 | GB148: 0 | GC148: 0 | GD148: 0 | GE148: 0 | GF148: 0 | GG148: 0 | GH148: 0
A149: =IFERROR(IF($B149="","",INDEX('2019 scenario - output'!$A$6:$A$12,MATCH('2019 scenario - input'!$B149,'2019 scenario - output'!$B$6:$B$12,0))),"") ->  | CV149: 0 | CW149: 0 | CX149: 0 | CY149: 0 | CZ149: 0 | DA149: 0 | DB149: 0 | DC149: 0 | DD149: 0 | DE149: 0 | DF149: 0 | DG149: 0 | DH149: 0 | DI149: 0 | DJ149: 0 | DK149: 0 | DL149: 0 | DM149: 0 | DN149: 0 | DO149: 0 | DP149: 0 | DQ149: 0 | DR149: 0 | DS149: 0 | DT149: 0 | DU149: 0 | DV149: 0 | DW149: 0 | DX149: 0 | DY149: 0 | DZ149: 0 | EA149: 0 | EB149: 0 | EC149: 0 | ED149: 0 | EE149: 0 | EF149: 0 | EG149: 0 | EH149: 0 | EI149: 0 | EJ149: 0 | EK149: 0 | EL149: 0 | EM149: 0 | EN149: 0 | EO149: 0 | EP149: 0 | EQ149: 0 | ER149: 0 | ES149: 0 | ET149: 0 | EU149: 0 | EV149: 0 | EW149: 0 | EX149: 0 | EY149: 0 | EZ149: 0 | FA149: 0 | FB149: 0 | FC149: 0 | FD149: 0 | FE149: 0 | FF149: 0 | FG149: 0 | FH149: 0 | FI149: 0 | FJ149: 0 | FK149: 0 | FL149: 0 | FM149: 0 | FN149: 0 | FO149: 0 | FP149: 0 | FQ149: 0 | FR149: 0 | FS149: 0 | FT149: 0 | FU149: 0 | FV149: 0 | FW149: 0 | FX149: 0 | FY149: 0 | FZ149: 0 | GA149: 0 | GB149: 0 | GC149: 0 | GD149: 0 | GE149: 0 | GF149: 0 | GG149: 0 | GH149: 0

Sheet 2019 scenario - output
D1: Replacement expenditure forecast ($,000) | X1: Replacement quantity forecast (#)
D2: 1 | E2: 2 | F2: 3 | G2: 4 | H2: 5 | I2: 6 | J2: 7 | K2: 8 | L2: 9 | M2: 10 | N2: 11 | O2: 12 | P2: 13 | Q2: 14 | R2: 15 | S2: 16 | T2: 17 | U2: 18 | V2: 19 | W2: 20 | X2: 1 | Y2: 2 | Z2: 3 | AA2: 4 | AB2: 5 | AC2: 6 | AD2: 7 | AE2: 8 | AF2: 9 | AG2: 10 | AH2: 11 | AI2: 12 | AJ2: 13 | AK2: 14 | AL2: 15 | AM2: 16 | AN2: 17 | AO2: 18 | AP2: 19 | AQ2: 20
A5: ID | B5: Asset group | D5: 2020 | E5: =IFERROR(IF($D5="","",D5+1),"") -> 2021 | F5: =IFERROR(IF($D5="","",E5+1),"") -> 2022 | G5: 2023 | H5: 2024 | I5: 2025 | J5: 2026 | K5: 2027 | L5: 2028 | M5: 2029 | N5: 2030 | O5: 2031 | P5: 2032 | Q5: 2033 | R5: 2034 | S5: 2035 | T5: 2036 | U5: 2037 | V5: 2038 | W5: 2039 | X5: =IFERROR(IF(D5="","",D5),"") -> 2020 | Y5: =IFERROR(IF(E5="","",E5),"") -> 2021 | Z5: 2022 | AA5: 2023 | AB5: 2024 | AC5: 2025 | AD5: 2026 | AE5: 2027 | AF5: 2028 | AG5: 2029 | AH5: 2030 | AI5: 2031 | AJ5: 2032 | AK5: 2033 | AL5: 2034 | AM5: 2035 | AN5: 2036 | AO5: 2037 | AP5: 2038 | AQ5: 2039
A6: 2 | B6: POLES | D6: =IFERROR(IF($A6="","",SUMIFS(D$16:D$156,$A$16:$A$156,$A6)),"") -> 4481.743297 | E6: 4536.137801 | F6: 4632.206766 | G6: 4770.029384 | H6: 4947.674771 | I6: 5161.473647 | J6: 5406.374677 | K6: 5676.344061 | L6: 5964.766856 | M6: 6264.813705 | N6: 6569.746189 | O6: 6873.146244 | P6: 7169.067791 | Q6: 7452.119723 | R6: 7717.496697 | S6: 7960.976823 | T6: 8178.903363 | U6: 8368.162358 | V6: 8526.161709 | W6: 8650.812039 | X6: 4481.743297 | Y6: 4536.137801 | Z6: 4632.206766 | AA6: 4770.029384 | AB6: 4947.674771 | AC6: 5161.473647 | AD6: 5406.374677 | AE6: 5676.344061 | AF6: 5964.766856 | AG6: 6264.813705 | AH6: 6569.746189 | AI6: 6873.146244 | AJ6: 7169.067791 | AK6: 7452.119723 | AL6: 7717.496697 | AM6: 7960.976823 | AN6: 8178.903363 | AO6: 8368.162358 | AP6: 8526.161709 | AQ6: 8650.812039
D7: =IFERROR(IF($A7="","",SUMIFS(D$16:D$156,$A$16:$A$156,$A7)),"") ->  | N7: =IFERROR(IF($A7="","",SUMIFS(N$16:N$156,$A$16:$A$156,$A7)),"") ->  | Z7: =IFERROR(IF($A7="","",SUMIFS(Z$16:Z$156,$A$16:$A$156,$A7)),"") ->  | AB7: =IFERROR(IF($A7="","",SUMIFS(AB$16:AB$156,$A$16:$A$156,$A7)),"") -> 
Y9: =IFERROR(IF($A9="","",SUMIFS(Y$16:Y$156,$A$16:$A$156,$A9)),"") ->  | AA9: =IFERROR(IF($A9="","",SUMIFS(AA$16:AA$156,$A$16:$A$156,$A9)),"") -> 
Y10: =IFERROR(IF($A10="","",SUMIFS(Y$16:Y$156,$A$16:$A$156,$A10)),"") ->  | AA10: =IFERROR(IF($A10="","",SUMIFS(AA$16:AA$156,$A$16:$A$156,$A10)),"") -> 
Y11: =IFERROR(IF($A11="","",SUMIFS(Y$16:Y$156,$A$16:$A$156,$A11)),"") ->  | AA11: =IFERROR(IF($A11="","",SUMIFS(AA$16:AA$156,$A$16:$A$156,$A11)),"") -> 
Y12: =IFERROR(IF($A12="","",SUMIFS(Y$16:Y$156,$A$16:$A$156,$A12)),"") ->  | AA12: =IFERROR(IF($A12="","",SUMIFS(AA$16:AA$156,$A$16:$A$156,$A12)),"") -> 
C13: Total | D13: =IFERROR(SUM(D$6:D$12),"") -> 4481.743297 | E13: 4536.137801 | F13: 4632.206766 | G13: 4770.029384 | H13: 4947.674771 | I13: 5161.473647 | J13: 5406.374677 | K13: 5676.344061 | L13: 5964.766856 | M13: 6264.813705 | N13: 6569.746189 | O13: 6873.146244 | P13: 7169.067791 | Q13: 7452.119723 | R13: 7717.496697 | S13: 7960.976823 | T13: 8178.903363 | U13: 8368.162358 | V13: 8526.161709 | W13: 8650.812039
A15: ID | B15: Asset group | C15: Asset category
A16: =IFERROR('2019 scenario - input'!A6,"") -> 2 | B16: =IFERROR('2019 scenario - input'!B6,"") -> POLES | C16: =IFERROR('2019 scenario - input'!C6,"") -> ˂ = 1 kv ; wood | D16: =IFERROR(repcalc('2019 scenario - input'!$CV6:$GH6,'2019 scenario - input'!$G6,'2019 scenario - input'!$E6,'2019 scenario - input'!$F6,20,TRUE,TRUE),"") -> 1146.418345 | E16: 1130.003684 | F16: 1123.932001 | G16: 1129.03882 | H16: 1145.723497 | I16: 1173.966694 | J16: 1213.362174 | K16: 1263.158982 | L16: 1322.310365 | M16: 1389.526332 | N16: 1463.327374 | O16: 1542.097502 | P16: 1624.135293 | Q16: 1707.701976 | R16: 1791.065872 | S16: 1872.542533 | T16: 1950.530041 | U16: 2023.538912 | V16: 2090.21615 | W16: 2149.363152 | X16: =IFERROR(IF(OR(D16="",'2019 scenario - input'!$D6=""),"",D16/'2019 scenario - input'!$D6),"") -> 1146.418345 | Y16: =IFERROR(IF(OR(E16="",'2019 scenario - input'!$D6=""),"",E16/'2019 scenario - input'!$D6),"") -> 1130.003684 | Z16: =IFERROR(IF(OR(F16="",'2019 scenario - input'!$D6=""),"",F16/'2019 scenario - input'!$D6),"") -> 1123.932001 | AA16: =IFERROR(IF(OR(G16="",'2019 scenario - input'!$D6=""),"",G16/'2019 scenario - input'!$D6),"") -> 1129.03882 | AB16: =IFERROR(IF(OR(H16="",'2019 scenario - input'!$D6=""),"",H16/'2019 scenario - input'!$D6),"") -> 1145.723497 | AC16: =IFERROR(IF(OR(I16="",'2019 scenario - input'!$D6=""),"",I16/'2019 scenario - input'!$D6),"") -> 1173.966694 | AD16: =IFERROR(IF(OR(J16="",'2019 scenario - input'!$D6=""),"",J16/'2019 scenario - input'!$D6),"") -> 1213.362174 | AE16: =IFERROR(IF(OR(K16="",'2019 scenario - input'!$D6=""),"",K16/'2019 scenario - input'!$D6),"") -> 1263.158982 | AF16: =IFERROR(IF(OR(L16="",'2019 scenario - input'!$D6=""),"",L16/'2019 scenario - input'!$D6),"") -> 1322.310365 | AG16: =IFERROR(IF(OR(M16="",'2019 scenario - input'!$D6=""),"",M16/'2019 scenario - input'!$D6),"") -> 1389.526332 | AH16: =IFERROR(IF(OR(N16="",'2019 scenario - input'!$D6=""),"",N16/'2019 scenario - input'!$D6),"") -> 1463.327374 | AI16: =IFERROR(IF(OR(O16="",'2019 scenario - input'!$D6=""),"",O16/'2019 scenario - input'!$D6),"") -> 1542.097502 | AJ16: =IFERROR(IF(OR(P16="",'2019 scenario - input'!$D6=""),"",P16/'2019 scenario - input'!$D6),"") -> 1624.135293 | AK16: =IFERROR(IF(OR(Q16="",'2019 scenario - input'!$D6=""),"",Q16/'2019 scenario - input'!$D6),"") -> 1707.701976 | AL16: =IFERROR(IF(OR(R16="",'2019 scenario - input'!$D6=""),"",R16/'2019 scenario - input'!$D6),"") -> 1791.065872 | AM16: =IFERROR(IF(OR(S16="",'2019 scenario - input'!$D6=""),"",S16/'2019 scenario - input'!$D6),"") -> 1872.542533 | AN16: =IFERROR(IF(OR(T16="",'2019 scenario - input'!$D6=""),"",T16/'2019 scenario - input'!$D6),"") -> 1950.530041 | AO16: =IFERROR(IF(OR(U16="",'2019 scenario - input'!$D6=""),"",U16/'2019 scenario - input'!$D6),"") -> 2023.538912 | AP16: =IFERROR(IF(OR(V16="",'2019 scenario - input'!$D6=""),"",V16/'2019 scenario - input'!$D6),"") -> 2090.21615 | AQ16: =IFERROR(IF(OR(W16="",'2019 scenario - input'!$D6=""),"",W16/'2019 scenario - input'!$D6),"") -> 2149.363152
A17: =IFERROR('2019 scenario - input'!A7,"") -> 2 | B17: =IFERROR('2019 scenario - input'!B7,"") -> POLES | C17: =IFERROR('2019 scenario - input'!C7,"") -> ˃ 11 kv & < = 22 kv ; wood | D17: =IFERROR(repcalc('2019 scenario - input'!$CV7:$GH7,'2019 scenario - input'!$G7,'2019 scenario - input'!$E7,'2019 scenario - input'!$F7,20,TRUE,TRUE),"") -> 2957.980472 | E17: 2977.031528 | F17: 3024.859017 | G17: 3102.374059 | H17: 3209.061194 | I17: 3343.051299 | J17: 3501.25474 | K17: 3679.544692 | L17: 3872.979478 | M17: 4076.052206 | N17: 4282.955421 | O17: 4487.848125 | P17: 4685.11225 | Q17: 4869.585734 | R17: 5036.760059 | S17: 5182.931575 | T17: 5305.298459 | U17: 5401.99858 | V17: 5472.087846 | W17: 5515.46326 | X17: =IFERROR(IF(OR(D17="",'2019 scenario - input'!$D7=""),"",D17/'2019 scenario - input'!$D7),"") -> 2957.980472 | Y17: =IFERROR(IF(OR(E17="",'2019 scenario - input'!$D7=""),"",E17/'2019 scenario - input'!$D7),"") -> 2977.031528 | Z17: =IFERROR(IF(OR(F17="",'2019 scenario - input'!$D7=""),"",F17/'2019 scenario - input'!$D7),"") -> 3024.859017 | AA17: =IFERROR(IF(OR(G17="",'2019 scenario - input'!$D7=""),"",G17/'2019 scenario - input'!$D7),"") -> 3102.374059 | AB17: =IFERROR(IF(OR(H17="",'2019 scenario - input'!$D7=""),"",H17/'2019 scenario - input'!$D7),"") -> 3209.061194 | AC17: =IFERROR(IF(OR(I17="",'2019 scenario - input'!$D7=""),"",I17/'2019 scenario - input'!$D7),"") -> 3343.051299 | AD17: =IFERROR(IF(OR(J17="",'2019 scenario - input'!$D7=""),"",J17/'2019 scenario - input'!$D7),"") -> 3501.25474 | AE17: =IFERROR(IF(OR(K17="",'2019 scenario - input'!$D7=""),"",K17/'2019 scenario - input'!$D7),"") -> 3679.544692 | AF17: =IFERROR(IF(OR(L17="",'2019 scenario - input'!$D7=""),"",L17/'2019 scenario - input'!$D7),"") -> 3872.979478 | AG17: =IFERROR(IF(OR(M17="",'2019 scenario - input'!$D7=""),"",M17/'2019 scenario - input'!$D7),"") -> 4076.052206 | AH17: =IFERROR(IF(OR(N17="",'2019 scenario - input'!$D7=""),"",N17/'2019 scenario - input'!$D7),"") -> 4282.955421 | AI17: =IFERROR(IF(OR(O17="",'2019 scenario - input'!$D7=""),"",O17/'2019 scenario - input'!$D7),"") -> 4487.848125 | AJ17: =IFERROR(IF(OR(P17="",'2019 scenario - input'!$D7=""),"",P17/'2019 scenario - input'!$D7),"") -> 4685.11225 | AK17: =IFERROR(IF(OR(Q17="",'2019 scenario - input'!$D7=""),"",Q17/'2019 scenario - input'!$D7),"") -> 4869.585734 | AL17: =IFERROR(IF(OR(R17="",'2019 scenario - input'!$D7=""),"",R17/'2019 scenario - input'!$D7),"") -> 5036.760059 | AM17: =IFERROR(IF(OR(S17="",'2019 scenario - input'!$D7=""),"",S17/'2019 scenario - input'!$D7),"") -> 5182.931575 | AN17: =IFERROR(IF(OR(T17="",'2019 scenario - input'!$D7=""),"",T17/'2019 scenario - input'!$D7),"") -> 5305.298459 | AO17: =IFERROR(IF(OR(U17="",'2019 scenario - input'!$D7=""),"",U17/'2019 scenario - input'!$D7),"") -> 5401.99858 | AP17: =IFERROR(IF(OR(V17="",'2019 scenario - input'!$D7=""),"",V17/'2019 scenario - input'!$D7),"") -> 5472.087846 | AQ17: =IFERROR(IF(OR(W17="",'2019 scenario - input'!$D7=""),"",W17/'2019 scenario - input'!$D7),"") -> 5515.46326
A18: =IFERROR('2019 scenario - input'!A8,"") -> 2 | B18: =IFERROR('2019 scenario - input'!B8,"") -> POLES | C18: =IFERROR('2019 scenario - input'!C8,"") -> > 1 kv & < = 11 kv ; wood | D18: =IFERROR(repcalc('2019 scenario - input'!$CV8:$GH8,'2019 scenario - input'!$G8,'2019 scenario - input'!$E8,'2019 scenario - input'!$F8,20,TRUE,TRUE),"") -> 10.92140843 | E18: 11.12127086 | F18: 11.41055386 | G18: 11.76594177 | H18: 12.16306502 | I18: 12.57795577 | J18: 12.98829953 | K18: 13.37443715 | L18: 13.72009285 | M18: 14.01282293 | N18: 14.24419491 | O18: 14.40971896 | P18: 14.50856302 | Q18: 14.54308987 | R18: 14.5182597 | S18: 14.44094448 | T18: 14.31920236 | U18: 14.16155893 | V18: 13.97634018 | W18: 13.77109612 | X18: =IFERROR(IF(OR(D18="",'2019 scenario - input'!$D8=""),"",D18/'2019 scenario - input'!$D8),"") -> 10.92140843 | Y18: =IFERROR(IF(OR(E18="",'2019 scenario - input'!$D8=""),"",E18/'2019 scenario - input'!$D8),"") -> 11.12127086 | Z18: =IFERROR(IF(OR(F18="",'2019 scenario - input'!$D8=""),"",F18/'2019 scenario - input'!$D8),"") -> 11.41055386 | AA18: =IFERROR(IF(OR(G18="",'2019 scenario - input'!$D8=""),"",G18/'2019 scenario - input'!$D8),"") -> 11.76594177 | AB18: =IFERROR(IF(OR(H18="",'2019 scenario - input'!$D8=""),"",H18/'2019 scenario - input'!$D8),"") -> 12.16306502 | AC18: =IFERROR(IF(OR(I18="",'2019 scenario - input'!$D8=""),"",I18/'2019 scenario - input'!$D8),"") -> 12.57795577 | AD18: =IFERROR(IF(OR(J18="",'2019 scenario - input'!$D8=""),"",J18/'2019 scenario - input'!$D8),"") -> 12.98829953 | AE18: =IFERROR(IF(OR(K18="",'2019 scenario - input'!$D8=""),"",K18/'2019 scenario - input'!$D8),"") -> 13.37443715 | AF18: =IFERROR(IF(OR(L18="",'2019 scenario - input'!$D8=""),"",L18/'2019 scenario - input'!$D8),"") -> 13.72009285 | AG18: =IFERROR(IF(OR(M18="",'2019 scenario - input'!$D8=""),"",M18/'2019 scenario - input'!$D8),"") -> 14.01282293 | AH18: =IFERROR(IF(OR(N18="",'2019 scenario - input'!$D8=""),"",N18/'2019 scenario - input'!$D8),"") -> 14.24419491 | AI18: =IFERROR(IF(OR(O18="",'2019 scenario - input'!$D8=""),"",O18/'2019 scenario - input'!$D8),"") -> 14.40971896 | AJ18: =IFERROR(IF(OR(P18="",'2019 scenario - input'!$D8=""),"",P18/'2019 scenario - input'!$D8),"") -> 14.50856302 | AK18: =IFERROR(IF(OR(Q18="",'2019 scenario - input'!$D8=""),"",Q18/'2019 scenario - input'!$D8),"") -> 14.54308987 | AL18: =IFERROR(IF(OR(R18="",'2019 scenario - input'!$D8=""),"",R18/'2019 scenario - input'!$D8),"") -> 14.5182597 | AM18: =IFERROR(IF(OR(S18="",'2019 scenario - input'!$D8=""),"",S18/'2019 scenario - input'!$D8),"") -> 14.44094448 | AN18: =IFERROR(IF(OR(T18="",'2019 scenario - input'!$D8=""),"",T18/'2019 scenario - input'!$D8),"") -> 14.31920236 | AO18: =IFERROR(IF(OR(U18="",'2019 scenario - input'!$D8=""),"",U18/'2019 scenario - input'!$D8),"") -> 14.16155893 | AP18: =IFERROR(IF(OR(V18="",'2019 scenario - input'!$D8=""),"",V18/'2019 scenario - input'!$D8),"") -> 13.97634018 | AQ18: =IFERROR(IF(OR(W18="",'2019 scenario - input'!$D8=""),"",W18/'2019 scenario - input'!$D8),"") -> 13.77109612
A19: =IFERROR('2019 scenario - input'!A9,"") -> 2 | B19: =IFERROR('2019 scenario - input'!B9,"") -> POLES | C19: =IFERROR('2019 scenario - input'!C9,"") -> > 22 kv & < = 66 kv ; wood | D19: =IFERROR(repcalc('2019 scenario - input'!$CV9:$GH9,'2019 scenario - input'!$G9,'2019 scenario - input'!$E9,'2019 scenario - input'!$F9,20,TRUE,TRUE),"") -> 117.7263495 | E19: 119.883541 | F19: 122.5222389 | G19: 125.8001601 | H19: 129.8545412 | I19: 134.7952559 | J19: 140.6994235 | K19: 147.6077093 | L19: 155.5223755 | M19: 164.4070117 | N19: 174.1877693 | O19: 184.755856 | P19: 195.971015 | Q19: 207.6657195 | R19: 219.6498509 | S19: 231.7156808 | T19: 243.6430414 | U19: 255.204625 | V19: 266.1713939 | W19: 276.3181024 | X19: =IFERROR(IF(OR(D19="",'2019 scenario - input'!$D9=""),"",D19/'2019 scenario - input'!$D9),"") -> 117.7263495 | Y19: =IFERROR(IF(OR(E19="",'2019 scenario - input'!$D9=""),"",E19/'2019 scenario - input'!$D9),"") -> 119.883541 | Z19: =IFERROR(IF(OR(F19="",'2019 scenario - input'!$D9=""),"",F19/'2019 scenario - input'!$D9),"") -> 122.5222389 | AA19: =IFERROR(IF(OR(G19="",'2019 scenario - input'!$D9=""),"",G19/'2019 scenario - input'!$D9),"") -> 125.8001601 | AB19: =IFERROR(IF(OR(H19="",'2019 scenario - input'!$D9=""),"",H19/'2019 scenario - input'!$D9),"") -> 129.8545412 | AC19: =IFERROR(IF(OR(I19="",'2019 scenario - input'!$D9=""),"",I19/'2019 scenario - input'!$D9),"") -> 134.7952559 | AD19: =IFERROR(IF(OR(J19="",'2019 scenario - input'!$D9=""),"",J19/'2019 scenario - input'!$D9),"") -> 140.6994235 | AE19: =IFERROR(IF(OR(K19="",'2019 scenario - input'!$D9=""),"",K19/'2019 scenario - input'!$D9),"") -> 147.6077093 | AF19: =IFERROR(IF(OR(L19="",'2019 scenario - input'!$D9=""),"",L19/'2019 scenario - input'!$D9),"") -> 155.5223755 | AG19: =IFERROR(IF(OR(M19="",'2019 scenario - input'!$D9=""),"",M19/'2019 scenario - input'!$D9),"") -> 164.4070117 | AH19: =IFERROR(IF(OR(N19="",'2019 scenario - input'!$D9=""),"",N19/'2019 scenario - input'!$D9),"") -> 174.1877693 | AI19: =IFERROR(IF(OR(O19="",'2019 scenario - input'!$D9=""),"",O19/'2019 scenario - input'!$D9),"") -> 184.755856 | AJ19: =IFERROR(IF(OR(P19="",'2019 scenario - input'!$D9=""),"",P19/'2019 scenario - input'!$D9),"") -> 195.971015 | AK19: =IFERROR(IF(OR(Q19="",'2019 scenario - input'!$D9=""),"",Q19/'2019 scenario - input'!$D9),"") -> 207.6657195 | AL19: =IFERROR(IF(OR(R19="",'2019 scenario - input'!$D9=""),"",R19/'2019 scenario - input'!$D9),"") -> 219.6498509 | AM19: =IFERROR(IF(OR(S19="",'2019 scenario - input'!$D9=""),"",S19/'2019 scenario - input'!$D9),"") -> 231.7156808 | AN19: =IFERROR(IF(OR(T19="",'2019 scenario - input'!$D9=""),"",T19/'2019 scenario - input'!$D9),"") -> 243.6430414 | AO19: =IFERROR(IF(OR(U19="",'2019 scenario - input'!$D9=""),"",U19/'2019 scenario - input'!$D9),"") -> 255.204625 | AP19: =IFERROR(IF(OR(V19="",'2019 scenario - input'!$D9=""),"",V19/'2019 scenario - input'!$D9),"") -> 266.1713939 | AQ19: =IFERROR(IF(OR(W19="",'2019 scenario - input'!$D9=""),"",W19/'2019 scenario - input'!$D9),"") -> 276.3181024
A20: =IFERROR('2019 scenario - input'!A10,"") -> 2 | B20: =IFERROR('2019 scenario - input'!B10,"") -> POLES | C20: =IFERROR('2019 scenario - input'!C10,"") -> staking of a wooden pole | D20: =IFERROR(repcalc('2019 scenario - input'!$CV10:$GH10,'2019 scenario - input'!$G10,'2019 scenario - input'!$E10,'2019 scenario - input'!$F10,20,TRUE,TRUE),"") -> 248.6967214 | E20: 298.0977769 | F20: 349.4829552 | G20: 401.0504037 | H20: 450.8724735 | I20: 497.0824428 | J20: 538.0700396 | K20: 572.658241 | L20: 600.2345445 | M20: 620.8153315 | N20: 635.0314302 | O20: 644.0350418 | P20: 649.3406709 | Q20: 652.6232026 | R20: 655.5026549 | S20: 659.3460893 | T20: 665.1126198 | U20: 673.2586815 | V20: 683.7099787 | W20: 695.8964283 | X20: =IFERROR(IF(OR(D20="",'2019 scenario - input'!$D10=""),"",D20/'2019 scenario - input'!$D10),"") -> 248.6967214 | Y20: =IFERROR(IF(OR(E20="",'2019 scenario - input'!$D10=""),"",E20/'2019 scenario - input'!$D10),"") -> 298.0977769 | Z20: =IFERROR(IF(OR(F20="",'2019 scenario - input'!$D10=""),"",F20/'2019 scenario - input'!$D10),"") -> 349.4829552 | AA20: =IFERROR(IF(OR(G20="",'2019 scenario - input'!$D10=""),"",G20/'2019 scenario - input'!$D10),"") -> 401.0504037 | AB20: =IFERROR(IF(OR(H20="",'2019 scenario - input'!$D10=""),"",H20/'2019 scenario - input'!$D10),"") -> 450.8724735 | AC20: =IFERROR(IF(OR(I20="",'2019 scenario - input'!$D10=""),"",I20/'2019 scenario - input'!$D10),"") -> 497.0824428 | AD20: =IFERROR(IF(OR(J20="",'2019 scenario - input'!$D10=""),"",J20/'2019 scenario - input'!$D10),"") -> 538.0700396 | AE20: =IFERROR(IF(OR(K20="",'2019 scenario - input'!$D10=""),"",K20/'2019 scenario - input'!$D10),"") -> 572.658241 | AF20: =IFERROR(IF(OR(L20="",'2019 scenario - input'!$D10=""),"",L20/'2019 scenario - input'!$D10),"") -> 600.2345445 | AG20: =IFERROR(IF(OR(M20="",'2019 scenario - input'!$D10=""),"",M20/'2019 scenario - input'!$D10),"") -> 620.8153315 | AH20: =IFERROR(IF(OR(N20="",'2019 scenario - input'!$D10=""),"",N20/'2019 scenario - input'!$D10),"") -> 635.0314302 | AI20: =IFERROR(IF(OR(O20="",'2019 scenario - input'!$D10=""),"",O20/'2019 scenario - input'!$D10),"") -> 644.0350418 | AJ20: =IFERROR(IF(OR(P20="",'2019 scenario - input'!$D10=""),"",P20/'2019 scenario - input'!$D10),"") -> 649.3406709 | AK20: =IFERROR(IF(OR(Q20="",'2019 scenario - input'!$D10=""),"",Q20/'2019 scenario - input'!$D10),"") -> 652.6232026 | AL20: =IFERROR(IF(OR(R20="",'2019 scenario - input'!$D10=""),"",R20/'2019 scenario - input'!$D10),"") -> 655.5026549 | AM20: =IFERROR(IF(OR(S20="",'2019 scenario - input'!$D10=""),"",S20/'2019 scenario - input'!$D10),"") -> 659.3460893 | AN20: =IFERROR(IF(OR(T20="",'2019 scenario - input'!$D10=""),"",T20/'2019 scenario - input'!$D10),"") -> 665.1126198 | AO20: =IFERROR(IF(OR(U20="",'2019 scenario - input'!$D10=""),"",U20/'2019 scenario - input'!$D10),"") -> 673.2586815 | AP20: =IFERROR(IF(OR(V20="",'2019 scenario - input'!$D10=""),"",V20/'2019 scenario - input'!$D10),"") -> 683.7099787 | AQ20: =IFERROR(IF(OR(W20="",'2019 scenario - input'!$D10=""),"",W20/'2019 scenario - input'!$D10),"") -> 695.8964283
A21: =IFERROR('2019 scenario - input'!A11,"") ->  | B21: =IFERROR('2019 scenario - input'!B11,"") -> 0 | C21: =IFERROR('2019 scenario - input'!C11,"") -> 0 | D21: =IFERROR(repcalc('2019 scenario - input'!$CV11:$GH11,'2019 scenario - input'!$G11,'2019 scenario - input'!$E11,'2019 scenario - input'!$F11,20,TRUE,TRUE),"") -> 0 | E21: 0 | F21: 0 | G21: 0 | H21: 0 | I21: 0 | J21: 0 | K21: 0 | L21: 0 | M21: 0 | N21: 0 | O21: 0 | P21: 0 | Q21: 0 | R21: 0 | S21: 0 | T21: 0 | U21: 0 | V21: 0 | W21: 0 | X21: =IFERROR(IF(OR(D21="",'2019 scenario - input'!$D11=""),"",D21/'2019 scenario - input'!$D11),"") ->  | Y21: =IFERROR(IF(OR(E21="",'2019 scenario - input'!$D11=""),"",E21/'2019 scenario - input'!$D11),"") ->  | Z21: =IFERROR(IF(OR(F21="",'2019 scenario - input'!$D11=""),"",F21/'2019 scenario - input'!$D11),"") ->  | AA21: =IFERROR(IF(OR(G21="",'2019 scenario - input'!$D11=""),"",G21/'2019 scenario - input'!$D11),"") ->  | AB21: =IFERROR(IF(OR(H21="",'2019 scenario - input'!$D11=""),"",H21/'2019 scenario - input'!$D11),"") ->  | AC21: =IFERROR(IF(OR(I21="",'2019 scenario - input'!$D11=""),"",I21/'2019 scenario - input'!$D11),"") ->  | AD21: =IFERROR(IF(OR(J21="",'2019 scenario - input'!$D11=""),"",J21/'2019 scenario - input'!$D11),"") ->  | AE21: =IFERROR(IF(OR(K21="",'2019 scenario - input'!$D11=""),"",K21/'2019 scenario - input'!$D11),"") ->  | AF21: =IFERROR(IF(OR(L21="",'2019 scenario - input'!$D11=""),"",L21/'2019 scenario - input'!$D11),"") ->  | AG21: =IFERROR(IF(OR(M21="",'2019 scenario - input'!$D11=""),"",M21/'2019 scenario - input'!$D11),"") ->  | AH21: =IFERROR(IF(OR(N21="",'2019 scenario - input'!$D11=""),"",N21/'2019 scenario - input'!$D11),"") ->  | AI21: =IFERROR(IF(OR(O21="",'2019 scenario - input'!$D11=""),"",O21/'2019 scenario - input'!$D11),"") ->  | AJ21: =IFERROR(IF(OR(P21="",'2019 scenario - input'!$D11=""),"",P21/'2019 scenario - input'!$D11),"") ->  | AK21: =IFERROR(IF(OR(Q21="",'2019 scenario - input'!$D11=""),"",Q21/'2019 scenario - input'!$D11),"") ->  | AL21: =IFERROR(IF(OR(R21="",'2019 scenario - input'!$D11=""),"",R21/'2019 scenario - input'!$D11),"") ->  | AM21: =IFERROR(IF(OR(S21="",'2019 scenario - input'!$D11=""),"",S21/'2019 scenario - input'!$D11),"") ->  | AN21: =IFERROR(IF(OR(T21="",'2019 scenario - input'!$D11=""),"",T21/'2019 scenario - input'!$D11),"") ->  | AO21: =IFERROR(IF(OR(U21="",'2019 scenario - input'!$D11=""),"",U21/'2019 scenario - input'!$D11),"") ->  | AP21: =IFERROR(IF(OR(V21="",'2019 scenario - input'!$D11=""),"",V21/'2019 scenario - input'!$D11),"") ->  | AQ21: =IFERROR(IF(OR(W21="",'2019 scenario - input'!$D11=""),"",W21/'2019 scenario - input'!$D11),"") -> 
A22: =IFERROR('2019 scenario - input'!A12,"") ->  | B22: =IFERROR('2019 scenario - input'!B12,"") -> 0 | C22: =IFERROR('2019 scenario - input'!C12,"") -> 0 | D22: =IFERROR(repcalc('2019 scenario - input'!$CV12:$GH12,'2019 scenario - input'!$G12,'2019 scenario - input'!$E12,'2019 scenario - input'!$F12,20,TRUE,TRUE),"") -> 0 | E22: 0 | F22: 0 | G22: 0 | H22: 0 | I22: 0 | J22: 0 | K22: 0 | L22: 0 | M22: 0 | N22: 0 | O22: 0 | P22: 0 | Q22: 0 | R22: 0 | S22: 0 | T22: 0 | U22: 0 | V22: 0 | W22: 0 | X22: =IFERROR(IF(OR(D22="",'2019 scenario - input'!$D12=""),"",D22/'2019 scenario - input'!$D12),"") ->  | Y22: =IFERROR(IF(OR(E22="",'2019 scenario - input'!$D12=""),"",E22/'2019 scenario - input'!$D12),"") ->  | Z22: =IFERROR(IF(OR(F22="",'2019 scenario - input'!$D12=""),"",F22/'2019 scenario - input'!$D12),"") ->  | AA22: =IFERROR(IF(OR(G22="",'2019 scenario - input'!$D12=""),"",G22/'2019 scenario - input'!$D12),"") ->  | AB22: =IFERROR(IF(OR(H22="",'2019 scenario - input'!$D12=""),"",H22/'2019 scenario - input'!$D12),"") ->  | AC22: =IFERROR(IF(OR(I22="",'2019 scenario - input'!$D12=""),"",I22/'2019 scenario - input'!$D12),"") ->  | AD22: =IFERROR(IF(OR(J22="",'2019 scenario - input'!$D12=""),"",J22/'2019 scenario - input'!$D12),"") ->  | AE22: =IFERROR(IF(OR(K22="",'2019 scenario - input'!$D12=""),"",K22/'2019 scenario - input'!$D12),"") ->  | AF22: =IFERROR(IF(OR(L22="",'2019 scenario - input'!$D12=""),"",L22/'2019 scenario - input'!$D12),"") ->  | AG22: =IFERROR(IF(OR(M22="",'2019 scenario - input'!$D12=""),"",M22/'2019 scenario - input'!$D12),"") ->  | AH22: =IFERROR(IF(OR(N22="",'2019 scenario - input'!$D12=""),"",N22/'2019 scenario - input'!$D12),"") ->  | AI22: =IFERROR(IF(OR(O22="",'2019 scenario - input'!$D12=""),"",O22/'2019 scenario - input'!$D12),"") ->  | AJ22: =IFERROR(IF(OR(P22="",'2019 scenario - input'!$D12=""),"",P22/'2019 scenario - input'!$D12),"") ->  | AK22: =IFERROR(IF(OR(Q22="",'2019 scenario - input'!$D12=""),"",Q22/'2019 scenario - input'!$D12),"") ->  | AL22: =IFERROR(IF(OR(R22="",'2019 scenario - input'!$D12=""),"",R22/'2019 scenario - input'!$D12),"") ->  | AM22: =IFERROR(IF(OR(S22="",'2019 scenario - input'!$D12=""),"",S22/'2019 scenario - input'!$D12),"") ->  | AN22: =IFERROR(IF(OR(T22="",'2019 scenario - input'!$D12=""),"",T22/'2019 scenario - input'!$D12),"") ->  | AO22: =IFERROR(IF(OR(U22="",'2019 scenario - input'!$D12=""),"",U22/'2019 scenario - input'!$D12),"") ->  | AP22: =IFERROR(IF(OR(V22="",'2019 scenario - input'!$D12=""),"",V22/'2019 scenario - input'!$D12),"") ->  | AQ22: =IFERROR(IF(OR(W22="",'2019 scenario - input'!$D12=""),"",W22/'2019 scenario - input'!$D12),"") -> 
A23: =IFERROR('2019 scenario - input'!A13,"") ->  | B23: =IFERROR('2019 scenario - input'!B13,"") -> 0 | C23: =IFERROR('2019 scenario - input'!C13,"") -> 0 | D23: =IFERROR(repcalc('2019 scenario - input'!$CV13:$GH13,'2019 scenario - input'!$G13,'2019 scenario - input'!$E13,'2019 scenario - input'!$F13,20,TRUE,TRUE),"") -> 0 | E23: 0 | F23: 0 | G23: 0 | H23: 0 | I23: 0 | J23: 0 | K23: 0 | L23: 0 | M23: 0 | N23: 0 | O23: 0 | P23: 0 | Q23: 0 | R23: 0 | S23: 0 | T23: 0 | U23: 0 | V23: 0 | W23: 0 | X23: =IFERROR(IF(OR(D23="",'2019 scenario - input'!$D13=""),"",D23/'2019 scenario - input'!$D13),"") ->  | Y23: =IFERROR(IF(OR(E23="",'2019 scenario - input'!$D13=""),"",E23/'2019 scenario - input'!$D13),"") ->  | Z23: =IFERROR(IF(OR(F23="",'2019 scenario - input'!$D13=""),"",F23/'2019 scenario - input'!$D13),"") ->  | AA23: =IFERROR(IF(OR(G23="",'2019 scenario - input'!$D13=""),"",G23/'2019 scenario - input'!$D13),"") ->  | AB23: =IFERROR(IF(OR(H23="",'2019 scenario - input'!$D13=""),"",H23/'2019 scenario - input'!$D13),"") ->  | AC23: =IFERROR(IF(OR(I23="",'2019 scenario - input'!$D13=""),"",I23/'2019 scenario - input'!$D13),"") ->  | AD23: =IFERROR(IF(OR(J23="",'2019 scenario - input'!$D13=""),"",J23/'2019 scenario - input'!$D13),"") ->  | AE23: =IFERROR(IF(OR(K23="",'2019 scenario - input'!$D13=""),"",K23/'2019 scenario - input'!$D13),"") ->  | AF23: =IFERROR(IF(OR(L23="",'2019 scenario - input'!$D13=""),"",L23/'2019 scenario - input'!$D13),"") ->  | AG23: =IFERROR(IF(OR(M23="",'2019 scenario - input'!$D13=""),"",M23/'2019 scenario - input'!$D13),"") ->  | AH23: =IFERROR(IF(OR(N23="",'2019 scenario - input'!$D13=""),"",N23/'2019 scenario - input'!$D13),"") ->  | AI23: =IFERROR(IF(OR(O23="",'2019 scenario - input'!$D13=""),"",O23/'2019 scenario - input'!$D13),"") ->  | AJ23: =IFERROR(IF(OR(P23="",'2019 scenario - input'!$D13=""),"",P23/'2019 scenario - input'!$D13),"") ->  | AK23: =IFERROR(IF(OR(Q23="",'2019 scenario - input'!$D13=""),"",Q23/'2019 scenario - input'!$D13),"") ->  | AL23: =IFERROR(IF(OR(R23="",'2019 scenario - input'!$D13=""),"",R23/'2019 scenario - input'!$D13),"") ->  | AM23: =IFERROR(IF(OR(S23="",'2019 scenario - input'!$D13=""),"",S23/'2019 scenario - input'!$D13),"") ->  | AN23: =IFERROR(IF(OR(T23="",'2019 scenario - input'!$D13=""),"",T23/'2019 scenario - input'!$D13),"") ->  | AO23: =IFERROR(IF(OR(U23="",'2019 scenario - input'!$D13=""),"",U23/'2019 scenario - input'!$D13),"") ->  | AP23: =IFERROR(IF(OR(V23="",'2019 scenario - input'!$D13=""),"",V23/'2019 scenario - input'!$D13),"") ->  | AQ23: =IFERROR(IF(OR(W23="",'2019 scenario - input'!$D13=""),"",W23/'2019 scenario - input'!$D13),"") -> 
A24: =IFERROR('2019 scenario - input'!A14,"") ->  | B24: =IFERROR('2019 scenario - input'!B14,"") -> 0 | C24: =IFERROR('2019 scenario - input'!C14,"") -> 0 | D24: =IFERROR(repcalc('2019 scenario - input'!$CV14:$GH14,'2019 scenario - input'!$G14,'2019 scenario - input'!$E14,'2019 scenario - input'!$F14,20,TRUE,TRUE),"") -> 0 | E24: 0 | F24: 0 | G24: 0 | H24: 0 | I24: 0 | J24: 0 | K24: 0 | L24: 0 | M24: 0 | N24: 0 | O24: 0 | P24: 0 | Q24: 0 | R24: 0 | S24: 0 | T24: 0 | U24: 0 | V24: 0 | W24: 0 | X24: =IFERROR(IF(OR(D24="",'2019 scenario - input'!$D14=""),"",D24/'2019 scenario - input'!$D14),"") ->  | Y24: =IFERROR(IF(OR(E24="",'2019 scenario - input'!$D14=""),"",E24/'2019 scenario - input'!$D14),"") ->  | Z24: =IFERROR(IF(OR(F24="",'2019 scenario - input'!$D14=""),"",F24/'2019 scenario - input'!$D14),"") ->  | AA24: =IFERROR(IF(OR(G24="",'2019 scenario - input'!$D14=""),"",G24/'2019 scenario - input'!$D14),"") ->  | AB24: =IFERROR(IF(OR(H24="",'2019 scenario - input'!$D14=""),"",H24/'2019 scenario - input'!$D14),"") ->  | AC24: =IFERROR(IF(OR(I24="",'2019 scenario - input'!$D14=""),"",I24/'2019 scenario - input'!$D14),"") ->  | AD24: =IFERROR(IF(OR(J24="",'2019 scenario - input'!$D14=""),"",J24/'2019 scenario - input'!$D14),"") ->  | AE24: =IFERROR(IF(OR(K24="",'2019 scenario - input'!$D14=""),"",K24/'2019 scenario - input'!$D14),"") ->  | AF24: =IFERROR(IF(OR(L24="",'2019 scenario - input'!$D14=""),"",L24/'2019 scenario - input'!$D14),"") ->  | AG24: =IFERROR(IF(OR(M24="",'2019 scenario - input'!$D14=""),"",M24/'2019 scenario - input'!$D14),"") ->  | AH24: =IFERROR(IF(OR(N24="",'2019 scenario - input'!$D14=""),"",N24/'2019 scenario - input'!$D14),"") ->  | AI24: =IFERROR(IF(OR(O24="",'2019 scenario - input'!$D14=""),"",O24/'2019 scenario - input'!$D14),"") ->  | AJ24: =IFERROR(IF(OR(P24="",'2019 scenario - input'!$D14=""),"",P24/'2019 scenario - input'!$D14),"") ->  | AK24: =IFERROR(IF(OR(Q24="",'2019 scenario - input'!$D14=""),"",Q24/'2019 scenario - input'!$D14),"") ->  | AL24: =IFERROR(IF(OR(R24="",'2019 scenario - input'!$D14=""),"",R24/'2019 scenario - input'!$D14),"") ->  | AM24: =IFERROR(IF(OR(S24="",'2019 scenario - input'!$D14=""),"",S24/'2019 scenario - input'!$D14),"") ->  | AN24: =IFERROR(IF(OR(T24="",'2019 scenario - input'!$D14=""),"",T24/'2019 scenario - input'!$D14),"") ->  | AO24: =IFERROR(IF(OR(U24="",'2019 scenario - input'!$D14=""),"",U24/'2019 scenario - input'!$D14),"") ->  | AP24: =IFERROR(IF(OR(V24="",'2019 scenario - input'!$D14=""),"",V24/'2019 scenario - input'!$D14),"") ->  | AQ24: =IFERROR(IF(OR(W24="",'2019 scenario - input'!$D14=""),"",W24/'2019 scenario - input'!$D14),"") -> 
A25: =IFERROR('2019 scenario - input'!A15,"") ->  | B25: =IFERROR('2019 scenario - input'!B15,"") -> 0 | C25: =IFERROR('2019 scenario - input'!C15,"") -> 0 | D25: =IFERROR(repcalc('2019 scenario - input'!$CV15:$GH15,'2019 scenario - input'!$G15,'2019 scenario - input'!$E15,'2019 scenario - input'!$F15,20,TRUE,TRUE),"") -> 0 | E25: 0 | F25: 0 | G25: 0 | H25: 0 | I25: 0 | J25: 0 | K25: 0 | L25: 0 | M25: 0 | N25: 0 | O25: 0 | P25: 0 | Q25: 0 | R25: 0 | S25: 0 | T25: 0 | U25: 0 | V25: 0 | W25: 0 | X25: =IFERROR(IF(OR(D25="",'2019 scenario - input'!$D15=""),"",D25/'2019 scenario - input'!$D15),"") ->  | Y25: =IFERROR(IF(OR(E25="",'2019 scenario - input'!$D15=""),"",E25/'2019 scenario - input'!$D15),"") ->  | Z25: =IFERROR(IF(OR(F25="",'2019 scenario - input'!$D15=""),"",F25/'2019 scenario - input'!$D15),"") ->  | AA25: =IFERROR(IF(OR(G25="",'2019 scenario - input'!$D15=""),"",G25/'2019 scenario - input'!$D15),"") ->  | AB25: =IFERROR(IF(OR(H25="",'2019 scenario - input'!$D15=""),"",H25/'2019 scenario - input'!$D15),"") ->  | AC25: =IFERROR(IF(OR(I25="",'2019 scenario - input'!$D15=""),"",I25/'2019 scenario - input'!$D15),"") ->  | AD25: =IFERROR(IF(OR(J25="",'2019 scenario - input'!$D15=""),"",J25/'2019 scenario - input'!$D15),"") ->  | AE25: =IFERROR(IF(OR(K25="",'2019 scenario - input'!$D15=""),"",K25/'2019 scenario - input'!$D15),"") ->  | AF25: =IFERROR(IF(OR(L25="",'2019 scenario - input'!$D15=""),"",L25/'2019 scenario - input'!$D15),"") ->  | AG25: =IFERROR(IF(OR(M25="",'2019 scenario - input'!$D15=""),"",M25/'2019 scenario - input'!$D15),"") ->  | AH25: =IFERROR(IF(OR(N25="",'2019 scenario - input'!$D15=""),"",N25/'2019 scenario - input'!$D15),"") ->  | AI25: =IFERROR(IF(OR(O25="",'2019 scenario - input'!$D15=""),"",O25/'2019 scenario - input'!$D15),"") ->  | AJ25: =IFERROR(IF(OR(P25="",'2019 scenario - input'!$D15=""),"",P25/'2019 scenario - input'!$D15),"") ->  | AK25: =IFERROR(IF(OR(Q25="",'2019 scenario - input'!$D15=""),"",Q25/'2019 scenario - input'!$D15),"") ->  | AL25: =IFERROR(IF(OR(R25="",'2019 scenario - input'!$D15=""),"",R25/'2019 scenario - input'!$D15),"") ->  | AM25: =IFERROR(IF(OR(S25="",'2019 scenario - input'!$D15=""),"",S25/'2019 scenario - input'!$D15),"") ->  | AN25: =IFERROR(IF(OR(T25="",'2019 scenario - input'!$D15=""),"",T25/'2019 scenario - input'!$D15),"") ->  | AO25: =IFERROR(IF(OR(U25="",'2019 scenario - input'!$D15=""),"",U25/'2019 scenario - input'!$D15),"") ->  | AP25: =IFERROR(IF(OR(V25="",'2019 scenario - input'!$D15=""),"",V25/'2019 scenario - input'!$D15),"") ->  | AQ25: =IFERROR(IF(OR(W25="",'2019 scenario - input'!$D15=""),"",W25/'2019 scenario - input'!$D15),"") -> 
A26: =IFERROR('2019 scenario - input'!A16,"") ->  | B26: =IFERROR('2019 scenario - input'!B16,"") -> 0 | C26: =IFERROR('2019 scenario - input'!C16,"") -> 0 | D26: =IFERROR(repcalc('2019 scenario - input'!$CV16:$GH16,'2019 scenario - input'!$G16,'2019 scenario - input'!$E16,'2019 scenario - input'!$F16,20,TRUE,TRUE),"") ->  | X26: =IFERROR(IF(OR(D26="",'2019 scenario - input'!$D16=""),"",D26/'2019 scenario - input'!$D16),"") ->  | Y26: =IFERROR(IF(OR(E26="",'2019 scenario - input'!$D16=""),"",E26/'2019 scenario - input'!$D16),"") ->  | Z26: =IFERROR(IF(OR(F26="",'2019 scenario - input'!$D16=""),"",F26/'2019 scenario - input'!$D16),"") ->  | AA26: =IFERROR(IF(OR(G26="",'2019 scenario - input'!$D16=""),"",G26/'2019 scenario - input'!$D16),"") ->  | AB26: =IFERROR(IF(OR(H26="",'2019 scenario - input'!$D16=""),"",H26/'2019 scenario - input'!$D16),"") ->  | AC26: =IFERROR(IF(OR(I26="",'2019 scenario - input'!$D16=""),"",I26/'2019 scenario - input'!$D16),"") ->  | AD26: =IFERROR(IF(OR(J26="",'2019 scenario - input'!$D16=""),"",J26/'2019 scenario - input'!$D16),"") ->  | AE26: =IFERROR(IF(OR(K26="",'2019 scenario - input'!$D16=""),"",K26/'2019 scenario - input'!$D16),"") ->  | AF26: =IFERROR(IF(OR(L26="",'2019 scenario - input'!$D16=""),"",L26/'2019 scenario - input'!$D16),"") ->  | AG26: =IFERROR(IF(OR(M26="",'2019 scenario - input'!$D16=""),"",M26/'2019 scenario - input'!$D16),"") ->  | AH26: =IFERROR(IF(OR(N26="",'2019 scenario - input'!$D16=""),"",N26/'2019 scenario - input'!$D16),"") ->  | AI26: =IFERROR(IF(OR(O26="",'2019 scenario - input'!$D16=""),"",O26/'2019 scenario - input'!$D16),"") ->  | AJ26: =IFERROR(IF(OR(P26="",'2019 scenario - input'!$D16=""),"",P26/'2019 scenario - input'!$D16),"") ->  | AK26: =IFERROR(IF(OR(Q26="",'2019 scenario - input'!$D16=""),"",Q26/'2019 scenario - input'!$D16),"") ->  | AL26: =IFERROR(IF(OR(R26="",'2019 scenario - input'!$D16=""),"",R26/'2019 scenario - input'!$D16),"") ->  | AM26: =IFERROR(IF(OR(S26="",'2019 scenario - input'!$D16=""),"",S26/'2019 scenario - input'!$D16),"") ->  | AN26: =IFERROR(IF(OR(T26="",'2019 scenario - input'!$D16=""),"",T26/'2019 scenario - input'!$D16),"") ->  | AO26: =IFERROR(IF(OR(U26="",'2019 scenario - input'!$D16=""),"",U26/'2019 scenario - input'!$D16),"") ->  | AP26: =IFERROR(IF(OR(V26="",'2019 scenario - input'!$D16=""),"",V26/'2019 scenario - input'!$D16),"") ->  | AQ26: =IFERROR(IF(OR(W26="",'2019 scenario - input'!$D16=""),"",W26/'2019 scenario - input'!$D16),"") -> 
A27: =IFERROR('2019 scenario - input'!A17,"") ->  | B27: =IFERROR('2019 scenario - input'!B17,"") -> 0 | C27: =IFERROR('2019 scenario - input'!C17,"") -> 0 | D27: =IFERROR(repcalc('2019 scenario - input'!$CV17:$GH17,'2019 scenario - input'!$G17,'2019 scenario - input'!$E17,'2019 scenario - input'!$F17,20,TRUE,TRUE),"") ->  | X27: =IFERROR(IF(OR(D27="",'2019 scenario - input'!$D17=""),"",D27/'2019 scenario - input'!$D17),"") ->  | Y27: =IFERROR(IF(OR(E27="",'2019 scenario - input'!$D17=""),"",E27/'2019 scenario - input'!$D17),"") ->  | Z27: =IFERROR(IF(OR(F27="",'2019 scenario - input'!$D17=""),"",F27/'2019 scenario - input'!$D17),"") ->  | AA27: =IFERROR(IF(OR(G27="",'2019 scenario - input'!$D17=""),"",G27/'2019 scenario - input'!$D17),"") ->  | AB27: =IFERROR(IF(OR(H27="",'2019 scenario - input'!$D17=""),"",H27/'2019 scenario - input'!$D17),"") ->  | AC27: =IFERROR(IF(OR(I27="",'2019 scenario - input'!$D17=""),"",I27/'2019 scenario - input'!$D17),"") ->  | AD27: =IFERROR(IF(OR(J27="",'2019 scenario - input'!$D17=""),"",J27/'2019 scenario - input'!$D17),"") ->  | AE27: =IFERROR(IF(OR(K27="",'2019 scenario - input'!$D17=""),"",K27/'2019 scenario - input'!$D17),"") ->  | AF27: =IFERROR(IF(OR(L27="",'2019 scenario - input'!$D17=""),"",L27/'2019 scenario - input'!$D17),"") ->  | AG27: =IFERROR(IF(OR(M27="",'2019 scenario - input'!$D17=""),"",M27/'2019 scenario - input'!$D17),"") ->  | AH27: =IFERROR(IF(OR(N27="",'2019 scenario - input'!$D17=""),"",N27/'2019 scenario - input'!$D17),"") ->  | AI27: =IFERROR(IF(OR(O27="",'2019 scenario - input'!$D17=""),"",O27/'2019 scenario - input'!$D17),"") ->  | AJ27: =IFERROR(IF(OR(P27="",'2019 scenario - input'!$D17=""),"",P27/'2019 scenario - input'!$D17),"") ->  | AK27: =IFERROR(IF(OR(Q27="",'2019 scenario - input'!$D17=""),"",Q27/'2019 scenario - input'!$D17),"") ->  | AL27: =IFERROR(IF(OR(R27="",'2019 scenario - input'!$D17=""),"",R27/'2019 scenario - input'!$D17),"") ->  | AM27: =IFERROR(IF(OR(S27="",'2019 scenario - input'!$D17=""),"",S27/'2019 scenario - input'!$D17),"") ->  | AN27: =IFERROR(IF(OR(T27="",'2019 scenario - input'!$D17=""),"",T27/'2019 scenario - input'!$D17),"") ->  | AO27: =IFERROR(IF(OR(U27="",'2019 scenario - input'!$D17=""),"",U27/'2019 scenario - input'!$D17),"") ->  | AP27: =IFERROR(IF(OR(V27="",'2019 scenario - input'!$D17=""),"",V27/'2019 scenario - input'!$D17),"") ->  | AQ27: =IFERROR(IF(OR(W27="",'2019 scenario - input'!$D17=""),"",W27/'2019 scenario - input'!$D17),"") -> 
A28: =IFERROR('2019 scenario - input'!A18,"") ->  | B28: =IFERROR('2019 scenario - input'!B18,"") -> 0 | C28: =IFERROR('2019 scenario - input'!C18,"") -> 0 | D28: =IFERROR(repcalc('2019 scenario - input'!$CV18:$GH18,'2019 scenario - input'!$G18,'2019 scenario - input'!$E18,'2019 scenario - input'!$F18,20,TRUE,TRUE),"") ->  | X28: =IFERROR(IF(OR(D28="",'2019 scenario - input'!$D18=""),"",D28/'2019 scenario - input'!$D18),"") ->  | Y28: =IFERROR(IF(OR(E28="",'2019 scenario - input'!$D18=""),"",E28/'2019 scenario - input'!$D18),"") ->  | Z28: =IFERROR(IF(OR(F28="",'2019 scenario - input'!$D18=""),"",F28/'2019 scenario - input'!$D18),"") ->  | AA28: =IFERROR(IF(OR(G28="",'2019 scenario - input'!$D18=""),"",G28/'2019 scenario - input'!$D18),"") ->  | AB28: =IFERROR(IF(OR(H28="",'2019 scenario - input'!$D18=""),"",H28/'2019 scenario - input'!$D18),"") ->  | AC28: =IFERROR(IF(OR(I28="",'2019 scenario - input'!$D18=""),"",I28/'2019 scenario - input'!$D18),"") ->  | AD28: =IFERROR(IF(OR(J28="",'2019 scenario - input'!$D18=""),"",J28/'2019 scenario - input'!$D18),"") ->  | AE28: =IFERROR(IF(OR(K28="",'2019 scenario - input'!$D18=""),"",K28/'2019 scenario - input'!$D18),"") ->  | AF28: =IFERROR(IF(OR(L28="",'2019 scenario - input'!$D18=""),"",L28/'2019 scenario - input'!$D18),"") ->  | AG28: =IFERROR(IF(OR(M28="",'2019 scenario - input'!$D18=""),"",M28/'2019 scenario - input'!$D18),"") ->  | AH28: =IFERROR(IF(OR(N28="",'2019 scenario - input'!$D18=""),"",N28/'2019 scenario - input'!$D18),"") ->  | AI28: =IFERROR(IF(OR(O28="",'2019 scenario - input'!$D18=""),"",O28/'2019 scenario - input'!$D18),"") ->  | AJ28: =IFERROR(IF(OR(P28="",'2019 scenario - input'!$D18=""),"",P28/'2019 scenario - input'!$D18),"") ->  | AK28: =IFERROR(IF(OR(Q28="",'2019 scenario - input'!$D18=""),"",Q28/'2019 scenario - input'!$D18),"") ->  | AL28: =IFERROR(IF(OR(R28="",'2019 scenario - input'!$D18=""),"",R28/'2019 scenario - input'!$D18),"") ->  | AM28: =IFERROR(IF(OR(S28="",'2019 scenario - input'!$D18=""),"",S28/'2019 scenario - input'!$D18),"") ->  | AN28: =IFERROR(IF(OR(T28="",'2019 scenario - input'!$D18=""),"",T28/'2019 scenario - input'!$D18),"") ->  | AO28: =IFERROR(IF(OR(U28="",'2019 scenario - input'!$D18=""),"",U28/'2019 scenario - input'!$D18),"") ->  | AP28: =IFERROR(IF(OR(V28="",'2019 scenario - input'!$D18=""),"",V28/'2019 scenario - input'!$D18),"") ->  | AQ28: =IFERROR(IF(OR(W28="",'2019 scenario - input'!$D18=""),"",W28/'2019 scenario - input'!$D18),"") -> 
A29: =IFERROR('2019 scenario - input'!A19,"") ->  | B29: =IFERROR('2019 scenario - input'!B19,"") -> 0 | C29: =IFERROR('2019 scenario - input'!C19,"") -> 0 | D29: =IFERROR(repcalc('2019 scenario - input'!$CV19:$GH19,'2019 scenario - input'!$G19,'2019 scenario - input'!$E19,'2019 scenario - input'!$F19,20,TRUE,TRUE),"") ->  | X29: =IFERROR(IF(OR(D29="",'2019 scenario - input'!$D19=""),"",D29/'2019 scenario - input'!$D19),"") ->  | Y29: =IFERROR(IF(OR(E29="",'2019 scenario - input'!$D19=""),"",E29/'2019 scenario - input'!$D19),"") ->  | Z29: =IFERROR(IF(OR(F29="",'2019 scenario - input'!$D19=""),"",F29/'2019 scenario - input'!$D19),"") ->  | AA29: =IFERROR(IF(OR(G29="",'2019 scenario - input'!$D19=""),"",G29/'2019 scenario - input'!$D19),"") ->  | AB29: =IFERROR(IF(OR(H29="",'2019 scenario - input'!$D19=""),"",H29/'2019 scenario - input'!$D19),"") ->  | AC29: =IFERROR(IF(OR(I29="",'2019 scenario - input'!$D19=""),"",I29/'2019 scenario - input'!$D19),"") ->  | AD29: =IFERROR(IF(OR(J29="",'2019 scenario - input'!$D19=""),"",J29/'2019 scenario - input'!$D19),"") ->  | AE29: =IFERROR(IF(OR(K29="",'2019 scenario - input'!$D19=""),"",K29/'2019 scenario - input'!$D19),"") ->  | AF29: =IFERROR(IF(OR(L29="",'2019 scenario - input'!$D19=""),"",L29/'2019 scenario - input'!$D19),"") ->  | AG29: =IFERROR(IF(OR(M29="",'2019 scenario - input'!$D19=""),"",M29/'2019 scenario - input'!$D19),"") ->  | AH29: =IFERROR(IF(OR(N29="",'2019 scenario - input'!$D19=""),"",N29/'2019 scenario - input'!$D19),"") ->  | AI29: =IFERROR(IF(OR(O29="",'2019 scenario - input'!$D19=""),"",O29/'2019 scenario - input'!$D19),"") ->  | AJ29: =IFERROR(IF(OR(P29="",'2019 scenario - input'!$D19=""),"",P29/'2019 scenario - input'!$D19),"") ->  | AK29: =IFERROR(IF(OR(Q29="",'2019 scenario - input'!$D19=""),"",Q29/'2019 scenario - input'!$D19),"") ->  | AL29: =IFERROR(IF(OR(R29="",'2019 scenario - input'!$D19=""),"",R29/'2019 scenario - input'!$D19),"") ->  | AM29: =IFERROR(IF(OR(S29="",'2019 scenario - input'!$D19=""),"",S29/'2019 scenario - input'!$D19),"") ->  | AN29: =IFERROR(IF(OR(T29="",'2019 scenario - input'!$D19=""),"",T29/'2019 scenario - input'!$D19),"") ->  | AO29: =IFERROR(IF(OR(U29="",'2019 scenario - input'!$D19=""),"",U29/'2019 scenario - input'!$D19),"") ->  | AP29: =IFERROR(IF(OR(V29="",'2019 scenario - input'!$D19=""),"",V29/'2019 scenario - input'!$D19),"") ->  | AQ29: =IFERROR(IF(OR(W29="",'2019 scenario - input'!$D19=""),"",W29/'2019 scenario - input'!$D19),"") -> 
A30: =IFERROR('2019 scenario - input'!A20,"") ->  | B30: =IFERROR('2019 scenario - input'!B20,"") -> 0 | C30: =IFERROR('2019 scenario - input'!C20,"") -> 0 | D30: =IFERROR(repcalc('2019 scenario - input'!$CV20:$GH20,'2019 scenario - input'!$G20,'2019 scenario - input'!$E20,'2019 scenario - input'!$F20,20,TRUE,TRUE),"") ->  | X30: =IFERROR(IF(OR(D30="",'2019 scenario - input'!$D20=""),"",D30/'2019 scenario - input'!$D20),"") ->  | Y30: =IFERROR(IF(OR(E30="",'2019 scenario - input'!$D20=""),"",E30/'2019 scenario - input'!$D20),"") ->  | Z30: =IFERROR(IF(OR(F30="",'2019 scenario - input'!$D20=""),"",F30/'2019 scenario - input'!$D20),"") ->  | AA30: =IFERROR(IF(OR(G30="",'2019 scenario - input'!$D20=""),"",G30/'2019 scenario - input'!$D20),"") ->  | AB30: =IFERROR(IF(OR(H30="",'2019 scenario - input'!$D20=""),"",H30/'2019 scenario - input'!$D20),"") ->  | AC30: =IFERROR(IF(OR(I30="",'2019 scenario - input'!$D20=""),"",I30/'2019 scenario - input'!$D20),"") ->  | AD30: =IFERROR(IF(OR(J30="",'2019 scenario - input'!$D20=""),"",J30/'2019 scenario - input'!$D20),"") ->  | AE30: =IFERROR(IF(OR(K30="",'2019 scenario - input'!$D20=""),"",K30/'2019 scenario - input'!$D20),"") ->  | AF30: =IFERROR(IF(OR(L30="",'2019 scenario - input'!$D20=""),"",L30/'2019 scenario - input'!$D20),"") ->  | AG30: =IFERROR(IF(OR(M30="",'2019 scenario - input'!$D20=""),"",M30/'2019 scenario - input'!$D20),"") ->  | AH30: =IFERROR(IF(OR(N30="",'2019 scenario - input'!$D20=""),"",N30/'2019 scenario - input'!$D20),"") ->  | AI30: =IFERROR(IF(OR(O30="",'2019 scenario - input'!$D20=""),"",O30/'2019 scenario - input'!$D20),"") ->  | AJ30: =IFERROR(IF(OR(P30="",'2019 scenario - input'!$D20=""),"",P30/'2019 scenario - input'!$D20),"") ->  | AK30: =IFERROR(IF(OR(Q30="",'2019 scenario - input'!$D20=""),"",Q30/'2019 scenario - input'!$D20),"") ->  | AL30: =IFERROR(IF(OR(R30="",'2019 scenario - input'!$D20=""),"",R30/'2019 scenario - input'!$D20),"") ->  | AM30: =IFERROR(IF(OR(S30="",'2019 scenario - input'!$D20=""),"",S30/'2019 scenario - input'!$D20),"") ->  | AN30: =IFERROR(IF(OR(T30="",'2019 scenario - input'!$D20=""),"",T30/'2019 scenario - input'!$D20),"") ->  | AO30: =IFERROR(IF(OR(U30="",'2019 scenario - input'!$D20=""),"",U30/'2019 scenario - input'!$D20),"") ->  | AP30: =IFERROR(IF(OR(V30="",'2019 scenario - input'!$D20=""),"",V30/'2019 scenario - input'!$D20),"") ->  | AQ30: =IFERROR(IF(OR(W30="",'2019 scenario - input'!$D20=""),"",W30/'2019 scenario - input'!$D20),"") -> 
A31: =IFERROR('2019 scenario - input'!A21,"") ->  | B31: =IFERROR('2019 scenario - input'!B21,"") -> 0 | C31: =IFERROR('2019 scenario - input'!C21,"") -> 0 | D31: =IFERROR(repcalc('2019 scenario - input'!$CV21:$GH21,'2019 scenario - input'!$G21,'2019 scenario - input'!$E21,'2019 scenario - input'!$F21,20,TRUE,TRUE),"") ->  | X31: =IFERROR(IF(OR(D31="",'2019 scenario - input'!$D21=""),"",D31/'2019 scenario - input'!$D21),"") ->  | Y31: =IFERROR(IF(OR(E31="",'2019 scenario - input'!$D21=""),"",E31/'2019 scenario - input'!$D21),"") ->  | Z31: =IFERROR(IF(OR(F31="",'2019 scenario - input'!$D21=""),"",F31/'2019 scenario - input'!$D21),"") ->  | AA31: =IFERROR(IF(OR(G31="",'2019 scenario - input'!$D21=""),"",G31/'2019 scenario - input'!$D21),"") ->  | AB31: =IFERROR(IF(OR(H31="",'2019 scenario - input'!$D21=""),"",H31/'2019 scenario - input'!$D21),"") ->  | AC31: =IFERROR(IF(OR(I31="",'2019 scenario - input'!$D21=""),"",I31/'2019 scenario - input'!$D21),"") ->  | AD31: =IFERROR(IF(OR(J31="",'2019 scenario - input'!$D21=""),"",J31/'2019 scenario - input'!$D21),"") ->  | AE31: =IFERROR(IF(OR(K31="",'2019 scenario - input'!$D21=""),"",K31/'2019 scenario - input'!$D21),"") ->  | AF31: =IFERROR(IF(OR(L31="",'2019 scenario - input'!$D21=""),"",L31/'2019 scenario - input'!$D21),"") ->  | AG31: =IFERROR(IF(OR(M31="",'2019 scenario - input'!$D21=""),"",M31/'2019 scenario - input'!$D21),"") ->  | AH31: =IFERROR(IF(OR(N31="",'2019 scenario - input'!$D21=""),"",N31/'2019 scenario - input'!$D21),"") ->  | AI31: =IFERROR(IF(OR(O31="",'2019 scenario - input'!$D21=""),"",O31/'2019 scenario - input'!$D21),"") ->  | AJ31: =IFERROR(IF(OR(P31="",'2019 scenario - input'!$D21=""),"",P31/'2019 scenario - input'!$D21),"") ->  | AK31: =IFERROR(IF(OR(Q31="",'2019 scenario - input'!$D21=""),"",Q31/'2019 scenario - input'!$D21),"") ->  | AL31: =IFERROR(IF(OR(R31="",'2019 scenario - input'!$D21=""),"",R31/'2019 scenario - input'!$D21),"") ->  | AM31: =IFERROR(IF(OR(S31="",'2019 scenario - input'!$D21=""),"",S31/'2019 scenario - input'!$D21),"") ->  | AN31: =IFERROR(IF(OR(T31="",'2019 scenario - input'!$D21=""),"",T31/'2019 scenario - input'!$D21),"") ->  | AO31: =IFERROR(IF(OR(U31="",'2019 scenario - input'!$D21=""),"",U31/'2019 scenario - input'!$D21),"") ->  | AP31: =IFERROR(IF(OR(V31="",'2019 scenario - input'!$D21=""),"",V31/'2019 scenario - input'!$D21),"") ->  | AQ31: =IFERROR(IF(OR(W31="",'2019 scenario - input'!$D21=""),"",W31/'2019 scenario - input'!$D21),"") -> 
A32: =IFERROR('2019 scenario - input'!A22,"") ->  | B32: =IFERROR('2019 scenario - input'!B22,"") -> 0 | C32: =IFERROR('2019 scenario - input'!C22,"") -> 0 | D32: =IFERROR(repcalc('2019 scenario - input'!$CV22:$GH22,'2019 scenario - input'!$G22,'2019 scenario - input'!$E22,'2019 scenario - input'!$F22,20,TRUE,TRUE),"") ->  | X32: =IFERROR(IF(OR(D32="",'2019 scenario - input'!$D22=""),"",D32/'2019 scenario - input'!$D22),"") ->  | Y32: =IFERROR(IF(OR(E32="",'2019 scenario - input'!$D22=""),"",E32/'2019 scenario - input'!$D22),"") ->  | Z32: =IFERROR(IF(OR(F32="",'2019 scenario - input'!$D22=""),"",F32/'2019 scenario - input'!$D22),"") ->  | AA32: =IFERROR(IF(OR(G32="",'2019 scenario - input'!$D22=""),"",G32/'2019 scenario - input'!$D22),"") ->  | AB32: =IFERROR(IF(OR(H32="",'2019 scenario - input'!$D22=""),"",H32/'2019 scenario - input'!$D22),"") ->  | AC32: =IFERROR(IF(OR(I32="",'2019 scenario - input'!$D22=""),"",I32/'2019 scenario - input'!$D22),"") ->  | AD32: =IFERROR(IF(OR(J32="",'2019 scenario - input'!$D22=""),"",J32/'2019 scenario - input'!$D22),"") ->  | AE32: =IFERROR(IF(OR(K32="",'2019 scenario - input'!$D22=""),"",K32/'2019 scenario - input'!$D22),"") ->  | AF32: =IFERROR(IF(OR(L32="",'2019 scenario - input'!$D22=""),"",L32/'2019 scenario - input'!$D22),"") ->  | AG32: =IFERROR(IF(OR(M32="",'2019 scenario - input'!$D22=""),"",M32/'2019 scenario - input'!$D22),"") ->  | AH32: =IFERROR(IF(OR(N32="",'2019 scenario - input'!$D22=""),"",N32/'2019 scenario - input'!$D22),"") ->  | AI32: =IFERROR(IF(OR(O32="",'2019 scenario - input'!$D22=""),"",O32/'2019 scenario - input'!$D22),"") ->  | AJ32: =IFERROR(IF(OR(P32="",'2019 scenario - input'!$D22=""),"",P32/'2019 scenario - input'!$D22),"") ->  | AK32: =IFERROR(IF(OR(Q32="",'2019 scenario - input'!$D22=""),"",Q32/'2019 scenario - input'!$D22),"") ->  | AL32: =IFERROR(IF(OR(R32="",'2019 scenario - input'!$D22=""),"",R32/'2019 scenario - input'!$D22),"") ->  | AM32: =IFERROR(IF(OR(S32="",'2019 scenario - input'!$D22=""),"",S32/'2019 scenario - input'!$D22),"") ->  | AN32: =IFERROR(IF(OR(T32="",'2019 scenario - input'!$D22=""),"",T32/'2019 scenario - input'!$D22),"") ->  | AO32: =IFERROR(IF(OR(U32="",'2019 scenario - input'!$D22=""),"",U32/'2019 scenario - input'!$D22),"") ->  | AP32: =IFERROR(IF(OR(V32="",'2019 scenario - input'!$D22=""),"",V32/'2019 scenario - input'!$D22),"") ->  | AQ32: =IFERROR(IF(OR(W32="",'2019 scenario - input'!$D22=""),"",W32/'2019 scenario - input'!$D22),"") -> 
A33: =IFERROR('2019 scenario - input'!A23,"") ->  | B33: =IFERROR('2019 scenario - input'!B23,"") -> 0 | C33: =IFERROR('2019 scenario - input'!C23,"") -> 0 | D33: =IFERROR(repcalc('2019 scenario - input'!$CV23:$GH23,'2019 scenario - input'!$G23,'2019 scenario - input'!$E23,'2019 scenario - input'!$F23,20,TRUE,TRUE),"") ->  | X33: =IFERROR(IF(OR(D33="",'2019 scenario - input'!$D23=""),"",D33/'2019 scenario - input'!$D23),"") ->  | Y33: =IFERROR(IF(OR(E33="",'2019 scenario - input'!$D23=""),"",E33/'2019 scenario - input'!$D23),"") ->  | Z33: =IFERROR(IF(OR(F33="",'2019 scenario - input'!$D23=""),"",F33/'2019 scenario - input'!$D23),"") ->  | AA33: =IFERROR(IF(OR(G33="",'2019 scenario - input'!$D23=""),"",G33/'2019 scenario - input'!$D23),"") ->  | AB33: =IFERROR(IF(OR(H33="",'2019 scenario - input'!$D23=""),"",H33/'2019 scenario - input'!$D23),"") ->  | AC33: =IFERROR(IF(OR(I33="",'2019 scenario - input'!$D23=""),"",I33/'2019 scenario - input'!$D23),"") ->  | AD33: =IFERROR(IF(OR(J33="",'2019 scenario - input'!$D23=""),"",J33/'2019 scenario - input'!$D23),"") ->  | AE33: =IFERROR(IF(OR(K33="",'2019 scenario - input'!$D23=""),"",K33/'2019 scenario - input'!$D23),"") ->  | AF33: =IFERROR(IF(OR(L33="",'2019 scenario - input'!$D23=""),"",L33/'2019 scenario - input'!$D23),"") ->  | AG33: =IFERROR(IF(OR(M33="",'2019 scenario - input'!$D23=""),"",M33/'2019 scenario - input'!$D23),"") ->  | AH33: =IFERROR(IF(OR(N33="",'2019 scenario - input'!$D23=""),"",N33/'2019 scenario - input'!$D23),"") ->  | AI33: =IFERROR(IF(OR(O33="",'2019 scenario - input'!$D23=""),"",O33/'2019 scenario - input'!$D23),"") ->  | AJ33: =IFERROR(IF(OR(P33="",'2019 scenario - input'!$D23=""),"",P33/'2019 scenario - input'!$D23),"") ->  | AK33: =IFERROR(IF(OR(Q33="",'2019 scenario - input'!$D23=""),"",Q33/'2019 scenario - input'!$D23),"") ->  | AL33: =IFERROR(IF(OR(R33="",'2019 scenario - input'!$D23=""),"",R33/'2019 scenario - input'!$D23),"") ->  | AM33: =IFERROR(IF(OR(S33="",'2019 scenario - input'!$D23=""),"",S33/'2019 scenario - input'!$D23),"") ->  | AN33: =IFERROR(IF(OR(T33="",'2019 scenario - input'!$D23=""),"",T33/'2019 scenario - input'!$D23),"") ->  | AO33: =IFERROR(IF(OR(U33="",'2019 scenario - input'!$D23=""),"",U33/'2019 scenario - input'!$D23),"") ->  | AP33: =IFERROR(IF(OR(V33="",'2019 scenario - input'!$D23=""),"",V33/'2019 scenario - input'!$D23),"") ->  | AQ33: =IFERROR(IF(OR(W33="",'2019 scenario - input'!$D23=""),"",W33/'2019 scenario - input'!$D23),"") -> 
A34: =IFERROR('2019 scenario - input'!A24,"") ->  | B34: =IFERROR('2019 scenario - input'!B24,"") -> 0 | C34: =IFERROR('2019 scenario - input'!C24,"") -> 0 | D34: =IFERROR(repcalc('2019 scenario - input'!$CV24:$GH24,'2019 scenario - input'!$G24,'2019 scenario - input'!$E24,'2019 scenario - input'!$F24,20,TRUE,TRUE),"") ->  | X34: =IFERROR(IF(OR(D34="",'2019 scenario - input'!$D24=""),"",D34/'2019 scenario - input'!$D24),"") ->  | Y34: =IFERROR(IF(OR(E34="",'2019 scenario - input'!$D24=""),"",E34/'2019 scenario - input'!$D24),"") ->  | Z34: =IFERROR(IF(OR(F34="",'2019 scenario - input'!$D24=""),"",F34/'2019 scenario - input'!$D24),"") ->  | AA34: =IFERROR(IF(OR(G34="",'2019 scenario - input'!$D24=""),"",G34/'2019 scenario - input'!$D24),"") ->  | AB34: =IFERROR(IF(OR(H34="",'2019 scenario - input'!$D24=""),"",H34/'2019 scenario - input'!$D24),"") ->  | AC34: =IFERROR(IF(OR(I34="",'2019 scenario - input'!$D24=""),"",I34/'2019 scenario - input'!$D24),"") ->  | AD34: =IFERROR(IF(OR(J34="",'2019 scenario - input'!$D24=""),"",J34/'2019 scenario - input'!$D24),"") ->  | AE34: =IFERROR(IF(OR(K34="",'2019 scenario - input'!$D24=""),"",K34/'2019 scenario - input'!$D24),"") ->  | AF34: =IFERROR(IF(OR(L34="",'2019 scenario - input'!$D24=""),"",L34/'2019 scenario - input'!$D24),"") ->  | AG34: =IFERROR(IF(OR(M34="",'2019 scenario - input'!$D24=""),"",M34/'2019 scenario - input'!$D24),"") ->  | AH34: =IFERROR(IF(OR(N34="",'2019 scenario - input'!$D24=""),"",N34/'2019 scenario - input'!$D24),"") ->  | AI34: =IFERROR(IF(OR(O34="",'2019 scenario - input'!$D24=""),"",O34/'2019 scenario - input'!$D24),"") ->  | AJ34: =IFERROR(IF(OR(P34="",'2019 scenario - input'!$D24=""),"",P34/'2019 scenario - input'!$D24),"") ->  | AK34: =IFERROR(IF(OR(Q34="",'2019 scenario - input'!$D24=""),"",Q34/'2019 scenario - input'!$D24),"") ->  | AL34: =IFERROR(IF(OR(R34="",'2019 scenario - input'!$D24=""),"",R34/'2019 scenario - input'!$D24),"") ->  | AM34: =IFERROR(IF(OR(S34="",'2019 scenario - input'!$D24=""),"",S34/'2019 scenario - input'!$D24),"") ->  | AN34: =IFERROR(IF(OR(T34="",'2019 scenario - input'!$D24=""),"",T34/'2019 scenario - input'!$D24),"") ->  | AO34: =IFERROR(IF(OR(U34="",'2019 scenario - input'!$D24=""),"",U34/'2019 scenario - input'!$D24),"") ->  | AP34: =IFERROR(IF(OR(V34="",'2019 scenario - input'!$D24=""),"",V34/'2019 scenario - input'!$D24),"") ->  | AQ34: =IFERROR(IF(OR(W34="",'2019 scenario - input'!$D24=""),"",W34/'2019 scenario - input'!$D24),"") -> 
A35: =IFERROR('2019 scenario - input'!A25,"") ->  | B35: =IFERROR('2019 scenario - input'!B25,"") -> 0 | C35: =IFERROR('2019 scenario - input'!C25,"") -> 0 | D35: =IFERROR(repcalc('2019 scenario - input'!$CV25:$GH25,'2019 scenario - input'!$G25,'2019 scenario - input'!$E25,'2019 scenario - input'!$F25,20,TRUE,TRUE),"") ->  | X35: =IFERROR(IF(OR(D35="",'2019 scenario - input'!$D25=""),"",D35/'2019 scenario - input'!$D25),"") ->  | Y35: =IFERROR(IF(OR(E35="",'2019 scenario - input'!$D25=""),"",E35/'2019 scenario - input'!$D25),"") ->  | Z35: =IFERROR(IF(OR(F35="",'2019 scenario - input'!$D25=""),"",F35/'2019 scenario - input'!$D25),"") ->  | AA35: =IFERROR(IF(OR(G35="",'2019 scenario - input'!$D25=""),"",G35/'2019 scenario - input'!$D25),"") ->  | AB35: =IFERROR(IF(OR(H35="",'2019 scenario - input'!$D25=""),"",H35/'2019 scenario - input'!$D25),"") ->  | AC35: =IFERROR(IF(OR(I35="",'2019 scenario - input'!$D25=""),"",I35/'2019 scenario - input'!$D25),"") ->  | AD35: =IFERROR(IF(OR(J35="",'2019 scenario - input'!$D25=""),"",J35/'2019 scenario - input'!$D25),"") ->  | AE35: =IFERROR(IF(OR(K35="",'2019 scenario - input'!$D25=""),"",K35/'2019 scenario - input'!$D25),"") ->  | AF35: =IFERROR(IF(OR(L35="",'2019 scenario - input'!$D25=""),"",L35/'2019 scenario - input'!$D25),"") ->  | AG35: =IFERROR(IF(OR(M35="",'2019 scenario - input'!$D25=""),"",M35/'2019 scenario - input'!$D25),"") ->  | AH35: =IFERROR(IF(OR(N35="",'2019 scenario - input'!$D25=""),"",N35/'2019 scenario - input'!$D25),"") ->  | AI35: =IFERROR(IF(OR(O35="",'2019 scenario - input'!$D25=""),"",O35/'2019 scenario - input'!$D25),"") ->  | AJ35: =IFERROR(IF(OR(P35="",'2019 scenario - input'!$D25=""),"",P35/'2019 scenario - input'!$D25),"") ->  | AK35: =IFERROR(IF(OR(Q35="",'2019 scenario - input'!$D25=""),"",Q35/'2019 scenario - input'!$D25),"") ->  | AL35: =IFERROR(IF(OR(R35="",'2019 scenario - input'!$D25=""),"",R35/'2019 scenario - input'!$D25),"") ->  | AM35: =IFERROR(IF(OR(S35="",'2019 scenario - input'!$D25=""),"",S35/'2019 scenario - input'!$D25),"") ->  | AN35: =IFERROR(IF(OR(T35="",'2019 scenario - input'!$D25=""),"",T35/'2019 scenario - input'!$D25),"") ->  | AO35: =IFERROR(IF(OR(U35="",'2019 scenario - input'!$D25=""),"",U35/'2019 scenario - input'!$D25),"") ->  | AP35: =IFERROR(IF(OR(V35="",'2019 scenario - input'!$D25=""),"",V35/'2019 scenario - input'!$D25),"") ->  | AQ35: =IFERROR(IF(OR(W35="",'2019 scenario - input'!$D25=""),"",W35/'2019 scenario - input'!$D25),"") -> 
A36: =IFERROR('2019 scenario - input'!A26,"") ->  | B36: =IFERROR('2019 scenario - input'!B26,"") -> 0 | C36: =IFERROR('2019 scenario - input'!C26,"") -> 0 | D36: =IFERROR(repcalc('2019 scenario - input'!$CV26:$GH26,'2019 scenario - input'!$G26,'2019 scenario - input'!$E26,'2019 scenario - input'!$F26,20,TRUE,TRUE),"") ->  | X36: =IFERROR(IF(OR(D36="",'2019 scenario - input'!$D26=""),"",D36/'2019 scenario - input'!$D26),"") ->  | Y36: =IFERROR(IF(OR(E36="",'2019 scenario - input'!$D26=""),"",E36/'2019 scenario - input'!$D26),"") ->  | Z36: =IFERROR(IF(OR(F36="",'2019 scenario - input'!$D26=""),"",F36/'2019 scenario - input'!$D26),"") ->  | AA36: =IFERROR(IF(OR(G36="",'2019 scenario - input'!$D26=""),"",G36/'2019 scenario - input'!$D26),"") ->  | AB36: =IFERROR(IF(OR(H36="",'2019 scenario - input'!$D26=""),"",H36/'2019 scenario - input'!$D26),"") ->  | AC36: =IFERROR(IF(OR(I36="",'2019 scenario - input'!$D26=""),"",I36/'2019 scenario - input'!$D26),"") ->  | AD36: =IFERROR(IF(OR(J36="",'2019 scenario - input'!$D26=""),"",J36/'2019 scenario - input'!$D26),"") ->  | AE36: =IFERROR(IF(OR(K36="",'2019 scenario - input'!$D26=""),"",K36/'2019 scenario - input'!$D26),"") ->  | AF36: =IFERROR(IF(OR(L36="",'2019 scenario - input'!$D26=""),"",L36/'2019 scenario - input'!$D26),"") ->  | AG36: =IFERROR(IF(OR(M36="",'2019 scenario - input'!$D26=""),"",M36/'2019 scenario - input'!$D26),"") ->  | AH36: =IFERROR(IF(OR(N36="",'2019 scenario - input'!$D26=""),"",N36/'2019 scenario - input'!$D26),"") ->  | AI36: =IFERROR(IF(OR(O36="",'2019 scenario - input'!$D26=""),"",O36/'2019 scenario - input'!$D26),"") ->  | AJ36: =IFERROR(IF(OR(P36="",'2019 scenario - input'!$D26=""),"",P36/'2019 scenario - input'!$D26),"") ->  | AK36: =IFERROR(IF(OR(Q36="",'2019 scenario - input'!$D26=""),"",Q36/'2019 scenario - input'!$D26),"") ->  | AL36: =IFERROR(IF(OR(R36="",'2019 scenario - input'!$D26=""),"",R36/'2019 scenario - input'!$D26),"") ->  | AM36: =IFERROR(IF(OR(S36="",'2019 scenario - input'!$D26=""),"",S36/'2019 scenario - input'!$D26),"") ->  | AN36: =IFERROR(IF(OR(T36="",'2019 scenario - input'!$D26=""),"",T36/'2019 scenario - input'!$D26),"") ->  | AO36: =IFERROR(IF(OR(U36="",'2019 scenario - input'!$D26=""),"",U36/'2019 scenario - input'!$D26),"") ->  | AP36: =IFERROR(IF(OR(V36="",'2019 scenario - input'!$D26=""),"",V36/'2019 scenario - input'!$D26),"") ->  | AQ36: =IFERROR(IF(OR(W36="",'2019 scenario - input'!$D26=""),"",W36/'2019 scenario - input'!$D26),"") -> 
A37: =IFERROR('2019 scenario - input'!A27,"") ->  | B37: =IFERROR('2019 scenario - input'!B27,"") -> 0 | C37: =IFERROR('2019 scenario - input'!C27,"") -> 0 | D37: =IFERROR(repcalc('2019 scenario - input'!$CV27:$GH27,'2019 scenario - input'!$G27,'2019 scenario - input'!$E27,'2019 scenario - input'!$F27,20,TRUE,TRUE),"") ->  | X37: =IFERROR(IF(OR(D37="",'2019 scenario - input'!$D27=""),"",D37/'2019 scenario - input'!$D27),"") ->  | Y37: =IFERROR(IF(OR(E37="",'2019 scenario - input'!$D27=""),"",E37/'2019 scenario - input'!$D27),"") ->  | Z37: =IFERROR(IF(OR(F37="",'2019 scenario - input'!$D27=""),"",F37/'2019 scenario - input'!$D27),"") ->  | AA37: =IFERROR(IF(OR(G37="",'2019 scenario - input'!$D27=""),"",G37/'2019 scenario - input'!$D27),"") ->  | AB37: =IFERROR(IF(OR(H37="",'2019 scenario - input'!$D27=""),"",H37/'2019 scenario - input'!$D27),"") ->  | AC37: =IFERROR(IF(OR(I37="",'2019 scenario - input'!$D27=""),"",I37/'2019 scenario - input'!$D27),"") ->  | AD37: =IFERROR(IF(OR(J37="",'2019 scenario - input'!$D27=""),"",J37/'2019 scenario - input'!$D27),"") ->  | AE37: =IFERROR(IF(OR(K37="",'2019 scenario - input'!$D27=""),"",K37/'2019 scenario - input'!$D27),"") ->  | AF37: =IFERROR(IF(OR(L37="",'2019 scenario - input'!$D27=""),"",L37/'2019 scenario - input'!$D27),"") ->  | AG37: =IFERROR(IF(OR(M37="",'2019 scenario - input'!$D27=""),"",M37/'2019 scenario - input'!$D27),"") ->  | AH37: =IFERROR(IF(OR(N37="",'2019 scenario - input'!$D27=""),"",N37/'2019 scenario - input'!$D27),"") ->  | AI37: =IFERROR(IF(OR(O37="",'2019 scenario - input'!$D27=""),"",O37/'2019 scenario - input'!$D27),"") ->  | AJ37: =IFERROR(IF(OR(P37="",'2019 scenario - input'!$D27=""),"",P37/'2019 scenario - input'!$D27),"") ->  | AK37: =IFERROR(IF(OR(Q37="",'2019 scenario - input'!$D27=""),"",Q37/'2019 scenario - input'!$D27),"") ->  | AL37: =IFERROR(IF(OR(R37="",'2019 scenario - input'!$D27=""),"",R37/'2019 scenario - input'!$D27),"") ->  | AM37: =IFERROR(IF(OR(S37="",'2019 scenario - input'!$D27=""),"",S37/'2019 scenario - input'!$D27),"") ->  | AN37: =IFERROR(IF(OR(T37="",'2019 scenario - input'!$D27=""),"",T37/'2019 scenario - input'!$D27),"") ->  | AO37: =IFERROR(IF(OR(U37="",'2019 scenario - input'!$D27=""),"",U37/'2019 scenario - input'!$D27),"") ->  | AP37: =IFERROR(IF(OR(V37="",'2019 scenario - input'!$D27=""),"",V37/'2019 scenario - input'!$D27),"") ->  | AQ37: =IFERROR(IF(OR(W37="",'2019 scenario - input'!$D27=""),"",W37/'2019 scenario - input'!$D27),"") -> 
A38: =IFERROR('2019 scenario - input'!A28,"") ->  | B38: =IFERROR('2019 scenario - input'!B28,"") -> 0 | C38: =IFERROR('2019 scenario - input'!C28,"") -> 0 | D38: =IFERROR(repcalc('2019 scenario - input'!$CV28:$GH28,'2019 scenario - input'!$G28,'2019 scenario - input'!$E28,'2019 scenario - input'!$F28,20,TRUE,TRUE),"") ->  | X38: =IFERROR(IF(OR(D38="",'2019 scenario - input'!$D28=""),"",D38/'2019 scenario - input'!$D28),"") ->  | Y38: =IFERROR(IF(OR(E38="",'2019 scenario - input'!$D28=""),"",E38/'2019 scenario - input'!$D28),"") ->  | Z38: =IFERROR(IF(OR(F38="",'2019 scenario - input'!$D28=""),"",F38/'2019 scenario - input'!$D28),"") ->  | AA38: =IFERROR(IF(OR(G38="",'2019 scenario - input'!$D28=""),"",G38/'2019 scenario - input'!$D28),"") ->  | AB38: =IFERROR(IF(OR(H38="",'2019 scenario - input'!$D28=""),"",H38/'2019 scenario - input'!$D28),"") ->  | AC38: =IFERROR(IF(OR(I38="",'2019 scenario - input'!$D28=""),"",I38/'2019 scenario - input'!$D28),"") ->  | AD38: =IFERROR(IF(OR(J38="",'2019 scenario - input'!$D28=""),"",J38/'2019 scenario - input'!$D28),"") ->  | AE38: =IFERROR(IF(OR(K38="",'2019 scenario - input'!$D28=""),"",K38/'2019 scenario - input'!$D28),"") ->  | AF38: =IFERROR(IF(OR(L38="",'2019 scenario - input'!$D28=""),"",L38/'2019 scenario - input'!$D28),"") ->  | AG38: =IFERROR(IF(OR(M38="",'2019 scenario - input'!$D28=""),"",M38/'2019 scenario - input'!$D28),"") ->  | AH38: =IFERROR(IF(OR(N38="",'2019 scenario - input'!$D28=""),"",N38/'2019 scenario - input'!$D28),"") ->  | AI38: =IFERROR(IF(OR(O38="",'2019 scenario - input'!$D28=""),"",O38/'2019 scenario - input'!$D28),"") ->  | AJ38: =IFERROR(IF(OR(P38="",'2019 scenario - input'!$D28=""),"",P38/'2019 scenario - input'!$D28),"") ->  | AK38: =IFERROR(IF(OR(Q38="",'2019 scenario - input'!$D28=""),"",Q38/'2019 scenario - input'!$D28),"") ->  | AL38: =IFERROR(IF(OR(R38="",'2019 scenario - input'!$D28=""),"",R38/'2019 scenario - input'!$D28),"") ->  | AM38: =IFERROR(IF(OR(S38="",'2019 scenario - input'!$D28=""),"",S38/'2019 scenario - input'!$D28),"") ->  | AN38: =IFERROR(IF(OR(T38="",'2019 scenario - input'!$D28=""),"",T38/'2019 scenario - input'!$D28),"") ->  | AO38: =IFERROR(IF(OR(U38="",'2019 scenario - input'!$D28=""),"",U38/'2019 scenario - input'!$D28),"") ->  | AP38: =IFERROR(IF(OR(V38="",'2019 scenario - input'!$D28=""),"",V38/'2019 scenario - input'!$D28),"") ->  | AQ38: =IFERROR(IF(OR(W38="",'2019 scenario - input'!$D28=""),"",W38/'2019 scenario - input'!$D28),"") -> 
A39: =IFERROR('2019 scenario - input'!A29,"") ->  | B39: =IFERROR('2019 scenario - input'!B29,"") -> 0 | C39: =IFERROR('2019 scenario - input'!C29,"") -> 0 | D39: =IFERROR(repcalc('2019 scenario - input'!$CV29:$GH29,'2019 scenario - input'!$G29,'2019 scenario - input'!$E29,'2019 scenario - input'!$F29,20,TRUE,TRUE),"") ->  | X39: =IFERROR(IF(OR(D39="",'2019 scenario - input'!$D29=""),"",D39/'2019 scenario - input'!$D29),"") ->  | Y39: =IFERROR(IF(OR(E39="",'2019 scenario - input'!$D29=""),"",E39/'2019 scenario - input'!$D29),"") ->  | Z39: =IFERROR(IF(OR(F39="",'2019 scenario - input'!$D29=""),"",F39/'2019 scenario - input'!$D29),"") ->  | AA39: =IFERROR(IF(OR(G39="",'2019 scenario - input'!$D29=""),"",G39/'2019 scenario - input'!$D29),"") ->  | AB39: =IFERROR(IF(OR(H39="",'2019 scenario - input'!$D29=""),"",H39/'2019 scenario - input'!$D29),"") ->  | AC39: =IFERROR(IF(OR(I39="",'2019 scenario - input'!$D29=""),"",I39/'2019 scenario - input'!$D29),"") ->  | AD39: =IFERROR(IF(OR(J39="",'2019 scenario - input'!$D29=""),"",J39/'2019 scenario - input'!$D29),"") ->  | AE39: =IFERROR(IF(OR(K39="",'2019 scenario - input'!$D29=""),"",K39/'2019 scenario - input'!$D29),"") ->  | AF39: =IFERROR(IF(OR(L39="",'2019 scenario - input'!$D29=""),"",L39/'2019 scenario - input'!$D29),"") ->  | AG39: =IFERROR(IF(OR(M39="",'2019 scenario - input'!$D29=""),"",M39/'2019 scenario - input'!$D29),"") ->  | AH39: =IFERROR(IF(OR(N39="",'2019 scenario - input'!$D29=""),"",N39/'2019 scenario - input'!$D29),"") ->  | AI39: =IFERROR(IF(OR(O39="",'2019 scenario - input'!$D29=""),"",O39/'2019 scenario - input'!$D29),"") ->  | AJ39: =IFERROR(IF(OR(P39="",'2019 scenario - input'!$D29=""),"",P39/'2019 scenario - input'!$D29),"") ->  | AK39: =IFERROR(IF(OR(Q39="",'2019 scenario - input'!$D29=""),"",Q39/'2019 scenario - input'!$D29),"") ->  | AL39: =IFERROR(IF(OR(R39="",'2019 scenario - input'!$D29=""),"",R39/'2019 scenario - input'!$D29),"") ->  | AM39: =IFERROR(IF(OR(S39="",'2019 scenario - input'!$D29=""),"",S39/'2019 scenario - input'!$D29),"") ->  | AN39: =IFERROR(IF(OR(T39="",'2019 scenario - input'!$D29=""),"",T39/'2019 scenario - input'!$D29),"") ->  | AO39: =IFERROR(IF(OR(U39="",'2019 scenario - input'!$D29=""),"",U39/'2019 scenario - input'!$D29),"") ->  | AP39: =IFERROR(IF(OR(V39="",'2019 scenario - input'!$D29=""),"",V39/'2019 scenario - input'!$D29),"") ->  | AQ39: =IFERROR(IF(OR(W39="",'2019 scenario - input'!$D29=""),"",W39/'2019 scenario - input'!$D29),"") -> 
A40: =IFERROR('2019 scenario - input'!A30,"") ->  | B40: =IFERROR('2019 scenario - input'!B30,"") -> 0 | C40: =IFERROR('2019 scenario - input'!C30,"") -> 0 | D40: =IFERROR(repcalc('2019 scenario - input'!$CV30:$GH30,'2019 scenario - input'!$G30,'2019 scenario - input'!$E30,'2019 scenario - input'!$F30,20,TRUE,TRUE),"") ->  | X40: =IFERROR(IF(OR(D40="",'2019 scenario - input'!$D30=""),"",D40/'2019 scenario - input'!$D30),"") ->  | Y40: =IFERROR(IF(OR(E40="",'2019 scenario - input'!$D30=""),"",E40/'2019 scenario - input'!$D30),"") ->  | Z40: =IFERROR(IF(OR(F40="",'2019 scenario - input'!$D30=""),"",F40/'2019 scenario - input'!$D30),"") ->  | AA40: =IFERROR(IF(OR(G40="",'2019 scenario - input'!$D30=""),"",G40/'2019 scenario - input'!$D30),"") ->  | AB40: =IFERROR(IF(OR(H40="",'2019 scenario - input'!$D30=""),"",H40/'2019 scenario - input'!$D30),"") ->  | AC40: =IFERROR(IF(OR(I40="",'2019 scenario - input'!$D30=""),"",I40/'2019 scenario - input'!$D30),"") ->  | AD40: =IFERROR(IF(OR(J40="",'2019 scenario - input'!$D30=""),"",J40/'2019 scenario - input'!$D30),"") ->  | AE40: =IFERROR(IF(OR(K40="",'2019 scenario - input'!$D30=""),"",K40/'2019 scenario - input'!$D30),"") ->  | AF40: =IFERROR(IF(OR(L40="",'2019 scenario - input'!$D30=""),"",L40/'2019 scenario - input'!$D30),"") ->  | AG40: =IFERROR(IF(OR(M40="",'2019 scenario - input'!$D30=""),"",M40/'2019 scenario - input'!$D30),"") ->  | AH40: =IFERROR(IF(OR(N40="",'2019 scenario - input'!$D30=""),"",N40/'2019 scenario - input'!$D30),"") ->  | AI40: =IFERROR(IF(OR(O40="",'2019 scenario - input'!$D30=""),"",O40/'2019 scenario - input'!$D30),"") ->  | AJ40: =IFERROR(IF(OR(P40="",'2019 scenario - input'!$D30=""),"",P40/'2019 scenario - input'!$D30),"") ->  | AK40: =IFERROR(IF(OR(Q40="",'2019 scenario - input'!$D30=""),"",Q40/'2019 scenario - input'!$D30),"") ->  | AL40: =IFERROR(IF(OR(R40="",'2019 scenario - input'!$D30=""),"",R40/'2019 scenario - input'!$D30),"") ->  | AM40: =IFERROR(IF(OR(S40="",'2019 scenario - input'!$D30=""),"",S40/'2019 scenario - input'!$D30),"") ->  | AN40: =IFERROR(IF(OR(T40="",'2019 scenario - input'!$D30=""),"",T40/'2019 scenario - input'!$D30),"") ->  | AO40: =IFERROR(IF(OR(U40="",'2019 scenario - input'!$D30=""),"",U40/'2019 scenario - input'!$D30),"") ->  | AP40: =IFERROR(IF(OR(V40="",'2019 scenario - input'!$D30=""),"",V40/'2019 scenario - input'!$D30),"") ->  | AQ40: =IFERROR(IF(OR(W40="",'2019 scenario - input'!$D30=""),"",W40/'2019 scenario - input'!$D30),"") -> 
A41: =IFERROR('2019 scenario - input'!A31,"") ->  | B41: =IFERROR('2019 scenario - input'!B31,"") -> 0 | C41: =IFERROR('2019 scenario - input'!C31,"") -> 0 | D41: =IFERROR(repcalc('2019 scenario - input'!$CV31:$GH31,'2019 scenario - input'!$G31,'2019 scenario - input'!$E31,'2019 scenario - input'!$F31,20,TRUE,TRUE),"") ->  | X41: =IFERROR(IF(OR(D41="",'2019 scenario - input'!$D31=""),"",D41/'2019 scenario - input'!$D31),"") ->  | Y41: =IFERROR(IF(OR(E41="",'2019 scenario - input'!$D31=""),"",E41/'2019 scenario - input'!$D31),"") ->  | Z41: =IFERROR(IF(OR(F41="",'2019 scenario - input'!$D31=""),"",F41/'2019 scenario - input'!$D31),"") ->  | AA41: =IFERROR(IF(OR(G41="",'2019 scenario - input'!$D31=""),"",G41/'2019 scenario - input'!$D31),"") ->  | AB41: =IFERROR(IF(OR(H41="",'2019 scenario - input'!$D31=""),"",H41/'2019 scenario - input'!$D31),"") ->  | AC41: =IFERROR(IF(OR(I41="",'2019 scenario - input'!$D31=""),"",I41/'2019 scenario - input'!$D31),"") ->  | AD41: =IFERROR(IF(OR(J41="",'2019 scenario - input'!$D31=""),"",J41/'2019 scenario - input'!$D31),"") ->  | AE41: =IFERROR(IF(OR(K41="",'2019 scenario - input'!$D31=""),"",K41/'2019 scenario - input'!$D31),"") ->  | AF41: =IFERROR(IF(OR(L41="",'2019 scenario - input'!$D31=""),"",L41/'2019 scenario - input'!$D31),"") ->  | AG41: =IFERROR(IF(OR(M41="",'2019 scenario - input'!$D31=""),"",M41/'2019 scenario - input'!$D31),"") ->  | AH41: =IFERROR(IF(OR(N41="",'2019 scenario - input'!$D31=""),"",N41/'2019 scenario - input'!$D31),"") ->  | AI41: =IFERROR(IF(OR(O41="",'2019 scenario - input'!$D31=""),"",O41/'2019 scenario - input'!$D31),"") ->  | AJ41: =IFERROR(IF(OR(P41="",'2019 scenario - input'!$D31=""),"",P41/'2019 scenario - input'!$D31),"") ->  | AK41: =IFERROR(IF(OR(Q41="",'2019 scenario - input'!$D31=""),"",Q41/'2019 scenario - input'!$D31),"") ->  | AL41: =IFERROR(IF(OR(R41="",'2019 scenario - input'!$D31=""),"",R41/'2019 scenario - input'!$D31),"") ->  | AM41: =IFERROR(IF(OR(S41="",'2019 scenario - input'!$D31=""),"",S41/'2019 scenario - input'!$D31),"") ->  | AN41: =IFERROR(IF(OR(T41="",'2019 scenario - input'!$D31=""),"",T41/'2019 scenario - input'!$D31),"") ->  | AO41: =IFERROR(IF(OR(U41="",'2019 scenario - input'!$D31=""),"",U41/'2019 scenario - input'!$D31),"") ->  | AP41: =IFERROR(IF(OR(V41="",'2019 scenario - input'!$D31=""),"",V41/'2019 scenario - input'!$D31),"") ->  | AQ41: =IFERROR(IF(OR(W41="",'2019 scenario - input'!$D31=""),"",W41/'2019 scenario - input'!$D31),"") -> 
A42: =IFERROR('2019 scenario - input'!A32,"") ->  | B42: =IFERROR('2019 scenario - input'!B32,"") -> 0 | C42: =IFERROR('2019 scenario - input'!C32,"") -> 0 | D42: =IFERROR(repcalc('2019 scenario - input'!$CV32:$GH32,'2019 scenario - input'!$G32,'2019 scenario - input'!$E32,'2019 scenario - input'!$F32,20,TRUE,TRUE),"") ->  | X42: =IFERROR(IF(OR(D42="",'2019 scenario - input'!$D32=""),"",D42/'2019 scenario - input'!$D32),"") ->  | Y42: =IFERROR(IF(OR(E42="",'2019 scenario - input'!$D32=""),"",E42/'2019 scenario - input'!$D32),"") ->  | Z42: =IFERROR(IF(OR(F42="",'2019 scenario - input'!$D32=""),"",F42/'2019 scenario - input'!$D32),"") ->  | AA42: =IFERROR(IF(OR(G42="",'2019 scenario - input'!$D32=""),"",G42/'2019 scenario - input'!$D32),"") ->  | AB42: =IFERROR(IF(OR(H42="",'2019 scenario - input'!$D32=""),"",H42/'2019 scenario - input'!$D32),"") ->  | AC42: =IFERROR(IF(OR(I42="",'2019 scenario - input'!$D32=""),"",I42/'2019 scenario - input'!$D32),"") ->  | AD42: =IFERROR(IF(OR(J42="",'2019 scenario - input'!$D32=""),"",J42/'2019 scenario - input'!$D32),"") ->  | AE42: =IFERROR(IF(OR(K42="",'2019 scenario - input'!$D32=""),"",K42/'2019 scenario - input'!$D32),"") ->  | AF42: =IFERROR(IF(OR(L42="",'2019 scenario - input'!$D32=""),"",L42/'2019 scenario - input'!$D32),"") ->  | AG42: =IFERROR(IF(OR(M42="",'2019 scenario - input'!$D32=""),"",M42/'2019 scenario - input'!$D32),"") ->  | AH42: =IFERROR(IF(OR(N42="",'2019 scenario - input'!$D32=""),"",N42/'2019 scenario - input'!$D32),"") ->  | AI42: =IFERROR(IF(OR(O42="",'2019 scenario - input'!$D32=""),"",O42/'2019 scenario - input'!$D32),"") ->  | AJ42: =IFERROR(IF(OR(P42="",'2019 scenario - input'!$D32=""),"",P42/'2019 scenario - input'!$D32),"") ->  | AK42: =IFERROR(IF(OR(Q42="",'2019 scenario - input'!$D32=""),"",Q42/'2019 scenario - input'!$D32),"") ->  | AL42: =IFERROR(IF(OR(R42="",'2019 scenario - input'!$D32=""),"",R42/'2019 scenario - input'!$D32),"") ->  | AM42: =IFERROR(IF(OR(S42="",'2019 scenario - input'!$D32=""),"",S42/'2019 scenario - input'!$D32),"") ->  | AN42: =IFERROR(IF(OR(T42="",'2019 scenario - input'!$D32=""),"",T42/'2019 scenario - input'!$D32),"") ->  | AO42: =IFERROR(IF(OR(U42="",'2019 scenario - input'!$D32=""),"",U42/'2019 scenario - input'!$D32),"") ->  | AP42: =IFERROR(IF(OR(V42="",'2019 scenario - input'!$D32=""),"",V42/'2019 scenario - input'!$D32),"") ->  | AQ42: =IFERROR(IF(OR(W42="",'2019 scenario - input'!$D32=""),"",W42/'2019 scenario - input'!$D32),"") -> 
A43: =IFERROR('2019 scenario - input'!A33,"") ->  | B43: =IFERROR('2019 scenario - input'!B33,"") -> 0 | C43: =IFERROR('2019 scenario - input'!C33,"") -> 0 | D43: =IFERROR(repcalc('2019 scenario - input'!$CV33:$GH33,'2019 scenario - input'!$G33,'2019 scenario - input'!$E33,'2019 scenario - input'!$F33,20,TRUE,TRUE),"") ->  | X43: =IFERROR(IF(OR(D43="",'2019 scenario - input'!$D33=""),"",D43/'2019 scenario - input'!$D33),"") ->  | Y43: =IFERROR(IF(OR(E43="",'2019 scenario - input'!$D33=""),"",E43/'2019 scenario - input'!$D33),"") ->  | Z43: =IFERROR(IF(OR(F43="",'2019 scenario - input'!$D33=""),"",F43/'2019 scenario - input'!$D33),"") ->  | AA43: =IFERROR(IF(OR(G43="",'2019 scenario - input'!$D33=""),"",G43/'2019 scenario - input'!$D33),"") ->  | AB43: =IFERROR(IF(OR(H43="",'2019 scenario - input'!$D33=""),"",H43/'2019 scenario - input'!$D33),"") ->  | AC43: =IFERROR(IF(OR(I43="",'2019 scenario - input'!$D33=""),"",I43/'2019 scenario - input'!$D33),"") ->  | AD43: =IFERROR(IF(OR(J43="",'2019 scenario - input'!$D33=""),"",J43/'2019 scenario - input'!$D33),"") ->  | AE43: =IFERROR(IF(OR(K43="",'2019 scenario - input'!$D33=""),"",K43/'2019 scenario - input'!$D33),"") ->  | AF43: =IFERROR(IF(OR(L43="",'2019 scenario - input'!$D33=""),"",L43/'2019 scenario - input'!$D33),"") ->  | AG43: =IFERROR(IF(OR(M43="",'2019 scenario - input'!$D33=""),"",M43/'2019 scenario - input'!$D33),"") ->  | AH43: =IFERROR(IF(OR(N43="",'2019 scenario - input'!$D33=""),"",N43/'2019 scenario - input'!$D33),"") ->  | AI43: =IFERROR(IF(OR(O43="",'2019 scenario - input'!$D33=""),"",O43/'2019 scenario - input'!$D33),"") ->  | AJ43: =IFERROR(IF(OR(P43="",'2019 scenario - input'!$D33=""),"",P43/'2019 scenario - input'!$D33),"") ->  | AK43: =IFERROR(IF(OR(Q43="",'2019 scenario - input'!$D33=""),"",Q43/'2019 scenario - input'!$D33),"") ->  | AL43: =IFERROR(IF(OR(R43="",'2019 scenario - input'!$D33=""),"",R43/'2019 scenario - input'!$D33),"") ->  | AM43: =IFERROR(IF(OR(S43="",'2019 scenario - input'!$D33=""),"",S43/'2019 scenario - input'!$D33),"") ->  | AN43: =IFERROR(IF(OR(T43="",'2019 scenario - input'!$D33=""),"",T43/'2019 scenario - input'!$D33),"") ->  | AO43: =IFERROR(IF(OR(U43="",'2019 scenario - input'!$D33=""),"",U43/'2019 scenario - input'!$D33),"") ->  | AP43: =IFERROR(IF(OR(V43="",'2019 scenario - input'!$D33=""),"",V43/'2019 scenario - input'!$D33),"") ->  | AQ43: =IFERROR(IF(OR(W43="",'2019 scenario - input'!$D33=""),"",W43/'2019 scenario - input'!$D33),"") -> 
A44: =IFERROR('2019 scenario - input'!A34,"") ->  | B44: =IFERROR('2019 scenario - input'!B34,"") -> 0 | C44: =IFERROR('2019 scenario - input'!C34,"") -> 0 | D44: =IFERROR(repcalc('2019 scenario - input'!$CV34:$GH34,'2019 scenario - input'!$G34,'2019 scenario - input'!$E34,'2019 scenario - input'!$F34,20,TRUE,TRUE),"") ->  | X44: =IFERROR(IF(OR(D44="",'2019 scenario - input'!$D34=""),"",D44/'2019 scenario - input'!$D34),"") ->  | Y44: =IFERROR(IF(OR(E44="",'2019 scenario - input'!$D34=""),"",E44/'2019 scenario - input'!$D34),"") ->  | Z44: =IFERROR(IF(OR(F44="",'2019 scenario - input'!$D34=""),"",F44/'2019 scenario - input'!$D34),"") ->  | AA44: =IFERROR(IF(OR(G44="",'2019 scenario - input'!$D34=""),"",G44/'2019 scenario - input'!$D34),"") ->  | AB44: =IFERROR(IF(OR(H44="",'2019 scenario - input'!$D34=""),"",H44/'2019 scenario - input'!$D34),"") ->  | AC44: =IFERROR(IF(OR(I44="",'2019 scenario - input'!$D34=""),"",I44/'2019 scenario - input'!$D34),"") ->  | AD44: =IFERROR(IF(OR(J44="",'2019 scenario - input'!$D34=""),"",J44/'2019 scenario - input'!$D34),"") ->  | AE44: =IFERROR(IF(OR(K44="",'2019 scenario - input'!$D34=""),"",K44/'2019 scenario - input'!$D34),"") ->  | AF44: =IFERROR(IF(OR(L44="",'2019 scenario - input'!$D34=""),"",L44/'2019 scenario - input'!$D34),"") ->  | AG44: =IFERROR(IF(OR(M44="",'2019 scenario - input'!$D34=""),"",M44/'2019 scenario - input'!$D34),"") ->  | AH44: =IFERROR(IF(OR(N44="",'2019 scenario - input'!$D34=""),"",N44/'2019 scenario - input'!$D34),"") ->  | AI44: =IFERROR(IF(OR(O44="",'2019 scenario - input'!$D34=""),"",O44/'2019 scenario - input'!$D34),"") ->  | AJ44: =IFERROR(IF(OR(P44="",'2019 scenario - input'!$D34=""),"",P44/'2019 scenario - input'!$D34),"") ->  | AK44: =IFERROR(IF(OR(Q44="",'2019 scenario - input'!$D34=""),"",Q44/'2019 scenario - input'!$D34),"") ->  | AL44: =IFERROR(IF(OR(R44="",'2019 scenario - input'!$D34=""),"",R44/'2019 scenario - input'!$D34),"") ->  | AM44: =IFERROR(IF(OR(S44="",'2019 scenario - input'!$D34=""),"",S44/'2019 scenario - input'!$D34),"") ->  | AN44: =IFERROR(IF(OR(T44="",'2019 scenario - input'!$D34=""),"",T44/'2019 scenario - input'!$D34),"") ->  | AO44: =IFERROR(IF(OR(U44="",'2019 scenario - input'!$D34=""),"",U44/'2019 scenario - input'!$D34),"") ->  | AP44: =IFERROR(IF(OR(V44="",'2019 scenario - input'!$D34=""),"",V44/'2019 scenario - input'!$D34),"") ->  | AQ44: =IFERROR(IF(OR(W44="",'2019 scenario - input'!$D34=""),"",W44/'2019 scenario - input'!$D34),"") -> 
A45: =IFERROR('2019 scenario - input'!A35,"") ->  | B45: =IFERROR('2019 scenario - input'!B35,"") -> 0 | C45: =IFERROR('2019 scenario - input'!C35,"") -> 0 | D45: =IFERROR(repcalc('2019 scenario - input'!$CV35:$GH35,'2019 scenario - input'!$G35,'2019 scenario - input'!$E35,'2019 scenario - input'!$F35,20,TRUE,TRUE),"") ->  | X45: =IFERROR(IF(OR(D45="",'2019 scenario - input'!$D35=""),"",D45/'2019 scenario - input'!$D35),"") ->  | Y45: =IFERROR(IF(OR(E45="",'2019 scenario - input'!$D35=""),"",E45/'2019 scenario - input'!$D35),"") ->  | Z45: =IFERROR(IF(OR(F45="",'2019 scenario - input'!$D35=""),"",F45/'2019 scenario - input'!$D35),"") ->  | AA45: =IFERROR(IF(OR(G45="",'2019 scenario - input'!$D35=""),"",G45/'2019 scenario - input'!$D35),"") ->  | AB45: =IFERROR(IF(OR(H45="",'2019 scenario - input'!$D35=""),"",H45/'2019 scenario - input'!$D35),"") ->  | AC45: =IFERROR(IF(OR(I45="",'2019 scenario - input'!$D35=""),"",I45/'2019 scenario - input'!$D35),"") ->  | AD45: =IFERROR(IF(OR(J45="",'2019 scenario - input'!$D35=""),"",J45/'2019 scenario - input'!$D35),"") ->  | AE45: =IFERROR(IF(OR(K45="",'2019 scenario - input'!$D35=""),"",K45/'2019 scenario - input'!$D35),"") ->  | AF45: =IFERROR(IF(OR(L45="",'2019 scenario - input'!$D35=""),"",L45/'2019 scenario - input'!$D35),"") ->  | AG45: =IFERROR(IF(OR(M45="",'2019 scenario - input'!$D35=""),"",M45/'2019 scenario - input'!$D35),"") ->  | AH45: =IFERROR(IF(OR(N45="",'2019 scenario - input'!$D35=""),"",N45/'2019 scenario - input'!$D35),"") ->  | AI45: =IFERROR(IF(OR(O45="",'2019 scenario - input'!$D35=""),"",O45/'2019 scenario - input'!$D35),"") ->  | AJ45: =IFERROR(IF(OR(P45="",'2019 scenario - input'!$D35=""),"",P45/'2019 scenario - input'!$D35),"") ->  | AK45: =IFERROR(IF(OR(Q45="",'2019 scenario - input'!$D35=""),"",Q45/'2019 scenario - input'!$D35),"") ->  | AL45: =IFERROR(IF(OR(R45="",'2019 scenario - input'!$D35=""),"",R45/'2019 scenario - input'!$D35),"") ->  | AM45: =IFERROR(IF(OR(S45="",'2019 scenario - input'!$D35=""),"",S45/'2019 scenario - input'!$D35),"") ->  | AN45: =IFERROR(IF(OR(T45="",'2019 scenario - input'!$D35=""),"",T45/'2019 scenario - input'!$D35),"") ->  | AO45: =IFERROR(IF(OR(U45="",'2019 scenario - input'!$D35=""),"",U45/'2019 scenario - input'!$D35),"") ->  | AP45: =IFERROR(IF(OR(V45="",'2019 scenario - input'!$D35=""),"",V45/'2019 scenario - input'!$D35),"") ->  | AQ45: =IFERROR(IF(OR(W45="",'2019 scenario - input'!$D35=""),"",W45/'2019 scenario - input'!$D35),"") -> 
A46: =IFERROR('2019 scenario - input'!A36,"") ->  | B46: =IFERROR('2019 scenario - input'!B36,"") -> 0 | C46: =IFERROR('2019 scenario - input'!C36,"") -> 0 | D46: =IFERROR(repcalc('2019 scenario - input'!$CV36:$GH36,'2019 scenario - input'!$G36,'2019 scenario - input'!$E36,'2019 scenario - input'!$F36,20,TRUE,TRUE),"") ->  | X46: =IFERROR(IF(OR(D46="",'2019 scenario - input'!$D36=""),"",D46/'2019 scenario - input'!$D36),"") ->  | Y46: =IFERROR(IF(OR(E46="",'2019 scenario - input'!$D36=""),"",E46/'2019 scenario - input'!$D36),"") ->  | Z46: =IFERROR(IF(OR(F46="",'2019 scenario - input'!$D36=""),"",F46/'2019 scenario - input'!$D36),"") ->  | AA46: =IFERROR(IF(OR(G46="",'2019 scenario - input'!$D36=""),"",G46/'2019 scenario - input'!$D36),"") ->  | AB46: =IFERROR(IF(OR(H46="",'2019 scenario - input'!$D36=""),"",H46/'2019 scenario - input'!$D36),"") ->  | AC46: =IFERROR(IF(OR(I46="",'2019 scenario - input'!$D36=""),"",I46/'2019 scenario - input'!$D36),"") ->  | AD46: =IFERROR(IF(OR(J46="",'2019 scenario - input'!$D36=""),"",J46/'2019 scenario - input'!$D36),"") ->  | AE46: =IFERROR(IF(OR(K46="",'2019 scenario - input'!$D36=""),"",K46/'2019 scenario - input'!$D36),"") ->  | AF46: =IFERROR(IF(OR(L46="",'2019 scenario - input'!$D36=""),"",L46/'2019 scenario - input'!$D36),"") ->  | AG46: =IFERROR(IF(OR(M46="",'2019 scenario - input'!$D36=""),"",M46/'2019 scenario - input'!$D36),"") ->  | AH46: =IFERROR(IF(OR(N46="",'2019 scenario - input'!$D36=""),"",N46/'2019 scenario - input'!$D36),"") ->  | AI46: =IFERROR(IF(OR(O46="",'2019 scenario - input'!$D36=""),"",O46/'2019 scenario - input'!$D36),"") ->  | AJ46: =IFERROR(IF(OR(P46="",'2019 scenario - input'!$D36=""),"",P46/'2019 scenario - input'!$D36),"") ->  | AK46: =IFERROR(IF(OR(Q46="",'2019 scenario - input'!$D36=""),"",Q46/'2019 scenario - input'!$D36),"") ->  | AL46: =IFERROR(IF(OR(R46="",'2019 scenario - input'!$D36=""),"",R46/'2019 scenario - input'!$D36),"") ->  | AM46: =IFERROR(IF(OR(S46="",'2019 scenario - input'!$D36=""),"",S46/'2019 scenario - input'!$D36),"") ->  | AN46: =IFERROR(IF(OR(T46="",'2019 scenario - input'!$D36=""),"",T46/'2019 scenario - input'!$D36),"") ->  | AO46: =IFERROR(IF(OR(U46="",'2019 scenario - input'!$D36=""),"",U46/'2019 scenario - input'!$D36),"") ->  | AP46: =IFERROR(IF(OR(V46="",'2019 scenario - input'!$D36=""),"",V46/'2019 scenario - input'!$D36),"") ->  | AQ46: =IFERROR(IF(OR(W46="",'2019 scenario - input'!$D36=""),"",W46/'2019 scenario - input'!$D36),"") -> 
A47: =IFERROR('2019 scenario - input'!A37,"") ->  | B47: =IFERROR('2019 scenario - input'!B37,"") -> 0 | C47: =IFERROR('2019 scenario - input'!C37,"") -> 0 | D47: =IFERROR(repcalc('2019 scenario - input'!$CV37:$GH37,'2019 scenario - input'!$G37,'2019 scenario - input'!$E37,'2019 scenario - input'!$F37,20,TRUE,TRUE),"") ->  | X47: =IFERROR(IF(OR(D47="",'2019 scenario - input'!$D37=""),"",D47/'2019 scenario - input'!$D37),"") ->  | Y47: =IFERROR(IF(OR(E47="",'2019 scenario - input'!$D37=""),"",E47/'2019 scenario - input'!$D37),"") ->  | Z47: =IFERROR(IF(OR(F47="",'2019 scenario - input'!$D37=""),"",F47/'2019 scenario - input'!$D37),"") ->  | AA47: =IFERROR(IF(OR(G47="",'2019 scenario - input'!$D37=""),"",G47/'2019 scenario - input'!$D37),"") ->  | AB47: =IFERROR(IF(OR(H47="",'2019 scenario - input'!$D37=""),"",H47/'2019 scenario - input'!$D37),"") ->  | AC47: =IFERROR(IF(OR(I47="",'2019 scenario - input'!$D37=""),"",I47/'2019 scenario - input'!$D37),"") ->  | AD47: =IFERROR(IF(OR(J47="",'2019 scenario - input'!$D37=""),"",J47/'2019 scenario - input'!$D37),"") ->  | AE47: =IFERROR(IF(OR(K47="",'2019 scenario - input'!$D37=""),"",K47/'2019 scenario - input'!$D37),"") ->  | AF47: =IFERROR(IF(OR(L47="",'2019 scenario - input'!$D37=""),"",L47/'2019 scenario - input'!$D37),"") ->  | AG47: =IFERROR(IF(OR(M47="",'2019 scenario - input'!$D37=""),"",M47/'2019 scenario - input'!$D37),"") ->  | AH47: =IFERROR(IF(OR(N47="",'2019 scenario - input'!$D37=""),"",N47/'2019 scenario - input'!$D37),"") ->  | AI47: =IFERROR(IF(OR(O47="",'2019 scenario - input'!$D37=""),"",O47/'2019 scenario - input'!$D37),"") ->  | AJ47: =IFERROR(IF(OR(P47="",'2019 scenario - input'!$D37=""),"",P47/'2019 scenario - input'!$D37),"") ->  | AK47: =IFERROR(IF(OR(Q47="",'2019 scenario - input'!$D37=""),"",Q47/'2019 scenario - input'!$D37),"") ->  | AL47: =IFERROR(IF(OR(R47="",'2019 scenario - input'!$D37=""),"",R47/'2019 scenario - input'!$D37),"") ->  | AM47: =IFERROR(IF(OR(S47="",'2019 scenario - input'!$D37=""),"",S47/'2019 scenario - input'!$D37),"") ->  | AN47: =IFERROR(IF(OR(T47="",'2019 scenario - input'!$D37=""),"",T47/'2019 scenario - input'!$D37),"") ->  | AO47: =IFERROR(IF(OR(U47="",'2019 scenario - input'!$D37=""),"",U47/'2019 scenario - input'!$D37),"") ->  | AP47: =IFERROR(IF(OR(V47="",'2019 scenario - input'!$D37=""),"",V47/'2019 scenario - input'!$D37),"") ->  | AQ47: =IFERROR(IF(OR(W47="",'2019 scenario - input'!$D37=""),"",W47/'2019 scenario - input'!$D37),"") -> 
A48: =IFERROR('2019 scenario - input'!A38,"") ->  | B48: =IFERROR('2019 scenario - input'!B38,"") -> 0 | C48: =IFERROR('2019 scenario - input'!C38,"") -> 0 | D48: =IFERROR(repcalc('2019 scenario - input'!$CV38:$GH38,'2019 scenario - input'!$G38,'2019 scenario - input'!$E38,'2019 scenario - input'!$F38,20,TRUE,TRUE),"") ->  | X48: =IFERROR(IF(OR(D48="",'2019 scenario - input'!$D38=""),"",D48/'2019 scenario - input'!$D38),"") ->  | Y48: =IFERROR(IF(OR(E48="",'2019 scenario - input'!$D38=""),"",E48/'2019 scenario - input'!$D38),"") ->  | Z48: =IFERROR(IF(OR(F48="",'2019 scenario - input'!$D38=""),"",F48/'2019 scenario - input'!$D38),"") ->  | AA48: =IFERROR(IF(OR(G48="",'2019 scenario - input'!$D38=""),"",G48/'2019 scenario - input'!$D38),"") ->  | AB48: =IFERROR(IF(OR(H48="",'2019 scenario - input'!$D38=""),"",H48/'2019 scenario - input'!$D38),"") ->  | AC48: =IFERROR(IF(OR(I48="",'2019 scenario - input'!$D38=""),"",I48/'2019 scenario - input'!$D38),"") ->  | AD48: =IFERROR(IF(OR(J48="",'2019 scenario - input'!$D38=""),"",J48/'2019 scenario - input'!$D38),"") ->  | AE48: =IFERROR(IF(OR(K48="",'2019 scenario - input'!$D38=""),"",K48/'2019 scenario - input'!$D38),"") ->  | AF48: =IFERROR(IF(OR(L48="",'2019 scenario - input'!$D38=""),"",L48/'2019 scenario - input'!$D38),"") ->  | AG48: =IFERROR(IF(OR(M48="",'2019 scenario - input'!$D38=""),"",M48/'2019 scenario - input'!$D38),"") ->  | AH48: =IFERROR(IF(OR(N48="",'2019 scenario - input'!$D38=""),"",N48/'2019 scenario - input'!$D38),"") ->  | AI48: =IFERROR(IF(OR(O48="",'2019 scenario - input'!$D38=""),"",O48/'2019 scenario - input'!$D38),"") ->  | AJ48: =IFERROR(IF(OR(P48="",'2019 scenario - input'!$D38=""),"",P48/'2019 scenario - input'!$D38),"") ->  | AK48: =IFERROR(IF(OR(Q48="",'2019 scenario - input'!$D38=""),"",Q48/'2019 scenario - input'!$D38),"") ->  | AL48: =IFERROR(IF(OR(R48="",'2019 scenario - input'!$D38=""),"",R48/'2019 scenario - input'!$D38),"") ->  | AM48: =IFERROR(IF(OR(S48="",'2019 scenario - input'!$D38=""),"",S48/'2019 scenario - input'!$D38),"") ->  | AN48: =IFERROR(IF(OR(T48="",'2019 scenario - input'!$D38=""),"",T48/'2019 scenario - input'!$D38),"") ->  | AO48: =IFERROR(IF(OR(U48="",'2019 scenario - input'!$D38=""),"",U48/'2019 scenario - input'!$D38),"") ->  | AP48: =IFERROR(IF(OR(V48="",'2019 scenario - input'!$D38=""),"",V48/'2019 scenario - input'!$D38),"") ->  | AQ48: =IFERROR(IF(OR(W48="",'2019 scenario - input'!$D38=""),"",W48/'2019 scenario - input'!$D38),"") -> 
A49: =IFERROR('2019 scenario - input'!A39,"") ->  | B49: =IFERROR('2019 scenario - input'!B39,"") -> 0 | C49: =IFERROR('2019 scenario - input'!C39,"") -> 0 | D49: =IFERROR(repcalc('2019 scenario - input'!$CV39:$GH39,'2019 scenario - input'!$G39,'2019 scenario - input'!$E39,'2019 scenario - input'!$F39,20,TRUE,TRUE),"") ->  | X49: =IFERROR(IF(OR(D49="",'2019 scenario - input'!$D39=""),"",D49/'2019 scenario - input'!$D39),"") ->  | Y49: =IFERROR(IF(OR(E49="",'2019 scenario - input'!$D39=""),"",E49/'2019 scenario - input'!$D39),"") ->  | Z49: =IFERROR(IF(OR(F49="",'2019 scenario - input'!$D39=""),"",F49/'2019 scenario - input'!$D39),"") ->  | AA49: =IFERROR(IF(OR(G49="",'2019 scenario - input'!$D39=""),"",G49/'2019 scenario - input'!$D39),"") ->  | AB49: =IFERROR(IF(OR(H49="",'2019 scenario - input'!$D39=""),"",H49/'2019 scenario - input'!$D39),"") ->  | AC49: =IFERROR(IF(OR(I49="",'2019 scenario - input'!$D39=""),"",I49/'2019 scenario - input'!$D39),"") ->  | AD49: =IFERROR(IF(OR(J49="",'2019 scenario - input'!$D39=""),"",J49/'2019 scenario - input'!$D39),"") ->  | AE49: =IFERROR(IF(OR(K49="",'2019 scenario - input'!$D39=""),"",K49/'2019 scenario - input'!$D39),"") ->  | AF49: =IFERROR(IF(OR(L49="",'2019 scenario - input'!$D39=""),"",L49/'2019 scenario - input'!$D39),"") ->  | AG49: =IFERROR(IF(OR(M49="",'2019 scenario - input'!$D39=""),"",M49/'2019 scenario - input'!$D39),"") ->  | AH49: =IFERROR(IF(OR(N49="",'2019 scenario - input'!$D39=""),"",N49/'2019 scenario - input'!$D39),"") ->  | AI49: =IFERROR(IF(OR(O49="",'2019 scenario - input'!$D39=""),"",O49/'2019 scenario - input'!$D39),"") ->  | AJ49: =IFERROR(IF(OR(P49="",'2019 scenario - input'!$D39=""),"",P49/'2019 scenario - input'!$D39),"") ->  | AK49: =IFERROR(IF(OR(Q49="",'2019 scenario - input'!$D39=""),"",Q49/'2019 scenario - input'!$D39),"") ->  | AL49: =IFERROR(IF(OR(R49="",'2019 scenario - input'!$D39=""),"",R49/'2019 scenario - input'!$D39),"") ->  | AM49: =IFERROR(IF(OR(S49="",'2019 scenario - input'!$D39=""),"",S49/'2019 scenario - input'!$D39),"") ->  | AN49: =IFERROR(IF(OR(T49="",'2019 scenario - input'!$D39=""),"",T49/'2019 scenario - input'!$D39),"") ->  | AO49: =IFERROR(IF(OR(U49="",'2019 scenario - input'!$D39=""),"",U49/'2019 scenario - input'!$D39),"") ->  | AP49: =IFERROR(IF(OR(V49="",'2019 scenario - input'!$D39=""),"",V49/'2019 scenario - input'!$D39),"") ->  | AQ49: =IFERROR(IF(OR(W49="",'2019 scenario - input'!$D39=""),"",W49/'2019 scenario - input'!$D39),"") -> 
A50: =IFERROR('2019 scenario - input'!A13,"") ->  | B50: =IFERROR('2019 scenario - input'!B13,"") -> 0 | C50: =IFERROR('2019 scenario - input'!C13,"") -> 0 | D50: =IFERROR(repcalc('2019 scenario - input'!$CV13:$GH13,'2019 scenario - input'!$G13,'2019 scenario - input'!$E13,'2019 scenario - input'!$F13,20,TRUE,TRUE),"") -> 0 | E50: 0 | F50: 0 | G50: 0 | H50: 0 | I50: 0 | J50: 0 | K50: 0 | L50: 0 | M50: 0 | N50: 0 | O50: 0 | P50: 0 | Q50: 0 | R50: 0 | S50: 0 | T50: 0 | U50: 0 | V50: 0 | W50: 0 | X50: =IFERROR(IF(OR(D50="",'2019 scenario - input'!$D13=""),"",D50/'2019 scenario - input'!$D13),"") ->  | Y50: =IFERROR(IF(OR(E50="",'2019 scenario - input'!$D13=""),"",E50/'2019 scenario - input'!$D13),"") ->  | Z50: =IFERROR(IF(OR(F50="",'2019 scenario - input'!$D13=""),"",F50/'2019 scenario - input'!$D13),"") ->  | AA50: =IFERROR(IF(OR(G50="",'2019 scenario - input'!$D13=""),"",G50/'2019 scenario - input'!$D13),"") ->  | AB50: =IFERROR(IF(OR(H50="",'2019 scenario - input'!$D13=""),"",H50/'2019 scenario - input'!$D13),"") ->  | AC50: =IFERROR(IF(OR(I50="",'2019 scenario - input'!$D13=""),"",I50/'2019 scenario - input'!$D13),"") ->  | AD50: =IFERROR(IF(OR(J50="",'2019 scenario - input'!$D13=""),"",J50/'2019 scenario - input'!$D13),"") ->  | AE50: =IFERROR(IF(OR(K50="",'2019 scenario - input'!$D13=""),"",K50/'2019 scenario - input'!$D13),"") ->  | AF50: =IFERROR(IF(OR(L50="",'2019 scenario - input'!$D13=""),"",L50/'2019 scenario - input'!$D13),"") ->  | AG50: =IFERROR(IF(OR(M50="",'2019 scenario - input'!$D13=""),"",M50/'2019 scenario - input'!$D13),"") ->  | AH50: =IFERROR(IF(OR(N50="",'2019 scenario - input'!$D13=""),"",N50/'2019 scenario - input'!$D13),"") ->  | AI50: =IFERROR(IF(OR(O50="",'2019 scenario - input'!$D13=""),"",O50/'2019 scenario - input'!$D13),"") ->  | AJ50: =IFERROR(IF(OR(P50="",'2019 scenario - input'!$D13=""),"",P50/'2019 scenario - input'!$D13),"") ->  | AK50: =IFERROR(IF(OR(Q50="",'2019 scenario - input'!$D13=""),"",Q50/'2019 scenario - input'!$D13),"") ->  | AL50: =IFERROR(IF(OR(R50="",'2019 scenario - input'!$D13=""),"",R50/'2019 scenario - input'!$D13),"") ->  | AM50: =IFERROR(IF(OR(S50="",'2019 scenario - input'!$D13=""),"",S50/'2019 scenario - input'!$D13),"") ->  | AN50: =IFERROR(IF(OR(T50="",'2019 scenario - input'!$D13=""),"",T50/'2019 scenario - input'!$D13),"") ->  | AO50: =IFERROR(IF(OR(U50="",'2019 scenario - input'!$D13=""),"",U50/'2019 scenario - input'!$D13),"") ->  | AP50: =IFERROR(IF(OR(V50="",'2019 scenario - input'!$D13=""),"",V50/'2019 scenario - input'!$D13),"") ->  | AQ50: =IFERROR(IF(OR(W50="",'2019 scenario - input'!$D13=""),"",W50/'2019 scenario - input'!$D13),"") -> 
A51: =IFERROR('2019 scenario - input'!A14,"") ->  | B51: =IFERROR('2019 scenario - input'!B14,"") -> 0 | C51: =IFERROR('2019 scenario - input'!C14,"") -> 0 | D51: =IFERROR(repcalc('2019 scenario - input'!$CV14:$GH14,'2019 scenario - input'!$G14,'2019 scenario - input'!$E14,'2019 scenario - input'!$F14,20,TRUE,TRUE),"") -> 0 | E51: 0 | F51: 0 | G51: 0 | H51: 0 | I51: 0 | J51: 0 | K51: 0 | L51: 0 | M51: 0 | N51: 0 | O51: 0 | P51: 0 | Q51: 0 | R51: 0 | S51: 0 | T51: 0 | U51: 0 | V51: 0 | W51: 0 | X51: =IFERROR(IF(OR(D51="",'2019 scenario - input'!$D14=""),"",D51/'2019 scenario - input'!$D14),"") ->  | Y51: =IFERROR(IF(OR(E51="",'2019 scenario - input'!$D14=""),"",E51/'2019 scenario - input'!$D14),"") ->  | Z51: =IFERROR(IF(OR(F51="",'2019 scenario - input'!$D14=""),"",F51/'2019 scenario - input'!$D14),"") ->  | AA51: =IFERROR(IF(OR(G51="",'2019 scenario - input'!$D14=""),"",G51/'2019 scenario - input'!$D14),"") ->  | AB51: =IFERROR(IF(OR(H51="",'2019 scenario - input'!$D14=""),"",H51/'2019 scenario - input'!$D14),"") ->  | AC51: =IFERROR(IF(OR(I51="",'2019 scenario - input'!$D14=""),"",I51/'2019 scenario - input'!$D14),"") ->  | AD51: =IFERROR(IF(OR(J51="",'2019 scenario - input'!$D14=""),"",J51/'2019 scenario - input'!$D14),"") ->  | AE51: =IFERROR(IF(OR(K51="",'2019 scenario - input'!$D14=""),"",K51/'2019 scenario - input'!$D14),"") ->  | AF51: =IFERROR(IF(OR(L51="",'2019 scenario - input'!$D14=""),"",L51/'2019 scenario - input'!$D14),"") ->  | AG51: =IFERROR(IF(OR(M51="",'2019 scenario - input'!$D14=""),"",M51/'2019 scenario - input'!$D14),"") ->  | AH51: =IFERROR(IF(OR(N51="",'2019 scenario - input'!$D14=""),"",N51/'2019 scenario - input'!$D14),"") ->  | AI51: =IFERROR(IF(OR(O51="",'2019 scenario - input'!$D14=""),"",O51/'2019 scenario - input'!$D14),"") ->  | AJ51: =IFERROR(IF(OR(P51="",'2019 scenario - input'!$D14=""),"",P51/'2019 scenario - input'!$D14),"") ->  | AK51: =IFERROR(IF(OR(Q51="",'2019 scenario - input'!$D14=""),"",Q51/'2019 scenario - input'!$D14),"") ->  | AL51: =IFERROR(IF(OR(R51="",'2019 scenario - input'!$D14=""),"",R51/'2019 scenario - input'!$D14),"") ->  | AM51: =IFERROR(IF(OR(S51="",'2019 scenario - input'!$D14=""),"",S51/'2019 scenario - input'!$D14),"") ->  | AN51: =IFERROR(IF(OR(T51="",'2019 scenario - input'!$D14=""),"",T51/'2019 scenario - input'!$D14),"") ->  | AO51: =IFERROR(IF(OR(U51="",'2019 scenario - input'!$D14=""),"",U51/'2019 scenario - input'!$D14),"") ->  | AP51: =IFERROR(IF(OR(V51="",'2019 scenario - input'!$D14=""),"",V51/'2019 scenario - input'!$D14),"") ->  | AQ51: =IFERROR(IF(OR(W51="",'2019 scenario - input'!$D14=""),"",W51/'2019 scenario - input'!$D14),"") -> 
A52: =IFERROR('2019 scenario - input'!A15,"") ->  | B52: =IFERROR('2019 scenario - input'!B15,"") -> 0 | C52: =IFERROR('2019 scenario - input'!C15,"") -> 0 | D52: =IFERROR(repcalc('2019 scenario - input'!$CV15:$GH15,'2019 scenario - input'!$G15,'2019 scenario - input'!$E15,'2019 scenario - input'!$F15,20,TRUE,TRUE),"") -> 0 | E52: 0 | F52: 0 | G52: 0 | H52: 0 | I52: 0 | J52: 0 | K52: 0 | L52: 0 | M52: 0 | N52: 0 | O52: 0 | P52: 0 | Q52: 0 | R52: 0 | S52: 0 | T52: 0 | U52: 0 | V52: 0 | W52: 0 | X52: =IFERROR(IF(OR(D52="",'2019 scenario - input'!$D15=""),"",D52/'2019 scenario - input'!$D15),"") ->  | Y52: =IFERROR(IF(OR(E52="",'2019 scenario - input'!$D15=""),"",E52/'2019 scenario - input'!$D15),"") ->  | Z52: =IFERROR(IF(OR(F52="",'2019 scenario - input'!$D15=""),"",F52/'2019 scenario - input'!$D15),"") ->  | AA52: =IFERROR(IF(OR(G52="",'2019 scenario - input'!$D15=""),"",G52/'2019 scenario - input'!$D15),"") ->  | AB52: =IFERROR(IF(OR(H52="",'2019 scenario - input'!$D15=""),"",H52/'2019 scenario - input'!$D15),"") ->  | AC52: =IFERROR(IF(OR(I52="",'2019 scenario - input'!$D15=""),"",I52/'2019 scenario - input'!$D15),"") ->  | AD52: =IFERROR(IF(OR(J52="",'2019 scenario - input'!$D15=""),"",J52/'2019 scenario - input'!$D15),"") ->  | AE52: =IFERROR(IF(OR(K52="",'2019 scenario - input'!$D15=""),"",K52/'2019 scenario - input'!$D15),"") ->  | AF52: =IFERROR(IF(OR(L52="",'2019 scenario - input'!$D15=""),"",L52/'2019 scenario - input'!$D15),"") ->  | AG52: =IFERROR(IF(OR(M52="",'2019 scenario - input'!$D15=""),"",M52/'2019 scenario - input'!$D15),"") ->  | AH52: =IFERROR(IF(OR(N52="",'2019 scenario - input'!$D15=""),"",N52/'2019 scenario - input'!$D15),"") ->  | AI52: =IFERROR(IF(OR(O52="",'2019 scenario - input'!$D15=""),"",O52/'2019 scenario - input'!$D15),"") ->  | AJ52: =IFERROR(IF(OR(P52="",'2019 scenario - input'!$D15=""),"",P52/'2019 scenario - input'!$D15),"") ->  | AK52: =IFERROR(IF(OR(Q52="",'2019 scenario - input'!$D15=""),"",Q52/'2019 scenario - input'!$D15),"") ->  | AL52: =IFERROR(IF(OR(R52="",'2019 scenario - input'!$D15=""),"",R52/'2019 scenario - input'!$D15),"") ->  | AM52: =IFERROR(IF(OR(S52="",'2019 scenario - input'!$D15=""),"",S52/'2019 scenario - input'!$D15),"") ->  | AN52: =IFERROR(IF(OR(T52="",'2019 scenario - input'!$D15=""),"",T52/'2019 scenario - input'!$D15),"") ->  | AO52: =IFERROR(IF(OR(U52="",'2019 scenario - input'!$D15=""),"",U52/'2019 scenario - input'!$D15),"") ->  | AP52: =IFERROR(IF(OR(V52="",'2019 scenario - input'!$D15=""),"",V52/'2019 scenario - input'!$D15),"") ->  | AQ52: =IFERROR(IF(OR(W52="",'2019 scenario - input'!$D15=""),"",W52/'2019 scenario - input'!$D15),"") -> 
A53: =IFERROR('2019 scenario - input'!A16,"") ->  | B53: =IFERROR('2019 scenario - input'!B16,"") -> 0 | C53: =IFERROR('2019 scenario - input'!C16,"") -> 0 | D53: =IFERROR(repcalc('2019 scenario - input'!$CV16:$GH16,'2019 scenario - input'!$G16,'2019 scenario - input'!$E16,'2019 scenario - input'!$F16,20,TRUE,TRUE),"") ->  | X53: =IFERROR(IF(OR(D53="",'2019 scenario - input'!$D16=""),"",D53/'2019 scenario - input'!$D16),"") ->  | Y53: =IFERROR(IF(OR(E53="",'2019 scenario - input'!$D16=""),"",E53/'2019 scenario - input'!$D16),"") ->  | Z53: =IFERROR(IF(OR(F53="",'2019 scenario - input'!$D16=""),"",F53/'2019 scenario - input'!$D16),"") ->  | AA53: =IFERROR(IF(OR(G53="",'2019 scenario - input'!$D16=""),"",G53/'2019 scenario - input'!$D16),"") ->  | AB53: =IFERROR(IF(OR(H53="",'2019 scenario - input'!$D16=""),"",H53/'2019 scenario - input'!$D16),"") ->  | AC53: =IFERROR(IF(OR(I53="",'2019 scenario - input'!$D16=""),"",I53/'2019 scenario - input'!$D16),"") ->  | AD53: =IFERROR(IF(OR(J53="",'2019 scenario - input'!$D16=""),"",J53/'2019 scenario - input'!$D16),"") ->  | AE53: =IFERROR(IF(OR(K53="",'2019 scenario - input'!$D16=""),"",K53/'2019 scenario - input'!$D16),"") ->  | AF53: =IFERROR(IF(OR(L53="",'2019 scenario - input'!$D16=""),"",L53/'2019 scenario - input'!$D16),"") ->  | AG53: =IFERROR(IF(OR(M53="",'2019 scenario - input'!$D16=""),"",M53/'2019 scenario - input'!$D16),"") ->  | AH53: =IFERROR(IF(OR(N53="",'2019 scenario - input'!$D16=""),"",N53/'2019 scenario - input'!$D16),"") ->  | AI53: =IFERROR(IF(OR(O53="",'2019 scenario - input'!$D16=""),"",O53/'2019 scenario - input'!$D16),"") ->  | AJ53: =IFERROR(IF(OR(P53="",'2019 scenario - input'!$D16=""),"",P53/'2019 scenario - input'!$D16),"") ->  | AK53: =IFERROR(IF(OR(Q53="",'2019 scenario - input'!$D16=""),"",Q53/'2019 scenario - input'!$D16),"") ->  | AL53: =IFERROR(IF(OR(R53="",'2019 scenario - input'!$D16=""),"",R53/'2019 scenario - input'!$D16),"") ->  | AM53: =IFERROR(IF(OR(S53="",'2019 scenario - input'!$D16=""),"",S53/'2019 scenario - input'!$D16),"") ->  | AN53: =IFERROR(IF(OR(T53="",'2019 scenario - input'!$D16=""),"",T53/'2019 scenario - input'!$D16),"") ->  | AO53: =IFERROR(IF(OR(U53="",'2019 scenario - input'!$D16=""),"",U53/'2019 scenario - input'!$D16),"") ->  | AP53: =IFERROR(IF(OR(V53="",'2019 scenario - input'!$D16=""),"",V53/'2019 scenario - input'!$D16),"") ->  | AQ53: =IFERROR(IF(OR(W53="",'2019 scenario - input'!$D16=""),"",W53/'2019 scenario - input'!$D16),"") -> 
A54: =IFERROR('2019 scenario - input'!A17,"") ->  | B54: =IFERROR('2019 scenario - input'!B17,"") -> 0 | C54: =IFERROR('2019 scenario - input'!C17,"") -> 0 | D54: =IFERROR(repcalc('2019 scenario - input'!$CV17:$GH17,'2019 scenario - input'!$G17,'2019 scenario - input'!$E17,'2019 scenario - input'!$F17,20,TRUE,TRUE),"") ->  | X54: =IFERROR(IF(OR(D54="",'2019 scenario - input'!$D17=""),"",D54/'2019 scenario - input'!$D17),"") ->  | Y54: =IFERROR(IF(OR(E54="",'2019 scenario - input'!$D17=""),"",E54/'2019 scenario - input'!$D17),"") ->  | Z54: =IFERROR(IF(OR(F54="",'2019 scenario - input'!$D17=""),"",F54/'2019 scenario - input'!$D17),"") ->  | AA54: =IFERROR(IF(OR(G54="",'2019 scenario - input'!$D17=""),"",G54/'2019 scenario - input'!$D17),"") ->  | AB54: =IFERROR(IF(OR(H54="",'2019 scenario - input'!$D17=""),"",H54/'2019 scenario - input'!$D17),"") ->  | AC54: =IFERROR(IF(OR(I54="",'2019 scenario - input'!$D17=""),"",I54/'2019 scenario - input'!$D17),"") ->  | AD54: =IFERROR(IF(OR(J54="",'2019 scenario - input'!$D17=""),"",J54/'2019 scenario - input'!$D17),"") ->  | AE54: =IFERROR(IF(OR(K54="",'2019 scenario - input'!$D17=""),"",K54/'2019 scenario - input'!$D17),"") ->  | AF54: =IFERROR(IF(OR(L54="",'2019 scenario - input'!$D17=""),"",L54/'2019 scenario - input'!$D17),"") ->  | AG54: =IFERROR(IF(OR(M54="",'2019 scenario - input'!$D17=""),"",M54/'2019 scenario - input'!$D17),"") ->  | AH54: =IFERROR(IF(OR(N54="",'2019 scenario - input'!$D17=""),"",N54/'2019 scenario - input'!$D17),"") ->  | AI54: =IFERROR(IF(OR(O54="",'2019 scenario - input'!$D17=""),"",O54/'2019 scenario - input'!$D17),"") ->  | AJ54: =IFERROR(IF(OR(P54="",'2019 scenario - input'!$D17=""),"",P54/'2019 scenario - input'!$D17),"") ->  | AK54: =IFERROR(IF(OR(Q54="",'2019 scenario - input'!$D17=""),"",Q54/'2019 scenario - input'!$D17),"") ->  | AL54: =IFERROR(IF(OR(R54="",'2019 scenario - input'!$D17=""),"",R54/'2019 scenario - input'!$D17),"") ->  | AM54: =IFERROR(IF(OR(S54="",'2019 scenario - input'!$D17=""),"",S54/'2019 scenario - input'!$D17),"") ->  | AN54: =IFERROR(IF(OR(T54="",'2019 scenario - input'!$D17=""),"",T54/'2019 scenario - input'!$D17),"") ->  | AO54: =IFERROR(IF(OR(U54="",'2019 scenario - input'!$D17=""),"",U54/'2019 scenario - input'!$D17),"") ->  | AP54: =IFERROR(IF(OR(V54="",'2019 scenario - input'!$D17=""),"",V54/'2019 scenario - input'!$D17),"") ->  | AQ54: =IFERROR(IF(OR(W54="",'2019 scenario - input'!$D17=""),"",W54/'2019 scenario - input'!$D17),"") -> 
A55: =IFERROR('2019 scenario - input'!A18,"") ->  | B55: =IFERROR('2019 scenario - input'!B18,"") -> 0 | C55: =IFERROR('2019 scenario - input'!C18,"") -> 0 | D55: =IFERROR(repcalc('2019 scenario - input'!$CV18:$GH18,'2019 scenario - input'!$G18,'2019 scenario - input'!$E18,'2019 scenario - input'!$F18,20,TRUE,TRUE),"") ->  | X55: =IFERROR(IF(OR(D55="",'2019 scenario - input'!$D18=""),"",D55/'2019 scenario - input'!$D18),"") ->  | Y55: =IFERROR(IF(OR(E55="",'2019 scenario - input'!$D18=""),"",E55/'2019 scenario - input'!$D18),"") ->  | Z55: =IFERROR(IF(OR(F55="",'2019 scenario - input'!$D18=""),"",F55/'2019 scenario - input'!$D18),"") ->  | AA55: =IFERROR(IF(OR(G55="",'2019 scenario - input'!$D18=""),"",G55/'2019 scenario - input'!$D18),"") ->  | AB55: =IFERROR(IF(OR(H55="",'2019 scenario - input'!$D18=""),"",H55/'2019 scenario - input'!$D18),"") ->  | AC55: =IFERROR(IF(OR(I55="",'2019 scenario - input'!$D18=""),"",I55/'2019 scenario - input'!$D18),"") ->  | AD55: =IFERROR(IF(OR(J55="",'2019 scenario - input'!$D18=""),"",J55/'2019 scenario - input'!$D18),"") ->  | AE55: =IFERROR(IF(OR(K55="",'2019 scenario - input'!$D18=""),"",K55/'2019 scenario - input'!$D18),"") ->  | AF55: =IFERROR(IF(OR(L55="",'2019 scenario - input'!$D18=""),"",L55/'2019 scenario - input'!$D18),"") ->  | AG55: =IFERROR(IF(OR(M55="",'2019 scenario - input'!$D18=""),"",M55/'2019 scenario - input'!$D18),"") ->  | AH55: =IFERROR(IF(OR(N55="",'2019 scenario - input'!$D18=""),"",N55/'2019 scenario - input'!$D18),"") ->  | AI55: =IFERROR(IF(OR(O55="",'2019 scenario - input'!$D18=""),"",O55/'2019 scenario - input'!$D18),"") ->  | AJ55: =IFERROR(IF(OR(P55="",'2019 scenario - input'!$D18=""),"",P55/'2019 scenario - input'!$D18),"") ->  | AK55: =IFERROR(IF(OR(Q55="",'2019 scenario - input'!$D18=""),"",Q55/'2019 scenario - input'!$D18),"") ->  | AL55: =IFERROR(IF(OR(R55="",'2019 scenario - input'!$D18=""),"",R55/'2019 scenario - input'!$D18),"") ->  | AM55: =IFERROR(IF(OR(S55="",'2019 scenario - input'!$D18=""),"",S55/'2019 scenario - input'!$D18),"") ->  | AN55: =IFERROR(IF(OR(T55="",'2019 scenario - input'!$D18=""),"",T55/'2019 scenario - input'!$D18),"") ->  | AO55: =IFERROR(IF(OR(U55="",'2019 scenario - input'!$D18=""),"",U55/'2019 scenario - input'!$D18),"") ->  | AP55: =IFERROR(IF(OR(V55="",'2019 scenario - input'!$D18=""),"",V55/'2019 scenario - input'!$D18),"") ->  | AQ55: =IFERROR(IF(OR(W55="",'2019 scenario - input'!$D18=""),"",W55/'2019 scenario - input'!$D18),"") -> 
A56: =IFERROR('2019 scenario - input'!A19,"") ->  | B56: =IFERROR('2019 scenario - input'!B19,"") -> 0 | C56: =IFERROR('2019 scenario - input'!C19,"") -> 0 | D56: =IFERROR(repcalc('2019 scenario - input'!$CV19:$GH19,'2019 scenario - input'!$G19,'2019 scenario - input'!$E19,'2019 scenario - input'!$F19,20,TRUE,TRUE),"") ->  | X56: =IFERROR(IF(OR(D56="",'2019 scenario - input'!$D19=""),"",D56/'2019 scenario - input'!$D19),"") ->  | Y56: =IFERROR(IF(OR(E56="",'2019 scenario - input'!$D19=""),"",E56/'2019 scenario - input'!$D19),"") ->  | Z56: =IFERROR(IF(OR(F56="",'2019 scenario - input'!$D19=""),"",F56/'2019 scenario - input'!$D19),"") ->  | AA56: =IFERROR(IF(OR(G56="",'2019 scenario - input'!$D19=""),"",G56/'2019 scenario - input'!$D19),"") ->  | AB56: =IFERROR(IF(OR(H56="",'2019 scenario - input'!$D19=""),"",H56/'2019 scenario - input'!$D19),"") ->  | AC56: =IFERROR(IF(OR(I56="",'2019 scenario - input'!$D19=""),"",I56/'2019 scenario - input'!$D19),"") ->  | AD56: =IFERROR(IF(OR(J56="",'2019 scenario - input'!$D19=""),"",J56/'2019 scenario - input'!$D19),"") ->  | AE56: =IFERROR(IF(OR(K56="",'2019 scenario - input'!$D19=""),"",K56/'2019 scenario - input'!$D19),"") ->  | AF56: =IFERROR(IF(OR(L56="",'2019 scenario - input'!$D19=""),"",L56/'2019 scenario - input'!$D19),"") ->  | AG56: =IFERROR(IF(OR(M56="",'2019 scenario - input'!$D19=""),"",M56/'2019 scenario - input'!$D19),"") ->  | AH56: =IFERROR(IF(OR(N56="",'2019 scenario - input'!$D19=""),"",N56/'2019 scenario - input'!$D19),"") ->  | AI56: =IFERROR(IF(OR(O56="",'2019 scenario - input'!$D19=""),"",O56/'2019 scenario - input'!$D19),"") ->  | AJ56: =IFERROR(IF(OR(P56="",'2019 scenario - input'!$D19=""),"",P56/'2019 scenario - input'!$D19),"") ->  | AK56: =IFERROR(IF(OR(Q56="",'2019 scenario - input'!$D19=""),"",Q56/'2019 scenario - input'!$D19),"") ->  | AL56: =IFERROR(IF(OR(R56="",'2019 scenario - input'!$D19=""),"",R56/'2019 scenario - input'!$D19),"") ->  | AM56: =IFERROR(IF(OR(S56="",'2019 scenario - input'!$D19=""),"",S56/'2019 scenario - input'!$D19),"") ->  | AN56: =IFERROR(IF(OR(T56="",'2019 scenario - input'!$D19=""),"",T56/'2019 scenario - input'!$D19),"") ->  | AO56: =IFERROR(IF(OR(U56="",'2019 scenario - input'!$D19=""),"",U56/'2019 scenario - input'!$D19),"") ->  | AP56: =IFERROR(IF(OR(V56="",'2019 scenario - input'!$D19=""),"",V56/'2019 scenario - input'!$D19),"") ->  | AQ56: =IFERROR(IF(OR(W56="",'2019 scenario - input'!$D19=""),"",W56/'2019 scenario - input'!$D19),"") -> 
A57: =IFERROR('2019 scenario - input'!A20,"") ->  | B57: =IFERROR('2019 scenario - input'!B20,"") -> 0 | C57: =IFERROR('2019 scenario - input'!C20,"") -> 0 | D57: =IFERROR(repcalc('2019 scenario - input'!$CV20:$GH20,'2019 scenario - input'!$G20,'2019 scenario - input'!$E20,'2019 scenario - input'!$F20,20,TRUE,TRUE),"") ->  | X57: =IFERROR(IF(OR(D57="",'2019 scenario - input'!$D20=""),"",D57/'2019 scenario - input'!$D20),"") ->  | Y57: =IFERROR(IF(OR(E57="",'2019 scenario - input'!$D20=""),"",E57/'2019 scenario - input'!$D20),"") ->  | Z57: =IFERROR(IF(OR(F57="",'2019 scenario - input'!$D20=""),"",F57/'2019 scenario - input'!$D20),"") ->  | AA57: =IFERROR(IF(OR(G57="",'2019 scenario - input'!$D20=""),"",G57/'2019 scenario - input'!$D20),"") ->  | AB57: =IFERROR(IF(OR(H57="",'2019 scenario - input'!$D20=""),"",H57/'2019 scenario - input'!$D20),"") ->  | AC57: =IFERROR(IF(OR(I57="",'2019 scenario - input'!$D20=""),"",I57/'2019 scenario - input'!$D20),"") ->  | AD57: =IFERROR(IF(OR(J57="",'2019 scenario - input'!$D20=""),"",J57/'2019 scenario - input'!$D20),"") ->  | AE57: =IFERROR(IF(OR(K57="",'2019 scenario - input'!$D20=""),"",K57/'2019 scenario - input'!$D20),"") ->  | AF57: =IFERROR(IF(OR(L57="",'2019 scenario - input'!$D20=""),"",L57/'2019 scenario - input'!$D20),"") ->  | AG57: =IFERROR(IF(OR(M57="",'2019 scenario - input'!$D20=""),"",M57/'2019 scenario - input'!$D20),"") ->  | AH57: =IFERROR(IF(OR(N57="",'2019 scenario - input'!$D20=""),"",N57/'2019 scenario - input'!$D20),"") ->  | AI57: =IFERROR(IF(OR(O57="",'2019 scenario - input'!$D20=""),"",O57/'2019 scenario - input'!$D20),"") ->  | AJ57: =IFERROR(IF(OR(P57="",'2019 scenario - input'!$D20=""),"",P57/'2019 scenario - input'!$D20),"") ->  | AK57: =IFERROR(IF(OR(Q57="",'2019 scenario - input'!$D20=""),"",Q57/'2019 scenario - input'!$D20),"") ->  | AL57: =IFERROR(IF(OR(R57="",'2019 scenario - input'!$D20=""),"",R57/'2019 scenario - input'!$D20),"") ->  | AM57: =IFERROR(IF(OR(S57="",'2019 scenario - input'!$D20=""),"",S57/'2019 scenario - input'!$D20),"") ->  | AN57: =IFERROR(IF(OR(T57="",'2019 scenario - input'!$D20=""),"",T57/'2019 scenario - input'!$D20),"") ->  | AO57: =IFERROR(IF(OR(U57="",'2019 scenario - input'!$D20=""),"",U57/'2019 scenario - input'!$D20),"") ->  | AP57: =IFERROR(IF(OR(V57="",'2019 scenario - input'!$D20=""),"",V57/'2019 scenario - input'!$D20),"") ->  | AQ57: =IFERROR(IF(OR(W57="",'2019 scenario - input'!$D20=""),"",W57/'2019 scenario - input'!$D20),"") -> 
A58: =IFERROR('2019 scenario - input'!A21,"") ->  | B58: =IFERROR('2019 scenario - input'!B21,"") -> 0 | C58: =IFERROR('2019 scenario - input'!C21,"") -> 0 | D58: =IFERROR(repcalc('2019 scenario - input'!$CV21:$GH21,'2019 scenario - input'!$G21,'2019 scenario - input'!$E21,'2019 scenario - input'!$F21,20,TRUE,TRUE),"") ->  | X58: =IFERROR(IF(OR(D58="",'2019 scenario - input'!$D21=""),"",D58/'2019 scenario - input'!$D21),"") ->  | Y58: =IFERROR(IF(OR(E58="",'2019 scenario - input'!$D21=""),"",E58/'2019 scenario - input'!$D21),"") ->  | Z58: =IFERROR(IF(OR(F58="",'2019 scenario - input'!$D21=""),"",F58/'2019 scenario - input'!$D21),"") ->  | AA58: =IFERROR(IF(OR(G58="",'2019 scenario - input'!$D21=""),"",G58/'2019 scenario - input'!$D21),"") ->  | AB58: =IFERROR(IF(OR(H58="",'2019 scenario - input'!$D21=""),"",H58/'2019 scenario - input'!$D21),"") ->  | AC58: =IFERROR(IF(OR(I58="",'2019 scenario - input'!$D21=""),"",I58/'2019 scenario - input'!$D21),"") ->  | AD58: =IFERROR(IF(OR(J58="",'2019 scenario - input'!$D21=""),"",J58/'2019 scenario - input'!$D21),"") ->  | AE58: =IFERROR(IF(OR(K58="",'2019 scenario - input'!$D21=""),"",K58/'2019 scenario - input'!$D21),"") ->  | AF58: =IFERROR(IF(OR(L58="",'2019 scenario - input'!$D21=""),"",L58/'2019 scenario - input'!$D21),"") ->  | AG58: =IFERROR(IF(OR(M58="",'2019 scenario - input'!$D21=""),"",M58/'2019 scenario - input'!$D21),"") ->  | AH58: =IFERROR(IF(OR(N58="",'2019 scenario - input'!$D21=""),"",N58/'2019 scenario - input'!$D21),"") ->  | AI58: =IFERROR(IF(OR(O58="",'2019 scenario - input'!$D21=""),"",O58/'2019 scenario - input'!$D21),"") ->  | AJ58: =IFERROR(IF(OR(P58="",'2019 scenario - input'!$D21=""),"",P58/'2019 scenario - input'!$D21),"") ->  | AK58: =IFERROR(IF(OR(Q58="",'2019 scenario - input'!$D21=""),"",Q58/'2019 scenario - input'!$D21),"") ->  | AL58: =IFERROR(IF(OR(R58="",'2019 scenario - input'!$D21=""),"",R58/'2019 scenario - input'!$D21),"") ->  | AM58: =IFERROR(IF(OR(S58="",'2019 scenario - input'!$D21=""),"",S58/'2019 scenario - input'!$D21),"") ->  | AN58: =IFERROR(IF(OR(T58="",'2019 scenario - input'!$D21=""),"",T58/'2019 scenario - input'!$D21),"") ->  | AO58: =IFERROR(IF(OR(U58="",'2019 scenario - input'!$D21=""),"",U58/'2019 scenario - input'!$D21),"") ->  | AP58: =IFERROR(IF(OR(V58="",'2019 scenario - input'!$D21=""),"",V58/'2019 scenario - input'!$D21),"") ->  | AQ58: =IFERROR(IF(OR(W58="",'2019 scenario - input'!$D21=""),"",W58/'2019 scenario - input'!$D21),"") -> 
A59: =IFERROR('2019 scenario - input'!A22,"") ->  | B59: =IFERROR('2019 scenario - input'!B22,"") -> 0 | C59: =IFERROR('2019 scenario - input'!C22,"") -> 0 | D59: =IFERROR(repcalc('2019 scenario - input'!$CV22:$GH22,'2019 scenario - input'!$G22,'2019 scenario - input'!$E22,'2019 scenario - input'!$F22,20,TRUE,TRUE),"") ->  | X59: =IFERROR(IF(OR(D59="",'2019 scenario - input'!$D22=""),"",D59/'2019 scenario - input'!$D22),"") ->  | Y59: =IFERROR(IF(OR(E59="",'2019 scenario - input'!$D22=""),"",E59/'2019 scenario - input'!$D22),"") ->  | Z59: =IFERROR(IF(OR(F59="",'2019 scenario - input'!$D22=""),"",F59/'2019 scenario - input'!$D22),"") ->  | AA59: =IFERROR(IF(OR(G59="",'2019 scenario - input'!$D22=""),"",G59/'2019 scenario - input'!$D22),"") ->  | AB59: =IFERROR(IF(OR(H59="",'2019 scenario - input'!$D22=""),"",H59/'2019 scenario - input'!$D22),"") ->  | AC59: =IFERROR(IF(OR(I59="",'2019 scenario - input'!$D22=""),"",I59/'2019 scenario - input'!$D22),"") ->  | AD59: =IFERROR(IF(OR(J59="",'2019 scenario - input'!$D22=""),"",J59/'2019 scenario - input'!$D22),"") ->  | AE59: =IFERROR(IF(OR(K59="",'2019 scenario - input'!$D22=""),"",K59/'2019 scenario - input'!$D22),"") ->  | AF59: =IFERROR(IF(OR(L59="",'2019 scenario - input'!$D22=""),"",L59/'2019 scenario - input'!$D22),"") ->  | AG59: =IFERROR(IF(OR(M59="",'2019 scenario - input'!$D22=""),"",M59/'2019 scenario - input'!$D22),"") ->  | AH59: =IFERROR(IF(OR(N59="",'2019 scenario - input'!$D22=""),"",N59/'2019 scenario - input'!$D22),"") ->  | AI59: =IFERROR(IF(OR(O59="",'2019 scenario - input'!$D22=""),"",O59/'2019 scenario - input'!$D22),"") ->  | AJ59: =IFERROR(IF(OR(P59="",'2019 scenario - input'!$D22=""),"",P59/'2019 scenario - input'!$D22),"") ->  | AK59: =IFERROR(IF(OR(Q59="",'2019 scenario - input'!$D22=""),"",Q59/'2019 scenario - input'!$D22),"") ->  | AL59: =IFERROR(IF(OR(R59="",'2019 scenario - input'!$D22=""),"",R59/'2019 scenario - input'!$D22),"") ->  | AM59: =IFERROR(IF(OR(S59="",'2019 scenario - input'!$D22=""),"",S59/'2019 scenario - input'!$D22),"") ->  | AN59: =IFERROR(IF(OR(T59="",'2019 scenario - input'!$D22=""),"",T59/'2019 scenario - input'!$D22),"") ->  | AO59: =IFERROR(IF(OR(U59="",'2019 scenario - input'!$D22=""),"",U59/'2019 scenario - input'!$D22),"") ->  | AP59: =IFERROR(IF(OR(V59="",'2019 scenario - input'!$D22=""),"",V59/'2019 scenario - input'!$D22),"") ->  | AQ59: =IFERROR(IF(OR(W59="",'2019 scenario - input'!$D22=""),"",W59/'2019 scenario - input'!$D22),"") -> 
A60: =IFERROR('2019 scenario - input'!A23,"") ->  | B60: =IFERROR('2019 scenario - input'!B23,"") -> 0 | C60: =IFERROR('2019 scenario - input'!C23,"") -> 0 | D60: =IFERROR(repcalc('2019 scenario - input'!$CV23:$GH23,'2019 scenario - input'!$G23,'2019 scenario - input'!$E23,'2019 scenario - input'!$F23,20,TRUE,TRUE),"") ->  | X60: =IFERROR(IF(OR(D60="",'2019 scenario - input'!$D23=""),"",D60/'2019 scenario - input'!$D23),"") ->  | Y60: =IFERROR(IF(OR(E60="",'2019 scenario - input'!$D23=""),"",E60/'2019 scenario - input'!$D23),"") ->  | Z60: =IFERROR(IF(OR(F60="",'2019 scenario - input'!$D23=""),"",F60/'2019 scenario - input'!$D23),"") ->  | AA60: =IFERROR(IF(OR(G60="",'2019 scenario - input'!$D23=""),"",G60/'2019 scenario - input'!$D23),"") ->  | AB60: =IFERROR(IF(OR(H60="",'2019 scenario - input'!$D23=""),"",H60/'2019 scenario - input'!$D23),"") ->  | AC60: =IFERROR(IF(OR(I60="",'2019 scenario - input'!$D23=""),"",I60/'2019 scenario - input'!$D23),"") ->  | AD60: =IFERROR(IF(OR(J60="",'2019 scenario - input'!$D23=""),"",J60/'2019 scenario - input'!$D23),"") ->  | AE60: =IFERROR(IF(OR(K60="",'2019 scenario - input'!$D23=""),"",K60/'2019 scenario - input'!$D23),"") ->  | AF60: =IFERROR(IF(OR(L60="",'2019 scenario - input'!$D23=""),"",L60/'2019 scenario - input'!$D23),"") ->  | AG60: =IFERROR(IF(OR(M60="",'2019 scenario - input'!$D23=""),"",M60/'2019 scenario - input'!$D23),"") ->  | AH60: =IFERROR(IF(OR(N60="",'2019 scenario - input'!$D23=""),"",N60/'2019 scenario - input'!$D23),"") ->  | AI60: =IFERROR(IF(OR(O60="",'2019 scenario - input'!$D23=""),"",O60/'2019 scenario - input'!$D23),"") ->  | AJ60: =IFERROR(IF(OR(P60="",'2019 scenario - input'!$D23=""),"",P60/'2019 scenario - input'!$D23),"") ->  | AK60: =IFERROR(IF(OR(Q60="",'2019 scenario - input'!$D23=""),"",Q60/'2019 scenario - input'!$D23),"") ->  | AL60: =IFERROR(IF(OR(R60="",'2019 scenario - input'!$D23=""),"",R60/'2019 scenario - input'!$D23),"") ->  | AM60: =IFERROR(IF(OR(S60="",'2019 scenario - input'!$D23=""),"",S60/'2019 scenario - input'!$D23),"") ->  | AN60: =IFERROR(IF(OR(T60="",'2019 scenario - input'!$D23=""),"",T60/'2019 scenario - input'!$D23),"") ->  | AO60: =IFERROR(IF(OR(U60="",'2019 scenario - input'!$D23=""),"",U60/'2019 scenario - input'!$D23),"") ->  | AP60: =IFERROR(IF(OR(V60="",'2019 scenario - input'!$D23=""),"",V60/'2019 scenario - input'!$D23),"") ->  | AQ60: =IFERROR(IF(OR(W60="",'2019 scenario - input'!$D23=""),"",W60/'2019 scenario - input'!$D23),"") -> 
A61: =IFERROR('2019 scenario - input'!A24,"") ->  | B61: =IFERROR('2019 scenario - input'!B24,"") -> 0 | C61: =IFERROR('2019 scenario - input'!C24,"") -> 0 | D61: =IFERROR(repcalc('2019 scenario - input'!$CV24:$GH24,'2019 scenario - input'!$G24,'2019 scenario - input'!$E24,'2019 scenario - input'!$F24,20,TRUE,TRUE),"") ->  | X61: =IFERROR(IF(OR(D61="",'2019 scenario - input'!$D24=""),"",D61/'2019 scenario - input'!$D24),"") ->  | Y61: =IFERROR(IF(OR(E61="",'2019 scenario - input'!$D24=""),"",E61/'2019 scenario - input'!$D24),"") ->  | Z61: =IFERROR(IF(OR(F61="",'2019 scenario - input'!$D24=""),"",F61/'2019 scenario - input'!$D24),"") ->  | AA61: =IFERROR(IF(OR(G61="",'2019 scenario - input'!$D24=""),"",G61/'2019 scenario - input'!$D24),"") ->  | AB61: =IFERROR(IF(OR(H61="",'2019 scenario - input'!$D24=""),"",H61/'2019 scenario - input'!$D24),"") ->  | AC61: =IFERROR(IF(OR(I61="",'2019 scenario - input'!$D24=""),"",I61/'2019 scenario - input'!$D24),"") ->  | AD61: =IFERROR(IF(OR(J61="",'2019 scenario - input'!$D24=""),"",J61/'2019 scenario - input'!$D24),"") ->  | AE61: =IFERROR(IF(OR(K61="",'2019 scenario - input'!$D24=""),"",K61/'2019 scenario - input'!$D24),"") ->  | AF61: =IFERROR(IF(OR(L61="",'2019 scenario - input'!$D24=""),"",L61/'2019 scenario - input'!$D24),"") ->  | AG61: =IFERROR(IF(OR(M61="",'2019 scenario - input'!$D24=""),"",M61/'2019 scenario - input'!$D24),"") ->  | AH61: =IFERROR(IF(OR(N61="",'2019 scenario - input'!$D24=""),"",N61/'2019 scenario - input'!$D24),"") ->  | AI61: =IFERROR(IF(OR(O61="",'2019 scenario - input'!$D24=""),"",O61/'2019 scenario - input'!$D24),"") ->  | AJ61: =IFERROR(IF(OR(P61="",'2019 scenario - input'!$D24=""),"",P61/'2019 scenario - input'!$D24),"") ->  | AK61: =IFERROR(IF(OR(Q61="",'2019 scenario - input'!$D24=""),"",Q61/'2019 scenario - input'!$D24),"") ->  | AL61: =IFERROR(IF(OR(R61="",'2019 scenario - input'!$D24=""),"",R61/'2019 scenario - input'!$D24),"") ->  | AM61: =IFERROR(IF(OR(S61="",'2019 scenario - input'!$D24=""),"",S61/'2019 scenario - input'!$D24),"") ->  | AN61: =IFERROR(IF(OR(T61="",'2019 scenario - input'!$D24=""),"",T61/'2019 scenario - input'!$D24),"") ->  | AO61: =IFERROR(IF(OR(U61="",'2019 scenario - input'!$D24=""),"",U61/'2019 scenario - input'!$D24),"") ->  | AP61: =IFERROR(IF(OR(V61="",'2019 scenario - input'!$D24=""),"",V61/'2019 scenario - input'!$D24),"") ->  | AQ61: =IFERROR(IF(OR(W61="",'2019 scenario - input'!$D24=""),"",W61/'2019 scenario - input'!$D24),"") -> 
A62: =IFERROR('2019 scenario - input'!A25,"") ->  | B62: =IFERROR('2019 scenario - input'!B25,"") -> 0 | C62: =IFERROR('2019 scenario - input'!C25,"") -> 0 | D62: =IFERROR(repcalc('2019 scenario - input'!$CV25:$GH25,'2019 scenario - input'!$G25,'2019 scenario - input'!$E25,'2019 scenario - input'!$F25,20,TRUE,TRUE),"") ->  | X62: =IFERROR(IF(OR(D62="",'2019 scenario - input'!$D25=""),"",D62/'2019 scenario - input'!$D25),"") ->  | Y62: =IFERROR(IF(OR(E62="",'2019 scenario - input'!$D25=""),"",E62/'2019 scenario - input'!$D25),"") ->  | Z62: =IFERROR(IF(OR(F62="",'2019 scenario - input'!$D25=""),"",F62/'2019 scenario - input'!$D25),"") ->  | AA62: =IFERROR(IF(OR(G62="",'2019 scenario - input'!$D25=""),"",G62/'2019 scenario - input'!$D25),"") ->  | AB62: =IFERROR(IF(OR(H62="",'2019 scenario - input'!$D25=""),"",H62/'2019 scenario - input'!$D25),"") ->  | AC62: =IFERROR(IF(OR(I62="",'2019 scenario - input'!$D25=""),"",I62/'2019 scenario - input'!$D25),"") ->  | AD62: =IFERROR(IF(OR(J62="",'2019 scenario - input'!$D25=""),"",J62/'2019 scenario - input'!$D25),"") ->  | AE62: =IFERROR(IF(OR(K62="",'2019 scenario - input'!$D25=""),"",K62/'2019 scenario - input'!$D25),"") ->  | AF62: =IFERROR(IF(OR(L62="",'2019 scenario - input'!$D25=""),"",L62/'2019 scenario - input'!$D25),"") ->  | AG62: =IFERROR(IF(OR(M62="",'2019 scenario - input'!$D25=""),"",M62/'2019 scenario - input'!$D25),"") ->  | AH62: =IFERROR(IF(OR(N62="",'2019 scenario - input'!$D25=""),"",N62/'2019 scenario - input'!$D25),"") ->  | AI62: =IFERROR(IF(OR(O62="",'2019 scenario - input'!$D25=""),"",O62/'2019 scenario - input'!$D25),"") ->  | AJ62: =IFERROR(IF(OR(P62="",'2019 scenario - input'!$D25=""),"",P62/'2019 scenario - input'!$D25),"") ->  | AK62: =IFERROR(IF(OR(Q62="",'2019 scenario - input'!$D25=""),"",Q62/'2019 scenario - input'!$D25),"") ->  | AL62: =IFERROR(IF(OR(R62="",'2019 scenario - input'!$D25=""),"",R62/'2019 scenario - input'!$D25),"") ->  | AM62: =IFERROR(IF(OR(S62="",'2019 scenario - input'!$D25=""),"",S62/'2019 scenario - input'!$D25),"") ->  | AN62: =IFERROR(IF(OR(T62="",'2019 scenario - input'!$D25=""),"",T62/'2019 scenario - input'!$D25),"") ->  | AO62: =IFERROR(IF(OR(U62="",'2019 scenario - input'!$D25=""),"",U62/'2019 scenario - input'!$D25),"") ->  | AP62: =IFERROR(IF(OR(V62="",'2019 scenario - input'!$D25=""),"",V62/'2019 scenario - input'!$D25),"") ->  | AQ62: =IFERROR(IF(OR(W62="",'2019 scenario - input'!$D25=""),"",W62/'2019 scenario - input'!$D25),"") -> 
